{"text_format":"1","workbook":"xlsx","n_sheets":11,"sheets":["Notice","Volet_general","Part1-Coord","Part2","Part3","Partenaire vide","Part4","Part5","Part6","ListesDeroulantes","Synthèse budget"],"not_rendered":{"charts":1,"images":4,"macros":1,"external_links":0,"defined_names":19,"comments":0,"pivot_tables":0},"unopened":[],"bounds":{"document_bytes":16777216,"sheet_cells":100000,"rows_first":2000,"rows_last":500,"rows_between":2000,"halvings":0,"cell_chars":16384,"cell_head_chars":4096},"cells_cut":0,"cells_raw":0,"read":"whole","date_system":"1900"}

{"sheet":"Notice","index":0,"n_rows":77,"n_cols":8,"rows_kept":77,"cut":false,"hidden":false,"merged":[[68,1,68,7],[69,1,69,7],[75,1,75,7],[49,1,49,7],[51,1,51,7],[55,1,55,7],[63,1,63,7],[50,1,50,7],[54,1,54,7],[67,1,67,7],[71,1,71,7],[64,1,64,7],[59,1,59,7],[73,1,73,7],[58,1,58,7],[28,1,28,7],[30,1,30,7],[32,0,32,7],[33,1,33,7],[31,0,31,7],[36,1,36,7],[38,1,38,7],[43,1,43,7],[45,1,45,7],[37,1,37,7],[39,1,39,7],[0,2,3,6],[4,2,4,6],[6,0,6,7],[11,1,11,7],[0,7,3,7],[8,0,8,7],[16,1,16,3],[17,1,17,3],[18,1,18,3],[9,1,9,7],[10,1,10,7],[12,1,12,7],[13,0,13,7],[14,1,14,2],[14,4,14,7],[15,1,15,3],[20,0,20,7],[21,1,21,7],[23,1,23,7],[24,1,24,7],[26,0,26,7],[25,1,25,7],[46,1,46,7],[40,1,40,7],[57,1,57,7],[42,1,42,7],[56,1,56,7],[77,1,77,7],[15,4,15,7],[16,4,16,7],[17,4,17,7],[18,4,18,7],[19,4,19,7],[70,1,70,7],[61,1,61,7],[74,1,74,7],[27,1,27,7],[22,1,22,7],[29,1,29,7],[53,1,53,7],[34,1,34,7],[35,1,35,7],[76,1,76,7]]}
[null,null,"AMI CMA",null,null,null,null,"Saison 2"]
[]
[]
[]
[null,null,"Document administratif et financier - Notice",null,null,null,null,2023]
[]
["Notice d'utilisation du \"document Administratif et Financier\""]
[]
["RECOMMANDATIONS IMPORTANTES"]
[null,"Ce document est prévu pour recueillir les informations liées au projet, le remplissage des totaux se faisant automatiquement (cellules non colorées)."]
[null,"Cependant, si vous avez besoin de modifier le document, notamment pour ajouter des partenaires, il vous faut activer les macros."]
[null,"Vous pouvez insérer des lignes dans les tableaux de chaque fiche partenaire afin d'ajouter des postes de dépense et des lignes dans le tableau \"Participation au projet et autres soutiens financiers\" en activant le bouton situé à gauche de chaque début de tableau."]
[null,"PENSER A VERIFIER QUE VOUS AVEZ ACTIVE LE CONTENU DE VOTRE FICHIER AFIN QUE LES MACROS SOIENT ACTIVEES !"]
["Si aucun message d'avertissement concernant les macros ne s'affiche à l'ouverture du classeur, veuillez suivre la procédure suivante :"]
[null,"Version Microsoft Office 2003-2007 :",null,null,"Version Microsoft Office 2010 :"]
[null,"- Ouvrez le Menu Outils/Option",null,null,"- Ouvrez le Menu Fichier"]
[null,"- Sélectionnez l'onglet Sécurité",null,null,"- Cliquer sur l'icône Options"]
[null,"- Cliquez sur le bouton Sécurité des macros...\n- Dans l'onglet Niveau de sécurité, choisissez Niveau de sécurité moyen",null,null,"- Sélectionnez Centre de gestion de la confidentialité et cliquer sur Paramètres du centre de gestion de la confidentialité"]
[null,"- Faites Ok et ouvrez le classeur à nouveau",null,null,"- Sélectionner Paramètres des macros…"]
[null,null,null,null,"- Cocher Désactiver toutes les macros avec notification"]
["Recommandations générales"]
[null,"- Seuls les cellules sur fond vert des onglets \"Volet_general\", \"Part1-Coord\", \"Part2\", \"Part3\", … (en fonction du nombre de partenaires) sont à renseigner.\nLes tableaux récapitulatifs du \"Volet général\" sont remplis automatiquement à partir des données fournies dans les autres onglets."]
[null,"L'ajout d'onglets partenaires supplémentaires est possible à partir du Volet général."]
[null,"- Afin de garantir l'intégrité de l'ensemble des données calculées automatiquement, il est indispensable de ne pas modifier la structure de ce tableau.\nDe plus, il est demandé de ne pas modifier les noms des onglets, car cela pourrait perturber l'exploitation ultérieure du document administratif et financier."]
[null,"- Important : Il est demandé de définir une numérotation dans le partenariat de façon à ce que le partenaire n°i soit le même dans les documents administratif & financier et scientifique.  Le partenaire coordinateur doit être identifié comme le partenaire n°1 et les suivants en gardant la même cohérence."]
[null,"- Tous les montants financiers sont en € et hors taxes (HT) majorés, le cas échéant, de la TVA non récupérable."]
["1 - Onglet \"Volet_general\""]
[null,"1-1 Renseigner les cellules sur fond vert. Les deux tableaux récapitulatifs suivant de cet onglet se remplissent automatiquement à la saisie des onglets de chaque partenaire (\"Part1-Coord\", \"Part2, Part3\",…)."]
[null,"1-2 L'acronyme doit permettre d'identifier rapidement le projet, il est repris sur toutes les pages du présent document."]
[null,"1-3 Date de démarrage souhaitée: cette information pourra être amenée a été révisée, ainsi que le calendrier de réalisation du projet en fonction de la date de décision définitive de contractualisation en cas de sélection pour financement par décision du Premier Ministre. "]
[null,"1-4 Vérifier l'exactitude des informations présentes sur cet onglet."]
["Cet onglet \"Volet Général\" est à faire signer par le Responsable du Projet et la personne habilitée à engager l'Etablissement Chef de File du projet.\nUn exemplaire scanné en PDF sera à déposer en ligne sur le site de dépôt et constituera la 1ere page du document administratif et financier signé, scanné."]
["2 - Onglets \"Part1-Coord\", \"Part2\", \"part3\"…"]
[null," Chaque établissement et partenaire renseigne l'onglet qui lui correspond, fait signer le responsable du projet (Part1-Coord) et la personne habilitée à engager chaque établissement partenaire de la proposition déposée."]
[null,"2-1 Identification du partenaire :"]
[null,"Les signatures des personnes habilitées à engager l'établissement seront nécessaires uniquement sur les versions finales imprimées de ce tableau. L'ensemble complété, finalisé et scanné est attendu en ligne sur le site de dépôt aux dates indiquées dans l'AMI sous la forme d'un pdf unique.\nRenseigner dans cette partie :\n- le nom complet de l'établissement et le sigle du partenaire. Ces informations seront reprises automatiquement dans certains tableaux récapitulatifs et devront être identique à celles saisies sur le site de dépôt (merci de respecter l'ordre de renseignement en ligne, sur le présent document et sur le document de description du projet),\n- préciser le n° de SIRET de la tutelle gestionnaire,\nPour un laboratoire d'organisme public de recherche : Préciser le type d'unité et le numéro de l'unité au niveau du nom complet du partenaire (si applicable).\nPour une entreprise : Préciser (si applicable) la filiale, une succursale, le site ou le département concerné par la proposition.\n- la catégorie de partenaire (menu déroulant). Les définitions des termes figurent dans le texte de l'AMI et dans le règlement financier spécifique de l'action CMA. Des documents complémentaires pourront être demandés par l’opérateur afin de déterminer le taux définitif d’aide pour certaines établissements."]
[]
[]
[null,"Pour toutes les catégories de partenaires : Renseigner la personne habilitée à représenter juridiquement l'établissement gestionnaire du partenaire."]
[null,"En cas de doute, il est conseillé de faire appel aux contacts figurant dans l'AMI (cma@agencerecherche.fr ou PIA4CMA@caissedesdepots.fr)"]
[null,"Cet onglet \"Volet Général\" finalisé est à faire signer par le Responsable du Projet et la personne habilitée à engager l'Etablissement Chef de File de la proposition déposée."]
[null,"2-2 Demande financière :"]
[null,"Renseigner les tableaux par nature de demande. La justification de ces dernières sera à effectuer dans le document de description du projet. Les calculs s'effectuent automatiquement : les cellules sur fond blanc comportant des formules sont verrouillées. Si besoin, vous pouvez insérer des lignes à chaque tableau après activation de la macro correspondante : suivre les indications spécifiées au début de cette notice."]
[null,"Indiquer le montant total des dépenses dans la colonne \" coût total\" et les montants demandés au titre de l'aide dans la colonne \"Assiette de l'aide\". La différence constituera les apports du partenaire pour l'ensemble des natures de dépenses. Nous vous rappelons que les apports doivent être autres que des subventions France 2030/PIA."]
[null,"2-2-1 Equipements"]
[null,"Le choix de ces matériels doit faire l'objet de justification dans le document de description du projet.\n"]
[null,"Les montants sont à renseigner hors taxes (HT) augmentés éventuellement de la TVA non récupérable. En conséquence, les montants indiqués doivent prendre en compte la proportion x de TVA non récupérable de l'organisme. [coût = coût HT * (1+ x *0.20)].  \nLe seuil d’immobilisation étant à la discrétion de l’établissement, il devra être indiqué en entête de cette catégorie dans les relevés de dépenses."]
[null,"2-2-2 Personnels"]
[null,"2-2-2-1 Personnel statutaire"]
[null,"Renseigner le coût mensuel qui est le coût total correspondant (salaires bruts, primes diverses, et charges patronales, y compris la taxe sur les salaires), et le nombre total de Personne.mois par WP & sous-WP (une personne à temps plein pendant un an = 12 Personne.mois). Le coût total sur la totalité de la durée s'effectue alors automatiquement."]
[null,"Important : Pour un enseignant chercheur, ne compter que la partie du coût salarial correspondant à la part consacrée au projet dans son activité de recherche (50% du salaire et des charges salariales pour 100% du temps de recherche consacré au projet)."]
[]
[null,"2-2-2-2 Personnel NON statutaire:                                                                                                                        "]
[null,"Il s'agit des personnels ne pouvant être qualifiés de statutaire : personnels en CDD, CDI, stagiaires, doctorants, post-doctorants, etc."]
[null,"Renseigner le coût mensuel = coût total correspondant (salaires bruts, primes diverses, et charges patronales, y compris la taxe sur les salaires), et le nombre total de Personne.mois par tâche (une personne à temps plein pendant un an = 12 Personne.mois) ; le coût total sur la durée s'effectue alors automatiquement."]
[null,"Les personnels non statutaires avec financement CMA demandé (CDD et CDI) sont pris en compte pour le calcul de l'assiette de l'aide et pour le calcul du coût complet du projet. Les personnels \"à recruter\" doivent être indiqués comme tel dans le tableau correspondant (mention A recruter), afin de permettre à l'établissement coordinateur ou partenaire en question de signer en accord la lettre d'engagement."]
[null,"Les personnels non statutaires sans financement CMA demandé (par exemple, les doctorants titulaires d'une convention CIFRE) ne sont pas pris en compte pour le calcul de l'assiette de l'aide, mais ils le sont pour le calcul du coût complet du projet."]
[null,"Pour les personnels avec financement CMA  indiquer dans la colonne \"Assiette de l'aide\" les montants demandés au titre de l'aide . La différence constituera les apports du partenaire. Les apports doivent être autres que des subventions France 2030/PIA."]
[null,"2-2-3 Prestations de service, missions, autres dépenses :"]
[null,"Les montants sont à renseigner hors taxes (HT) augmenté éventuellement de la TVA non récupérable. En conséquence, les montants indiqués doivent prendre en compte la proportion x de TVA non récupérable fonction de l'organisme [coût = coût HT * (1+ x *0.20)]. "]
[null,"2-2-4 Frais généraux de gestion - Frais de structure"]
[null,"Les frais généraux sont pris en compte pour le calcul du coût complet du projet. Pour le calcul de l'assiette, leur montant est pris en compte dans la limite de 20% de l'assiette de l'aide. "]
[null,"2-2-5 Taux d'aide demandé et assiette de l'aide"]
[null,"Pour le calcul de l'aide demandée renseigner la valeur du taux d'aide demandé selon la nature du partenaire (ex. : inscrire 45 pour 45 %). L'assiette de l'aide est calculée automatiquement à partir de la somme des données rentrées dans le tableau.\nL'assiette de l'aide est l'ensemble des dépenses imputables au projet qui sont éligibles à l'aide de l'AMI (le montant de l'aide demandée est calculé par l'application à l'assiette du taux de l'aide). Le montant définitif de l’aide accordée sera déterminé par l’analyse des aides d’Etat."]
[null,"Le financement France 2030 (aide demandée) pourra atteindre au maximum 70 % du coût du projet (hors dépenses bâtimentaires et frais d’environnement), dans le respect des régimes d’aide d’état selon la nature juridique du membre porteur et de l’action. \nLes dépenses de personnels statutaires des établissements publics ne sont pas éligibles au financement France 2030. Il est de la responsabilité du porteur du projet de trouver les cofinancements restant de 30% a minima du coût total du projet (auto-financement, apports en personnels de droit privé ou statutaires dans le cadre d’un établissement public, co-financement public, co-financement privé). "]
[null,"2-2-6 Coût complet du projet"]
[]
[null,"Le coût complet du projet correspondant à la participation du partenaire est calculé automatiquement à partir de l'ensemble des données rentrées dans les tableaux et du montant des frais généraux déclaré.\nLes cofinancements privés (hors fonds attribués par l’Europe, l’État ou des collectivités territoriales) bien que non obligatoires sont vivement conseillés et appréciés. La capacité des porteurs à mobiliser des cofinancements privés (d’un montant significatif représentant, à titre indicatif, 15 % du coût total du projet) attesteront de l’engagement des entreprises et seront pris en compte dans l’évaluation du dossier par le jury. "]
[]
[null,"2-2-7 Frais d'environnement "]
[null,"Ceci concerne exclusivement les organismes de recherche et de formation. \nLes frais d'environnement ne sont pas prises en compte dans le ratio 70 % - 30% à respecter entre l'aide demandée et les cofinancements."]
[null,"Pour le calcul du coût complet comprenant les frais d'environnement, il faut ajouter aux coûts salariaux totaux des personnels leurs frais d'environnement (ex coûts d'infrastructures). Les frais d'environnement sont égaux au produit de ces coûts salariaux totaux par le taux d'environnement propre à l'organisme. Les frais d'environnement sont calculés automatiquement. Le taux étant propre à l'organisme, vous devez le consulter pour connaitre le taux applicable."]
[null,"2-3 Autres soutiens financiers"]
[null,"Le tableau \"Autres soutiens financiers\" doit indiquer tous les financements au projet qu'ils soient obtenus ou sollicités. L'identification du financeur, la nature du financement et son implication pour le(s) WP(s) et tâche(s) doivent être clairement précisés. Ces elements ne sont pas pris en compte dans le coût total du projet mais il pourront faire l'objet d'appreciation par le jury."]
[null,"2-4 Engagement du partenaire"]
[null,"Le nom et le prénom du responsable du projet renseignés ici doivent être identiques à ceux indiqués sur le site de dépôt et dans le document de description du projet. Les données de la personne habilitée à engager le partenaire sont renseignées automatiquement à partir des informations déjà fournies plus haut dans l'onglet en question cf§3-1."]
[null,"La version excel de ce document est à télécharger à l'emplacement dédié sur le site de dépôt en ligne. Deux signatures du volet général du document administratif et financier sont nécessaires : celle du responsable du projet et celle de la personne habilitée à engager l'établissement chef de file (dans ce dernier cas un cachet est également demandé). Le volet général signé est également à télécharger sous format PDF sur le site de dépôt à l'emplacement dédié à cet effet.\nChaque onglet partenaire sera signé par la personne habilitée à engager l'établissement."]

{"sheet":"Volet_general","index":1,"n_rows":96,"n_cols":35,"rows_kept":96,"cut":false,"hidden":false,"merged":[[25,31,29,31],[18,3,18,5],[5,2,6,16],[18,0,18,2],[11,15,11,17],[23,0,23,30],[18,9,18,10],[64,0,64,1],[27,9,30,9],[27,10,30,10],[44,10,46,10],[27,12,30,12],[55,17,55,19],[27,16,30,16],[37,0,37,1],[25,0,30,1],[32,0,32,1],[27,28,30,28],[25,30,29,30],[27,21,30,21],[27,20,30,20],[27,29,30,29],[9,0,9,10],[8,0,8,10],[0,19,4,19],[0,0,6,1],[5,17,6,19],[1,16,1,18],[2,16,2,18],[0,2,4,11],[58,0,58,1],[58,5,58,7],[58,8,58,16],[58,17,58,19],[0,12,0,18],[1,12,1,15],[2,12,2,15],[3,12,3,15],[4,12,4,15],[3,16,3,18],[4,16,4,17],[31,6,31,7],[32,6,32,7],[33,6,33,7],[37,6,37,7],[38,6,38,7],[35,6,35,7],[46,5,46,6],[27,26,30,26],[27,27,30,27],[27,11,30,11],[25,19,26,29],[27,6,30,7],[27,23,30,23],[27,24,30,24],[27,25,30,25],[27,22,30,22],[95,1,95,19],[80,15,80,19],[82,15,82,16],[82,17,82,19],[83,15,83,16],[83,17,83,19],[84,15,84,19],[85,15,85,19],[87,15,87,19],[88,15,91,19],[80,1,80,5],[83,3,83,5],[82,3,82,5],[88,1,91,5],[87,1,87,5],[83,1,83,2],[82,1,82,2],[11,0,11,2],[12,3,12,10],[11,3,11,6],[12,0,12,2],[27,18,30,18],[27,17,30,17],[15,0,16,2],[15,3,16,5],[18,6,18,8],[27,13,30,13],[27,14,30,14],[27,15,30,15],[20,0,20,4],[25,8,30,8],[71,0,71,1],[77,0,78,17],[56,17,56,19],[57,17,57,19],[51,2,51,3],[54,0,54,1],[42,5,42,6],[61,17,61,19],[25,5,30,5],[62,17,62,19],[75,0,76,17],[65,0,65,1],[54,17,54,19],[31,0,31,1],[55,5,55,7],[61,0,61,1],[61,5,61,7],[27,19,30,19],[40,1,40,4],[40,5,40,6],[57,5,57,7],[42,1,42,4],[25,4,30,4],[56,0,56,1],[57,0,57,1],[56,5,56,7],[54,8,54,16],[56,8,56,16],[57,8,57,16],[55,0,55,1],[55,8,55,16],[54,5,54,7],[49,1,50,4],[49,5,50,6],[36,2,36,3],[44,8,46,9],[36,6,36,7],[42,8,42,9],[25,2,30,3],[31,2,31,3],[32,2,32,3],[37,2,37,3],[44,5,44,6],[34,6,34,7],[38,2,38,3],[33,2,33,3],[33,0,33,1],[44,1,44,4],[46,1,46,4],[25,9,26,18],[60,17,60,19],[70,0,70,1],[59,0,59,1],[59,5,59,7],[59,8,59,16],[59,17,59,19],[69,0,69,1],[68,0,68,1],[66,0,66,1],[67,0,67,1],[61,8,61,16],[60,0,60,1],[60,5,60,7],[60,8,60,16],[38,0,38,1],[34,0,34,1],[34,2,34,3],[35,0,35,1],[35,2,35,3],[36,0,36,1]]}
[null,null,{"$f":"ListesDeroulantes!A2","v":"AMI - CMA"},null,null,null,null,null,null,null,null,null,{"$f":"ListesDeroulantes!A3","v":"Réservé à l'organisme gestionnaire du programme"},null,null,null,null,null,null,{"$f":"IF(Q4=1,\"\",IF(SUM(AI1:AI31,AI33:AI228)<>0,SUM(AI1:AI31,AI33:AI228)&\" \"&ListesDeroulantes!A189&IF(SUM(AI1:AI31,AI33:AI228)>1,\"s\",\"\"),\"\"))","v":"1 erreur"}]
[null,null,null,null,null,null,null,null,null,null,null,null,{"$f":"ListesDeroulantes!A4","v":"N° de partenaire"},null,null,null,{"$f":"Notice!H5","v":2023}]
[null,null,null,null,null,null,null,null,null,null,null,null,{"$f":"ListesDeroulantes!A5","v":"Acronyme"},null,null,null,{"$f":"D12","v":0}]
[null,null,null,null,null,null,null,null,null,null,null,null,{"$f":"ListesDeroulantes!A6","v":"Nb de partenaires"},null,null,null,{"$f":"COUNTIF(C33:C38,\"*\")","v":0}]
[]
[null,null,{"$f":"ListesDeroulantes!A7","v":"Document administratif et financier"},null,null,null,null,null,null,null,null,null,null,null,null,null,null,{"$f":"Notice!H1","v":"Saison 2"}]
[]
[]
[{"$f":"ListesDeroulantes!A8","v":"Volet général"}]
[{"$f":"ListesDeroulantes!A9","v":"Fiche d'identité du projet"}]
[]
[{"$f":"ListesDeroulantes!A10","v":"Acronyme du projet"},null,null,null,null,null,null,null,null,null,null,null,null,null,null,"Répartition Aide demandée",null,null,null,null,{"$f":"IF(L12<>\"\",1,0)","v":0}]
[{"$f":"ListesDeroulantes!A11","v":"Titre du projet"}]
[null,null,null,null,null,null,null,null,null,null,null,null,"Equipements",{"$f":"IF(J39<>\"- €\",J39/G39,0)","v":0}]
[null,null,null,null,null,null,null,null,null,null,null,null,"Préstations de service",{"$f":"IF(K39<>\"- €\",K39/G39,0)","v":0}]
[{"$f":"ListesDeroulantes!A12","v":"Catégorie d’entité/Catégorie du bénéficiaire "},null,null,null,null,null,null,null,null,null,null,null,"CDD & CDI",{"$f":"IF(N39<>\"- €\",N39/G39,0)","v":0}]
[null,null,null,null,null,null,null,null,null,null,null,null,"Heures compl./Modulation",{"$f":"IF(O39<>\"- €\",O39/G39,0)","v":0}]
[null,null,null,null,null,null,null,null,null,null,null,null,"Reconnaissance",{"$f":"IF(P39<>\"- €\",P39/G39,0)","v":0}]
[{"$f":"ListesDeroulantes!A22","v":"Durée du projet (en mois) \n- max 60 mois"},null,null,null,null,null,{"$f":"ListesDeroulantes!A23","v":"Date de démarrage souhaitée"},null,null,null,null,null,"Missions",{"$f":"IF(Q39<>\"- €\",Q39/G39,0)","v":0}]
[null,null,null,null,null,null,null,null,null,null,null,null,"Depenses Externes",{"$f":"IF(R39<>\"- €\",R39/G39,0)","v":0}]
[{"$f":"ListesDeroulantes!A24","v":"Le projet prévoit une large diffusion des résultats et/ou une collaboration effective (au sens du RGEC) :"},null,null,null,null,null,null,null,null,null,null,null,"Frais généraux",{"$f":"IF(S39<>\"- €\",S39/G39,0)","v":0}]
[]
[]
[{"$f":"ListesDeroulantes!A27","v":"Récapitulatif des demandes financières des partenaires"}]
[]
[null,null,{"$f":"ListesDeroulantes!A28","v":"Etablissement partenaire"},null,{"$f":"ListesDeroulantes!A29","v":"Coût complet\n(comprenant les frais d'environnement, en €)"},{"$f":"ListesDeroulantes!A30","v":"Coût complet\n(hors frais d'environnement, en €)"},null,null,{"$f":"ListesDeroulantes!A147","v":"Total assiette de l'aide (en €)"},{"$f":"ListesDeroulantes!A36","v":"Assiette de l'aide, par catégorie de dépense\n(en €)"},null,null,null,null,null,null,null,null,null,{"$f":"ListesDeroulantes!A37","v":"Apports hors frais d'environnement\n(en €)"},null,null,null,null,null,null,null,null,null,null,{"$f":"ListesDeroulantes!A48","v":"Autre financements publics\n(en €)"},{"$f":"ListesDeroulantes!A49","v":"Autre financements privés\n(en €)"}]
[]
[null,null,null,null,null,null,{"$f":"ListesDeroulantes!A149","v":"Total aide demandée (€)"},null,null,{"$f":"ListesDeroulantes!A94","v":"Equipements ou amortissement d'équipements de R&D"},{"$f":"ListesDeroulantes!A130","v":"Prestations de service externes"},null,{"$f":"\"% \"&ListesDeroulantes!A130&\" (max 30% assiette de l'aide, sauf dérogation)\"","v":"% Prestations de service externes (max 30% assiette de l'aide, sauf dérogation)"},{"$f":"ListesDeroulantes!A44","v":"Budget total\nPersonnel AVEC financement demandé (€)"},{"$f":"ListesDeroulantes!A45","v":"Heures complémentaires d’enseignement et modulation de service"},{"$f":"ListesDeroulantes!A46","v":"Reconnaissance au titre des activités prévues au référentiel horaire"},{"$f":"ListesDeroulantes!A131","v":"Missions"},{"$f":"ListesDeroulantes!A132","v":"Autres dépenses externes (consommables, petits matériels …)"},{"$f":"ListesDeroulantes!A143","v":"Frais généraux"},{"$f":"\"Total - \"&ListesDeroulantes!A37","v":"Total - Apports hors frais d'environnement\n(en €)"},{"$f":"ListesDeroulantes!A94","v":"Equipements ou amortissement d'équipements de R&D"},{"$f":"ListesDeroulantes!A130","v":"Prestations de service externes"},null,{"$f":"ListesDeroulantes!A47","v":"Apport Personnel\nCDD & CDI (€)"},null,{"$f":"ListesDeroulantes!A42","v":"Apport\nAutre personnel  (€)"},{"$f":"ListesDeroulantes!A45","v":"Heures complémentaires d’enseignement et modulation de service"},{"$f":"ListesDeroulantes!A46","v":"Reconnaissance au titre des activités prévues au référentiel horaire"},{"$f":"ListesDeroulantes!A131","v":"Missions"},{"$f":"ListesDeroulantes!A132","v":"Autres dépenses externes (consommables, petits matériels …)"}]
[]
[]
[null,null,null,null,null,null,null,null,null,null,null,null,null,null,null,null,null,null,null,null,null,null,null,null,null,null,null,null,null,null,{"$f":"ListesDeroulantes!A170","v":"Montant obtenu"},{"$f":"ListesDeroulantes!A170","v":"Montant obtenu"}]
["Partenaire vide",null,{"$f":"'Partenaire vide'!$D$10","v":0},null,{"$f":"IF(ISNUMBER('Partenaire vide'!$I$130),'Partenaire vide'!$I$130,\"- €\")","v":0},{"$f":"IF(ISNUMBER('Partenaire vide'!$I$121),'Partenaire vide'!$I$121,\"- €\")","v":0},{"$f":"IF(ISNUMBER('Partenaire vide'!$K$127),'Partenaire vide'!$K$127,\"- €\")","v":"- €"},null,{"$f":"IF('Partenaire vide'!$K$125<>0,SUM($J32,$K32,$N32,$O32,$P32,$Q32,$R32,$S32),\"- €\")","v":"- €"},{"$f":"IF(ISNUMBER('Partenaire vide'!$L$37),'Partenaire vide'!$L$37,\"- €\")","v":"- €"},{"$f":"IF(ISNUMBER('Partenaire vide'!$L$91),'Partenaire vide'!$L$91,\"- €\")","v":"- €"},null,{"$f":"IF(K32=\"- €\",\"\",IF(I32=0,\"\",K32/I32))","v":""},{"$f":"IF(ISNUMBER(SUM('Partenaire vide'!$L$55,'Partenaire vide'!$L$64)),SUM('Partenaire vide'!$L$55,'Partenaire vide'!$L$64),\"- €\")","v":0},{"$f":"IF(ISNUMBER('Partenaire vide'!$L$73),'Partenaire vide'!$L$73,\"- €\")","v":"- €"},{"$f":"IF(ISNUMBER('Partenaire vide'!$L$82),'Partenaire vide'!$L$82,\"- €\")","v":"- €"},{"$f":"IF(ISNUMBER('Partenaire vide'!$L$100),'Partenaire vide'!$L$100,\"- €\")","v":"- €"},{"$f":"IF(ISNUMBER('Partenaire vide'!$L$109),'Partenaire vide'!$L$109,\"- €\")","v":"- €"},{"$f":"IF(ISNUMBER('Partenaire vide'!$L$115),'Partenaire vide'!$L$115,\"- €\")","v":0},{"$f":"IF(ISNUMBER($F32),$F32-IF(ISNUMBER($G32),$G32,0),\"- €\")","v":0},{"$f":"IF(ISNUMBER('Partenaire vide'!$K$37),'Partenaire vide'!$K$37-IF(ISNUMBER($J32),$J32,0),\"- €\")","v":"- €"},{"$f":"IF(ISNUMBER('Partenaire vide'!$K$91),'Partenaire vide'!$K$91-IF(ISNUMBER($K32),$K32,0),\"- €\")","v":"- €"},null,{"$f":"IF(ISNUMBER(SUM('Partenaire vide'!$K$55,'Partenaire vide'!$K$64)),SUM('Partenaire vide'!$K$55,'Partenaire vide'!$K$64)-IF(ISNUMBER($N32),$N32,0),\"- \")","v":0},null,{"$f":"IF(ISNUMBER('Partenaire vide'!$K$46),'Partenaire vide'!$K$46,\"- €\")","v":0},{"$f":"IF(ISNUMBER('Partenaire vide'!$K$73),'Partenaire vide'!$K$73-IF(ISNUMBER($O32),$O32,0),\"- €\")","v":"- €"},{"$f":"IF(ISNUMBER('Partenaire vide'!$K$82),'Partenaire vide'!$K$82-IF(ISNUMBER($P32),$P32,0),\"- €\")","v":"- €"},{"$f":"IF(ISNUMBER('Partenaire vide'!$K$100),'Partenaire vide'!$K$100-IF(ISNUMBER($Q32),$Q32,0),\"- €\")","v":"- €"},{"$f":"IF(ISNUMBER('Partenaire vide'!$K$109),'Partenaire vide'!$K$109-IF(ISNUMBER($R32),$R32,0),\"- €\")","v":"- €"},{"$f":"'Partenaire vide'!$J$144","v":0},{"$f":"'Partenaire vide'!$J$145","v":0},null,{"$f":"IF('Partenaire vide'!O$1<>\"\",'Partenaire vide'!O$1,\"\")","v":""},{"$f":"IF(AH32<>\"\",LEFT(AH32,SEARCH(\" \",AH32)-1)*1,\"\")","v":""}]
["Part1-Coord",null,{"$f":"'Part1-Coord'!$D$10","v":0},null,{"$f":"IF(ISNUMBER('Part1-Coord'!$I$130),'Part1-Coord'!$I$130,\"- €\")","v":0},{"$f":"IF(ISNUMBER('Part1-Coord'!$I$121),'Part1-Coord'!$I$121,\"- €\")","v":0},{"$f":"IF(ISNUMBER('Part1-Coord'!$K$127),'Part1-Coord'!$K$127,\"- €\")","v":"- €"},null,{"$f":"IF('Part1-Coord'!$K$125<>0,SUM($J33,$K33,$N33,O33,P33,$Q33,$R33,$S33),\"- €\")","v":"- €"},{"$f":"IF(ISNUMBER('Part1-Coord'!$L$37),'Part1-Coord'!$L$37,\"- €\")","v":"- €"},{"$f":"IF(ISNUMBER('Part1-Coord'!$L$91),'Part1-Coord'!$L$91,\"- €\")","v":"- €"},null,"",{"$f":"IF(ISNUMBER(SUM('Part1-Coord'!$L$55,'Part1-Coord'!$L$64)),SUM('Part1-Coord'!$L$55,'Part1-Coord'!$L$64),\"- €\")","v":0},{"$f":"IF(ISNUMBER('Part1-Coord'!$L$73),'Part1-Coord'!$L$73,\"- €\")","v":"- €"},{"$f":"IF(ISNUMBER('Part1-Coord'!$L$82),'Part1-Coord'!$L$82,\"- €\")","v":"- €"},{"$f":"IF(ISNUMBER('Part1-Coord'!$L$100),'Part1-Coord'!$L$100,\"- €\")","v":"- €"},{"$f":"IF(ISNUMBER('Part1-Coord'!$L$109),'Part1-Coord'!$L$109,\"- €\")","v":"- €"},{"$f":"IF(ISNUMBER('Part1-Coord'!$L$115),'Part1-Coord'!$L$115,\"- €\")","v":0},0,{"$f":"IF(ISNUMBER('Part1-Coord'!$K$37),'Part1-Coord'!$K$37-IF(ISNUMBER($J33),$J33,0),\"- €\")","v":"- €"},{"$f":"IF(ISNUMBER('Part1-Coord'!$K$91),'Part1-Coord'!$K$91-IF(ISNUMBER($K33),$K33,0),\"- €\")","v":"- €"},null,{"$f":"IF(ISNUMBER(SUM('Part1-Coord'!$K$55,'Part1-Coord'!$K$64)),SUM('Part1-Coord'!$K$55,'Part1-Coord'!$K$64)-IF(ISNUMBER($N33),$N33,0),\"- \")","v":0},null,{"$f":"IF(ISNUMBER('Part1-Coord'!$K$46),'Part1-Coord'!$K$46,\"- €\")","v":0},{"$f":"IF(ISNUMBER('Part1-Coord'!$K$73),'Part1-Coord'!$K$73-IF(ISNUMBER($O33),$O33,0),\"- €\")","v":"- €"},{"$f":"IF(ISNUMBER('Part1-Coord'!$K$82),'Part1-Coord'!$K$82-IF(ISNUMBER($P33),$P33,0),\"- €\")","v":"- €"},{"$f":"IF(ISNUMBER('Part1-Coord'!$K$100),'Part1-Coord'!$K$100-IF(ISNUMBER($Q33),$Q33,0),\"- €\")","v":"- €"},{"$f":"IF(ISNUMBER('Part1-Coord'!$K$109),'Part1-Coord'!$K$109-IF(ISNUMBER($R33),$R33,0),\"- €\")","v":"- €"},{"$f":"'Part1-Coord'!$J$144","v":0},{"$f":"'Part1-Coord'!$J$145","v":0},null,{"$f":"IF('Part1-Coord'!N$1<>\"\",'Part1-Coord'!N$1,\"\")","v":"1 erreur"},1]
["Part2",null,{"$f":"Part2!$D$10","v":0},null,{"$f":"IF(ISNUMBER(Part2!$I$130),Part2!$I$130,\"- €\")","v":0},{"$f":"IF(ISNUMBER(Part2!$I$121),Part2!$I$121,\"- €\")","v":0},{"$f":"IF(ISNUMBER(Part2!$K$127),Part2!$K$127,\"- €\")","v":"- €"},null,{"$f":"IF(Part2!$K$125<>0,SUM($J34,$K34,$N34,$O34,$P34,$Q34,$R34,$S34),\"- €\")","v":"- €"},{"$f":"IF(ISNUMBER(Part2!$L$37),Part2!$L$37,\"- €\")","v":"- €"},{"$f":"IF(ISNUMBER(Part2!$L$91),Part2!$L$91,\"- €\")","v":"- €"},null,"",{"$f":"IF(ISNUMBER(SUM(Part2!$L$55,Part2!$L$64)),SUM(Part2!$L$55,Part2!$L$64),\"- €\")","v":0},{"$f":"IF(ISNUMBER(Part2!$L$73),Part2!$L$73,\"- €\")","v":"- €"},{"$f":"IF(ISNUMBER(Part2!$L$82),Part2!$L$82,\"- €\")","v":"- €"},{"$f":"IF(ISNUMBER(Part2!$L$100),Part2!$L$100,\"- €\")","v":"- €"},{"$f":"IF(ISNUMBER(Part2!$L$109),Part2!$L$109,\"- €\")","v":"- €"},{"$f":"IF(ISNUMBER(Part2!$L$115),Part2!$L$115,\"- €\")","v":0},0,{"$f":"IF(ISNUMBER(Part2!$K$37),Part2!$K$37-IF(ISNUMBER($J34),$J34,0),\"- €\")","v":"- €"},{"$f":"IF(ISNUMBER(Part2!$K$91),Part2!$K$91-IF(ISNUMBER($K34),$K34,0),\"- €\")","v":"- €"},null,{"$f":"IF(ISNUMBER(SUM(Part2!$K$55,Part2!$K$64)),SUM(Part2!$K$55,Part2!$K$64)-IF(ISNUMBER($N34),$N34,0),\"- \")","v":0},null,{"$f":"IF(ISNUMBER(Part2!$K$46),Part2!$K$46,\"- €\")","v":0},{"$f":"IF(ISNUMBER(Part2!$K$73),Part2!$K$73-IF(ISNUMBER($O34),$O34,0),\"- €\")","v":"- €"},{"$f":"IF(ISNUMBER(Part2!$K$82),Part2!$K$82-IF(ISNUMBER($P34),$P34,0),\"- €\")","v":"- €"},{"$f":"IF(ISNUMBER(Part2!$K$100),Part2!$K$100-IF(ISNUMBER($Q34),$Q34,0),\"- €\")","v":"- €"},{"$f":"IF(ISNUMBER(Part2!$K$109),Part2!$K$109-IF(ISNUMBER($R34),$R34,0),\"- €\")","v":"- €"},{"$f":"Part2!$J$144","v":0},{"$f":"Part2!$J$145","v":0},null,{"$f":"IF(Part2!O$1<>\"\",Part2!O$1,\"\")","v":""},""]
["Part3",null,{"$f":"Part3!$D$10","v":0},null,{"$f":"IF(ISNUMBER(Part3!$I$130),Part3!$I$130,\"- €\")","v":0},{"$f":"IF(ISNUMBER(Part3!$I$121),Part3!$I$121,\"- €\")","v":0},{"$f":"IF(ISNUMBER(Part3!$K$127),Part3!$K$127,\"- €\")","v":"- €"},null,{"$f":"IF(Part3!$K$125<>0,SUM($J35,$K35,$N35,$O35,$P35,$Q35,$R35,$S35),\"- €\")","v":"- €"},{"$f":"IF(ISNUMBER(Part3!$L$37),Part3!$L$37,\"- €\")","v":"- €"},{"$f":"IF(ISNUMBER(Part3!$L$91),Part3!$L$91,\"- €\")","v":"- €"},null,"",{"$f":"IF(ISNUMBER(SUM(Part3!$L$55,Part3!$L$64)),SUM(Part3!$L$55,Part3!$L$64),\"- €\")","v":0},{"$f":"IF(ISNUMBER(Part3!$L$73),Part3!$L$73,\"- €\")","v":"- €"},{"$f":"IF(ISNUMBER(Part3!$L$82),Part3!$L$82,\"- €\")","v":"- €"},{"$f":"IF(ISNUMBER(Part3!$L$100),Part3!$L$100,\"- €\")","v":"- €"},{"$f":"IF(ISNUMBER(Part3!$L$109),Part3!$L$109,\"- €\")","v":"- €"},{"$f":"IF(ISNUMBER(Part3!$L$115),Part3!$L$115,\"- €\")","v":0},0,{"$f":"IF(ISNUMBER(Part3!$K$37),Part3!$K$37-IF(ISNUMBER($J35),$J35,0),\"- €\")","v":"- €"},{"$f":"IF(ISNUMBER(Part3!$K$91),Part3!$K$91-IF(ISNUMBER($K35),$K35,0),\"- €\")","v":"- €"},null,{"$f":"IF(ISNUMBER(SUM(Part3!$K$55,Part3!$K$64)),SUM(Part3!$K$55,Part3!$K$64)-IF(ISNUMBER($N35),$N35,0),\"- \")","v":0},null,{"$f":"IF(ISNUMBER(Part3!$K$46),Part3!$K$46,\"- €\")","v":0},{"$f":"IF(ISNUMBER(Part3!$K$73),Part3!$K$73-IF(ISNUMBER($O35),$O35,0),\"- €\")","v":"- €"},{"$f":"IF(ISNUMBER(Part3!$K$82),Part3!$K$82-IF(ISNUMBER($P35),$P35,0),\"- €\")","v":"- €"},{"$f":"IF(ISNUMBER(Part3!$K$100),Part3!$K$100-IF(ISNUMBER($Q35),$Q35,0),\"- €\")","v":"- €"},{"$f":"IF(ISNUMBER(Part3!$K$109),Part3!$K$109-IF(ISNUMBER($R35),$R35,0),\"- €\")","v":"- €"},{"$f":"Part3!$J$144","v":0},{"$f":"Part3!$J$145","v":0},null,{"$f":"IF(Part3!O$1<>\"\",Part3!O$1,\"\")","v":""},""]
["Part4",null,{"$f":"Part4!$D$10","v":0},null,{"$f":"IF(ISNUMBER(Part4!$I$130),Part4!$I$130,\"- €\")","v":0},{"$f":"IF(ISNUMBER(Part4!$I$121),Part4!$I$121,\"- €\")","v":0},{"$f":"IF(ISNUMBER(Part4!$K$127),Part4!$K$127,\"- €\")","v":"- €"},null,{"$f":"IF(Part4!$K$125<>0,SUM($J36,$K36,$N36,$O36,$P36,$Q36,$R36,$S36),\"- €\")","v":"- €"},{"$f":"IF(ISNUMBER(Part4!$L$37),Part4!$L$37,\"- €\")","v":"- €"},{"$f":"IF(ISNUMBER(Part4!$L$91),Part4!$L$91,\"- €\")","v":"- €"},null,{"$f":"IF(K36=\"- €\",\"\",IF(I36=0,\"\",K36/I36))","v":""},{"$f":"IF(ISNUMBER(SUM(Part4!$L$55,Part4!$L$64)),SUM(Part4!$L$55,Part4!$L$64),\"- €\")","v":0},{"$f":"IF(ISNUMBER(Part4!$L$73),Part4!$L$73,\"- €\")","v":"- €"},{"$f":"IF(ISNUMBER(Part4!$L$82),Part4!$L$82,\"- €\")","v":"- €"},{"$f":"IF(ISNUMBER(Part4!$L$100),Part4!$L$100,\"- €\")","v":"- €"},{"$f":"IF(ISNUMBER(Part4!$L$109),Part4!$L$109,\"- €\")","v":"- €"},{"$f":"IF(ISNUMBER(Part4!$L$115),Part4!$L$115,\"- €\")","v":0},0,{"$f":"IF(ISNUMBER(Part4!$K$37),Part4!$K$37-IF(ISNUMBER($J36),$J36,0),\"- €\")","v":"- €"},{"$f":"IF(ISNUMBER(Part4!$K$91),Part4!$K$91-IF(ISNUMBER($K36),$K36,0),\"- €\")","v":"- €"},null,{"$f":"IF(ISNUMBER(SUM(Part4!$K$55,Part4!$K$64)),SUM(Part4!$K$55,Part4!$K$64)-IF(ISNUMBER($N36),$N36,0),\"- \")","v":0},null,{"$f":"IF(ISNUMBER(Part4!$K$46),Part4!$K$46,\"- €\")","v":0},{"$f":"IF(ISNUMBER(Part4!$K$73),Part4!$K$73-IF(ISNUMBER($O36),$O36,0),\"- €\")","v":"- €"},{"$f":"IF(ISNUMBER(Part4!$K$82),Part4!$K$82-IF(ISNUMBER($P36),$P36,0),\"- €\")","v":"- €"},{"$f":"IF(ISNUMBER(Part4!$K$100),Part4!$K$100-IF(ISNUMBER($Q36),$Q36,0),\"- €\")","v":"- €"},{"$f":"IF(ISNUMBER(Part4!$K$109),Part4!$K$109-IF(ISNUMBER($R36),$R36,0),\"- €\")","v":"- €"},{"$f":"Part4!$J$144","v":0},{"$f":"Part4!$J$145","v":0},null,{"$f":"IF(Part4!O$1<>\"\",Part4!O$1,\"\")","v":""},""]
["Part5",null,{"$f":"Part5!$D$10","v":0},null,{"$f":"IF(ISNUMBER(Part5!$I$130),Part5!$I$130,\"- €\")","v":0},{"$f":"IF(ISNUMBER(Part5!$I$121),Part5!$I$121,\"- €\")","v":0},{"$f":"IF(ISNUMBER(Part5!$K$127),Part5!$K$127,\"- €\")","v":"- €"},null,{"$f":"IF(Part5!$K$125<>0,SUM($J37,$K37,$N37,$O37,$P37,$Q37,$R37,$S37),\"- €\")","v":"- €"},{"$f":"IF(ISNUMBER(Part5!$L$37),Part5!$L$37,\"- €\")","v":"- €"},{"$f":"IF(ISNUMBER(Part5!$L$91),Part5!$L$91,\"- €\")","v":"- €"},null,{"$f":"IF(K37=\"- €\",\"\",IF(I37=0,\"\",K37/I37))","v":""},{"$f":"IF(ISNUMBER(SUM(Part5!$L$55,Part5!$L$64)),SUM(Part5!$L$55,Part5!$L$64),\"- €\")","v":0},{"$f":"IF(ISNUMBER(Part5!$L$73),Part5!$L$73,\"- €\")","v":"- €"},{"$f":"IF(ISNUMBER(Part5!$L$82),Part5!$L$82,\"- €\")","v":"- €"},{"$f":"IF(ISNUMBER(Part5!$L$100),Part5!$L$100,\"- €\")","v":"- €"},{"$f":"IF(ISNUMBER(Part5!$L$109),Part5!$L$109,\"- €\")","v":"- €"},{"$f":"IF(ISNUMBER(Part5!$L$115),Part5!$L$115,\"- €\")","v":0},0,{"$f":"IF(ISNUMBER(Part5!$K$37),Part5!$K$37-IF(ISNUMBER($J37),$J37,0),\"- €\")","v":"- €"},{"$f":"IF(ISNUMBER(Part5!$K$91),Part5!$K$91-IF(ISNUMBER($K37),$K37,0),\"- €\")","v":"- €"},null,{"$f":"IF(ISNUMBER(SUM(Part5!$K$55,Part5!$K$64)),SUM(Part5!$K$55,Part5!$K$64)-IF(ISNUMBER($N37),$N37,0),\"- \")","v":0},null,{"$f":"IF(ISNUMBER(Part5!$K$46),Part5!$K$46,\"- €\")","v":0},{"$f":"IF(ISNUMBER(Part5!$K$73),Part5!$K$73-IF(ISNUMBER($O37),$O37,0),\"- €\")","v":"- €"},{"$f":"IF(ISNUMBER(Part5!$K$82),Part5!$K$82-IF(ISNUMBER($P37),$P37,0),\"- €\")","v":"- €"},{"$f":"IF(ISNUMBER(Part5!$K$100),Part5!$K$100-IF(ISNUMBER($Q37),$Q37,0),\"- €\")","v":"- €"},{"$f":"IF(ISNUMBER(Part5!$K$109),Part5!$K$109-IF(ISNUMBER($R37),$R37,0),\"- €\")","v":"- €"},{"$f":"Part5!$J$144","v":0},{"$f":"Part5!$J$145","v":0},null,{"$f":"IF(Part5!O$1<>\"\",Part5!O$1,\"\")","v":""},{"$f":"IF(AH37<>\"\",LEFT(AH37,SEARCH(\" \",AH37)-1)*1,\"\")","v":""}]
["Part6",null,{"$f":"Part6!$D$10","v":0},null,{"$f":"IF(ISNUMBER(Part6!$I$130),Part6!$I$130,\"- €\")","v":0},{"$f":"IF(ISNUMBER(Part6!$I$121),Part6!$I$121,\"- €\")","v":0},{"$f":"IF(ISNUMBER(Part6!$K$127),Part6!$K$127,\"- €\")","v":"- €"},null,{"$f":"IF(Part6!$K$125<>0,SUM($J38,$K38,$N38,$O38,$P38,$Q38,$R38,$S38),\"- €\")","v":"- €"},{"$f":"IF(ISNUMBER(Part6!$L$37),Part6!$L$37,\"- €\")","v":"- €"},{"$f":"IF(ISNUMBER(Part6!$L$91),Part6!$L$91,\"- €\")","v":"- €"},null,"",{"$f":"IF(ISNUMBER(SUM(Part6!$L$55,Part6!$L$64)),SUM(Part6!$L$55,Part6!$L$64),\"- €\")","v":0},{"$f":"IF(ISNUMBER(Part6!$L$73),Part6!$L$73,\"- €\")","v":"- €"},{"$f":"IF(ISNUMBER(Part6!$L$82),Part6!$L$82,\"- €\")","v":"- €"},{"$f":"IF(ISNUMBER(Part6!$L$100),Part6!$L$100,\"- €\")","v":"- €"},{"$f":"IF(ISNUMBER(Part6!$L$109),Part6!$L$109,\"- €\")","v":"- €"},{"$f":"IF(ISNUMBER(Part6!$L$115),Part6!$L$115,\"- €\")","v":0},0,{"$f":"IF(ISNUMBER(Part6!$K$37),Part6!$K$37-IF(ISNUMBER($J38),$J38,0),\"- €\")","v":"- €"},{"$f":"IF(ISNUMBER(Part6!$K$91),Part6!$K$91-IF(ISNUMBER($K38),$K38,0),\"- €\")","v":"- €"},null,{"$f":"IF(ISNUMBER(SUM(Part6!$K$55,Part6!$K$64)),SUM(Part6!$K$55,Part6!$K$64)-IF(ISNUMBER($N38),$N38,0),\"- \")","v":0},null,{"$f":"IF(ISNUMBER(Part6!$K$46),Part6!$K$46,\"- €\")","v":0},{"$f":"IF(ISNUMBER(Part6!$K$73),Part6!$K$73-IF(ISNUMBER($O38),$O38,0),\"- €\")","v":"- €"},{"$f":"IF(ISNUMBER(Part6!$K$82),Part6!$K$82-IF(ISNUMBER($P38),$P38,0),\"- €\")","v":"- €"},{"$f":"IF(ISNUMBER(Part6!$K$100),Part6!$K$100-IF(ISNUMBER($Q38),$Q38,0),\"- €\")","v":"- €"},{"$f":"IF(ISNUMBER(Part6!$K$109),Part6!$K$109-IF(ISNUMBER($R38),$R38,0),\"- €\")","v":"- €"},{"$f":"Part6!$J$144","v":0},{"$f":"Part6!$J$145","v":0},null,{"$f":"IF(Part6!O$1<>\"\",Part6!O$1,\"\")","v":""},""]
[{"$f":"ListesDeroulantes!A51","v":"Totaux"},null,null,null,{"$f":"IF(SUM(E33:E38)<>0,SUM(E33:E38),\"- €\")","v":"- €"},{"$f":"IF(SUM(F33:F38)<>0,SUM(F33:F38),\"- €\")","v":"- €"},{"$f":"IF(SUM(G33:G38)<>0,SUM(G33:G38),\"- €\")","v":"- €"},null,{"$f":"IF(SUM(I33:I38)<>0,SUM(I33:I38),\"- €\")","v":"- €"},{"$f":"IF(SUM(J33:J38)<>0,SUM(J33:J38),\"- €\")","v":"- €"},{"$f":"IF(SUM(K33:K38)<>0,SUM(K33:K38),\"- €\")","v":"- €"},null,"",{"$f":"IF(SUM(N33:N38)<>0,SUM(N33:N38),\"- €\")","v":"- €"},{"$f":"IF(SUM(O33:O38)<>0,SUM(O33:O38),\"- €\")","v":"- €"},"- €","- €","- €",{"$f":"IF(SUM(S33:S38)<>0,SUM(S33:S38),\"- €\")","v":"- €"},{"$f":"IF(SUM(T33:T38)<>0,SUM(T33:T38),\"- €\")","v":"- €"},{"$f":"IF(SUM(U33:U38)<>0,SUM(U33:U38),\"- €\")","v":"- €"},{"$f":"IF(SUM(V33:V38)<>0,SUM(V33:V38),\"- €\")","v":"- €"},null,{"$f":"IF(SUM(X33:X38)<>0,SUM(X33:X38),\"- €\")","v":"- €"},null,{"$f":"IF(SUM(Z33:Z38)<>0,SUM(Z33:Z38),\"- €\")","v":"- €"},{"$f":"IF(SUM(AA33:AA38)<>0,SUM(AA33:AA38),\"- €\")","v":"- €"},"- €",{"$f":"IF(SUM(AC33:AC38)<>0,SUM(AC33:AC38),\"- €\")","v":"- €"},"- €",{"$f":"IF(SUM(AE33:AE38)<>0,SUM(AE33:AE38),\"- €\")","v":"- €"},"- €"]
[]
[null,{"$f":"ListesDeroulantes!A31","v":"Assiette aide demandée frais généraux / Assiette aide demandée total hors frais généraux (max 20% sur l'ensemble du projet)"},null,null,null,{"$f":"IF(ISNUMBER(S39/(I39-S39)),(S39/(I39-S39)),\"-\")","v":"-"}]
[]
[null,{"$f":"ListesDeroulantes!A32","v":"Montant reconnaissance (limite annuelle de 50k€, sauf dérogation)"},null,null,null,{"$f":"IF(ISNUMBER(P39),P39,\"- €\")","v":"- €"},null,null,{"$f":"ListesDeroulantes!A33","v":"Montant reconnaissance par an"},null,{"$f":"IF(AND(F43>0,D19>0),F43/D19*12,\"-\")","v":"-"}]
[]
[null,{"$f":"ListesDeroulantes!A54","v":"Aide totale demandée (en €)"},null,null,null,{"$f":"IF(ISNUMBER(G39),G39,\"- €\")","v":"- €"},null,null,{"$f":"ListesDeroulantes!A34","v":"Ratio Aide demandée / Coût complet du projet (hors frais d'environnement)"},null,{"$f":"IF(ISNUMBER(F45/F47),(F45/F47),\"-\")","v":"-"}]
[]
[null,{"$f":"ListesDeroulantes!A52","v":"Coût complet du projet\n(hors frais d'environnement, en €)"},null,null,null,{"$f":"IF(ISNUMBER(F39),F39,\"- €\")","v":"- €"}]
[]
[]
[null,{"$f":"ListesDeroulantes!A53","v":"Coût complet du projet comprenant les frais d'environnement (en €)"},null,null,null,{"$f":"IF(ISNUMBER(E39),E39,\"- €\")","v":"- €"}]
[]
[]
[]
[]
[null,null,null,{"$f":"ListesDeroulantes!A148","v":"Taux d'aide demandé (%)"},null,{"$f":"ListesDeroulantes!A55","v":"Sigle de l'établissement partenaire"},null,null,{"$f":"ListesDeroulantes!A56","v":"Nom complet de l'établissement partenaire"},null,null,null,null,null,null,null,null,{"$f":"ListesDeroulantes!A84","v":"N° de SIRET"}]
["Partenaire vide",null,null,{"$f":"'Partenaire vide'!$K$125","v":0},null,{"$f":"'Partenaire vide'!$D$10","v":0},null,null,{"$f":"'Partenaire vide'!$D$7","v":0},null,null,null,null,null,null,null,null,{"$f":"IF('Partenaire vide'!$D$16<>0,'Partenaire vide'!$D$16,\"\")","v":""}]
["Part1-Coord",null,null,{"$f":"'Part1-Coord'!$K$125","v":0},null,{"$f":"'Part1-Coord'!D$10","v":0},null,null,{"$f":"IF('Part1-Coord'!D$7=\"\",\" \",'Part1-Coord'!D$7)","v":" "},null,null,null,null,null,null,null,null,{"$f":"IF('Part1-Coord'!$D$16<>0,'Part1-Coord'!$D$16,\"\")","v":""}]
["Part2",null,null,{"$f":"Part2!$K$125","v":0},null,{"$f":"Part2!D$10","v":0},null,null,{"$f":"Part2!$D$7","v":0},null,null,null,null,null,null,null,null,{"$f":"IF(Part2!$D$16<>0,Part2!$D$16,\"\")","v":""}]
["Part3",null,null,{"$f":"Part3!$K$125","v":0},null,{"$f":"Part3!D$10","v":0},null,null,{"$f":"Part3!$D$7","v":0},null,null,null,null,null,null,null,null,{"$f":"IF(Part3!$D$16<>0,Part3!$D$16,\"\")","v":""}]
["Part4",null,null,{"$f":"Part4!$K$125","v":0},null,{"$f":"Part4!$D$10","v":0},null,null,{"$f":"Part4!$D$7","v":0},null,null,null,null,null,null,null,null,{"$f":"IF(Part4!$D$16<>0,Part4!$D$16,\"\")","v":""}]
["Part5",null,null,{"$f":"Part5!$K$125","v":0},null,{"$f":"Part5!$D$10","v":0},null,null,{"$f":"Part5!$D$7","v":0},null,null,null,null,null,null,null,null,{"$f":"IF(Part5!$D$16<>0,Part5!$D$16,\"\")","v":""}]
["Part6",null,null,{"$f":"Part6!$K$125","v":0},null,{"$f":"Part6!$D$10","v":0},null,null,{"$f":"Part6!$D$7","v":0},null,null,null,null,null,null,null,null,{"$f":"IF(Part6!$D$16<>0,Part6!$D$16,\"\")","v":""}]
[]
[]
[null,null,null,{"$f":"ListesDeroulantes!A148","v":"Taux d'aide demandé (%)"},{"$f":"ListesDeroulantes!A153","v":"WP 1"},{"$f":"ListesDeroulantes!A154","v":"WP 2"},{"$f":"ListesDeroulantes!A155","v":"WP 3"},{"$f":"ListesDeroulantes!A156","v":"WP 4"},{"$f":"ListesDeroulantes!A157","v":"WP 5"},{"$f":"ListesDeroulantes!A158","v":"WP 6"},{"$f":"ListesDeroulantes!A159","v":"WP 7"},{"$f":"ListesDeroulantes!B165","v":0},{"$f":"ListesDeroulantes!A160","v":"WP 8"},{"$f":"ListesDeroulantes!A161","v":"WP 9"},{"$f":"ListesDeroulantes!A162","v":"WP 10"}]
["Partenaire vide",null,null,{"$f":"'Partenaire vide'!$K$125","v":0},{"$f":"IF(ISNUMBER((SUM(SUMIF('Partenaire vide'!$G$34:$G$36,\"WP 1\",'Partenaire vide'!$L$34:$L$36), SUMIF('Partenaire vide'!$G$52:$G$54,\"WP 1\",'Partenaire vide'!$L$52:$L$54),SUMIF('Partenaire vide'!$G$61:$G$63,\"WP 1\",'Partenaire vide'!$L$61:$L$63),SUMIF('Partenaire vide'!$G$70:$G$72,\"WP 1\",'Partenaire vide'!$L$70:$L$72), SUMIF('Partenaire vide'!$G$79:$G$81,\"WP 1\",'Partenaire vide'!$L$79:$L$81), SUMIF('Partenaire vide'!$G$88:$G$90,\"WP 1\",'Partenaire vide'!$L$88:$L$90),SUMIF('Partenaire vide'!$G$97:$G$99,\"WP 1\",'Partenaire vide'!$L$97:$L$99),SUMIF('Partenaire vide'!$G$106:$G$108,\"WP 1\",'Partenaire vide'!$L$106:$L$108)))*('Partenaire vide'!$K$125/100)), (SUM(SUMIF('Partenaire vide'!$G$34:$G$36,\"WP 1\",'Partenaire vide'!$L$34:$L$36), SUMIF('Partenaire vide'!$G$52:$G$54,\"WP 1\",'Partenaire vide'!$L$52:$L$54),SUMIF('Partenaire vide'!$G$61:$G$63,\"WP 1\",'Partenaire vide'!$L$61:$L$63),SUMIF('Partenaire vide'!$G$70:$G$72,\"WP 1\",'Partenaire vide'!$L$70:$L$72), SUMIF('Partenaire vide'!$G$79:$G$81,\"WP 1\",'Partenaire vide'!$L$79:$L$81), SUMIF('Partenaire vide'!$G$88:$G$90,\"WP 1\",'Partenaire vide'!$L$88:$L$90),SUMIF('Partenaire vide'!$G$97:$G$99,\"WP 1\",'Partenaire vide'!$L$97:$L$99),SUMIF('Partenaire vide'!$G$106:$G$108,\"WP 1\",'Partenaire vide'!$L$106:$L$108)))*('Partenaire vide'!$K$125/100), \"- € \")","v":0},{"$f":"IF(ISNUMBER((SUM(SUMIF('Partenaire vide'!$G$34:$G$36,\"WP 2\",'Partenaire vide'!$L$34:$L$36), SUMIF('Partenaire vide'!$G$52:$G$54,\"WP 2\",'Partenaire vide'!$L$52:$L$54),SUMIF('Partenaire vide'!$G$61:$G$63,\"WP 2\",'Partenaire vide'!$L$61:$L$63),SUMIF('Partenaire vide'!$G$70:$G$72,\"WP 2\",'Partenaire vide'!$L$70:$L$72), SUMIF('Partenaire vide'!$G$79:$G$81,\"WP 2\",'Partenaire vide'!$L$79:$L$81), SUMIF('Partenaire vide'!$G$88:$G$90,\"WP 2\",'Partenaire vide'!$L$88:$L$90),SUMIF('Partenaire vide'!$G$97:$G$99,\"WP 2\",'Partenaire vide'!$L$97:$L$99),SUMIF('Partenaire vide'!$G$106:$G$108,\"WP 2\",'Partenaire vide'!$L$106:$L$108)))*('Partenaire vide'!$K$125/100)), (SUM(SUMIF('Partenaire vide'!$G$34:$G$36,\"WP 2\",'Partenaire vide'!$L$34:$L$36), SUMIF('Partenaire vide'!$G$52:$G$54,\"WP 2\",'Partenaire vide'!$L$52:$L$54),SUMIF('Partenaire vide'!$G$61:$G$63,\"WP 2\",'Partenaire vide'!$L$61:$L$63),SUMIF('Partenaire vide'!$G$70:$G$72,\"WP 2\",'Partenaire vide'!$L$70:$L$72), SUMIF('Partenaire vide'!$G$79:$G$81,\"WP 2\",'Partenaire vide'!$L$79:$L$81), SUMIF('Partenaire vide'!$G$88:$G$90,\"WP 2\",'Partenaire vide'!$L$88:$L$90),SUMIF('Partenaire vide'!$G$97:$G$99,\"WP 2\",'Partenaire vide'!$L$97:$L$99),SUMIF('Partenaire vide'!$G$106:$G$108,\"WP 2\",'Partenaire vide'!$L$106:$L$108)))*('Partenaire vide'!$K$125/100), \"- € \")","v":0},{"$f":"IF(ISNUMBER((SUM(SUMIF('Partenaire vide'!$G$34:$G$36,\"WP 3\",'Partenaire vide'!$L$34:$L$36), SUMIF('Partenaire vide'!$G$52:$G$54,\"WP 3\",'Partenaire vide'!$L$52:$L$54),SUMIF('Partenaire vide'!$G$61:$G$63,\"WP 3\",'Partenaire vide'!$L$61:$L$63),SUMIF('Partenaire vide'!$G$70:$G$72,\"WP 3\",'Partenaire vide'!$L$70:$L$72), SUMIF('Partenaire vide'!$G$79:$G$81,\"WP 3\",'Partenaire vide'!$L$79:$L$81), SUMIF('Partenaire vide'!$G$88:$G$90,\"WP 3\",'Partenaire vide'!$L$88:$L$90),SUMIF('Partenaire vide'!$G$97:$G$99,\"WP 3\",'Partenaire vide'!$L$97:$L$99),SUMIF('Partenaire vide'!$G$106:$G$108,\"WP 3\",'Partenaire vide'!$L$106:$L$108)))*('Partenaire vide'!$K$125/100)), (SUM(SUMIF('Partenaire vide'!$G$34:$G$36,\"WP 3\",'Partenaire vide'!$L$34:$L$36), SUMIF('Partenaire vide'!$G$52:$G$54,\"WP 3\",'Partenaire vide'!$L$52:$L$54),SUMIF('Partenaire vide'!$G$61:$G$63,\"WP 3\",'Partenaire vide'!$L$61:$L$63),SUMIF('Partenaire vide'!$G$70:$G$72,\"WP 3\",'Partenaire vide'!$L$70:$L$72), SUMIF('Partenaire vide'!$G$79:$G$81,\"WP 3\",'Partenaire vide'!$L$79:$L$81), SUMIF('Partenaire vide'!$G$88:$G$90,\"WP 3\",'Partenaire vide'!$L$88:$L$90),SUMIF('Partenaire vide'!$G$97:$G$99,\"WP 3\",'Partenaire vide'!$L$97:$L$99),SUMIF('Partenaire vide'!$G$106:$G$108,\"WP 3\",'Partenaire vide'!$L$106:$L$108)))*('Partenaire vide'!$K$125/100), \"- € \")","v":0},{"$f":"IF(ISNUMBER((SUM(SUMIF('Partenaire vide'!$G$34:$G$36,\"WP 4\",'Partenaire vide'!$L$34:$L$36), SUMIF('Partenaire vide'!$G$52:$G$54,\"WP 4\",'Partenaire vide'!$L$52:$L$54),SUMIF('Partenaire vide'!$G$61:$G$63,\"WP 4\",'Partenaire vide'!$L$61:$L$63),SUMIF('Partenaire vide'!$G$70:$G$72,\"WP 4\",'Partenaire vide'!$L$70:$L$72), SUMIF('Partenaire vide'!$G$79:$G$81,\"WP 4\",'Partenaire vide'!$L$79:$L$81), SUMIF('Partenaire vide'!$G$88:$G$90,\"WP 4\",'Partenaire vide'!$L$88:$L$90),SUMIF('Partenaire vide'!$G$97:$G$99,\"WP 4\",'Partenaire vide'!$L$97:$L$99),SUMIF('Partenaire vide'!$G$106:$G$108,\"WP 4\",'Partenaire vide'!$L$106:$L$108)))*('Partenaire vide'!$K$125/100)), (SUM(SUMIF('Partenaire vide'!$G$34:$G$36,\"WP 4\",'Partenaire vide'!$L$34:$L$36), SUMIF('Partenaire vide'!$G$52:$G$54,\"WP 4\",'Partenaire vide'!$L$52:$L$54),SUMIF('Partenaire vide'!$G$61:$G$63,\"WP 4\",'Partenaire vide'!$L$61:$L$63),SUMIF('Partenaire vide'!$G$70:$G$72,\"WP 4\",'Partenaire vide'!$L$70:$L$72), SUMIF('Partenaire vide'!$G$79:$G$81,\"WP 4\",'Partenaire vide'!$L$79:$L$81), SUMIF('Partenaire vide'!$G$88:$G$90,\"WP 4\",'Partenaire vide'!$L$88:$L$90),SUMIF('Partenaire vide'!$G$97:$G$99,\"WP 4\",'Partenaire vide'!$L$97:$L$99),SUMIF('Partenaire vide'!$G$106:$G$108,\"WP 4\",'Partenaire vide'!$L$106:$L$108)))*('Partenaire vide'!$K$125/100), \"- € \")","v":0},{"$f":"IF(ISNUMBER((SUM(SUMIF('Partenaire vide'!$G$34:$G$36,\"WP 5\",'Partenaire vide'!$L$34:$L$36), SUMIF('Partenaire vide'!$G$52:$G$54,\"WP 5\",'Partenaire vide'!$L$52:$L$54),SUMIF('Partenaire vide'!$G$61:$G$63,\"WP 5\",'Partenaire vide'!$L$61:$L$63),SUMIF('Partenaire vide'!$G$70:$G$72,\"WP 5\",'Partenaire vide'!$L$70:$L$72), SUMIF('Partenaire vide'!$G$79:$G$81,\"WP 5\",'Partenaire vide'!$L$79:$L$81), SUMIF('Partenaire vide'!$G$88:$G$90,\"WP 5\",'Partenaire vide'!$L$88:$L$90),SUMIF('Partenaire vide'!$G$97:$G$99,\"WP 5\",'Partenaire vide'!$L$97:$L$99),SUMIF('Partenaire vide'!$G$106:$G$108,\"WP 5\",'Partenaire vide'!$L$106:$L$108)))*('Partenaire vide'!$K$125/100)), (SUM(SUMIF('Partenaire vide'!$G$34:$G$36,\"WP 5\",'Partenaire vide'!$L$34:$L$36), SUMIF('Partenaire vide'!$G$52:$G$54,\"WP 5\",'Partenaire vide'!$L$52:$L$54),SUMIF('Partenaire vide'!$G$61:$G$63,\"WP 5\",'Partenaire vide'!$L$61:$L$63),SUMIF('Partenaire vide'!$G$70:$G$72,\"WP 5\",'Partenaire vide'!$L$70:$L$72), SUMIF('Partenaire vide'!$G$79:$G$81,\"WP 5\",'Partenaire vide'!$L$79:$L$81), SUMIF('Partenaire vide'!$G$88:$G$90,\"WP 5\",'Partenaire vide'!$L$88:$L$90),SUMIF('Partenaire vide'!$G$97:$G$99,\"WP 5\",'Partenaire vide'!$L$97:$L$99),SUMIF('Partenaire vide'!$G$106:$G$108,\"WP 5\",'Partenaire vide'!$L$106:$L$108)))*('Partenaire vide'!$K$125/100), \"- € \")","v":0},{"$f":"IF(ISNUMBER((SUM(SUMIF('Partenaire vide'!$G$34:$G$36,\"WP 6\",'Partenaire vide'!$L$34:$L$36), SUMIF('Partenaire vide'!$G$52:$G$54,\"WP 6\",'Partenaire vide'!$L$52:$L$54),SUMIF('Partenaire vide'!$G$61:$G$63,\"WP 6\",'Partenaire vide'!$L$61:$L$63),SUMIF('Partenaire vide'!$G$70:$G$72,\"WP 6\",'Partenaire vide'!$L$70:$L$72), SUMIF('Partenaire vide'!$G$79:$G$81,\"WP 6\",'Partenaire vide'!$L$79:$L$81), SUMIF('Partenaire vide'!$G$88:$G$90,\"WP 6\",'Partenaire vide'!$L$88:$L$90),SUMIF('Partenaire vide'!$G$97:$G$99,\"WP 6\",'Partenaire vide'!$L$97:$L$99),SUMIF('Partenaire vide'!$G$106:$G$108,\"WP 6\",'Partenaire vide'!$L$106:$L$108)))*('Partenaire vide'!$K$125/100)), (SUM(SUMIF('Partenaire vide'!$G$34:$G$36,\"WP 6\",'Partenaire vide'!$L$34:$L$36), SUMIF('Partenaire vide'!$G$52:$G$54,\"WP 6\",'Partenaire vide'!$L$52:$L$54),SUMIF('Partenaire vide'!$G$61:$G$63,\"WP 6\",'Partenaire vide'!$L$61:$L$63),SUMIF('Partenaire vide'!$G$70:$G$72,\"WP 6\",'Partenaire vide'!$L$70:$L$72), SUMIF('Partenaire vide'!$G$79:$G$81,\"WP 6\",'Partenaire vide'!$L$79:$L$81), SUMIF('Partenaire vide'!$G$88:$G$90,\"WP 6\",'Partenaire vide'!$L$88:$L$90),SUMIF('Partenaire vide'!$G$97:$G$99,\"WP 6\",'Partenaire vide'!$L$97:$L$99),SUMIF('Partenaire vide'!$G$106:$G$108,\"WP 6\",'Partenaire vide'!$L$106:$L$108)))*('Partenaire vide'!$K$125/100), \"- € \")","v":0},{"$f":"IF(ISNUMBER((SUM(SUMIF('Partenaire vide'!$G$34:$G$36,\"WP 7\",'Partenaire vide'!$L$34:$L$36), SUMIF('Partenaire vide'!$G$52:$G$54,\"WP 7\",'Partenaire vide'!$L$52:$L$54),SUMIF('Partenaire vide'!$G$61:$G$63,\"WP 7\",'Partenaire vide'!$L$61:$L$63),SUMIF('Partenaire vide'!$G$70:$G$72,\"WP 7\",'Partenaire vide'!$L$70:$L$72), SUMIF('Partenaire vide'!$G$79:$G$81,\"WP 7\",'Partenaire vide'!$L$79:$L$81), SUMIF('Partenaire vide'!$G$88:$G$90,\"WP 7\",'Partenaire vide'!$L$88:$L$90),SUMIF('Partenaire vide'!$G$97:$G$99,\"WP 7\",'Partenaire vide'!$L$97:$L$99),SUMIF('Partenaire vide'!$G$106:$G$108,\"WP 7\",'Partenaire vide'!$L$106:$L$108)))*('Partenaire vide'!$K$125/100)), (SUM(SUMIF('Partenaire vide'!$G$34:$G$36,\"WP 7\",'Partenaire vide'!$L$34:$L$36), SUMIF('Partenaire vide'!$G$52:$G$54,\"WP 7\",'Partenaire vide'!$L$52:$L$54),SUMIF('Partenaire vide'!$G$61:$G$63,\"WP 7\",'Partenaire vide'!$L$61:$L$63),SUMIF('Partenaire vide'!$G$70:$G$72,\"WP 7\",'Partenaire vide'!$L$70:$L$72), SUMIF('Partenaire vide'!$G$79:$G$81,\"WP 7\",'Partenaire vide'!$L$79:$L$81), SUMIF('Partenaire vide'!$G$88:$G$90,\"WP 7\",'Partenaire vide'!$L$88:$L$90),SUMIF('Partenaire vide'!$G$97:$G$99,\"WP 7\",'Partenaire vide'!$L$97:$L$99),SUMIF('Partenaire vide'!$G$106:$G$108,\"WP 7\",'Partenaire vide'!$L$106:$L$108)))*('Partenaire vide'!$K$125/100), \"- € \")","v":0},{"$f":"SUM(SUMIF('Partenaire vide'!G34:G36,\"WP 8\",'Partenaire vide'!L34:L36), SUMIF('Partenaire vide'!G52:G54,\"WP 8\",'Partenaire vide'!L52:L54),SUMIF('Partenaire vide'!G61:G63,\"WP 8\",'Partenaire vide'!L61:L63),SUMIF('Partenaire vide'!G88:G90,\"WP 8\",'Partenaire vide'!L88:L90), SUMIF('Partenaire vide'!G97:G99,\"WP 8\",'Partenaire vide'!L97:L99),SUMIF('Partenaire vide'!G106:G108,\"WP 8\",'Partenaire vide'!L106:L108))","v":0},{"$f":"IF(ISNUMBER((SUM(SUMIF('Partenaire vide'!$G$34:$G$36,\"WP 8\",'Partenaire vide'!$L$34:$L$36), SUMIF('Partenaire vide'!$G$52:$G$54,\"WP 8\",'Partenaire vide'!$L$52:$L$54),SUMIF('Partenaire vide'!$G$61:$G$63,\"WP 8\",'Partenaire vide'!$L$61:$L$63),SUMIF('Partenaire vide'!$G$70:$G$72,\"WP 8\",'Partenaire vide'!$L$70:$L$72), SUMIF('Partenaire vide'!$G$79:$G$81,\"WP 8\",'Partenaire vide'!$L$79:$L$81), SUMIF('Partenaire vide'!$G$88:$G$90,\"WP 8\",'Partenaire vide'!$L$88:$L$90),SUMIF('Partenaire vide'!$G$97:$G$99,\"WP 8\",'Partenaire vide'!$L$97:$L$99),SUMIF('Partenaire vide'!$G$106:$G$108,\"WP 8\",'Partenaire vide'!$L$106:$L$108)))*('Partenaire vide'!$K$125/100)), (SUM(SUMIF('Partenaire vide'!$G$34:$G$36,\"WP 8\",'Partenaire vide'!$L$34:$L$36), SUMIF('Partenaire vide'!$G$52:$G$54,\"WP 8\",'Partenaire vide'!$L$52:$L$54),SUMIF('Partenaire vide'!$G$61:$G$63,\"WP 8\",'Partenaire vide'!$L$61:$L$63),SUMIF('Partenaire vide'!$G$70:$G$72,\"WP 8\",'Partenaire vide'!$L$70:$L$72), SUMIF('Partenaire vide'!$G$79:$G$81,\"WP 8\",'Partenaire vide'!$L$79:$L$81), SUMIF('Partenaire vide'!$G$88:$G$90,\"WP 8\",'Partenaire vide'!$L$88:$L$90),SUMIF('Partenaire vide'!$G$97:$G$99,\"WP 8\",'Partenaire vide'!$L$97:$L$99),SUMIF('Partenaire vide'!$G$106:$G$108,\"WP 8\",'Partenaire vide'!$L$106:$L$108)))*('Partenaire vide'!$K$125/100), \"- € \")","v":0},{"$f":"IF(ISNUMBER((SUM(SUMIF('Partenaire vide'!$G$34:$G$36,\"WP 9\",'Partenaire vide'!$L$34:$L$36), SUMIF('Partenaire vide'!$G$52:$G$54,\"WP 9\",'Partenaire vide'!$L$52:$L$54),SUMIF('Partenaire vide'!$G$61:$G$63,\"WP 9\",'Partenaire vide'!$L$61:$L$63),SUMIF('Partenaire vide'!$G$70:$G$72,\"WP 9\",'Partenaire vide'!$L$70:$L$72), SUMIF('Partenaire vide'!$G$79:$G$81,\"WP 9\",'Partenaire vide'!$L$79:$L$81), SUMIF('Partenaire vide'!$G$88:$G$90,\"WP 9\",'Partenaire vide'!$L$88:$L$90),SUMIF('Partenaire vide'!$G$97:$G$99,\"WP 9\",'Partenaire vide'!$L$97:$L$99),SUMIF('Partenaire vide'!$G$106:$G$108,\"WP 9\",'Partenaire vide'!$L$106:$L$108)))*('Partenaire vide'!$K$125/100)), (SUM(SUMIF('Partenaire vide'!$G$34:$G$36,\"WP 9\",'Partenaire vide'!$L$34:$L$36), SUMIF('Partenaire vide'!$G$52:$G$54,\"WP 9\",'Partenaire vide'!$L$52:$L$54),SUMIF('Partenaire vide'!$G$61:$G$63,\"WP 9\",'Partenaire vide'!$L$61:$L$63),SUMIF('Partenaire vide'!$G$70:$G$72,\"WP 9\",'Partenaire vide'!$L$70:$L$72), SUMIF('Partenaire vide'!$G$79:$G$81,\"WP 9\",'Partenaire vide'!$L$79:$L$81), SUMIF('Partenaire vide'!$G$88:$G$90,\"WP 9\",'Partenaire vide'!$L$88:$L$90),SUMIF('Partenaire vide'!$G$97:$G$99,\"WP 9\",'Partenaire vide'!$L$97:$L$99),SUMIF('Partenaire vide'!$G$106:$G$108,\"WP 9\",'Partenaire vide'!$L$106:$L$108)))*('Partenaire vide'!$K$125/100), \"- € \")","v":0},{"$f":"IF(ISNUMBER((SUM(SUMIF('Partenaire vide'!$G$34:$G$36,\"WP 10\",'Partenaire vide'!$L$34:$L$36), SUMIF('Partenaire vide'!$G$52:$G$54,\"WP 10\",'Partenaire vide'!$L$52:$L$54),SUMIF('Partenaire vide'!$G$61:$G$63,\"WP 10\",'Partenaire vide'!$L$61:$L$63),SUMIF('Partenaire vide'!$G$70:$G$72,\"WP 10\",'Partenaire vide'!$L$70:$L$72), SUMIF('Partenaire vide'!$G$79:$G$81,\"WP 10\",'Partenaire vide'!$L$79:$L$81), SUMIF('Partenaire vide'!$G$88:$G$90,\"WP 10\",'Partenaire vide'!$L$88:$L$90),SUMIF('Partenaire vide'!$G$97:$G$99,\"WP 10\",'Partenaire vide'!$L$97:$L$99),SUMIF('Partenaire vide'!$G$106:$G$108,\"WP 10\",'Partenaire vide'!$L$106:$L$108)))*('Partenaire vide'!$K$125/100)), (SUM(SUMIF('Partenaire vide'!$G$34:$G$36,\"WP 10\",'Partenaire vide'!$L$34:$L$36), SUMIF('Partenaire vide'!$G$52:$G$54,\"WP 10\",'Partenaire vide'!$L$52:$L$54),SUMIF('Partenaire vide'!$G$61:$G$63,\"WP 10\",'Partenaire vide'!$L$61:$L$63),SUMIF('Partenaire vide'!$G$70:$G$72,\"WP 10\",'Partenaire vide'!$L$70:$L$72), SUMIF('Partenaire vide'!$G$79:$G$81,\"WP 10\",'Partenaire vide'!$L$79:$L$81), SUMIF('Partenaire vide'!$G$88:$G$90,\"WP 10\",'Partenaire vide'!$L$88:$L$90),SUMIF('Partenaire vide'!$G$97:$G$99,\"WP 10\",'Partenaire vide'!$L$97:$L$99),SUMIF('Partenaire vide'!$G$106:$G$108,\"WP 10\",'Partenaire vide'!$L$106:$L$108)))*('Partenaire vide'!$K$125/100), \"- € \")","v":0}]
["Part1-Coord",null,null,{"$f":"'Part1-Coord'!$K$125","v":0},{"$f":"IF(ISNUMBER((SUM(SUMIF('Part1-Coord'!$G$34:$G$36,\"WP 1\",'Part1-Coord'!$L$34:$L$36), SUMIF('Part1-Coord'!$G$52:$G$54,\"WP 1\",'Part1-Coord'!$L$52:$L$54),SUMIF('Part1-Coord'!$G$61:$G$63,\"WP 1\",'Part1-Coord'!$L$61:$L$63),SUMIF('Part1-Coord'!$G$70:$G$72,\"WP 1\",'Part1-Coord'!$L$70:$L$72), SUMIF('Part1-Coord'!$G$79:$G$81,\"WP 1\",'Part1-Coord'!$L$79:$L$81), SUMIF('Part1-Coord'!$G$88:$G$90,\"WP 1\",'Part1-Coord'!$L$88:$L$90),SUMIF('Part1-Coord'!$G$97:$G$99,\"WP 1\",'Part1-Coord'!$L$97:$L$99),SUMIF('Part1-Coord'!$G$106:$G$108,\"WP 1\",'Part1-Coord'!$L$106:$L$108)))*('Part1-Coord'!$K$125/100)), (SUM(SUMIF('Part1-Coord'!$G$34:$G$36,\"WP 1\",'Part1-Coord'!$L$34:$L$36), SUMIF('Part1-Coord'!$G$52:$G$54,\"WP 1\",'Part1-Coord'!$L$52:$L$54),SUMIF('Part1-Coord'!$G$61:$G$63,\"WP 1\",'Part1-Coord'!$L$61:$L$63),SUMIF('Part1-Coord'!$G$70:$G$72,\"WP 1\",'Part1-Coord'!$L$70:$L$72), SUMIF('Part1-Coord'!$G$79:$G$81,\"WP 1\",'Part1-Coord'!$L$79:$L$81), SUMIF('Part1-Coord'!$G$88:$G$90,\"WP 1\",'Part1-Coord'!$L$88:$L$90),SUMIF('Part1-Coord'!$G$97:$G$99,\"WP 1\",'Part1-Coord'!$L$97:$L$99),SUMIF('Part1-Coord'!$G$106:$G$108,\"WP 1\",'Part1-Coord'!$L$106:$L$108)))*('Part1-Coord'!$K$125/100), \"- € \")","v":0},{"$f":"IF(ISNUMBER((SUM(SUMIF('Part1-Coord'!$G$34:$G$36,\"WP 2\",'Part1-Coord'!$L$34:$L$36), SUMIF('Part1-Coord'!$G$52:$G$54,\"WP 2\",'Part1-Coord'!$L$52:$L$54),SUMIF('Part1-Coord'!$G$61:$G$63,\"WP 2\",'Part1-Coord'!$L$61:$L$63),SUMIF('Part1-Coord'!$G$70:$G$72,\"WP 2\",'Part1-Coord'!$L$70:$L$72), SUMIF('Part1-Coord'!$G$79:$G$81,\"WP 2\",'Part1-Coord'!$L$79:$L$81), SUMIF('Part1-Coord'!$G$88:$G$90,\"WP 2\",'Part1-Coord'!$L$88:$L$90),SUMIF('Part1-Coord'!$G$97:$G$99,\"WP 2\",'Part1-Coord'!$L$97:$L$99),SUMIF('Part1-Coord'!$G$106:$G$108,\"WP 2\",'Part1-Coord'!$L$106:$L$108)))*('Part1-Coord'!$K$125/100)), (SUM(SUMIF('Part1-Coord'!$G$34:$G$36,\"WP 2\",'Part1-Coord'!$L$34:$L$36), SUMIF('Part1-Coord'!$G$52:$G$54,\"WP 2\",'Part1-Coord'!$L$52:$L$54),SUMIF('Part1-Coord'!$G$61:$G$63,\"WP 2\",'Part1-Coord'!$L$61:$L$63),SUMIF('Part1-Coord'!$G$70:$G$72,\"WP 2\",'Part1-Coord'!$L$70:$L$72), SUMIF('Part1-Coord'!$G$79:$G$81,\"WP 2\",'Part1-Coord'!$L$79:$L$81), SUMIF('Part1-Coord'!$G$88:$G$90,\"WP 2\",'Part1-Coord'!$L$88:$L$90),SUMIF('Part1-Coord'!$G$97:$G$99,\"WP 2\",'Part1-Coord'!$L$97:$L$99),SUMIF('Part1-Coord'!$G$106:$G$108,\"WP 2\",'Part1-Coord'!$L$106:$L$108)))*('Part1-Coord'!$K$125/100), \"- € \")","v":0},{"$f":"IF(ISNUMBER((SUM(SUMIF('Part1-Coord'!$G$34:$G$36,\"WP 3\",'Part1-Coord'!$L$34:$L$36), SUMIF('Part1-Coord'!$G$52:$G$54,\"WP 3\",'Part1-Coord'!$L$52:$L$54),SUMIF('Part1-Coord'!$G$61:$G$63,\"WP 3\",'Part1-Coord'!$L$61:$L$63),SUMIF('Part1-Coord'!$G$70:$G$72,\"WP 3\",'Part1-Coord'!$L$70:$L$72), SUMIF('Part1-Coord'!$G$79:$G$81,\"WP 3\",'Part1-Coord'!$L$79:$L$81), SUMIF('Part1-Coord'!$G$88:$G$90,\"WP 3\",'Part1-Coord'!$L$88:$L$90),SUMIF('Part1-Coord'!$G$97:$G$99,\"WP 3\",'Part1-Coord'!$L$97:$L$99),SUMIF('Part1-Coord'!$G$106:$G$108,\"WP 3\",'Part1-Coord'!$L$106:$L$108)))*('Part1-Coord'!$K$125/100)), (SUM(SUMIF('Part1-Coord'!$G$34:$G$36,\"WP 3\",'Part1-Coord'!$L$34:$L$36), SUMIF('Part1-Coord'!$G$52:$G$54,\"WP 3\",'Part1-Coord'!$L$52:$L$54),SUMIF('Part1-Coord'!$G$61:$G$63,\"WP 3\",'Part1-Coord'!$L$61:$L$63),SUMIF('Part1-Coord'!$G$70:$G$72,\"WP 3\",'Part1-Coord'!$L$70:$L$72), SUMIF('Part1-Coord'!$G$79:$G$81,\"WP 3\",'Part1-Coord'!$L$79:$L$81), SUMIF('Part1-Coord'!$G$88:$G$90,\"WP 3\",'Part1-Coord'!$L$88:$L$90),SUMIF('Part1-Coord'!$G$97:$G$99,\"WP 3\",'Part1-Coord'!$L$97:$L$99),SUMIF('Part1-Coord'!$G$106:$G$108,\"WP 3\",'Part1-Coord'!$L$106:$L$108)))*('Part1-Coord'!$K$125/100), \"- € \")","v":0},{"$f":"IF(ISNUMBER((SUM(SUMIF('Part1-Coord'!$G$34:$G$36,\"WP 4\",'Part1-Coord'!$L$34:$L$36), SUMIF('Part1-Coord'!$G$52:$G$54,\"WP 4\",'Part1-Coord'!$L$52:$L$54),SUMIF('Part1-Coord'!$G$61:$G$63,\"WP 4\",'Part1-Coord'!$L$61:$L$63),SUMIF('Part1-Coord'!$G$70:$G$72,\"WP 4\",'Part1-Coord'!$L$70:$L$72), SUMIF('Part1-Coord'!$G$79:$G$81,\"WP 4\",'Part1-Coord'!$L$79:$L$81), SUMIF('Part1-Coord'!$G$88:$G$90,\"WP 4\",'Part1-Coord'!$L$88:$L$90),SUMIF('Part1-Coord'!$G$97:$G$99,\"WP 4\",'Part1-Coord'!$L$97:$L$99),SUMIF('Part1-Coord'!$G$106:$G$108,\"WP 4\",'Part1-Coord'!$L$106:$L$108)))*('Part1-Coord'!$K$125/100)), (SUM(SUMIF('Part1-Coord'!$G$34:$G$36,\"WP 4\",'Part1-Coord'!$L$34:$L$36), SUMIF('Part1-Coord'!$G$52:$G$54,\"WP 4\",'Part1-Coord'!$L$52:$L$54),SUMIF('Part1-Coord'!$G$61:$G$63,\"WP 4\",'Part1-Coord'!$L$61:$L$63),SUMIF('Part1-Coord'!$G$70:$G$72,\"WP 4\",'Part1-Coord'!$L$70:$L$72), SUMIF('Part1-Coord'!$G$79:$G$81,\"WP 4\",'Part1-Coord'!$L$79:$L$81), SUMIF('Part1-Coord'!$G$88:$G$90,\"WP 4\",'Part1-Coord'!$L$88:$L$90),SUMIF('Part1-Coord'!$G$97:$G$99,\"WP 4\",'Part1-Coord'!$L$97:$L$99),SUMIF('Part1-Coord'!$G$106:$G$108,\"WP 4\",'Part1-Coord'!$L$106:$L$108)))*('Part1-Coord'!$K$125/100), \"- € \")","v":0},{"$f":"IF(ISNUMBER((SUM(SUMIF('Part1-Coord'!$G$34:$G$36,\"WP 5\",'Part1-Coord'!$L$34:$L$36), SUMIF('Part1-Coord'!$G$52:$G$54,\"WP 5\",'Part1-Coord'!$L$52:$L$54),SUMIF('Part1-Coord'!$G$61:$G$63,\"WP 5\",'Part1-Coord'!$L$61:$L$63),SUMIF('Part1-Coord'!$G$70:$G$72,\"WP 5\",'Part1-Coord'!$L$70:$L$72), SUMIF('Part1-Coord'!$G$79:$G$81,\"WP 5\",'Part1-Coord'!$L$79:$L$81), SUMIF('Part1-Coord'!$G$88:$G$90,\"WP 5\",'Part1-Coord'!$L$88:$L$90),SUMIF('Part1-Coord'!$G$97:$G$99,\"WP 5\",'Part1-Coord'!$L$97:$L$99),SUMIF('Part1-Coord'!$G$106:$G$108,\"WP 5\",'Part1-Coord'!$L$106:$L$108)))*('Part1-Coord'!$K$125/100)), (SUM(SUMIF('Part1-Coord'!$G$34:$G$36,\"WP 5\",'Part1-Coord'!$L$34:$L$36), SUMIF('Part1-Coord'!$G$52:$G$54,\"WP 5\",'Part1-Coord'!$L$52:$L$54),SUMIF('Part1-Coord'!$G$61:$G$63,\"WP 5\",'Part1-Coord'!$L$61:$L$63),SUMIF('Part1-Coord'!$G$70:$G$72,\"WP 5\",'Part1-Coord'!$L$70:$L$72), SUMIF('Part1-Coord'!$G$79:$G$81,\"WP 5\",'Part1-Coord'!$L$79:$L$81), SUMIF('Part1-Coord'!$G$88:$G$90,\"WP 5\",'Part1-Coord'!$L$88:$L$90),SUMIF('Part1-Coord'!$G$97:$G$99,\"WP 5\",'Part1-Coord'!$L$97:$L$99),SUMIF('Part1-Coord'!$G$106:$G$108,\"WP 5\",'Part1-Coord'!$L$106:$L$108)))*('Part1-Coord'!$K$125/100), \"- € \")","v":0},{"$f":"IF(ISNUMBER((SUM(SUMIF('Part1-Coord'!$G$34:$G$36,\"WP 6\",'Part1-Coord'!$L$34:$L$36), SUMIF('Part1-Coord'!$G$52:$G$54,\"WP 6\",'Part1-Coord'!$L$52:$L$54),SUMIF('Part1-Coord'!$G$61:$G$63,\"WP 6\",'Part1-Coord'!$L$61:$L$63),SUMIF('Part1-Coord'!$G$70:$G$72,\"WP 6\",'Part1-Coord'!$L$70:$L$72), SUMIF('Part1-Coord'!$G$79:$G$81,\"WP 6\",'Part1-Coord'!$L$79:$L$81), SUMIF('Part1-Coord'!$G$88:$G$90,\"WP 6\",'Part1-Coord'!$L$88:$L$90),SUMIF('Part1-Coord'!$G$97:$G$99,\"WP 6\",'Part1-Coord'!$L$97:$L$99),SUMIF('Part1-Coord'!$G$106:$G$108,\"WP 6\",'Part1-Coord'!$L$106:$L$108)))*('Part1-Coord'!$K$125/100)), (SUM(SUMIF('Part1-Coord'!$G$34:$G$36,\"WP 6\",'Part1-Coord'!$L$34:$L$36), SUMIF('Part1-Coord'!$G$52:$G$54,\"WP 6\",'Part1-Coord'!$L$52:$L$54),SUMIF('Part1-Coord'!$G$61:$G$63,\"WP 6\",'Part1-Coord'!$L$61:$L$63),SUMIF('Part1-Coord'!$G$70:$G$72,\"WP 6\",'Part1-Coord'!$L$70:$L$72), SUMIF('Part1-Coord'!$G$79:$G$81,\"WP 6\",'Part1-Coord'!$L$79:$L$81), SUMIF('Part1-Coord'!$G$88:$G$90,\"WP 6\",'Part1-Coord'!$L$88:$L$90),SUMIF('Part1-Coord'!$G$97:$G$99,\"WP 6\",'Part1-Coord'!$L$97:$L$99),SUMIF('Part1-Coord'!$G$106:$G$108,\"WP 6\",'Part1-Coord'!$L$106:$L$108)))*('Part1-Coord'!$K$125/100), \"- € \")","v":0},{"$f":"IF(ISNUMBER((SUM(SUMIF('Part1-Coord'!$G$34:$G$36,\"WP 7\",'Part1-Coord'!$L$34:$L$36), SUMIF('Part1-Coord'!$G$52:$G$54,\"WP 7\",'Part1-Coord'!$L$52:$L$54),SUMIF('Part1-Coord'!$G$61:$G$63,\"WP 7\",'Part1-Coord'!$L$61:$L$63),SUMIF('Part1-Coord'!$G$70:$G$72,\"WP 7\",'Part1-Coord'!$L$70:$L$72), SUMIF('Part1-Coord'!$G$79:$G$81,\"WP 7\",'Part1-Coord'!$L$79:$L$81), SUMIF('Part1-Coord'!$G$88:$G$90,\"WP 7\",'Part1-Coord'!$L$88:$L$90),SUMIF('Part1-Coord'!$G$97:$G$99,\"WP 7\",'Part1-Coord'!$L$97:$L$99),SUMIF('Part1-Coord'!$G$106:$G$108,\"WP 7\",'Part1-Coord'!$L$106:$L$108)))*('Part1-Coord'!$K$125/100)), (SUM(SUMIF('Part1-Coord'!$G$34:$G$36,\"WP 7\",'Part1-Coord'!$L$34:$L$36), SUMIF('Part1-Coord'!$G$52:$G$54,\"WP 7\",'Part1-Coord'!$L$52:$L$54),SUMIF('Part1-Coord'!$G$61:$G$63,\"WP 7\",'Part1-Coord'!$L$61:$L$63),SUMIF('Part1-Coord'!$G$70:$G$72,\"WP 7\",'Part1-Coord'!$L$70:$L$72), SUMIF('Part1-Coord'!$G$79:$G$81,\"WP 7\",'Part1-Coord'!$L$79:$L$81), SUMIF('Part1-Coord'!$G$88:$G$90,\"WP 7\",'Part1-Coord'!$L$88:$L$90),SUMIF('Part1-Coord'!$G$97:$G$99,\"WP 7\",'Part1-Coord'!$L$97:$L$99),SUMIF('Part1-Coord'!$G$106:$G$108,\"WP 7\",'Part1-Coord'!$L$106:$L$108)))*('Part1-Coord'!$K$125/100), \"- € \")","v":0},{"$f":"SUM(SUMIF('Part1-Coord'!G34:G36,\"WP 7\",'Part1-Coord'!M34:M36), SUMIF('Part1-Coord'!G52:G54,\"WP 7\",'Part1-Coord'!M52:M54),SUMIF('Part1-Coord'!G61:G63,\"WP 7\",'Part1-Coord'!M61:M63),SUMIF('Part1-Coord'!G88:G90,\"WP 7\",'Part1-Coord'!M88:M90), SUMIF('Part1-Coord'!G97:G99,\"WP 7\",'Part1-Coord'!M97:M99),SUMIF('Part1-Coord'!G106:G108,\"WP 7\",'Part1-Coord'!M106:M108), SUMIF('Part1-Coord'!#REF!,\"WP 7\",'Part1-Coord'!#REF!))","v":{"$error":"#REF!"}},{"$f":"IF(ISNUMBER((SUM(SUMIF('Part1-Coord'!$G$34:$G$36,\"WP 8\",'Part1-Coord'!$L$34:$L$36), SUMIF('Part1-Coord'!$G$52:$G$54,\"WP 8\",'Part1-Coord'!$L$52:$L$54),SUMIF('Part1-Coord'!$G$61:$G$63,\"WP 8\",'Part1-Coord'!$L$61:$L$63),SUMIF('Part1-Coord'!$G$70:$G$72,\"WP 8\",'Part1-Coord'!$L$70:$L$72), SUMIF('Part1-Coord'!$G$79:$G$81,\"WP 8\",'Part1-Coord'!$L$79:$L$81), SUMIF('Part1-Coord'!$G$88:$G$90,\"WP 8\",'Part1-Coord'!$L$88:$L$90),SUMIF('Part1-Coord'!$G$97:$G$99,\"WP 8\",'Part1-Coord'!$L$97:$L$99),SUMIF('Part1-Coord'!$G$106:$G$108,\"WP 8\",'Part1-Coord'!$L$106:$L$108)))*('Part1-Coord'!$K$125/100)), (SUM(SUMIF('Part1-Coord'!$G$34:$G$36,\"WP 8\",'Part1-Coord'!$L$34:$L$36), SUMIF('Part1-Coord'!$G$52:$G$54,\"WP 8\",'Part1-Coord'!$L$52:$L$54),SUMIF('Part1-Coord'!$G$61:$G$63,\"WP 8\",'Part1-Coord'!$L$61:$L$63),SUMIF('Part1-Coord'!$G$70:$G$72,\"WP 8\",'Part1-Coord'!$L$70:$L$72), SUMIF('Part1-Coord'!$G$79:$G$81,\"WP 8\",'Part1-Coord'!$L$79:$L$81), SUMIF('Part1-Coord'!$G$88:$G$90,\"WP 8\",'Part1-Coord'!$L$88:$L$90),SUMIF('Part1-Coord'!$G$97:$G$99,\"WP 8\",'Part1-Coord'!$L$97:$L$99),SUMIF('Part1-Coord'!$G$106:$G$108,\"WP 8\",'Part1-Coord'!$L$106:$L$108)))*('Part1-Coord'!$K$125/100), \"- € \")","v":0},{"$f":"IF(ISNUMBER((SUM(SUMIF('Part1-Coord'!$G$34:$G$36,\"WP 9\",'Part1-Coord'!$L$34:$L$36), SUMIF('Part1-Coord'!$G$52:$G$54,\"WP 9\",'Part1-Coord'!$L$52:$L$54),SUMIF('Part1-Coord'!$G$61:$G$63,\"WP 9\",'Part1-Coord'!$L$61:$L$63),SUMIF('Part1-Coord'!$G$70:$G$72,\"WP 9\",'Part1-Coord'!$L$70:$L$72), SUMIF('Part1-Coord'!$G$79:$G$81,\"WP 9\",'Part1-Coord'!$L$79:$L$81), SUMIF('Part1-Coord'!$G$88:$G$90,\"WP 9\",'Part1-Coord'!$L$88:$L$90),SUMIF('Part1-Coord'!$G$97:$G$99,\"WP 9\",'Part1-Coord'!$L$97:$L$99),SUMIF('Part1-Coord'!$G$106:$G$108,\"WP 9\",'Part1-Coord'!$L$106:$L$108)))*('Part1-Coord'!$K$125/100)), (SUM(SUMIF('Part1-Coord'!$G$34:$G$36,\"WP 9\",'Part1-Coord'!$L$34:$L$36), SUMIF('Part1-Coord'!$G$52:$G$54,\"WP 9\",'Part1-Coord'!$L$52:$L$54),SUMIF('Part1-Coord'!$G$61:$G$63,\"WP 9\",'Part1-Coord'!$L$61:$L$63),SUMIF('Part1-Coord'!$G$70:$G$72,\"WP 9\",'Part1-Coord'!$L$70:$L$72), SUMIF('Part1-Coord'!$G$79:$G$81,\"WP 9\",'Part1-Coord'!$L$79:$L$81), SUMIF('Part1-Coord'!$G$88:$G$90,\"WP 9\",'Part1-Coord'!$L$88:$L$90),SUMIF('Part1-Coord'!$G$97:$G$99,\"WP 9\",'Part1-Coord'!$L$97:$L$99),SUMIF('Part1-Coord'!$G$106:$G$108,\"WP 9\",'Part1-Coord'!$L$106:$L$108)))*('Part1-Coord'!$K$125/100), \"- € \")","v":0},{"$f":"IF(ISNUMBER((SUM(SUMIF('Part1-Coord'!$G$34:$G$36,\"WP 10\",'Part1-Coord'!$L$34:$L$36), SUMIF('Part1-Coord'!$G$52:$G$54,\"WP 10\",'Part1-Coord'!$L$52:$L$54),SUMIF('Part1-Coord'!$G$61:$G$63,\"WP 10\",'Part1-Coord'!$L$61:$L$63),SUMIF('Part1-Coord'!$G$70:$G$72,\"WP 10\",'Part1-Coord'!$L$70:$L$72), SUMIF('Part1-Coord'!$G$79:$G$81,\"WP 10\",'Part1-Coord'!$L$79:$L$81), SUMIF('Part1-Coord'!$G$88:$G$90,\"WP 10\",'Part1-Coord'!$L$88:$L$90),SUMIF('Part1-Coord'!$G$97:$G$99,\"WP 10\",'Part1-Coord'!$L$97:$L$99),SUMIF('Part1-Coord'!$G$106:$G$108,\"WP 10\",'Part1-Coord'!$L$106:$L$108)))*('Part1-Coord'!$K$125/100)), (SUM(SUMIF('Part1-Coord'!$G$34:$G$36,\"WP 10\",'Part1-Coord'!$L$34:$L$36), SUMIF('Part1-Coord'!$G$52:$G$54,\"WP 10\",'Part1-Coord'!$L$52:$L$54),SUMIF('Part1-Coord'!$G$61:$G$63,\"WP 10\",'Part1-Coord'!$L$61:$L$63),SUMIF('Part1-Coord'!$G$70:$G$72,\"WP 10\",'Part1-Coord'!$L$70:$L$72), SUMIF('Part1-Coord'!$G$79:$G$81,\"WP 10\",'Part1-Coord'!$L$79:$L$81), SUMIF('Part1-Coord'!$G$88:$G$90,\"WP 10\",'Part1-Coord'!$L$88:$L$90),SUMIF('Part1-Coord'!$G$97:$G$99,\"WP 10\",'Part1-Coord'!$L$97:$L$99),SUMIF('Part1-Coord'!$G$106:$G$108,\"WP 10\",'Part1-Coord'!$L$106:$L$108)))*('Part1-Coord'!$K$125/100), \"- € \")","v":0}]
["Part2",null,null,{"$f":"Part2!$K$125","v":0},{"$f":"IF(ISNUMBER((SUM(SUMIF(Part2!$G$34:$G$36,\"WP 1\",Part2!$L$34:$L$36), SUMIF(Part2!$G$52:$G$54,\"WP 1\",Part2!$L$52:$L$54),SUMIF(Part2!$G$61:$G$63,\"WP 1\",Part2!$L$61:$L$63),SUMIF(Part2!$G$70:$G$72,\"WP 1\",Part2!$L$70:$L$72), SUMIF(Part2!$G$79:$G$81,\"WP 1\",Part2!$L$79:$L$81), SUMIF(Part2!$G$88:$G$90,\"WP 1\",Part2!$L$88:$L$90),SUMIF(Part2!$G$97:$G$99,\"WP 1\",Part2!$L$97:$L$99),SUMIF(Part2!$G$106:$G$108,\"WP 1\",Part2!$L$106:$L$108)))*(Part2!$K$125/100)), (SUM(SUMIF(Part2!$G$34:$G$36,\"WP 1\",Part2!$L$34:$L$36), SUMIF(Part2!$G$52:$G$54,\"WP 1\",Part2!$L$52:$L$54),SUMIF(Part2!$G$61:$G$63,\"WP 1\",Part2!$L$61:$L$63),SUMIF(Part2!$G$70:$G$72,\"WP 1\",Part2!$L$70:$L$72), SUMIF(Part2!$G$79:$G$81,\"WP 1\",Part2!$L$79:$L$81), SUMIF(Part2!$G$88:$G$90,\"WP 1\",Part2!$L$88:$L$90),SUMIF(Part2!$G$97:$G$99,\"WP 1\",Part2!$L$97:$L$99),SUMIF(Part2!$G$106:$G$108,\"WP 1\",Part2!$L$106:$L$108)))*(Part2!$K$125/100), \"- € \")","v":0},{"$f":"IF(ISNUMBER((SUM(SUMIF(Part2!$G$34:$G$36,\"WP 2\",Part2!$L$34:$L$36), SUMIF(Part2!$G$52:$G$54,\"WP 2\",Part2!$L$52:$L$54),SUMIF(Part2!$G$61:$G$63,\"WP 2\",Part2!$L$61:$L$63),SUMIF(Part2!$G$70:$G$72,\"WP 2\",Part2!$L$70:$L$72), SUMIF(Part2!$G$79:$G$81,\"WP 2\",Part2!$L$79:$L$81), SUMIF(Part2!$G$88:$G$90,\"WP 2\",Part2!$L$88:$L$90),SUMIF(Part2!$G$97:$G$99,\"WP 2\",Part2!$L$97:$L$99),SUMIF(Part2!$G$106:$G$108,\"WP 2\",Part2!$L$106:$L$108)))*(Part2!$K$125/100)), (SUM(SUMIF(Part2!$G$34:$G$36,\"WP 2\",Part2!$L$34:$L$36), SUMIF(Part2!$G$52:$G$54,\"WP 2\",Part2!$L$52:$L$54),SUMIF(Part2!$G$61:$G$63,\"WP 2\",Part2!$L$61:$L$63),SUMIF(Part2!$G$70:$G$72,\"WP 2\",Part2!$L$70:$L$72), SUMIF(Part2!$G$79:$G$81,\"WP 2\",Part2!$L$79:$L$81), SUMIF(Part2!$G$88:$G$90,\"WP 2\",Part2!$L$88:$L$90),SUMIF(Part2!$G$97:$G$99,\"WP 2\",Part2!$L$97:$L$99),SUMIF(Part2!$G$106:$G$108,\"WP 2\",Part2!$L$106:$L$108)))*(Part2!$K$125/100), \"- € \")","v":0},{"$f":"IF(ISNUMBER((SUM(SUMIF(Part2!$G$34:$G$36,\"WP 3\",Part2!$L$34:$L$36), SUMIF(Part2!$G$52:$G$54,\"WP 3\",Part2!$L$52:$L$54),SUMIF(Part2!$G$61:$G$63,\"WP 3\",Part2!$L$61:$L$63),SUMIF(Part2!$G$70:$G$72,\"WP 3\",Part2!$L$70:$L$72), SUMIF(Part2!$G$79:$G$81,\"WP 3\",Part2!$L$79:$L$81), SUMIF(Part2!$G$88:$G$90,\"WP 3\",Part2!$L$88:$L$90),SUMIF(Part2!$G$97:$G$99,\"WP 3\",Part2!$L$97:$L$99),SUMIF(Part2!$G$106:$G$108,\"WP 3\",Part2!$L$106:$L$108)))*(Part2!$K$125/100)), (SUM(SUMIF(Part2!$G$34:$G$36,\"WP 3\",Part2!$L$34:$L$36), SUMIF(Part2!$G$52:$G$54,\"WP 3\",Part2!$L$52:$L$54),SUMIF(Part2!$G$61:$G$63,\"WP 3\",Part2!$L$61:$L$63),SUMIF(Part2!$G$70:$G$72,\"WP 3\",Part2!$L$70:$L$72), SUMIF(Part2!$G$79:$G$81,\"WP 3\",Part2!$L$79:$L$81), SUMIF(Part2!$G$88:$G$90,\"WP 3\",Part2!$L$88:$L$90),SUMIF(Part2!$G$97:$G$99,\"WP 3\",Part2!$L$97:$L$99),SUMIF(Part2!$G$106:$G$108,\"WP 3\",Part2!$L$106:$L$108)))*(Part2!$K$125/100), \"- € \")","v":0},{"$f":"IF(ISNUMBER((SUM(SUMIF(Part2!$G$34:$G$36,\"WP 4\",Part2!$L$34:$L$36), SUMIF(Part2!$G$52:$G$54,\"WP 4\",Part2!$L$52:$L$54),SUMIF(Part2!$G$61:$G$63,\"WP 4\",Part2!$L$61:$L$63),SUMIF(Part2!$G$70:$G$72,\"WP 4\",Part2!$L$70:$L$72), SUMIF(Part2!$G$79:$G$81,\"WP 4\",Part2!$L$79:$L$81), SUMIF(Part2!$G$88:$G$90,\"WP 4\",Part2!$L$88:$L$90),SUMIF(Part2!$G$97:$G$99,\"WP 4\",Part2!$L$97:$L$99),SUMIF(Part2!$G$106:$G$108,\"WP 4\",Part2!$L$106:$L$108)))*(Part2!$K$125/100)), (SUM(SUMIF(Part2!$G$34:$G$36,\"WP 4\",Part2!$L$34:$L$36), SUMIF(Part2!$G$52:$G$54,\"WP 4\",Part2!$L$52:$L$54),SUMIF(Part2!$G$61:$G$63,\"WP 4\",Part2!$L$61:$L$63),SUMIF(Part2!$G$70:$G$72,\"WP 4\",Part2!$L$70:$L$72), SUMIF(Part2!$G$79:$G$81,\"WP 4\",Part2!$L$79:$L$81), SUMIF(Part2!$G$88:$G$90,\"WP 4\",Part2!$L$88:$L$90),SUMIF(Part2!$G$97:$G$99,\"WP 4\",Part2!$L$97:$L$99),SUMIF(Part2!$G$106:$G$108,\"WP 4\",Part2!$L$106:$L$108)))*(Part2!$K$125/100), \"- € \")","v":0},{"$f":"IF(ISNUMBER((SUM(SUMIF(Part2!$G$34:$G$36,\"WP 5\",Part2!$L$34:$L$36), SUMIF(Part2!$G$52:$G$54,\"WP 5\",Part2!$L$52:$L$54),SUMIF(Part2!$G$61:$G$63,\"WP 5\",Part2!$L$61:$L$63),SUMIF(Part2!$G$70:$G$72,\"WP 5\",Part2!$L$70:$L$72), SUMIF(Part2!$G$79:$G$81,\"WP 5\",Part2!$L$79:$L$81), SUMIF(Part2!$G$88:$G$90,\"WP 5\",Part2!$L$88:$L$90),SUMIF(Part2!$G$97:$G$99,\"WP 5\",Part2!$L$97:$L$99),SUMIF(Part2!$G$106:$G$108,\"WP 5\",Part2!$L$106:$L$108)))*(Part2!$K$125/100)), (SUM(SUMIF(Part2!$G$34:$G$36,\"WP 5\",Part2!$L$34:$L$36), SUMIF(Part2!$G$52:$G$54,\"WP 5\",Part2!$L$52:$L$54),SUMIF(Part2!$G$61:$G$63,\"WP 5\",Part2!$L$61:$L$63),SUMIF(Part2!$G$70:$G$72,\"WP 5\",Part2!$L$70:$L$72), SUMIF(Part2!$G$79:$G$81,\"WP 5\",Part2!$L$79:$L$81), SUMIF(Part2!$G$88:$G$90,\"WP 5\",Part2!$L$88:$L$90),SUMIF(Part2!$G$97:$G$99,\"WP 5\",Part2!$L$97:$L$99),SUMIF(Part2!$G$106:$G$108,\"WP 5\",Part2!$L$106:$L$108)))*(Part2!$K$125/100), \"- € \")","v":0},{"$f":"IF(ISNUMBER((SUM(SUMIF(Part2!$G$34:$G$36,\"WP 6\",Part2!$L$34:$L$36), SUMIF(Part2!$G$52:$G$54,\"WP 6\",Part2!$L$52:$L$54),SUMIF(Part2!$G$61:$G$63,\"WP 6\",Part2!$L$61:$L$63),SUMIF(Part2!$G$70:$G$72,\"WP 6\",Part2!$L$70:$L$72), SUMIF(Part2!$G$79:$G$81,\"WP 6\",Part2!$L$79:$L$81), SUMIF(Part2!$G$88:$G$90,\"WP 6\",Part2!$L$88:$L$90),SUMIF(Part2!$G$97:$G$99,\"WP 6\",Part2!$L$97:$L$99),SUMIF(Part2!$G$106:$G$108,\"WP 6\",Part2!$L$106:$L$108)))*(Part2!$K$125/100)), (SUM(SUMIF(Part2!$G$34:$G$36,\"WP 6\",Part2!$L$34:$L$36), SUMIF(Part2!$G$52:$G$54,\"WP 6\",Part2!$L$52:$L$54),SUMIF(Part2!$G$61:$G$63,\"WP 6\",Part2!$L$61:$L$63),SUMIF(Part2!$G$70:$G$72,\"WP 6\",Part2!$L$70:$L$72), SUMIF(Part2!$G$79:$G$81,\"WP 6\",Part2!$L$79:$L$81), SUMIF(Part2!$G$88:$G$90,\"WP 6\",Part2!$L$88:$L$90),SUMIF(Part2!$G$97:$G$99,\"WP 6\",Part2!$L$97:$L$99),SUMIF(Part2!$G$106:$G$108,\"WP 6\",Part2!$L$106:$L$108)))*(Part2!$K$125/100), \"- € \")","v":0},{"$f":"IF(ISNUMBER((SUM(SUMIF(Part2!$G$34:$G$36,\"WP 7\",Part2!$L$34:$L$36), SUMIF(Part2!$G$52:$G$54,\"WP 7\",Part2!$L$52:$L$54),SUMIF(Part2!$G$61:$G$63,\"WP 7\",Part2!$L$61:$L$63),SUMIF(Part2!$G$70:$G$72,\"WP 7\",Part2!$L$70:$L$72), SUMIF(Part2!$G$79:$G$81,\"WP 7\",Part2!$L$79:$L$81), SUMIF(Part2!$G$88:$G$90,\"WP 7\",Part2!$L$88:$L$90),SUMIF(Part2!$G$97:$G$99,\"WP 7\",Part2!$L$97:$L$99),SUMIF(Part2!$G$106:$G$108,\"WP 7\",Part2!$L$106:$L$108)))*(Part2!$K$125/100)), (SUM(SUMIF(Part2!$G$34:$G$36,\"WP 7\",Part2!$L$34:$L$36), SUMIF(Part2!$G$52:$G$54,\"WP 7\",Part2!$L$52:$L$54),SUMIF(Part2!$G$61:$G$63,\"WP 7\",Part2!$L$61:$L$63),SUMIF(Part2!$G$70:$G$72,\"WP 7\",Part2!$L$70:$L$72), SUMIF(Part2!$G$79:$G$81,\"WP 7\",Part2!$L$79:$L$81), SUMIF(Part2!$G$88:$G$90,\"WP 7\",Part2!$L$88:$L$90),SUMIF(Part2!$G$97:$G$99,\"WP 7\",Part2!$L$97:$L$99),SUMIF(Part2!$G$106:$G$108,\"WP 7\",Part2!$L$106:$L$108)))*(Part2!$K$125/100), \"- € \")","v":0},{"$f":"SUM(SUMIF(Part2!G34:G36,\"WP 7\",Part2!M34:M36), SUMIF(Part2!G52:G54,\"WP 7\",Part2!M52:M54),SUMIF(Part2!G61:G63,\"WP 7\",Part2!M61:M63),SUMIF(Part2!G88:G90,\"WP 7\",Part2!M88:M90), SUMIF(Part2!G97:G99,\"WP 7\",Part2!M97:M99),SUMIF(Part2!G106:G108,\"WP 7\",Part2!M106:M108), SUMIF(Part2!#REF!,\"WP 7\",Part2!#REF!))","v":{"$error":"#REF!"}},{"$f":"IF(ISNUMBER((SUM(SUMIF(Part2!$G$34:$G$36,\"WP 8\",Part2!$L$34:$L$36), SUMIF(Part2!$G$52:$G$54,\"WP 8\",Part2!$L$52:$L$54),SUMIF(Part2!$G$61:$G$63,\"WP 8\",Part2!$L$61:$L$63),SUMIF(Part2!$G$70:$G$72,\"WP 8\",Part2!$L$70:$L$72), SUMIF(Part2!$G$79:$G$81,\"WP 8\",Part2!$L$79:$L$81), SUMIF(Part2!$G$88:$G$90,\"WP 8\",Part2!$L$88:$L$90),SUMIF(Part2!$G$97:$G$99,\"WP 8\",Part2!$L$97:$L$99),SUMIF(Part2!$G$106:$G$108,\"WP 8\",Part2!$L$106:$L$108)))*(Part2!$K$125/100)), (SUM(SUMIF(Part2!$G$34:$G$36,\"WP 8\",Part2!$L$34:$L$36), SUMIF(Part2!$G$52:$G$54,\"WP 8\",Part2!$L$52:$L$54),SUMIF(Part2!$G$61:$G$63,\"WP 8\",Part2!$L$61:$L$63),SUMIF(Part2!$G$70:$G$72,\"WP 8\",Part2!$L$70:$L$72), SUMIF(Part2!$G$79:$G$81,\"WP 8\",Part2!$L$79:$L$81), SUMIF(Part2!$G$88:$G$90,\"WP 8\",Part2!$L$88:$L$90),SUMIF(Part2!$G$97:$G$99,\"WP 8\",Part2!$L$97:$L$99),SUMIF(Part2!$G$106:$G$108,\"WP 8\",Part2!$L$106:$L$108)))*(Part2!$K$125/100), \"- € \")","v":0},{"$f":"IF(ISNUMBER((SUM(SUMIF(Part2!$G$34:$G$36,\"WP 9\",Part2!$L$34:$L$36), SUMIF(Part2!$G$52:$G$54,\"WP 9\",Part2!$L$52:$L$54),SUMIF(Part2!$G$61:$G$63,\"WP 9\",Part2!$L$61:$L$63),SUMIF(Part2!$G$70:$G$72,\"WP 9\",Part2!$L$70:$L$72), SUMIF(Part2!$G$79:$G$81,\"WP 9\",Part2!$L$79:$L$81), SUMIF(Part2!$G$88:$G$90,\"WP 9\",Part2!$L$88:$L$90),SUMIF(Part2!$G$97:$G$99,\"WP 9\",Part2!$L$97:$L$99),SUMIF(Part2!$G$106:$G$108,\"WP 9\",Part2!$L$106:$L$108)))*(Part2!$K$125/100)), (SUM(SUMIF(Part2!$G$34:$G$36,\"WP 9\",Part2!$L$34:$L$36), SUMIF(Part2!$G$52:$G$54,\"WP 9\",Part2!$L$52:$L$54),SUMIF(Part2!$G$61:$G$63,\"WP 9\",Part2!$L$61:$L$63),SUMIF(Part2!$G$70:$G$72,\"WP 9\",Part2!$L$70:$L$72), SUMIF(Part2!$G$79:$G$81,\"WP 9\",Part2!$L$79:$L$81), SUMIF(Part2!$G$88:$G$90,\"WP 9\",Part2!$L$88:$L$90),SUMIF(Part2!$G$97:$G$99,\"WP 9\",Part2!$L$97:$L$99),SUMIF(Part2!$G$106:$G$108,\"WP 9\",Part2!$L$106:$L$108)))*(Part2!$K$125/100), \"- € \")","v":0},{"$f":"IF(ISNUMBER((SUM(SUMIF(Part2!$G$34:$G$36,\"WP 10\",Part2!$L$34:$L$36), SUMIF(Part2!$G$52:$G$54,\"WP 10\",Part2!$L$52:$L$54),SUMIF(Part2!$G$61:$G$63,\"WP 10\",Part2!$L$61:$L$63),SUMIF(Part2!$G$70:$G$72,\"WP 10\",Part2!$L$70:$L$72), SUMIF(Part2!$G$79:$G$81,\"WP 10\",Part2!$L$79:$L$81), SUMIF(Part2!$G$88:$G$90,\"WP 10\",Part2!$L$88:$L$90),SUMIF(Part2!$G$97:$G$99,\"WP 10\",Part2!$L$97:$L$99),SUMIF(Part2!$G$106:$G$108,\"WP 10\",Part2!$L$106:$L$108)))*(Part2!$K$125/100)), (SUM(SUMIF(Part2!$G$34:$G$36,\"WP 10\",Part2!$L$34:$L$36), SUMIF(Part2!$G$52:$G$54,\"WP 10\",Part2!$L$52:$L$54),SUMIF(Part2!$G$61:$G$63,\"WP 10\",Part2!$L$61:$L$63),SUMIF(Part2!$G$70:$G$72,\"WP 10\",Part2!$L$70:$L$72), SUMIF(Part2!$G$79:$G$81,\"WP 10\",Part2!$L$79:$L$81), SUMIF(Part2!$G$88:$G$90,\"WP 10\",Part2!$L$88:$L$90),SUMIF(Part2!$G$97:$G$99,\"WP 10\",Part2!$L$97:$L$99),SUMIF(Part2!$G$106:$G$108,\"WP 10\",Part2!$L$106:$L$108)))*(Part2!$K$125/100), \"- € \")","v":0}]
["Part3",null,null,{"$f":"Part3!$K$125","v":0},{"$f":"IF(ISNUMBER((SUM(SUMIF(Part3!$G$34:$G$36,\"WP 1\",Part3!$L$34:$L$36), SUMIF(Part3!$G$52:$G$54,\"WP 1\",Part3!$L$52:$L$54),SUMIF(Part3!$G$61:$G$63,\"WP 1\",Part3!$L$61:$L$63),SUMIF(Part3!$G$70:$G$72,\"WP 1\",Part3!$L$70:$L$72), SUMIF(Part3!$G$79:$G$81,\"WP 1\",Part3!$L$79:$L$81), SUMIF(Part3!$G$88:$G$90,\"WP 1\",Part3!$L$88:$L$90),SUMIF(Part3!$G$97:$G$99,\"WP 1\",Part3!$L$97:$L$99),SUMIF(Part3!$G$106:$G$108,\"WP 1\",Part3!$L$106:$L$108)))*(Part3!$K$125/100)), (SUM(SUMIF(Part3!$G$34:$G$36,\"WP 1\",Part3!$L$34:$L$36), SUMIF(Part3!$G$52:$G$54,\"WP 1\",Part3!$L$52:$L$54),SUMIF(Part3!$G$61:$G$63,\"WP 1\",Part3!$L$61:$L$63),SUMIF(Part3!$G$70:$G$72,\"WP 1\",Part3!$L$70:$L$72), SUMIF(Part3!$G$79:$G$81,\"WP 1\",Part3!$L$79:$L$81), SUMIF(Part3!$G$88:$G$90,\"WP 1\",Part3!$L$88:$L$90),SUMIF(Part3!$G$97:$G$99,\"WP 1\",Part3!$L$97:$L$99),SUMIF(Part3!$G$106:$G$108,\"WP 1\",Part3!$L$106:$L$108)))*(Part3!$K$125/100), \"- € \")","v":0},{"$f":"IF(ISNUMBER((SUM(SUMIF(Part3!$G$34:$G$36,\"WP 2\",Part3!$L$34:$L$36), SUMIF(Part3!$G$52:$G$54,\"WP 2\",Part3!$L$52:$L$54),SUMIF(Part3!$G$61:$G$63,\"WP 2\",Part3!$L$61:$L$63),SUMIF(Part3!$G$70:$G$72,\"WP 2\",Part3!$L$70:$L$72), SUMIF(Part3!$G$79:$G$81,\"WP 2\",Part3!$L$79:$L$81), SUMIF(Part3!$G$88:$G$90,\"WP 2\",Part3!$L$88:$L$90),SUMIF(Part3!$G$97:$G$99,\"WP 2\",Part3!$L$97:$L$99),SUMIF(Part3!$G$106:$G$108,\"WP 2\",Part3!$L$106:$L$108)))*(Part3!$K$125/100)), (SUM(SUMIF(Part3!$G$34:$G$36,\"WP 2\",Part3!$L$34:$L$36), SUMIF(Part3!$G$52:$G$54,\"WP 2\",Part3!$L$52:$L$54),SUMIF(Part3!$G$61:$G$63,\"WP 2\",Part3!$L$61:$L$63),SUMIF(Part3!$G$70:$G$72,\"WP 2\",Part3!$L$70:$L$72), SUMIF(Part3!$G$79:$G$81,\"WP 2\",Part3!$L$79:$L$81), SUMIF(Part3!$G$88:$G$90,\"WP 2\",Part3!$L$88:$L$90),SUMIF(Part3!$G$97:$G$99,\"WP 2\",Part3!$L$97:$L$99),SUMIF(Part3!$G$106:$G$108,\"WP 2\",Part3!$L$106:$L$108)))*(Part3!$K$125/100), \"- € \")","v":0},{"$f":"IF(ISNUMBER((SUM(SUMIF(Part3!$G$34:$G$36,\"WP 3\",Part3!$L$34:$L$36), SUMIF(Part3!$G$52:$G$54,\"WP 3\",Part3!$L$52:$L$54),SUMIF(Part3!$G$61:$G$63,\"WP 3\",Part3!$L$61:$L$63),SUMIF(Part3!$G$70:$G$72,\"WP 3\",Part3!$L$70:$L$72), SUMIF(Part3!$G$79:$G$81,\"WP 3\",Part3!$L$79:$L$81), SUMIF(Part3!$G$88:$G$90,\"WP 3\",Part3!$L$88:$L$90),SUMIF(Part3!$G$97:$G$99,\"WP 3\",Part3!$L$97:$L$99),SUMIF(Part3!$G$106:$G$108,\"WP 3\",Part3!$L$106:$L$108)))*(Part3!$K$125/100)), (SUM(SUMIF(Part3!$G$34:$G$36,\"WP 3\",Part3!$L$34:$L$36), SUMIF(Part3!$G$52:$G$54,\"WP 3\",Part3!$L$52:$L$54),SUMIF(Part3!$G$61:$G$63,\"WP 3\",Part3!$L$61:$L$63),SUMIF(Part3!$G$70:$G$72,\"WP 3\",Part3!$L$70:$L$72), SUMIF(Part3!$G$79:$G$81,\"WP 3\",Part3!$L$79:$L$81), SUMIF(Part3!$G$88:$G$90,\"WP 3\",Part3!$L$88:$L$90),SUMIF(Part3!$G$97:$G$99,\"WP 3\",Part3!$L$97:$L$99),SUMIF(Part3!$G$106:$G$108,\"WP 3\",Part3!$L$106:$L$108)))*(Part3!$K$125/100), \"- € \")","v":0},{"$f":"IF(ISNUMBER((SUM(SUMIF(Part3!$G$34:$G$36,\"WP 4\",Part3!$L$34:$L$36), SUMIF(Part3!$G$52:$G$54,\"WP 4\",Part3!$L$52:$L$54),SUMIF(Part3!$G$61:$G$63,\"WP 4\",Part3!$L$61:$L$63),SUMIF(Part3!$G$70:$G$72,\"WP 4\",Part3!$L$70:$L$72), SUMIF(Part3!$G$79:$G$81,\"WP 4\",Part3!$L$79:$L$81), SUMIF(Part3!$G$88:$G$90,\"WP 4\",Part3!$L$88:$L$90),SUMIF(Part3!$G$97:$G$99,\"WP 4\",Part3!$L$97:$L$99),SUMIF(Part3!$G$106:$G$108,\"WP 4\",Part3!$L$106:$L$108)))*(Part3!$K$125/100)), (SUM(SUMIF(Part3!$G$34:$G$36,\"WP 4\",Part3!$L$34:$L$36), SUMIF(Part3!$G$52:$G$54,\"WP 4\",Part3!$L$52:$L$54),SUMIF(Part3!$G$61:$G$63,\"WP 4\",Part3!$L$61:$L$63),SUMIF(Part3!$G$70:$G$72,\"WP 4\",Part3!$L$70:$L$72), SUMIF(Part3!$G$79:$G$81,\"WP 4\",Part3!$L$79:$L$81), SUMIF(Part3!$G$88:$G$90,\"WP 4\",Part3!$L$88:$L$90),SUMIF(Part3!$G$97:$G$99,\"WP 4\",Part3!$L$97:$L$99),SUMIF(Part3!$G$106:$G$108,\"WP 4\",Part3!$L$106:$L$108)))*(Part3!$K$125/100), \"- € \")","v":0},{"$f":"IF(ISNUMBER((SUM(SUMIF(Part3!$G$34:$G$36,\"WP 5\",Part3!$L$34:$L$36), SUMIF(Part3!$G$52:$G$54,\"WP 5\",Part3!$L$52:$L$54),SUMIF(Part3!$G$61:$G$63,\"WP 5\",Part3!$L$61:$L$63),SUMIF(Part3!$G$70:$G$72,\"WP 5\",Part3!$L$70:$L$72), SUMIF(Part3!$G$79:$G$81,\"WP 5\",Part3!$L$79:$L$81), SUMIF(Part3!$G$88:$G$90,\"WP 5\",Part3!$L$88:$L$90),SUMIF(Part3!$G$97:$G$99,\"WP 5\",Part3!$L$97:$L$99),SUMIF(Part3!$G$106:$G$108,\"WP 5\",Part3!$L$106:$L$108)))*(Part3!$K$125/100)), (SUM(SUMIF(Part3!$G$34:$G$36,\"WP 5\",Part3!$L$34:$L$36), SUMIF(Part3!$G$52:$G$54,\"WP 5\",Part3!$L$52:$L$54),SUMIF(Part3!$G$61:$G$63,\"WP 5\",Part3!$L$61:$L$63),SUMIF(Part3!$G$70:$G$72,\"WP 5\",Part3!$L$70:$L$72), SUMIF(Part3!$G$79:$G$81,\"WP 5\",Part3!$L$79:$L$81), SUMIF(Part3!$G$88:$G$90,\"WP 5\",Part3!$L$88:$L$90),SUMIF(Part3!$G$97:$G$99,\"WP 5\",Part3!$L$97:$L$99),SUMIF(Part3!$G$106:$G$108,\"WP 5\",Part3!$L$106:$L$108)))*(Part3!$K$125/100), \"- € \")","v":0},{"$f":"IF(ISNUMBER((SUM(SUMIF(Part3!$G$34:$G$36,\"WP 6\",Part3!$L$34:$L$36), SUMIF(Part3!$G$52:$G$54,\"WP 6\",Part3!$L$52:$L$54),SUMIF(Part3!$G$61:$G$63,\"WP 6\",Part3!$L$61:$L$63),SUMIF(Part3!$G$70:$G$72,\"WP 6\",Part3!$L$70:$L$72), SUMIF(Part3!$G$79:$G$81,\"WP 6\",Part3!$L$79:$L$81), SUMIF(Part3!$G$88:$G$90,\"WP 6\",Part3!$L$88:$L$90),SUMIF(Part3!$G$97:$G$99,\"WP 6\",Part3!$L$97:$L$99),SUMIF(Part3!$G$106:$G$108,\"WP 6\",Part3!$L$106:$L$108)))*(Part3!$K$125/100)), (SUM(SUMIF(Part3!$G$34:$G$36,\"WP 6\",Part3!$L$34:$L$36), SUMIF(Part3!$G$52:$G$54,\"WP 6\",Part3!$L$52:$L$54),SUMIF(Part3!$G$61:$G$63,\"WP 6\",Part3!$L$61:$L$63),SUMIF(Part3!$G$70:$G$72,\"WP 6\",Part3!$L$70:$L$72), SUMIF(Part3!$G$79:$G$81,\"WP 6\",Part3!$L$79:$L$81), SUMIF(Part3!$G$88:$G$90,\"WP 6\",Part3!$L$88:$L$90),SUMIF(Part3!$G$97:$G$99,\"WP 6\",Part3!$L$97:$L$99),SUMIF(Part3!$G$106:$G$108,\"WP 6\",Part3!$L$106:$L$108)))*(Part3!$K$125/100), \"- € \")","v":0},{"$f":"IF(ISNUMBER((SUM(SUMIF(Part3!$G$34:$G$36,\"WP 7\",Part3!$L$34:$L$36), SUMIF(Part3!$G$52:$G$54,\"WP 7\",Part3!$L$52:$L$54),SUMIF(Part3!$G$61:$G$63,\"WP 7\",Part3!$L$61:$L$63),SUMIF(Part3!$G$70:$G$72,\"WP 7\",Part3!$L$70:$L$72), SUMIF(Part3!$G$79:$G$81,\"WP 7\",Part3!$L$79:$L$81), SUMIF(Part3!$G$88:$G$90,\"WP 7\",Part3!$L$88:$L$90),SUMIF(Part3!$G$97:$G$99,\"WP 7\",Part3!$L$97:$L$99),SUMIF(Part3!$G$106:$G$108,\"WP 7\",Part3!$L$106:$L$108)))*(Part3!$K$125/100)), (SUM(SUMIF(Part3!$G$34:$G$36,\"WP 7\",Part3!$L$34:$L$36), SUMIF(Part3!$G$52:$G$54,\"WP 7\",Part3!$L$52:$L$54),SUMIF(Part3!$G$61:$G$63,\"WP 7\",Part3!$L$61:$L$63),SUMIF(Part3!$G$70:$G$72,\"WP 7\",Part3!$L$70:$L$72), SUMIF(Part3!$G$79:$G$81,\"WP 7\",Part3!$L$79:$L$81), SUMIF(Part3!$G$88:$G$90,\"WP 7\",Part3!$L$88:$L$90),SUMIF(Part3!$G$97:$G$99,\"WP 7\",Part3!$L$97:$L$99),SUMIF(Part3!$G$106:$G$108,\"WP 7\",Part3!$L$106:$L$108)))*(Part3!$K$125/100), \"- € \")","v":0},{"$f":"SUM(SUMIF(Part3!G33:G35,\"WP 7\",Part3!M33:M35), SUMIF(Part3!G51:G53,\"WP 7\",Part3!M51:M53),SUMIF(Part3!G60:G62,\"WP 7\",Part3!M60:M62),SUMIF(Part3!G87:G89,\"WP 7\",Part3!M87:M89), SUMIF(Part3!G96:G98,\"WP 7\",Part3!M96:M98),SUMIF(Part3!G105:G107,\"WP 7\",Part3!M105:M107), SUMIF(Part3!#REF!,\"WP 7\",Part3!#REF!))","v":{"$error":"#REF!"}},{"$f":"IF(ISNUMBER((SUM(SUMIF(Part3!$G$34:$G$36,\"WP 8\",Part3!$L$34:$L$36), SUMIF(Part3!$G$52:$G$54,\"WP 8\",Part3!$L$52:$L$54),SUMIF(Part3!$G$61:$G$63,\"WP 8\",Part3!$L$61:$L$63),SUMIF(Part3!$G$70:$G$72,\"WP 8\",Part3!$L$70:$L$72), SUMIF(Part3!$G$79:$G$81,\"WP 8\",Part3!$L$79:$L$81), SUMIF(Part3!$G$88:$G$90,\"WP 8\",Part3!$L$88:$L$90),SUMIF(Part3!$G$97:$G$99,\"WP 8\",Part3!$L$97:$L$99),SUMIF(Part3!$G$106:$G$108,\"WP 8\",Part3!$L$106:$L$108)))*(Part3!$K$125/100)), (SUM(SUMIF(Part3!$G$34:$G$36,\"WP 8\",Part3!$L$34:$L$36), SUMIF(Part3!$G$52:$G$54,\"WP 8\",Part3!$L$52:$L$54),SUMIF(Part3!$G$61:$G$63,\"WP 8\",Part3!$L$61:$L$63),SUMIF(Part3!$G$70:$G$72,\"WP 8\",Part3!$L$70:$L$72), SUMIF(Part3!$G$79:$G$81,\"WP 8\",Part3!$L$79:$L$81), SUMIF(Part3!$G$88:$G$90,\"WP 8\",Part3!$L$88:$L$90),SUMIF(Part3!$G$97:$G$99,\"WP 8\",Part3!$L$97:$L$99),SUMIF(Part3!$G$106:$G$108,\"WP 8\",Part3!$L$106:$L$108)))*(Part3!$K$125/100), \"- € \")","v":0},{"$f":"IF(ISNUMBER((SUM(SUMIF(Part3!$G$34:$G$36,\"WP 9\",Part3!$L$34:$L$36), SUMIF(Part3!$G$52:$G$54,\"WP 9\",Part3!$L$52:$L$54),SUMIF(Part3!$G$61:$G$63,\"WP 9\",Part3!$L$61:$L$63),SUMIF(Part3!$G$70:$G$72,\"WP 9\",Part3!$L$70:$L$72), SUMIF(Part3!$G$79:$G$81,\"WP 9\",Part3!$L$79:$L$81), SUMIF(Part3!$G$88:$G$90,\"WP 9\",Part3!$L$88:$L$90),SUMIF(Part3!$G$97:$G$99,\"WP 9\",Part3!$L$97:$L$99),SUMIF(Part3!$G$106:$G$108,\"WP 9\",Part3!$L$106:$L$108)))*(Part3!$K$125/100)), (SUM(SUMIF(Part3!$G$34:$G$36,\"WP 9\",Part3!$L$34:$L$36), SUMIF(Part3!$G$52:$G$54,\"WP 9\",Part3!$L$52:$L$54),SUMIF(Part3!$G$61:$G$63,\"WP 9\",Part3!$L$61:$L$63),SUMIF(Part3!$G$70:$G$72,\"WP 9\",Part3!$L$70:$L$72), SUMIF(Part3!$G$79:$G$81,\"WP 9\",Part3!$L$79:$L$81), SUMIF(Part3!$G$88:$G$90,\"WP 9\",Part3!$L$88:$L$90),SUMIF(Part3!$G$97:$G$99,\"WP 9\",Part3!$L$97:$L$99),SUMIF(Part3!$G$106:$G$108,\"WP 9\",Part3!$L$106:$L$108)))*(Part3!$K$125/100), \"- € \")","v":0},{"$f":"IF(ISNUMBER((SUM(SUMIF(Part3!$G$34:$G$36,\"WP 10\",Part3!$L$34:$L$36), SUMIF(Part3!$G$52:$G$54,\"WP 10\",Part3!$L$52:$L$54),SUMIF(Part3!$G$61:$G$63,\"WP 10\",Part3!$L$61:$L$63),SUMIF(Part3!$G$70:$G$72,\"WP 10\",Part3!$L$70:$L$72), SUMIF(Part3!$G$79:$G$81,\"WP 10\",Part3!$L$79:$L$81), SUMIF(Part3!$G$88:$G$90,\"WP 10\",Part3!$L$88:$L$90),SUMIF(Part3!$G$97:$G$99,\"WP 10\",Part3!$L$97:$L$99),SUMIF(Part3!$G$106:$G$108,\"WP 10\",Part3!$L$106:$L$108)))*(Part3!$K$125/100)), (SUM(SUMIF(Part3!$G$34:$G$36,\"WP 10\",Part3!$L$34:$L$36), SUMIF(Part3!$G$52:$G$54,\"WP 10\",Part3!$L$52:$L$54),SUMIF(Part3!$G$61:$G$63,\"WP 10\",Part3!$L$61:$L$63),SUMIF(Part3!$G$70:$G$72,\"WP 10\",Part3!$L$70:$L$72), SUMIF(Part3!$G$79:$G$81,\"WP 10\",Part3!$L$79:$L$81), SUMIF(Part3!$G$88:$G$90,\"WP 10\",Part3!$L$88:$L$90),SUMIF(Part3!$G$97:$G$99,\"WP 10\",Part3!$L$97:$L$99),SUMIF(Part3!$G$106:$G$108,\"WP 10\",Part3!$L$106:$L$108)))*(Part3!$K$125/100), \"- € \")","v":0}]
["Part4",null,null,{"$f":"Part4!$K$125","v":0},{"$f":"IF(ISNUMBER((SUM(SUMIF(Part4!$G$34:$G$36,\"WP 1\",Part4!$L$34:$L$36), SUMIF(Part4!$G$52:$G$54,\"WP 1\",Part4!$L$52:$L$54),SUMIF(Part4!$G$61:$G$63,\"WP 1\",Part4!$L$61:$L$63),SUMIF(Part4!$G$70:$G$72,\"WP 1\",Part4!$L$70:$L$72), SUMIF(Part4!$G$79:$G$81,\"WP 1\",Part4!$L$79:$L$81), SUMIF(Part4!$G$88:$G$90,\"WP 1\",Part4!$L$88:$L$90),SUMIF(Part4!$G$97:$G$99,\"WP 1\",Part4!$L$97:$L$99),SUMIF(Part4!$G$106:$G$108,\"WP 1\",Part4!$L$106:$L$108)))*(Part4!$K$125/100)), (SUM(SUMIF(Part4!$G$34:$G$36,\"WP 1\",Part4!$L$34:$L$36), SUMIF(Part4!$G$52:$G$54,\"WP 1\",Part4!$L$52:$L$54),SUMIF(Part4!$G$61:$G$63,\"WP 1\",Part4!$L$61:$L$63),SUMIF(Part4!$G$70:$G$72,\"WP 1\",Part4!$L$70:$L$72), SUMIF(Part4!$G$79:$G$81,\"WP 1\",Part4!$L$79:$L$81), SUMIF(Part4!$G$88:$G$90,\"WP 1\",Part4!$L$88:$L$90),SUMIF(Part4!$G$97:$G$99,\"WP 1\",Part4!$L$97:$L$99),SUMIF(Part4!$G$106:$G$108,\"WP 1\",Part4!$L$106:$L$108)))*(Part4!$K$125/100), \"- € \")","v":0},{"$f":"IF(ISNUMBER((SUM(SUMIF(Part4!$G$34:$G$36,\"WP 2\",Part4!$L$34:$L$36), SUMIF(Part4!$G$52:$G$54,\"WP 2\",Part4!$L$52:$L$54),SUMIF(Part4!$G$61:$G$63,\"WP 2\",Part4!$L$61:$L$63),SUMIF(Part4!$G$70:$G$72,\"WP 2\",Part4!$L$70:$L$72), SUMIF(Part4!$G$79:$G$81,\"WP 2\",Part4!$L$79:$L$81), SUMIF(Part4!$G$88:$G$90,\"WP 2\",Part4!$L$88:$L$90),SUMIF(Part4!$G$97:$G$99,\"WP 2\",Part4!$L$97:$L$99),SUMIF(Part4!$G$106:$G$108,\"WP 2\",Part4!$L$106:$L$108)))*(Part4!$K$125/100)), (SUM(SUMIF(Part4!$G$34:$G$36,\"WP 2\",Part4!$L$34:$L$36), SUMIF(Part4!$G$52:$G$54,\"WP 2\",Part4!$L$52:$L$54),SUMIF(Part4!$G$61:$G$63,\"WP 2\",Part4!$L$61:$L$63),SUMIF(Part4!$G$70:$G$72,\"WP 2\",Part4!$L$70:$L$72), SUMIF(Part4!$G$79:$G$81,\"WP 2\",Part4!$L$79:$L$81), SUMIF(Part4!$G$88:$G$90,\"WP 2\",Part4!$L$88:$L$90),SUMIF(Part4!$G$97:$G$99,\"WP 2\",Part4!$L$97:$L$99),SUMIF(Part4!$G$106:$G$108,\"WP 2\",Part4!$L$106:$L$108)))*(Part4!$K$125/100), \"- € \")","v":0},{"$f":"IF(ISNUMBER((SUM(SUMIF(Part4!$G$34:$G$36,\"WP 3\",Part4!$L$34:$L$36), SUMIF(Part4!$G$52:$G$54,\"WP 3\",Part4!$L$52:$L$54),SUMIF(Part4!$G$61:$G$63,\"WP 3\",Part4!$L$61:$L$63),SUMIF(Part4!$G$70:$G$72,\"WP 3\",Part4!$L$70:$L$72), SUMIF(Part4!$G$79:$G$81,\"WP 3\",Part4!$L$79:$L$81), SUMIF(Part4!$G$88:$G$90,\"WP 3\",Part4!$L$88:$L$90),SUMIF(Part4!$G$97:$G$99,\"WP 3\",Part4!$L$97:$L$99),SUMIF(Part4!$G$106:$G$108,\"WP 3\",Part4!$L$106:$L$108)))*(Part4!$K$125/100)), (SUM(SUMIF(Part4!$G$34:$G$36,\"WP 3\",Part4!$L$34:$L$36), SUMIF(Part4!$G$52:$G$54,\"WP 3\",Part4!$L$52:$L$54),SUMIF(Part4!$G$61:$G$63,\"WP 3\",Part4!$L$61:$L$63),SUMIF(Part4!$G$70:$G$72,\"WP 3\",Part4!$L$70:$L$72), SUMIF(Part4!$G$79:$G$81,\"WP 3\",Part4!$L$79:$L$81), SUMIF(Part4!$G$88:$G$90,\"WP 3\",Part4!$L$88:$L$90),SUMIF(Part4!$G$97:$G$99,\"WP 3\",Part4!$L$97:$L$99),SUMIF(Part4!$G$106:$G$108,\"WP 3\",Part4!$L$106:$L$108)))*(Part4!$K$125/100), \"- € \")","v":0},{"$f":"IF(ISNUMBER((SUM(SUMIF(Part4!$G$34:$G$36,\"WP 4\",Part4!$L$34:$L$36), SUMIF(Part4!$G$52:$G$54,\"WP 4\",Part4!$L$52:$L$54),SUMIF(Part4!$G$61:$G$63,\"WP 4\",Part4!$L$61:$L$63),SUMIF(Part4!$G$70:$G$72,\"WP 4\",Part4!$L$70:$L$72), SUMIF(Part4!$G$79:$G$81,\"WP 4\",Part4!$L$79:$L$81), SUMIF(Part4!$G$88:$G$90,\"WP 4\",Part4!$L$88:$L$90),SUMIF(Part4!$G$97:$G$99,\"WP 4\",Part4!$L$97:$L$99),SUMIF(Part4!$G$106:$G$108,\"WP 4\",Part4!$L$106:$L$108)))*(Part4!$K$125/100)), (SUM(SUMIF(Part4!$G$34:$G$36,\"WP 4\",Part4!$L$34:$L$36), SUMIF(Part4!$G$52:$G$54,\"WP 4\",Part4!$L$52:$L$54),SUMIF(Part4!$G$61:$G$63,\"WP 4\",Part4!$L$61:$L$63),SUMIF(Part4!$G$70:$G$72,\"WP 4\",Part4!$L$70:$L$72), SUMIF(Part4!$G$79:$G$81,\"WP 4\",Part4!$L$79:$L$81), SUMIF(Part4!$G$88:$G$90,\"WP 4\",Part4!$L$88:$L$90),SUMIF(Part4!$G$97:$G$99,\"WP 4\",Part4!$L$97:$L$99),SUMIF(Part4!$G$106:$G$108,\"WP 4\",Part4!$L$106:$L$108)))*(Part4!$K$125/100), \"- € \")","v":0},{"$f":"IF(ISNUMBER((SUM(SUMIF(Part4!$G$34:$G$36,\"WP 5\",Part4!$L$34:$L$36), SUMIF(Part4!$G$52:$G$54,\"WP 5\",Part4!$L$52:$L$54),SUMIF(Part4!$G$61:$G$63,\"WP 5\",Part4!$L$61:$L$63),SUMIF(Part4!$G$70:$G$72,\"WP 5\",Part4!$L$70:$L$72), SUMIF(Part4!$G$79:$G$81,\"WP 5\",Part4!$L$79:$L$81), SUMIF(Part4!$G$88:$G$90,\"WP 5\",Part4!$L$88:$L$90),SUMIF(Part4!$G$97:$G$99,\"WP 5\",Part4!$L$97:$L$99),SUMIF(Part4!$G$106:$G$108,\"WP 5\",Part4!$L$106:$L$108)))*(Part4!$K$125/100)), (SUM(SUMIF(Part4!$G$34:$G$36,\"WP 5\",Part4!$L$34:$L$36), SUMIF(Part4!$G$52:$G$54,\"WP 5\",Part4!$L$52:$L$54),SUMIF(Part4!$G$61:$G$63,\"WP 5\",Part4!$L$61:$L$63),SUMIF(Part4!$G$70:$G$72,\"WP 5\",Part4!$L$70:$L$72), SUMIF(Part4!$G$79:$G$81,\"WP 5\",Part4!$L$79:$L$81), SUMIF(Part4!$G$88:$G$90,\"WP 5\",Part4!$L$88:$L$90),SUMIF(Part4!$G$97:$G$99,\"WP 5\",Part4!$L$97:$L$99),SUMIF(Part4!$G$106:$G$108,\"WP 5\",Part4!$L$106:$L$108)))*(Part4!$K$125/100), \"- € \")","v":0},{"$f":"IF(ISNUMBER((SUM(SUMIF(Part4!$G$34:$G$36,\"WP 6\",Part4!$L$34:$L$36), SUMIF(Part4!$G$52:$G$54,\"WP 6\",Part4!$L$52:$L$54),SUMIF(Part4!$G$61:$G$63,\"WP 6\",Part4!$L$61:$L$63),SUMIF(Part4!$G$70:$G$72,\"WP 6\",Part4!$L$70:$L$72), SUMIF(Part4!$G$79:$G$81,\"WP 6\",Part4!$L$79:$L$81), SUMIF(Part4!$G$88:$G$90,\"WP 6\",Part4!$L$88:$L$90),SUMIF(Part4!$G$97:$G$99,\"WP 6\",Part4!$L$97:$L$99),SUMIF(Part4!$G$106:$G$108,\"WP 6\",Part4!$L$106:$L$108)))*(Part4!$K$125/100)), (SUM(SUMIF(Part4!$G$34:$G$36,\"WP 6\",Part4!$L$34:$L$36), SUMIF(Part4!$G$52:$G$54,\"WP 6\",Part4!$L$52:$L$54),SUMIF(Part4!$G$61:$G$63,\"WP 6\",Part4!$L$61:$L$63),SUMIF(Part4!$G$70:$G$72,\"WP 6\",Part4!$L$70:$L$72), SUMIF(Part4!$G$79:$G$81,\"WP 6\",Part4!$L$79:$L$81), SUMIF(Part4!$G$88:$G$90,\"WP 6\",Part4!$L$88:$L$90),SUMIF(Part4!$G$97:$G$99,\"WP 6\",Part4!$L$97:$L$99),SUMIF(Part4!$G$106:$G$108,\"WP 6\",Part4!$L$106:$L$108)))*(Part4!$K$125/100), \"- € \")","v":0},{"$f":"IF(ISNUMBER((SUM(SUMIF(Part4!$G$34:$G$36,\"WP 7\",Part4!$L$34:$L$36), SUMIF(Part4!$G$52:$G$54,\"WP 7\",Part4!$L$52:$L$54),SUMIF(Part4!$G$61:$G$63,\"WP 7\",Part4!$L$61:$L$63),SUMIF(Part4!$G$70:$G$72,\"WP 7\",Part4!$L$70:$L$72), SUMIF(Part4!$G$79:$G$81,\"WP 7\",Part4!$L$79:$L$81), SUMIF(Part4!$G$88:$G$90,\"WP 7\",Part4!$L$88:$L$90),SUMIF(Part4!$G$97:$G$99,\"WP 7\",Part4!$L$97:$L$99),SUMIF(Part4!$G$106:$G$108,\"WP 7\",Part4!$L$106:$L$108)))*(Part4!$K$125/100)), (SUM(SUMIF(Part4!$G$34:$G$36,\"WP 7\",Part4!$L$34:$L$36), SUMIF(Part4!$G$52:$G$54,\"WP 7\",Part4!$L$52:$L$54),SUMIF(Part4!$G$61:$G$63,\"WP 7\",Part4!$L$61:$L$63),SUMIF(Part4!$G$70:$G$72,\"WP 7\",Part4!$L$70:$L$72), SUMIF(Part4!$G$79:$G$81,\"WP 7\",Part4!$L$79:$L$81), SUMIF(Part4!$G$88:$G$90,\"WP 7\",Part4!$L$88:$L$90),SUMIF(Part4!$G$97:$G$99,\"WP 7\",Part4!$L$97:$L$99),SUMIF(Part4!$G$106:$G$108,\"WP 7\",Part4!$L$106:$L$108)))*(Part4!$K$125/100), \"- € \")","v":0},{"$f":"SUM(SUMIF(Part4!G37:G39,\"WP 8\",Part4!L37:L39), SUMIF(Part4!G55:G57,\"WP 8\",Part4!L55:L57),SUMIF(Part4!G64:G66,\"WP 8\",Part4!L64:L66),SUMIF(Part4!G91:G93,\"WP 8\",Part4!L91:L93), SUMIF(Part4!G100:G102,\"WP 8\",Part4!L100:L102),SUMIF(Part4!G109:G111,\"WP 8\",Part4!L109:L111))","v":0},{"$f":"IF(ISNUMBER((SUM(SUMIF(Part4!$G$34:$G$36,\"WP 8\",Part4!$L$34:$L$36), SUMIF(Part4!$G$52:$G$54,\"WP 8\",Part4!$L$52:$L$54),SUMIF(Part4!$G$61:$G$63,\"WP 8\",Part4!$L$61:$L$63),SUMIF(Part4!$G$70:$G$72,\"WP 8\",Part4!$L$70:$L$72), SUMIF(Part4!$G$79:$G$81,\"WP 8\",Part4!$L$79:$L$81), SUMIF(Part4!$G$88:$G$90,\"WP 8\",Part4!$L$88:$L$90),SUMIF(Part4!$G$97:$G$99,\"WP 8\",Part4!$L$97:$L$99),SUMIF(Part4!$G$106:$G$108,\"WP 8\",Part4!$L$106:$L$108)))*(Part4!$K$125/100)), (SUM(SUMIF(Part4!$G$34:$G$36,\"WP 8\",Part4!$L$34:$L$36), SUMIF(Part4!$G$52:$G$54,\"WP 8\",Part4!$L$52:$L$54),SUMIF(Part4!$G$61:$G$63,\"WP 8\",Part4!$L$61:$L$63),SUMIF(Part4!$G$70:$G$72,\"WP 8\",Part4!$L$70:$L$72), SUMIF(Part4!$G$79:$G$81,\"WP 8\",Part4!$L$79:$L$81), SUMIF(Part4!$G$88:$G$90,\"WP 8\",Part4!$L$88:$L$90),SUMIF(Part4!$G$97:$G$99,\"WP 8\",Part4!$L$97:$L$99),SUMIF(Part4!$G$106:$G$108,\"WP 8\",Part4!$L$106:$L$108)))*(Part4!$K$125/100), \"- € \")","v":0},{"$f":"IF(ISNUMBER((SUM(SUMIF(Part4!$G$34:$G$36,\"WP 9\",Part4!$L$34:$L$36), SUMIF(Part4!$G$52:$G$54,\"WP 9\",Part4!$L$52:$L$54),SUMIF(Part4!$G$61:$G$63,\"WP 9\",Part4!$L$61:$L$63),SUMIF(Part4!$G$70:$G$72,\"WP 9\",Part4!$L$70:$L$72), SUMIF(Part4!$G$79:$G$81,\"WP 9\",Part4!$L$79:$L$81), SUMIF(Part4!$G$88:$G$90,\"WP 9\",Part4!$L$88:$L$90),SUMIF(Part4!$G$97:$G$99,\"WP 9\",Part4!$L$97:$L$99),SUMIF(Part4!$G$106:$G$108,\"WP 9\",Part4!$L$106:$L$108)))*(Part4!$K$125/100)), (SUM(SUMIF(Part4!$G$34:$G$36,\"WP 9\",Part4!$L$34:$L$36), SUMIF(Part4!$G$52:$G$54,\"WP 9\",Part4!$L$52:$L$54),SUMIF(Part4!$G$61:$G$63,\"WP 9\",Part4!$L$61:$L$63),SUMIF(Part4!$G$70:$G$72,\"WP 9\",Part4!$L$70:$L$72), SUMIF(Part4!$G$79:$G$81,\"WP 9\",Part4!$L$79:$L$81), SUMIF(Part4!$G$88:$G$90,\"WP 9\",Part4!$L$88:$L$90),SUMIF(Part4!$G$97:$G$99,\"WP 9\",Part4!$L$97:$L$99),SUMIF(Part4!$G$106:$G$108,\"WP 9\",Part4!$L$106:$L$108)))*(Part4!$K$125/100), \"- € \")","v":0},{"$f":"IF(ISNUMBER((SUM(SUMIF(Part4!$G$34:$G$36,\"WP 10\",Part4!$L$34:$L$36), SUMIF(Part4!$G$52:$G$54,\"WP 10\",Part4!$L$52:$L$54),SUMIF(Part4!$G$61:$G$63,\"WP 10\",Part4!$L$61:$L$63),SUMIF(Part4!$G$70:$G$72,\"WP 10\",Part4!$L$70:$L$72), SUMIF(Part4!$G$79:$G$81,\"WP 10\",Part4!$L$79:$L$81), SUMIF(Part4!$G$88:$G$90,\"WP 10\",Part4!$L$88:$L$90),SUMIF(Part4!$G$97:$G$99,\"WP 10\",Part4!$L$97:$L$99),SUMIF(Part4!$G$106:$G$108,\"WP 10\",Part4!$L$106:$L$108)))*(Part4!$K$125/100)), (SUM(SUMIF(Part4!$G$34:$G$36,\"WP 10\",Part4!$L$34:$L$36), SUMIF(Part4!$G$52:$G$54,\"WP 10\",Part4!$L$52:$L$54),SUMIF(Part4!$G$61:$G$63,\"WP 10\",Part4!$L$61:$L$63),SUMIF(Part4!$G$70:$G$72,\"WP 10\",Part4!$L$70:$L$72), SUMIF(Part4!$G$79:$G$81,\"WP 10\",Part4!$L$79:$L$81), SUMIF(Part4!$G$88:$G$90,\"WP 10\",Part4!$L$88:$L$90),SUMIF(Part4!$G$97:$G$99,\"WP 10\",Part4!$L$97:$L$99),SUMIF(Part4!$G$106:$G$108,\"WP 10\",Part4!$L$106:$L$108)))*(Part4!$K$125/100), \"- € \")","v":0}]
["Part5",null,null,{"$f":"Part5!$K$125","v":0},{"$f":"IF(ISNUMBER((SUM(SUMIF(Part5!$G$34:$G$36,\"WP 1\",Part5!$L$34:$L$36), SUMIF(Part5!$G$52:$G$54,\"WP 1\",Part5!$L$52:$L$54),SUMIF(Part5!$G$61:$G$63,\"WP 1\",Part5!$L$61:$L$63),SUMIF(Part5!$G$70:$G$72,\"WP 1\",Part5!$L$70:$L$72), SUMIF(Part5!$G$79:$G$81,\"WP 1\",Part5!$L$79:$L$81), SUMIF(Part5!$G$88:$G$90,\"WP 1\",Part5!$L$88:$L$90),SUMIF(Part5!$G$97:$G$99,\"WP 1\",Part5!$L$97:$L$99),SUMIF(Part5!$G$106:$G$108,\"WP 1\",Part5!$L$106:$L$108)))*(Part5!$K$125/100)), (SUM(SUMIF(Part5!$G$34:$G$36,\"WP 1\",Part5!$L$34:$L$36), SUMIF(Part5!$G$52:$G$54,\"WP 1\",Part5!$L$52:$L$54),SUMIF(Part5!$G$61:$G$63,\"WP 1\",Part5!$L$61:$L$63),SUMIF(Part5!$G$70:$G$72,\"WP 1\",Part5!$L$70:$L$72), SUMIF(Part5!$G$79:$G$81,\"WP 1\",Part5!$L$79:$L$81), SUMIF(Part5!$G$88:$G$90,\"WP 1\",Part5!$L$88:$L$90),SUMIF(Part5!$G$97:$G$99,\"WP 1\",Part5!$L$97:$L$99),SUMIF(Part5!$G$106:$G$108,\"WP 1\",Part5!$L$106:$L$108)))*(Part5!$K$125/100), \"- € \")","v":0},{"$f":"IF(ISNUMBER((SUM(SUMIF(Part5!$G$34:$G$36,\"WP 2\",Part5!$L$34:$L$36), SUMIF(Part5!$G$52:$G$54,\"WP 2\",Part5!$L$52:$L$54),SUMIF(Part5!$G$61:$G$63,\"WP 2\",Part5!$L$61:$L$63),SUMIF(Part5!$G$70:$G$72,\"WP 2\",Part5!$L$70:$L$72), SUMIF(Part5!$G$79:$G$81,\"WP 2\",Part5!$L$79:$L$81), SUMIF(Part5!$G$88:$G$90,\"WP 2\",Part5!$L$88:$L$90),SUMIF(Part5!$G$97:$G$99,\"WP 2\",Part5!$L$97:$L$99),SUMIF(Part5!$G$106:$G$108,\"WP 2\",Part5!$L$106:$L$108)))*(Part5!$K$125/100)), (SUM(SUMIF(Part5!$G$34:$G$36,\"WP 2\",Part5!$L$34:$L$36), SUMIF(Part5!$G$52:$G$54,\"WP 2\",Part5!$L$52:$L$54),SUMIF(Part5!$G$61:$G$63,\"WP 2\",Part5!$L$61:$L$63),SUMIF(Part5!$G$70:$G$72,\"WP 2\",Part5!$L$70:$L$72), SUMIF(Part5!$G$79:$G$81,\"WP 2\",Part5!$L$79:$L$81), SUMIF(Part5!$G$88:$G$90,\"WP 2\",Part5!$L$88:$L$90),SUMIF(Part5!$G$97:$G$99,\"WP 2\",Part5!$L$97:$L$99),SUMIF(Part5!$G$106:$G$108,\"WP 2\",Part5!$L$106:$L$108)))*(Part5!$K$125/100), \"- € \")","v":0},{"$f":"IF(ISNUMBER((SUM(SUMIF(Part5!$G$34:$G$36,\"WP 3\",Part5!$L$34:$L$36), SUMIF(Part5!$G$52:$G$54,\"WP 3\",Part5!$L$52:$L$54),SUMIF(Part5!$G$61:$G$63,\"WP 3\",Part5!$L$61:$L$63),SUMIF(Part5!$G$70:$G$72,\"WP 3\",Part5!$L$70:$L$72), SUMIF(Part5!$G$79:$G$81,\"WP 3\",Part5!$L$79:$L$81), SUMIF(Part5!$G$88:$G$90,\"WP 3\",Part5!$L$88:$L$90),SUMIF(Part5!$G$97:$G$99,\"WP 3\",Part5!$L$97:$L$99),SUMIF(Part5!$G$106:$G$108,\"WP 3\",Part5!$L$106:$L$108)))*(Part5!$K$125/100)), (SUM(SUMIF(Part5!$G$34:$G$36,\"WP 3\",Part5!$L$34:$L$36), SUMIF(Part5!$G$52:$G$54,\"WP 3\",Part5!$L$52:$L$54),SUMIF(Part5!$G$61:$G$63,\"WP 3\",Part5!$L$61:$L$63),SUMIF(Part5!$G$70:$G$72,\"WP 3\",Part5!$L$70:$L$72), SUMIF(Part5!$G$79:$G$81,\"WP 3\",Part5!$L$79:$L$81), SUMIF(Part5!$G$88:$G$90,\"WP 3\",Part5!$L$88:$L$90),SUMIF(Part5!$G$97:$G$99,\"WP 3\",Part5!$L$97:$L$99),SUMIF(Part5!$G$106:$G$108,\"WP 3\",Part5!$L$106:$L$108)))*(Part5!$K$125/100), \"- € \")","v":0},{"$f":"IF(ISNUMBER((SUM(SUMIF(Part5!$G$34:$G$36,\"WP 4\",Part5!$L$34:$L$36), SUMIF(Part5!$G$52:$G$54,\"WP 4\",Part5!$L$52:$L$54),SUMIF(Part5!$G$61:$G$63,\"WP 4\",Part5!$L$61:$L$63),SUMIF(Part5!$G$70:$G$72,\"WP 4\",Part5!$L$70:$L$72), SUMIF(Part5!$G$79:$G$81,\"WP 4\",Part5!$L$79:$L$81), SUMIF(Part5!$G$88:$G$90,\"WP 4\",Part5!$L$88:$L$90),SUMIF(Part5!$G$97:$G$99,\"WP 4\",Part5!$L$97:$L$99),SUMIF(Part5!$G$106:$G$108,\"WP 4\",Part5!$L$106:$L$108)))*(Part5!$K$125/100)), (SUM(SUMIF(Part5!$G$34:$G$36,\"WP 4\",Part5!$L$34:$L$36), SUMIF(Part5!$G$52:$G$54,\"WP 4\",Part5!$L$52:$L$54),SUMIF(Part5!$G$61:$G$63,\"WP 4\",Part5!$L$61:$L$63),SUMIF(Part5!$G$70:$G$72,\"WP 4\",Part5!$L$70:$L$72), SUMIF(Part5!$G$79:$G$81,\"WP 4\",Part5!$L$79:$L$81), SUMIF(Part5!$G$88:$G$90,\"WP 4\",Part5!$L$88:$L$90),SUMIF(Part5!$G$97:$G$99,\"WP 4\",Part5!$L$97:$L$99),SUMIF(Part5!$G$106:$G$108,\"WP 4\",Part5!$L$106:$L$108)))*(Part5!$K$125/100), \"- € \")","v":0},{"$f":"IF(ISNUMBER((SUM(SUMIF(Part5!$G$34:$G$36,\"WP 5\",Part5!$L$34:$L$36), SUMIF(Part5!$G$52:$G$54,\"WP 5\",Part5!$L$52:$L$54),SUMIF(Part5!$G$61:$G$63,\"WP 5\",Part5!$L$61:$L$63),SUMIF(Part5!$G$70:$G$72,\"WP 5\",Part5!$L$70:$L$72), SUMIF(Part5!$G$79:$G$81,\"WP 5\",Part5!$L$79:$L$81), SUMIF(Part5!$G$88:$G$90,\"WP 5\",Part5!$L$88:$L$90),SUMIF(Part5!$G$97:$G$99,\"WP 5\",Part5!$L$97:$L$99),SUMIF(Part5!$G$106:$G$108,\"WP 5\",Part5!$L$106:$L$108)))*(Part5!$K$125/100)), (SUM(SUMIF(Part5!$G$34:$G$36,\"WP 5\",Part5!$L$34:$L$36), SUMIF(Part5!$G$52:$G$54,\"WP 5\",Part5!$L$52:$L$54),SUMIF(Part5!$G$61:$G$63,\"WP 5\",Part5!$L$61:$L$63),SUMIF(Part5!$G$70:$G$72,\"WP 5\",Part5!$L$70:$L$72), SUMIF(Part5!$G$79:$G$81,\"WP 5\",Part5!$L$79:$L$81), SUMIF(Part5!$G$88:$G$90,\"WP 5\",Part5!$L$88:$L$90),SUMIF(Part5!$G$97:$G$99,\"WP 5\",Part5!$L$97:$L$99),SUMIF(Part5!$G$106:$G$108,\"WP 5\",Part5!$L$106:$L$108)))*(Part5!$K$125/100), \"- € \")","v":0},{"$f":"IF(ISNUMBER((SUM(SUMIF(Part5!$G$34:$G$36,\"WP 6\",Part5!$L$34:$L$36), SUMIF(Part5!$G$52:$G$54,\"WP 6\",Part5!$L$52:$L$54),SUMIF(Part5!$G$61:$G$63,\"WP 6\",Part5!$L$61:$L$63),SUMIF(Part5!$G$70:$G$72,\"WP 6\",Part5!$L$70:$L$72), SUMIF(Part5!$G$79:$G$81,\"WP 6\",Part5!$L$79:$L$81), SUMIF(Part5!$G$88:$G$90,\"WP 6\",Part5!$L$88:$L$90),SUMIF(Part5!$G$97:$G$99,\"WP 6\",Part5!$L$97:$L$99),SUMIF(Part5!$G$106:$G$108,\"WP 6\",Part5!$L$106:$L$108)))*(Part5!$K$125/100)), (SUM(SUMIF(Part5!$G$34:$G$36,\"WP 6\",Part5!$L$34:$L$36), SUMIF(Part5!$G$52:$G$54,\"WP 6\",Part5!$L$52:$L$54),SUMIF(Part5!$G$61:$G$63,\"WP 6\",Part5!$L$61:$L$63),SUMIF(Part5!$G$70:$G$72,\"WP 6\",Part5!$L$70:$L$72), SUMIF(Part5!$G$79:$G$81,\"WP 6\",Part5!$L$79:$L$81), SUMIF(Part5!$G$88:$G$90,\"WP 6\",Part5!$L$88:$L$90),SUMIF(Part5!$G$97:$G$99,\"WP 6\",Part5!$L$97:$L$99),SUMIF(Part5!$G$106:$G$108,\"WP 6\",Part5!$L$106:$L$108)))*(Part5!$K$125/100), \"- € \")","v":0},{"$f":"IF(ISNUMBER((SUM(SUMIF(Part5!$G$34:$G$36,\"WP 7\",Part5!$L$34:$L$36), SUMIF(Part5!$G$52:$G$54,\"WP 7\",Part5!$L$52:$L$54),SUMIF(Part5!$G$61:$G$63,\"WP 7\",Part5!$L$61:$L$63),SUMIF(Part5!$G$70:$G$72,\"WP 7\",Part5!$L$70:$L$72), SUMIF(Part5!$G$79:$G$81,\"WP 7\",Part5!$L$79:$L$81), SUMIF(Part5!$G$88:$G$90,\"WP 7\",Part5!$L$88:$L$90),SUMIF(Part5!$G$97:$G$99,\"WP 7\",Part5!$L$97:$L$99),SUMIF(Part5!$G$106:$G$108,\"WP 7\",Part5!$L$106:$L$108)))*(Part5!$K$125/100)), (SUM(SUMIF(Part5!$G$34:$G$36,\"WP 7\",Part5!$L$34:$L$36), SUMIF(Part5!$G$52:$G$54,\"WP 7\",Part5!$L$52:$L$54),SUMIF(Part5!$G$61:$G$63,\"WP 7\",Part5!$L$61:$L$63),SUMIF(Part5!$G$70:$G$72,\"WP 7\",Part5!$L$70:$L$72), SUMIF(Part5!$G$79:$G$81,\"WP 7\",Part5!$L$79:$L$81), SUMIF(Part5!$G$88:$G$90,\"WP 7\",Part5!$L$88:$L$90),SUMIF(Part5!$G$97:$G$99,\"WP 7\",Part5!$L$97:$L$99),SUMIF(Part5!$G$106:$G$108,\"WP 7\",Part5!$L$106:$L$108)))*(Part5!$K$125/100), \"- € \")","v":0},{"$f":"SUM(SUMIF(Part5!G38:G40,\"WP 8\",Part5!L38:L40), SUMIF(Part5!G56:G58,\"WP 8\",Part5!L56:L58),SUMIF(Part5!G65:G67,\"WP 8\",Part5!L65:L67),SUMIF(Part5!G92:G94,\"WP 8\",Part5!L92:L94), SUMIF(Part5!G101:G103,\"WP 8\",Part5!L101:L103),SUMIF(Part5!G110:G112,\"WP 8\",Part5!L110:L112))","v":0},{"$f":"IF(ISNUMBER((SUM(SUMIF(Part5!$G$34:$G$36,\"WP 8\",Part5!$L$34:$L$36), SUMIF(Part5!$G$52:$G$54,\"WP 8\",Part5!$L$52:$L$54),SUMIF(Part5!$G$61:$G$63,\"WP 8\",Part5!$L$61:$L$63),SUMIF(Part5!$G$70:$G$72,\"WP 8\",Part5!$L$70:$L$72), SUMIF(Part5!$G$79:$G$81,\"WP 8\",Part5!$L$79:$L$81), SUMIF(Part5!$G$88:$G$90,\"WP 8\",Part5!$L$88:$L$90),SUMIF(Part5!$G$97:$G$99,\"WP 8\",Part5!$L$97:$L$99),SUMIF(Part5!$G$106:$G$108,\"WP 8\",Part5!$L$106:$L$108)))*(Part5!$K$125/100)), (SUM(SUMIF(Part5!$G$34:$G$36,\"WP 8\",Part5!$L$34:$L$36), SUMIF(Part5!$G$52:$G$54,\"WP 8\",Part5!$L$52:$L$54),SUMIF(Part5!$G$61:$G$63,\"WP 8\",Part5!$L$61:$L$63),SUMIF(Part5!$G$70:$G$72,\"WP 8\",Part5!$L$70:$L$72), SUMIF(Part5!$G$79:$G$81,\"WP 8\",Part5!$L$79:$L$81), SUMIF(Part5!$G$88:$G$90,\"WP 8\",Part5!$L$88:$L$90),SUMIF(Part5!$G$97:$G$99,\"WP 8\",Part5!$L$97:$L$99),SUMIF(Part5!$G$106:$G$108,\"WP 8\",Part5!$L$106:$L$108)))*(Part5!$K$125/100), \"- € \")","v":0},{"$f":"IF(ISNUMBER((SUM(SUMIF(Part5!$G$34:$G$36,\"WP 9\",Part5!$L$34:$L$36), SUMIF(Part5!$G$52:$G$54,\"WP 9\",Part5!$L$52:$L$54),SUMIF(Part5!$G$61:$G$63,\"WP 9\",Part5!$L$61:$L$63),SUMIF(Part5!$G$70:$G$72,\"WP 9\",Part5!$L$70:$L$72), SUMIF(Part5!$G$79:$G$81,\"WP 9\",Part5!$L$79:$L$81), SUMIF(Part5!$G$88:$G$90,\"WP 9\",Part5!$L$88:$L$90),SUMIF(Part5!$G$97:$G$99,\"WP 9\",Part5!$L$97:$L$99),SUMIF(Part5!$G$106:$G$108,\"WP 9\",Part5!$L$106:$L$108)))*(Part5!$K$125/100)), (SUM(SUMIF(Part5!$G$34:$G$36,\"WP 9\",Part5!$L$34:$L$36), SUMIF(Part5!$G$52:$G$54,\"WP 9\",Part5!$L$52:$L$54),SUMIF(Part5!$G$61:$G$63,\"WP 9\",Part5!$L$61:$L$63),SUMIF(Part5!$G$70:$G$72,\"WP 9\",Part5!$L$70:$L$72), SUMIF(Part5!$G$79:$G$81,\"WP 9\",Part5!$L$79:$L$81), SUMIF(Part5!$G$88:$G$90,\"WP 9\",Part5!$L$88:$L$90),SUMIF(Part5!$G$97:$G$99,\"WP 9\",Part5!$L$97:$L$99),SUMIF(Part5!$G$106:$G$108,\"WP 9\",Part5!$L$106:$L$108)))*(Part5!$K$125/100), \"- € \")","v":0},{"$f":"IF(ISNUMBER((SUM(SUMIF(Part5!$G$34:$G$36,\"WP 10\",Part5!$L$34:$L$36), SUMIF(Part5!$G$52:$G$54,\"WP 10\",Part5!$L$52:$L$54),SUMIF(Part5!$G$61:$G$63,\"WP 10\",Part5!$L$61:$L$63),SUMIF(Part5!$G$70:$G$72,\"WP 10\",Part5!$L$70:$L$72), SUMIF(Part5!$G$79:$G$81,\"WP 10\",Part5!$L$79:$L$81), SUMIF(Part5!$G$88:$G$90,\"WP 10\",Part5!$L$88:$L$90),SUMIF(Part5!$G$97:$G$99,\"WP 10\",Part5!$L$97:$L$99),SUMIF(Part5!$G$106:$G$108,\"WP 10\",Part5!$L$106:$L$108)))*(Part5!$K$125/100)), (SUM(SUMIF(Part5!$G$34:$G$36,\"WP 10\",Part5!$L$34:$L$36), SUMIF(Part5!$G$52:$G$54,\"WP 10\",Part5!$L$52:$L$54),SUMIF(Part5!$G$61:$G$63,\"WP 10\",Part5!$L$61:$L$63),SUMIF(Part5!$G$70:$G$72,\"WP 10\",Part5!$L$70:$L$72), SUMIF(Part5!$G$79:$G$81,\"WP 10\",Part5!$L$79:$L$81), SUMIF(Part5!$G$88:$G$90,\"WP 10\",Part5!$L$88:$L$90),SUMIF(Part5!$G$97:$G$99,\"WP 10\",Part5!$L$97:$L$99),SUMIF(Part5!$G$106:$G$108,\"WP 10\",Part5!$L$106:$L$108)))*(Part5!$K$125/100), \"- € \")","v":0}]
["Part6",null,null,{"$f":"Part6!$K$125","v":0},{"$f":"IF(ISNUMBER((SUM(SUMIF(Part6!$G$34:$G$36,\"WP 1\",Part6!$L$34:$L$36), SUMIF(Part6!$G$52:$G$54,\"WP 1\",Part6!$L$52:$L$54),SUMIF(Part6!$G$61:$G$63,\"WP 1\",Part6!$L$61:$L$63),SUMIF(Part6!$G$70:$G$72,\"WP 1\",Part6!$L$70:$L$72), SUMIF(Part6!$G$79:$G$81,\"WP 1\",Part6!$L$79:$L$81), SUMIF(Part6!$G$88:$G$90,\"WP 1\",Part6!$L$88:$L$90),SUMIF(Part6!$G$97:$G$99,\"WP 1\",Part6!$L$97:$L$99),SUMIF(Part6!$G$106:$G$108,\"WP 1\",Part6!$L$106:$L$108)))*(Part6!$K$125/100)), (SUM(SUMIF(Part6!$G$34:$G$36,\"WP 1\",Part6!$L$34:$L$36), SUMIF(Part6!$G$52:$G$54,\"WP 1\",Part6!$L$52:$L$54),SUMIF(Part6!$G$61:$G$63,\"WP 1\",Part6!$L$61:$L$63),SUMIF(Part6!$G$70:$G$72,\"WP 1\",Part6!$L$70:$L$72), SUMIF(Part6!$G$79:$G$81,\"WP 1\",Part6!$L$79:$L$81), SUMIF(Part6!$G$88:$G$90,\"WP 1\",Part6!$L$88:$L$90),SUMIF(Part6!$G$97:$G$99,\"WP 1\",Part6!$L$97:$L$99),SUMIF(Part6!$G$106:$G$108,\"WP 1\",Part6!$L$106:$L$108)))*(Part6!$K$125/100), \"- € \")","v":0},{"$f":"IF(ISNUMBER((SUM(SUMIF(Part6!$G$34:$G$36,\"WP 2\",Part6!$L$34:$L$36), SUMIF(Part6!$G$52:$G$54,\"WP 2\",Part6!$L$52:$L$54),SUMIF(Part6!$G$61:$G$63,\"WP 2\",Part6!$L$61:$L$63),SUMIF(Part6!$G$70:$G$72,\"WP 2\",Part6!$L$70:$L$72), SUMIF(Part6!$G$79:$G$81,\"WP 2\",Part6!$L$79:$L$81), SUMIF(Part6!$G$88:$G$90,\"WP 2\",Part6!$L$88:$L$90),SUMIF(Part6!$G$97:$G$99,\"WP 2\",Part6!$L$97:$L$99),SUMIF(Part6!$G$106:$G$108,\"WP 2\",Part6!$L$106:$L$108)))*(Part6!$K$125/100)), (SUM(SUMIF(Part6!$G$34:$G$36,\"WP 2\",Part6!$L$34:$L$36), SUMIF(Part6!$G$52:$G$54,\"WP 2\",Part6!$L$52:$L$54),SUMIF(Part6!$G$61:$G$63,\"WP 2\",Part6!$L$61:$L$63),SUMIF(Part6!$G$70:$G$72,\"WP 2\",Part6!$L$70:$L$72), SUMIF(Part6!$G$79:$G$81,\"WP 2\",Part6!$L$79:$L$81), SUMIF(Part6!$G$88:$G$90,\"WP 2\",Part6!$L$88:$L$90),SUMIF(Part6!$G$97:$G$99,\"WP 2\",Part6!$L$97:$L$99),SUMIF(Part6!$G$106:$G$108,\"WP 2\",Part6!$L$106:$L$108)))*(Part6!$K$125/100), \"- € \")","v":0},{"$f":"IF(ISNUMBER((SUM(SUMIF(Part6!$G$34:$G$36,\"WP 3\",Part6!$L$34:$L$36), SUMIF(Part6!$G$52:$G$54,\"WP 3\",Part6!$L$52:$L$54),SUMIF(Part6!$G$61:$G$63,\"WP 3\",Part6!$L$61:$L$63),SUMIF(Part6!$G$70:$G$72,\"WP 3\",Part6!$L$70:$L$72), SUMIF(Part6!$G$79:$G$81,\"WP 3\",Part6!$L$79:$L$81), SUMIF(Part6!$G$88:$G$90,\"WP 3\",Part6!$L$88:$L$90),SUMIF(Part6!$G$97:$G$99,\"WP 3\",Part6!$L$97:$L$99),SUMIF(Part6!$G$106:$G$108,\"WP 3\",Part6!$L$106:$L$108)))*(Part6!$K$125/100)), (SUM(SUMIF(Part6!$G$34:$G$36,\"WP 3\",Part6!$L$34:$L$36), SUMIF(Part6!$G$52:$G$54,\"WP 3\",Part6!$L$52:$L$54),SUMIF(Part6!$G$61:$G$63,\"WP 3\",Part6!$L$61:$L$63),SUMIF(Part6!$G$70:$G$72,\"WP 3\",Part6!$L$70:$L$72), SUMIF(Part6!$G$79:$G$81,\"WP 3\",Part6!$L$79:$L$81), SUMIF(Part6!$G$88:$G$90,\"WP 3\",Part6!$L$88:$L$90),SUMIF(Part6!$G$97:$G$99,\"WP 3\",Part6!$L$97:$L$99),SUMIF(Part6!$G$106:$G$108,\"WP 3\",Part6!$L$106:$L$108)))*(Part6!$K$125/100), \"- € \")","v":0},{"$f":"IF(ISNUMBER((SUM(SUMIF(Part6!$G$34:$G$36,\"WP 4\",Part6!$L$34:$L$36), SUMIF(Part6!$G$52:$G$54,\"WP 4\",Part6!$L$52:$L$54),SUMIF(Part6!$G$61:$G$63,\"WP 4\",Part6!$L$61:$L$63),SUMIF(Part6!$G$70:$G$72,\"WP 4\",Part6!$L$70:$L$72), SUMIF(Part6!$G$79:$G$81,\"WP 4\",Part6!$L$79:$L$81), SUMIF(Part6!$G$88:$G$90,\"WP 4\",Part6!$L$88:$L$90),SUMIF(Part6!$G$97:$G$99,\"WP 4\",Part6!$L$97:$L$99),SUMIF(Part6!$G$106:$G$108,\"WP 4\",Part6!$L$106:$L$108)))*(Part6!$K$125/100)), (SUM(SUMIF(Part6!$G$34:$G$36,\"WP 4\",Part6!$L$34:$L$36), SUMIF(Part6!$G$52:$G$54,\"WP 4\",Part6!$L$52:$L$54),SUMIF(Part6!$G$61:$G$63,\"WP 4\",Part6!$L$61:$L$63),SUMIF(Part6!$G$70:$G$72,\"WP 4\",Part6!$L$70:$L$72), SUMIF(Part6!$G$79:$G$81,\"WP 4\",Part6!$L$79:$L$81), SUMIF(Part6!$G$88:$G$90,\"WP 4\",Part6!$L$88:$L$90),SUMIF(Part6!$G$97:$G$99,\"WP 4\",Part6!$L$97:$L$99),SUMIF(Part6!$G$106:$G$108,\"WP 4\",Part6!$L$106:$L$108)))*(Part6!$K$125/100), \"- € \")","v":0},{"$f":"IF(ISNUMBER((SUM(SUMIF(Part6!$G$34:$G$36,\"WP 5\",Part6!$L$34:$L$36), SUMIF(Part6!$G$52:$G$54,\"WP 5\",Part6!$L$52:$L$54),SUMIF(Part6!$G$61:$G$63,\"WP 5\",Part6!$L$61:$L$63),SUMIF(Part6!$G$70:$G$72,\"WP 5\",Part6!$L$70:$L$72), SUMIF(Part6!$G$79:$G$81,\"WP 5\",Part6!$L$79:$L$81), SUMIF(Part6!$G$88:$G$90,\"WP 5\",Part6!$L$88:$L$90),SUMIF(Part6!$G$97:$G$99,\"WP 5\",Part6!$L$97:$L$99),SUMIF(Part6!$G$106:$G$108,\"WP 5\",Part6!$L$106:$L$108)))*(Part6!$K$125/100)), (SUM(SUMIF(Part6!$G$34:$G$36,\"WP 5\",Part6!$L$34:$L$36), SUMIF(Part6!$G$52:$G$54,\"WP 5\",Part6!$L$52:$L$54),SUMIF(Part6!$G$61:$G$63,\"WP 5\",Part6!$L$61:$L$63),SUMIF(Part6!$G$70:$G$72,\"WP 5\",Part6!$L$70:$L$72), SUMIF(Part6!$G$79:$G$81,\"WP 5\",Part6!$L$79:$L$81), SUMIF(Part6!$G$88:$G$90,\"WP 5\",Part6!$L$88:$L$90),SUMIF(Part6!$G$97:$G$99,\"WP 5\",Part6!$L$97:$L$99),SUMIF(Part6!$G$106:$G$108,\"WP 5\",Part6!$L$106:$L$108)))*(Part6!$K$125/100), \"- € \")","v":0},{"$f":"IF(ISNUMBER((SUM(SUMIF(Part6!$G$34:$G$36,\"WP 6\",Part6!$L$34:$L$36), SUMIF(Part6!$G$52:$G$54,\"WP 6\",Part6!$L$52:$L$54),SUMIF(Part6!$G$61:$G$63,\"WP 6\",Part6!$L$61:$L$63),SUMIF(Part6!$G$70:$G$72,\"WP 6\",Part6!$L$70:$L$72), SUMIF(Part6!$G$79:$G$81,\"WP 6\",Part6!$L$79:$L$81), SUMIF(Part6!$G$88:$G$90,\"WP 6\",Part6!$L$88:$L$90),SUMIF(Part6!$G$97:$G$99,\"WP 6\",Part6!$L$97:$L$99),SUMIF(Part6!$G$106:$G$108,\"WP 6\",Part6!$L$106:$L$108)))*(Part6!$K$125/100)), (SUM(SUMIF(Part6!$G$34:$G$36,\"WP 6\",Part6!$L$34:$L$36), SUMIF(Part6!$G$52:$G$54,\"WP 6\",Part6!$L$52:$L$54),SUMIF(Part6!$G$61:$G$63,\"WP 6\",Part6!$L$61:$L$63),SUMIF(Part6!$G$70:$G$72,\"WP 6\",Part6!$L$70:$L$72), SUMIF(Part6!$G$79:$G$81,\"WP 6\",Part6!$L$79:$L$81), SUMIF(Part6!$G$88:$G$90,\"WP 6\",Part6!$L$88:$L$90),SUMIF(Part6!$G$97:$G$99,\"WP 6\",Part6!$L$97:$L$99),SUMIF(Part6!$G$106:$G$108,\"WP 6\",Part6!$L$106:$L$108)))*(Part6!$K$125/100), \"- € \")","v":0},{"$f":"IF(ISNUMBER((SUM(SUMIF(Part6!$G$34:$G$36,\"WP 7\",Part6!$L$34:$L$36), SUMIF(Part6!$G$52:$G$54,\"WP 7\",Part6!$L$52:$L$54),SUMIF(Part6!$G$61:$G$63,\"WP 7\",Part6!$L$61:$L$63),SUMIF(Part6!$G$70:$G$72,\"WP 7\",Part6!$L$70:$L$72), SUMIF(Part6!$G$79:$G$81,\"WP 7\",Part6!$L$79:$L$81), SUMIF(Part6!$G$88:$G$90,\"WP 7\",Part6!$L$88:$L$90),SUMIF(Part6!$G$97:$G$99,\"WP 7\",Part6!$L$97:$L$99),SUMIF(Part6!$G$106:$G$108,\"WP 7\",Part6!$L$106:$L$108)))*(Part6!$K$125/100)), (SUM(SUMIF(Part6!$G$34:$G$36,\"WP 7\",Part6!$L$34:$L$36), SUMIF(Part6!$G$52:$G$54,\"WP 7\",Part6!$L$52:$L$54),SUMIF(Part6!$G$61:$G$63,\"WP 7\",Part6!$L$61:$L$63),SUMIF(Part6!$G$70:$G$72,\"WP 7\",Part6!$L$70:$L$72), SUMIF(Part6!$G$79:$G$81,\"WP 7\",Part6!$L$79:$L$81), SUMIF(Part6!$G$88:$G$90,\"WP 7\",Part6!$L$88:$L$90),SUMIF(Part6!$G$97:$G$99,\"WP 7\",Part6!$L$97:$L$99),SUMIF(Part6!$G$106:$G$108,\"WP 7\",Part6!$L$106:$L$108)))*(Part6!$K$125/100), \"- € \")","v":0},{"$f":"SUM(SUMIF(Part6!G40:G42,\"WP 8\",Part6!L40:L42), SUMIF(Part6!G58:G60,\"WP 8\",Part6!L58:L60),SUMIF(Part6!G67:G69,\"WP 8\",Part6!L67:L69),SUMIF(Part6!G94:G96,\"WP 8\",Part6!L94:L96), SUMIF(Part6!G103:G105,\"WP 8\",Part6!L103:L105),SUMIF(Part6!G112:G114,\"WP 8\",Part6!L112:L114))","v":0},{"$f":"IF(ISNUMBER((SUM(SUMIF(Part6!$G$34:$G$36,\"WP 8\",Part6!$L$34:$L$36), SUMIF(Part6!$G$52:$G$54,\"WP 8\",Part6!$L$52:$L$54),SUMIF(Part6!$G$61:$G$63,\"WP 8\",Part6!$L$61:$L$63),SUMIF(Part6!$G$70:$G$72,\"WP 8\",Part6!$L$70:$L$72), SUMIF(Part6!$G$79:$G$81,\"WP 8\",Part6!$L$79:$L$81), SUMIF(Part6!$G$88:$G$90,\"WP 8\",Part6!$L$88:$L$90),SUMIF(Part6!$G$97:$G$99,\"WP 8\",Part6!$L$97:$L$99),SUMIF(Part6!$G$106:$G$108,\"WP 8\",Part6!$L$106:$L$108)))*(Part6!$K$125/100)), (SUM(SUMIF(Part6!$G$34:$G$36,\"WP 8\",Part6!$L$34:$L$36), SUMIF(Part6!$G$52:$G$54,\"WP 8\",Part6!$L$52:$L$54),SUMIF(Part6!$G$61:$G$63,\"WP 8\",Part6!$L$61:$L$63),SUMIF(Part6!$G$70:$G$72,\"WP 8\",Part6!$L$70:$L$72), SUMIF(Part6!$G$79:$G$81,\"WP 8\",Part6!$L$79:$L$81), SUMIF(Part6!$G$88:$G$90,\"WP 8\",Part6!$L$88:$L$90),SUMIF(Part6!$G$97:$G$99,\"WP 8\",Part6!$L$97:$L$99),SUMIF(Part6!$G$106:$G$108,\"WP 8\",Part6!$L$106:$L$108)))*(Part6!$K$125/100), \"- € \")","v":0},{"$f":"IF(ISNUMBER((SUM(SUMIF(Part6!$G$34:$G$36,\"WP 9\",Part6!$L$34:$L$36), SUMIF(Part6!$G$52:$G$54,\"WP 9\",Part6!$L$52:$L$54),SUMIF(Part6!$G$61:$G$63,\"WP 9\",Part6!$L$61:$L$63),SUMIF(Part6!$G$70:$G$72,\"WP 9\",Part6!$L$70:$L$72), SUMIF(Part6!$G$79:$G$81,\"WP 9\",Part6!$L$79:$L$81), SUMIF(Part6!$G$88:$G$90,\"WP 9\",Part6!$L$88:$L$90),SUMIF(Part6!$G$97:$G$99,\"WP 9\",Part6!$L$97:$L$99),SUMIF(Part6!$G$106:$G$108,\"WP 9\",Part6!$L$106:$L$108)))*(Part6!$K$125/100)), (SUM(SUMIF(Part6!$G$34:$G$36,\"WP 9\",Part6!$L$34:$L$36), SUMIF(Part6!$G$52:$G$54,\"WP 9\",Part6!$L$52:$L$54),SUMIF(Part6!$G$61:$G$63,\"WP 9\",Part6!$L$61:$L$63),SUMIF(Part6!$G$70:$G$72,\"WP 9\",Part6!$L$70:$L$72), SUMIF(Part6!$G$79:$G$81,\"WP 9\",Part6!$L$79:$L$81), SUMIF(Part6!$G$88:$G$90,\"WP 9\",Part6!$L$88:$L$90),SUMIF(Part6!$G$97:$G$99,\"WP 9\",Part6!$L$97:$L$99),SUMIF(Part6!$G$106:$G$108,\"WP 9\",Part6!$L$106:$L$108)))*(Part6!$K$125/100), \"- € \")","v":0},{"$f":"IF(ISNUMBER((SUM(SUMIF(Part6!$G$34:$G$36,\"WP 10\",Part6!$L$34:$L$36), SUMIF(Part6!$G$52:$G$54,\"WP 10\",Part6!$L$52:$L$54),SUMIF(Part6!$G$61:$G$63,\"WP 10\",Part6!$L$61:$L$63),SUMIF(Part6!$G$70:$G$72,\"WP 10\",Part6!$L$70:$L$72), SUMIF(Part6!$G$79:$G$81,\"WP 10\",Part6!$L$79:$L$81), SUMIF(Part6!$G$88:$G$90,\"WP 10\",Part6!$L$88:$L$90),SUMIF(Part6!$G$97:$G$99,\"WP 10\",Part6!$L$97:$L$99),SUMIF(Part6!$G$106:$G$108,\"WP 10\",Part6!$L$106:$L$108)))*(Part6!$K$125/100)), (SUM(SUMIF(Part6!$G$34:$G$36,\"WP 10\",Part6!$L$34:$L$36), SUMIF(Part6!$G$52:$G$54,\"WP 10\",Part6!$L$52:$L$54),SUMIF(Part6!$G$61:$G$63,\"WP 10\",Part6!$L$61:$L$63),SUMIF(Part6!$G$70:$G$72,\"WP 10\",Part6!$L$70:$L$72), SUMIF(Part6!$G$79:$G$81,\"WP 10\",Part6!$L$79:$L$81), SUMIF(Part6!$G$88:$G$90,\"WP 10\",Part6!$L$88:$L$90),SUMIF(Part6!$G$97:$G$99,\"WP 10\",Part6!$L$97:$L$99),SUMIF(Part6!$G$106:$G$108,\"WP 10\",Part6!$L$106:$L$108)))*(Part6!$K$125/100), \"- € \")","v":0}]
[]
[]
[]
[{"$f":"ListesDeroulantes!A57","v":"NOTA : Toutes les champs de cet onglet \"Volet général\" doivent être renseignés.\nIls seront utilisés par les membres du jury au cours du processus de sélection."}]
[]
[{"$f":"ListesDeroulantes!A58","v":"Remarque : toutes les informations figurant ci-dessus ont vocation à être publiées si le projet est financé.\nEn déposant un dossier, les partenaires ont accepté la publication de toutes ces informations."}]
[]
[]
[null,{"$f":"ListesDeroulantes!A59","v":"Responsable du projet"},null,null,null,null,null,null,null,null,null,null,null,null,null,{"$f":"ListesDeroulantes!A60","v":"Personne habilitée à engager l'établissement Chef de File"}]
[]
[null,{"$f":"ListesDeroulantes!A61","v":"Prénom"},null,{"$f":"ListesDeroulantes!A62","v":"Nom"},null,null,null,null,null,null,null,null,null,null,null,{"$f":"ListesDeroulantes!A61","v":"Prénom"},null,"Nom"]
[null,{"$f":"IF('Part1-Coord'!B195<>\"\",'Part1-Coord'!B195,\"\")","v":""},null,{"$f":"IF('Part1-Coord'!D195<>\"\",UPPER('Part1-Coord'!D195),\"\")","v":""},null,null,null,null,null,null,null,null,null,null,null,{"$f":"IF('Part1-Coord'!D22<>\"\",'Part1-Coord'!D22,\"\")","v":""},null,{"$f":"IF('Part1-Coord'!D23<>\"\",UPPER('Part1-Coord'!D23),\"\")","v":""}]
[null,null,null,null,null,null,null,null,null,null,null,null,null,null,null,{"$f":"ListesDeroulantes!A63","v":"Qualité"}]
[null,null,null,null,null,null,null,null,null,null,null,null,null,null,null,{"$f":"IF('Part1-Coord'!D24<>\"\",'Part1-Coord'!D24,\"\")","v":""}]
[]
[null,"Signature",null,null,null,null,null,null,null,null,null,null,null,null,null,"Signature & Cachet"]
[]
[]
[]
[]
[]
[]
[]
[null,{"$f":"ListesDeroulantes!A205","v":"Recommandations : Une fois le document finalisé et imprimé, vérifier la présence de l'ensemble des signatures et cachets demandés avant de déposer la copie scannée en ligne."}]

{"sheet":"Part1-Coord","index":2,"n_rows":199,"n_cols":17,"rows_kept":199,"cut":false,"hidden":false,"merged":[[89,4,89,5],[93,4,95,5],[96,4,96,5],[97,4,97,5],[98,4,98,5],[102,4,104,5],[105,4,105,5],[106,4,106,5],[107,4,107,5],[91,1,92,11],[93,1,95,1],[93,2,95,2],[93,3,95,3],[93,8,95,8],[93,9,95,9],[93,10,95,10],[93,11,95,11],[93,6,95,6],[93,7,95,7],[100,1,101,11],[102,1,104,1],[102,2,104,2],[102,3,104,3],[102,8,104,8],[70,4,70,5],[71,4,71,5],[75,4,77,5],[78,4,78,5],[79,4,79,5],[80,4,80,5],[84,4,86,5],[87,4,87,5],[88,4,88,5],[82,1,83,11],[84,1,86,1],[84,2,86,2],[84,3,86,3],[84,8,86,8],[84,9,86,9],[84,10,86,10],[84,11,86,11],[84,6,86,6],[84,7,86,7],[73,1,74,11],[75,1,77,1],[75,2,77,2],[75,3,77,3],[75,6,77,6],[60,4,60,5],[61,4,61,5],[62,4,62,5],[66,4,68,5],[69,4,69,5],[64,1,65,11],[66,1,68,1],[66,2,68,2],[66,3,68,3],[66,6,68,6],[66,8,68,8],[66,9,68,9],[66,10,68,10],[66,11,68,11],[66,7,68,7],[39,4,41,5],[42,4,42,5],[43,4,43,5],[44,4,44,5],[48,4,50,5],[37,1,38,11],[39,1,41,1],[39,2,41,2],[39,3,41,3],[39,8,41,8],[39,9,41,9],[39,10,41,10],[39,11,41,11],[39,6,41,6],[39,7,41,7],[46,1,47,11],[48,1,50,1],[48,2,50,2],[48,3,50,3],[48,8,50,8],[75,8,77,8],[75,9,77,9],[75,10,77,10],[75,11,77,11],[75,7,77,7],[124,14,125,15],[0,13,4,15],[87,14,87,15],[88,14,88,15],[89,14,89,15],[96,14,96,15],[97,14,97,15],[98,14,98,15],[105,14,105,15],[106,14,106,15],[107,14,107,15],[42,14,42,15],[44,14,44,15],[51,14,51,15],[52,14,52,15],[53,14,53,15],[60,14,60,15],[61,14,61,15],[35,14,35,15],[69,14,69,15],[70,14,70,15],[71,14,71,15],[78,14,78,15],[79,14,79,15],[62,14,62,15],[6,14,6,15],[14,14,16,15],[20,14,23,15],[30,14,32,15],[33,14,33,15],[34,14,34,15],[43,14,43,15],[116,14,117,15],[80,14,80,15],[0,0,2,4],[0,5,0,11],[1,5,1,8],[1,9,1,11],[2,5,2,8],[2,9,2,11],[4,1,4,11],[14,0,15,2],[14,4,16,4],[14,5,16,11],[16,0,16,2],[6,0,7,2],[6,3,7,11],[9,0,9,2],[9,5,9,11],[10,0,10,2],[11,5,12,11],[11,3,12,3],[11,0,12,2],[13,0,13,2],[10,3,10,5],[18,1,18,11],[20,0,20,2],[21,0,21,2],[21,3,21,11],[22,0,22,2],[22,3,22,11],[23,0,23,2],[23,3,23,11],[25,1,25,11],[26,1,27,11],[28,4,28,6],[28,8,28,11],[30,4,32,5],[48,9,50,9],[48,10,50,10],[48,11,50,11],[48,6,50,6],[48,7,50,7],[55,1,56,11],[51,4,51,5],[52,4,52,5],[53,4,53,5],[30,1,32,1],[30,2,32,2],[30,3,32,3],[30,8,32,8],[30,9,32,9],[30,10,32,10],[30,11,32,11],[30,6,32,6],[30,7,32,7],[33,4,33,5],[34,4,34,5],[35,4,35,5],[57,1,59,1],[57,2,59,2],[57,3,59,3],[57,8,59,8],[57,9,59,9],[57,10,59,10],[57,11,59,11],[57,6,59,6],[57,7,59,7],[57,4,59,5],[102,10,104,10],[102,11,104,11],[102,6,104,6],[102,7,104,7],[117,0,118,0],[117,8,118,8],[117,9,118,9],[117,10,118,10],[117,11,118,11],[109,1,110,11],[111,8,113,8],[111,9,113,9],[111,10,113,10],[111,11,113,11],[111,4,113,7],[114,4,115,7],[120,4,121,7],[122,4,123,7],[124,4,125,7],[126,4,127,7],[117,4,118,7],[114,8,115,8],[126,3,127,3],[102,9,104,9],[129,8,130,9],[124,8,125,9],[129,4,130,7],[124,2,125,3],[124,10,125,11],[126,8,127,9],[126,10,127,11],[114,9,115,9],[114,10,115,10],[114,11,115,11],[122,8,123,9],[122,10,123,11],[120,8,121,9],[120,10,121,11],[132,1,132,11],[133,1,133,11],[135,1,139,3],[135,4,139,4],[135,9,139,10],[135,11,139,11],[141,1,141,3],[135,6,139,8],[135,5,139,5],[140,6,140,8],[141,6,141,8],[141,9,141,10],[143,4,143,5],[144,4,144,5],[145,4,145,5],[174,0,174,11],[197,1,200,3],[198,5,198,10],[199,5,202,10],[193,1,193,2],[193,5,193,8],[193,9,193,10],[194,1,194,2],[194,5,194,8],[194,9,194,10],[195,5,195,10],[196,1,196,3],[196,5,196,10],[177,0,177,11],[188,0,188,4],[193,14,196,15],[189,5,189,11],[179,0,179,11],[180,0,180,11],[181,0,181,11],[182,0,182,11],[183,0,183,11],[184,0,184,11],[186,0,186,11],[187,0,187,11],[185,0,185,11],[191,1,191,3],[191,5,191,10],[190,0,190,11],[142,1,142,3],[142,9,142,10],[143,9,143,10],[147,1,147,11],[140,1,140,3],[140,9,140,10],[188,5,188,11],[172,0,172,11],[176,0,176,11],[161,1,161,11],[163,1,166,11],[168,1,170,11],[149,1,152,11],[154,1,154,11],[155,1,155,8],[156,1,156,8],[157,1,157,8],[159,1,159,11],[142,6,142,8],[143,6,143,8],[144,6,144,8],[144,9,144,10],[145,6,145,8],[145,9,145,10]]}
[{"$f":"ListesDeroulantes!A64&1&ListesDeroulantes!A65","v":"Fiche partenaire n°1 : Identification et budget"},null,null,null,null,null,null,null,null,null,null,null,null,{"$f":"IF(COUNTIF(O6:O1620,\"Err*\")>0,COUNTIF(O6:O1620,\"Err*\")&\" \"&ListesDeroulantes!A189&IF(COUNTIF(O6:O1620,\"Err*\")>1,\"s\",\"\"),\"\")","v":"1 erreur"}]
[null,null,null,null,null,{"$f":"ListesDeroulantes!A4","v":"N° de partenaire"},null,null,null,{"$f":"Volet_general!$Q$2 & \"-01\"","v":"2023-01"}]
[null,null,null,null,null,{"$f":"ListesDeroulantes!A5","v":"Acronyme"},null,null,null,{"$f":"Volet_general!D12","v":0}]
[]
[null,{"$f":"ListesDeroulantes!A66","v":"Identification de l'établissement partenaire"}]
[]
[{"$f":"ListesDeroulantes!A67","v":"Nom complet du partenaire"}]
[null,null,null,null,null,null,null,null,null,null,null,null,null,null,null,null,"Taux"]
[null,null,null,null,null,null,null,null,null,null,null,null,null,null,null,null,{"$f":"IF(Volet_general!F21=\"Oui\",\nIF(Q11=\"OR\",\"Taux max 100%\",\n(IF(D12=\"Petite entreprise\",\"Taux max 60%\",\n(IF(D12=\"Moyenne entreprise\",\"Taux max 50%\",\n(IF(D12=\"Grande entreprise\",\"Taux max 40%\",\n(IF(D12=\"Établissement étranger\",\"Etablissement non éligible à l'aide\"))))))))),\nIF(Q11=\"OR\",\"Taux max 100%\",\n(IF(D12=\"Petite entreprise\",\"Taux max 45%\",\n(IF(D12=\"Moyenne entreprise\",\"Taux max 35%\",\n(IF(D12=\"Grande entreprise\",\"Taux max 25%\",\n(IF(D12=\"Établissement étranger\",\"Etablissement non éligible à l'aide\"))))))))))","v":false}]
[{"$f":"ListesDeroulantes!A68","v":"Sigle du partenaire "},null,null,null,null,null,null,null,null,null,null,null,null,null,null,null,"OR/Entreprise"]
[null,null,null,null,null,null,null,null,null,null,null,null,null,null,null,null,{"$f":"IF(OR(D12=Q12,D12=Q13,D12=Q14,D12=Q15,D12=Q16,D12=Q17,D12=Q18,D12=Q19,D12=Q20),\"OR\",\"Entreprise\")","v":"Entreprise"}]
[{"$f":"ListesDeroulantes!A72","v":"Forme juridique"},null,null,null,null,null,null,null,null,null,null,null,null,null,null,{"$f":"IF(OR(D11=ListesDeroulantes!B77,D11=ListesDeroulantes!C77),IF(COUNTIF(ListesDeroulantes!B79:C83,D12)>0,ListesDeroulantes!A193,\"\"),\"\")&IF(OR(D11=ListesDeroulantes!B76,D11=ListesDeroulantes!C76),IF(COUNTIF(ListesDeroulantes!B84:C86,D12)>0,ListesDeroulantes!A193,\"\"),\"\")","v":""},"EPSCP"]
[null,null,null,null,null,null,null,null,null,null,null,null,null,null,null,null,"EPST"]
[null,null,null,null,null,null,null,null,null,null,null,null,null,null,null,null,"EPLE"]
[{"$f":"ListesDeroulantes!A84","v":"N° de SIRET"},null,null,{"$f":"ListesDeroulantes!A85","v":"Saisir un n°SIRET de 14digits"},null,null,null,null,null,null,null,null,null,null,null,null,"EPA"]
[null,null,null,null,null,null,null,null,null,null,null,null,null,null,null,null,"EPIC"]
[{"$f":"ListesDeroulantes!A86","v":"Assujetti à la TVA "},null,null,null,null,null,null,null,null,null,null,null,null,null,null,null,"Fondation de recherche"]
[null,null,null,null,null,null,null,null,null,null,null,null,null,null,null,null,"Association à but non lucratif"]
[null,{"$f":"ListesDeroulantes!A89","v":"Personne habilitée à représenter juridiquement l'établissement partenaire (pour signature du contrat attributif d'aide ou de reversement)"},null,null,null,null,null,null,null,null,null,null,null,null,null,null,"Autre établissement public à but non lucratif"]
[null,null,null,null,null,null,null,null,null,null,null,null,null,null,null,null,"Autre établissement privé à but non lucratif"]
[{"$f":"ListesDeroulantes!A90","v":"Genre"},null,null,null,null,null,null,null,null,null,null,null,null,null,null,null,"Petite entreprise"]
[{"$f":"ListesDeroulantes!A61","v":"Prénom"},null,null,null,null,null,null,null,null,null,null,null,null,null,null,null,"Moyenne entreprise"]
[{"$f":"ListesDeroulantes!A62","v":"Nom"},null,null,null,null,null,null,null,null,null,null,null,null,null,null,null,"Grande entreprise"]
[{"$f":"ListesDeroulantes!A63","v":"Qualité"},null,null,null,null,null,null,null,null,null,null,null,null,null,null,null,"Établissement étranger"]
[]
[null,{"$f":"ListesDeroulantes!A93","v":"Demande financière détaillée du projet (montant HT en €, incluant la TVA non récupérable le cas échéant)"}]
[null,{"$f":"ListesDeroulantes!A94","v":"Equipements ou amortissement d'équipements de R&D"}]
[]
[null,null,null,null,{"$f":"ListesDeroulantes!A95","v":"Seuil d’immobilisation propre à l'établissement"},null,null,null,{"$f":"ListesDeroulantes!A96","v":"Le coût d'achat est égal ou supérieur au seuil d’immobilisation."}]
[]
[null,null,null,null,{"$f":"ListesDeroulantes!A$97","v":"Descriptif"},null,{"$f":"ListesDeroulantes!A$98","v":"WP concerné"},{"$f":"ListesDeroulantes!A$99","v":"Sous-WP"},{"$f":"ListesDeroulantes!A$101","v":"Coût d'achat\n(en €)"},{"$f":"ListesDeroulantes!A102","v":"Pourcentage d'utilisation (en %)"},{"$f":"ListesDeroulantes!A$103","v":"Coût total\n(en €)"},{"$f":"ListesDeroulantes!A$104","v":"Assiette de l'aide (en €) "}]
[]
[]
[null,{"$f":"B33+1","v":1},null,null,null,null,null,null,null,null,{"$f":"IF(J34<>0,I34*J34/100,I34)","v":0},null,null,null,{"$f":"IF(AND(ISNUMBER(L34),ISNUMBER(K34)),IF(L34>K34,ListesDeroulantes!A$195,\"\"),IF(AND(ISNUMBER(L34),NOT(ISNUMBER(K34))),ListesDeroulantes!A$195,\"\"))","v":""}]
[null,{"$f":"B34+1","v":2},null,null,null,null,null,null,null,null,{"$f":"IF(J35<>0,I35*J35/100,I35)","v":0},null,null,null,{"$f":"IF(AND(ISNUMBER(L35),ISNUMBER(K35)),IF(L35>K35,ListesDeroulantes!A$195,\"\"),IF(AND(ISNUMBER(L35),NOT(ISNUMBER(K35))),ListesDeroulantes!A$195,\"\"))","v":""}]
[null,{"$f":"B35+1","v":3},null,null,null,null,null,null,null,null,{"$f":"IF(J36<>0,I36*J36/100,I36)","v":0},null,null,null,{"$f":"IF(AND(ISNUMBER(L36),ISNUMBER(K36)),IF(L36>K36,ListesDeroulantes!A$195,\"\"),IF(AND(ISNUMBER(L36),NOT(ISNUMBER(K36))),ListesDeroulantes!A$195,\"\"))","v":""}]
[null,null,null,null,"Total",null,null,null,null,null,{"$f":"IF(SUM(K34:K36)<>0,SUM(K34:K36),\"- €\")","v":"- €"},{"$f":"IF(SUM(L34:L36)<>0,SUM(L34:L36),\"- €\")","v":"- €"}]
[null,{"$f":"ListesDeroulantes!A105","v":"Personnels sans financement"}]
[]
[null,null,null,{"$f":"ListesDeroulantes!A$110","v":"Catégorie de personnel"},{"$f":"ListesDeroulantes!A$97","v":"Descriptif"},null,{"$f":"ListesDeroulantes!A$98","v":"WP concerné"},{"$f":"ListesDeroulantes!A$99","v":"Sous-WP"},{"$f":"ListesDeroulantes!A$118","v":"Coût mensuel (en €)"},{"$f":"ListesDeroulantes!A$119","v":"Personne. Mois"},{"$f":"ListesDeroulantes!A$103","v":"Coût total\n(en €)"}]
[]
[]
[null,{"$f":"B42+1","v":1},null,null,null,null,null,null,null,null,{"$f":"IF(I43*J43<>0,I43*J43,\"\")","v":""}]
[null,2,null,null,null,null,null,null,null,null,{"$f":"IF(I44*J44<>0,I44*J44,\"\")","v":""}]
[null,3,null,null,null,null,null,null,null,null,{"$f":"IF(I45*J45<>0,I45*J45,\"\")","v":""}]
[null,null,null,null,"Total",null,null,null,null,{"$f":"SUM(J43:J45)","v":0},{"$f":"SUM(K43:K45)","v":0}]
[null,{"$f":"ListesDeroulantes!A120","v":"Personnels avec financement en contrat à durée déterminée"}]
[]
[null,null,null,{"$f":"ListesDeroulantes!A$110","v":"Catégorie de personnel"},{"$f":"ListesDeroulantes!A$97","v":"Descriptif"},null,{"$f":"ListesDeroulantes!A$98","v":"WP concerné"},{"$f":"ListesDeroulantes!A$99","v":"Sous-WP"},{"$f":"ListesDeroulantes!A$118","v":"Coût mensuel (en €)"},{"$f":"ListesDeroulantes!A$119","v":"Personne. Mois"},{"$f":"ListesDeroulantes!A$103","v":"Coût total\n(en €)"},{"$f":"ListesDeroulantes!A$104","v":"Assiette de l'aide (en €) "}]
[]
[]
[null,{"$f":"B51+1","v":1},null,null,null,null,null,null,null,null,{"$f":"IF(I52*J52<>0,I52*J52,\"\")","v":""},null,null,null,{"$f":"IF(AND(ISNUMBER(L52),ISNUMBER(K52)),IF(L52>K52,ListesDeroulantes!A$195,\"\"),IF(AND(ISNUMBER(L52),NOT(ISNUMBER(K52))),ListesDeroulantes!A$195,\"\"))","v":""}]
[null,{"$f":"B52+1","v":2},null,null,null,null,null,null,null,null,{"$f":"IF(I53*J53<>0,I53*J53,\"\")","v":""},null,null,null,{"$f":"IF(AND(ISNUMBER(L53),ISNUMBER(K53)),IF(L53>K53,ListesDeroulantes!A$195,\"\"),IF(AND(ISNUMBER(L53),NOT(ISNUMBER(K53))),ListesDeroulantes!A$195,\"\"))","v":""}]
[null,{"$f":"B53+1","v":3},null,null,null,null,null,null,null,null,"",null,null,null,{"$f":"IF(AND(ISNUMBER(L54),ISNUMBER(K54)),IF(L54>K54,ListesDeroulantes!A$195,\"\"),IF(AND(ISNUMBER(L54),NOT(ISNUMBER(K54))),ListesDeroulantes!A$195,\"\"))","v":""}]
[null,null,null,null,"Total",null,null,null,null,{"$f":"IF(SUM(J52:J54)<>0,SUM(J52:J54),\"-\")","v":"-"},{"$f":"IF(SUM(K52:K54)<>0,SUM(K52:K54),\"- €\")","v":"- €"},{"$f":"IF(SUM(L52:L54)<>0,SUM(L52:L54),\"- €\")","v":"- €"}]
[null,{"$f":"ListesDeroulantes!A127","v":"Personnels avec financement en contrat à durée indéterminée"}]
[]
[null,null,null,{"$f":"ListesDeroulantes!A$110","v":"Catégorie de personnel"},{"$f":"ListesDeroulantes!A$97","v":"Descriptif"},null,{"$f":"ListesDeroulantes!A$98","v":"WP concerné"},{"$f":"ListesDeroulantes!A$99","v":"Sous-WP"},{"$f":"ListesDeroulantes!A$118","v":"Coût mensuel (en €)"},{"$f":"ListesDeroulantes!A$119","v":"Personne. Mois"},{"$f":"ListesDeroulantes!A$103","v":"Coût total\n(en €)"},{"$f":"ListesDeroulantes!A$104","v":"Assiette de l'aide (en €) "}]
[]
[]
[null,{"$f":"B60+1","v":1},null,null,null,null,null,null,null,null,{"$f":"IF(I61*J61<>0,I61*J61,\"\")","v":""},null,null,null,{"$f":"IF(AND(ISNUMBER(L61),ISNUMBER(K61)),IF(L61>K61,ListesDeroulantes!A$195,\"\"),IF(AND(ISNUMBER(L61),NOT(ISNUMBER(K61))),ListesDeroulantes!A$195,\"\"))","v":""}]
[null,{"$f":"B61+1","v":2},null,null,null,null,null,null,null,null,{"$f":"IF(I62*J62<>0,I62*J62,\"\")","v":""},null,null,null,{"$f":"IF(AND(ISNUMBER(L62),ISNUMBER(K62)),IF(L62>K62,ListesDeroulantes!A$195,\"\"),IF(AND(ISNUMBER(L62),NOT(ISNUMBER(K62))),ListesDeroulantes!A$195,\"\"))","v":""}]
[null,{"$f":"B62+1","v":3},null,null,null,null,null,null,null,null,{"$f":"IF(I63*J63<>0,I63*J63,\"\")","v":""},null,null,null,{"$f":"IF(AND(ISNUMBER(L63),ISNUMBER(K63)),IF(L63>K63,ListesDeroulantes!A$195,\"\"),IF(AND(ISNUMBER(L63),NOT(ISNUMBER(K63))),ListesDeroulantes!A$195,\"\"))","v":""}]
[null,null,null,null,"Total",null,null,null,null,{"$f":"IF(SUM(J61:J63)<>0,SUM(J61:J63),\"-\")","v":"-"},{"$f":"IF(SUM(K61:K63)<>0,SUM(K61:K63),\"- €\")","v":"- €"},{"$f":"IF(SUM(L61:L63)<>0,SUM(L61:L63),\"- €\")","v":"- €"}]
[null,{"$f":"ListesDeroulantes!A128","v":"Heures complémentaires d’enseignement et modulation de service (établissements d'enseignement et formation, organismes de recherche)"}]
[]
[null,null,null,null,{"$f":"ListesDeroulantes!A$97","v":"Descriptif"},null,{"$f":"ListesDeroulantes!A$98","v":"WP concerné"},{"$f":"ListesDeroulantes!A$99","v":"Sous-WP"},null,null,{"$f":"ListesDeroulantes!A$103","v":"Coût total\n(en €)"},{"$f":"ListesDeroulantes!A$104","v":"Assiette de l'aide (en €) "}]
[]
[]
[null,{"$f":"B69+1","v":1},null,null,null,null,null,null,null,null,null,null,null,null,{"$f":"IF(AND(ISNUMBER(L70),ISNUMBER(K70)),IF(L70>K70,ListesDeroulantes!A$195,\"\"),IF(AND(ISNUMBER(L70),NOT(ISNUMBER(K70))),ListesDeroulantes!A$195,\"\"))","v":""}]
[null,{"$f":"B70+1","v":2},null,null,null,null,null,null,null,null,null,null,null,null,{"$f":"IF(AND(ISNUMBER(L71),ISNUMBER(K71)),IF(L71>K71,ListesDeroulantes!A$195,\"\"),IF(AND(ISNUMBER(L71),NOT(ISNUMBER(K71))),ListesDeroulantes!A$195,\"\"))","v":""}]
[null,{"$f":"B71+1","v":3},null,null,null,null,null,null,null,null,null,null,null,null,{"$f":"IF(AND(ISNUMBER(L72),ISNUMBER(K72)),IF(L72>K72,ListesDeroulantes!A$195,\"\"),IF(AND(ISNUMBER(L72),NOT(ISNUMBER(K72))),ListesDeroulantes!A$195,\"\"))","v":""}]
[null,null,null,null,"Total",null,null,null,null,null,{"$f":"IF(SUM(K70:K72)<>0,SUM(K70:K72),\"- €\")","v":"- €"},{"$f":"IF(SUM(L70:L72)<>0,SUM(L70:L72),\"- €\")","v":"- €"}]
[null,{"$f":"ListesDeroulantes!A129","v":"Reconnaissance au titre des activités prévues au référentiel horaire (établissements d'enseignement et formation, organismes de recherche)"}]
[]
[null,null,null,null,{"$f":"ListesDeroulantes!A$97","v":"Descriptif"},null,{"$f":"ListesDeroulantes!A$98","v":"WP concerné"},{"$f":"ListesDeroulantes!A$99","v":"Sous-WP"},null,null,{"$f":"ListesDeroulantes!A$103","v":"Coût total\n(en €)"},{"$f":"ListesDeroulantes!A$104","v":"Assiette de l'aide (en €) "}]
[]
[]
[null,{"$f":"B78+1","v":1},null,null,null,null,null,null,null,null,null,null,null,null,{"$f":"IF(AND(ISNUMBER(L79),ISNUMBER(K79)),IF(L79>K79,ListesDeroulantes!A$195,\"\"),IF(AND(ISNUMBER(L79),NOT(ISNUMBER(K79))),ListesDeroulantes!A$195,\"\"))","v":""}]
[null,{"$f":"B79+1","v":2},null,null,null,null,null,null,null,null,null,null,null,null,{"$f":"IF(AND(ISNUMBER(L80),ISNUMBER(K80)),IF(L80>K80,ListesDeroulantes!A$195,\"\"),IF(AND(ISNUMBER(L80),NOT(ISNUMBER(K80))),ListesDeroulantes!A$195,\"\"))","v":""}]
[null,{"$f":"B80+1","v":3},null,null,null,null,null,null,null,null,null,null,null,null,{"$f":"IF(AND(ISNUMBER(L81),ISNUMBER(K81)),IF(L81>K81,ListesDeroulantes!A$195,\"\"),IF(AND(ISNUMBER(L81),NOT(ISNUMBER(K81))),ListesDeroulantes!A$195,\"\"))","v":""}]
[null,null,null,null,"Total",null,null,null,null,null,{"$f":"IF(SUM(K79:K81)<>0,SUM(K79:K81),\"- €\")","v":"- €"},{"$f":"IF(SUM(L79:L81)<>0,SUM(L79:L81),\"- €\")","v":"- €"}]
[null,{"$f":"ListesDeroulantes!A130","v":"Prestations de service externes"}]
[]
[null,null,null,null,{"$f":"ListesDeroulantes!A$97","v":"Descriptif"},null,{"$f":"ListesDeroulantes!A$98","v":"WP concerné"},{"$f":"ListesDeroulantes!A$99","v":"Sous-WP"},null,null,{"$f":"ListesDeroulantes!A$103","v":"Coût total\n(en €)"},{"$f":"ListesDeroulantes!A$104","v":"Assiette de l'aide (en €) "}]
[]
[]
[null,{"$f":"B87+1","v":1},null,null,null,null,null,null,null,null,null,null,null,null,{"$f":"IF(AND(ISNUMBER(L88),ISNUMBER(K88)),IF(L88>K88,ListesDeroulantes!A$195,\"\"),IF(AND(ISNUMBER(L88),NOT(ISNUMBER(K88))),ListesDeroulantes!A$195,\"\"))","v":""}]
[null,{"$f":"B88+1","v":2},null,null,null,null,null,null,null,null,null,null,null,null,{"$f":"IF(AND(ISNUMBER(L89),ISNUMBER(K89)),IF(L89>K89,ListesDeroulantes!A$195,\"\"),IF(AND(ISNUMBER(L89),NOT(ISNUMBER(K89))),ListesDeroulantes!A$195,\"\"))","v":""}]
[null,{"$f":"B89+1","v":3},null,null,null,null,null,null,null,null,null,null,null,null,{"$f":"IF(AND(ISNUMBER(L90),ISNUMBER(K90)),IF(L90>K90,ListesDeroulantes!A$195,\"\"),IF(AND(ISNUMBER(L90),NOT(ISNUMBER(K90))),ListesDeroulantes!A$195,\"\"))","v":""}]
[null,null,null,null,"Total",null,null,null,null,null,{"$f":"IF(SUM(K88:K90)<>0,SUM(K88:K90),\"- €\")","v":"- €"},{"$f":"IF(SUM(L88:L90)<>0,SUM(L88:L90),\"- €\")","v":"- €"}]
[null,{"$f":"ListesDeroulantes!A131","v":"Missions"}]
[]
[null,null,null,null,{"$f":"ListesDeroulantes!A$97","v":"Descriptif"},null,{"$f":"ListesDeroulantes!A$98","v":"WP concerné"},{"$f":"ListesDeroulantes!A$99","v":"Sous-WP"},null,null,{"$f":"ListesDeroulantes!A$103","v":"Coût total\n(en €)"},{"$f":"ListesDeroulantes!A$104","v":"Assiette de l'aide (en €) "}]
[]
[]
[null,{"$f":"B96+1","v":1},null,null,null,null,null,null,null,null,null,null,null,null,{"$f":"IF(AND(ISNUMBER(L97),ISNUMBER(K97)),IF(L97>K97,ListesDeroulantes!A$195,\"\"),IF(AND(ISNUMBER(L97),NOT(ISNUMBER(K97))),ListesDeroulantes!A$195,\"\"))","v":""}]
[null,{"$f":"B97+1","v":2},null,null,null,null,null,null,null,null,null,null,null,null,{"$f":"IF(AND(ISNUMBER(L98),ISNUMBER(K98)),IF(L98>K98,ListesDeroulantes!A$195,\"\"),IF(AND(ISNUMBER(L98),NOT(ISNUMBER(K98))),ListesDeroulantes!A$195,\"\"))","v":""}]
[null,{"$f":"B98+1","v":3},null,null,null,null,null,null,null,null,null,null,null,null,{"$f":"IF(AND(ISNUMBER(L99),ISNUMBER(K99)),IF(L99>K99,ListesDeroulantes!A$195,\"\"),IF(AND(ISNUMBER(L99),NOT(ISNUMBER(K99))),ListesDeroulantes!A$195,\"\"))","v":""}]
[null,null,null,null,"Total",null,null,null,null,null,{"$f":"IF(SUM(K97:K99)<>0,SUM(K97:K99),\"- €\")","v":"- €"},{"$f":"IF(SUM(L97:L99)<>0,SUM(L97:L99),\"- €\")","v":"- €"}]
[null,{"$f":"ListesDeroulantes!A132","v":"Autres dépenses externes (consommables, petits matériels …)"}]
[]
[null,null,null,null,{"$f":"ListesDeroulantes!A$97","v":"Descriptif"},null,{"$f":"ListesDeroulantes!A$98","v":"WP concerné"},{"$f":"ListesDeroulantes!A$99","v":"Sous-WP"},null,null,{"$f":"ListesDeroulantes!A$103","v":"Coût total\n(en €)"},{"$f":"ListesDeroulantes!A$104","v":"Assiette de l'aide (en €) "}]
[]
[]
[null,{"$f":"B105+1","v":1},null,null,null,null,null,null,null,null,null,null,null,null,{"$f":"IF(AND(ISNUMBER(L106),ISNUMBER(K106)),IF(L106>K106,ListesDeroulantes!A$195,\"\"),IF(AND(ISNUMBER(L106),NOT(ISNUMBER(K106))),ListesDeroulantes!A$195,\"\"))","v":""}]
[null,{"$f":"B106+1","v":2},null,null,null,null,null,null,null,null,null,null,null,null,{"$f":"IF(AND(ISNUMBER(L107),ISNUMBER(K107)),IF(L107>K107,ListesDeroulantes!A$195,\"\"),IF(AND(ISNUMBER(L107),NOT(ISNUMBER(K107))),ListesDeroulantes!A$195,\"\"))","v":""}]
[null,{"$f":"B107+1","v":3},null,null,null,null,null,null,null,null,null,null,null,null,{"$f":"IF(AND(ISNUMBER(L108),ISNUMBER(K108)),IF(L108>K108,ListesDeroulantes!A$195,\"\"),IF(AND(ISNUMBER(L108),NOT(ISNUMBER(K108))),ListesDeroulantes!A$195,\"\"))","v":""}]
[null,null,null,null,"Total",null,null,null,null,null,{"$f":"IF(SUM(K106:K108)<>0,SUM(K106:K108),\"- €\")","v":"- €"},{"$f":"IF(SUM(L106:L108)<>0,SUM(L106:L108),\"- €\")","v":"- €"}]
[]
[]
[null,null,null,null,null,null,null,null,{"$f":"ListesDeroulantes!A138","v":"Taux (en %)"},null,{"$f":"ListesDeroulantes!A103","v":"Coût total\n(en €)"},{"$f":"ListesDeroulantes!A104","v":"Assiette de l'aide (en €) "}]
[]
[]
[null,null,null,null,{"$f":"ListesDeroulantes!A141","v":"Frais généraux (max. 20% des coûts entrant dans l'assiette de l'aide)"},null,null,null,null,null,{"$f":"L115","v":0},{"$f":"(SUM(L37,L46,L55,L64,L73,L82,L91,L100,L109))*I115/100","v":0}]
[]
[]
[null,null,null,"\"",{"$f":"ListesDeroulantes!A140","v":"Taux d'environnement (compris entre 0 et 100 % ; uniquement pour les organismes publics)"},null,null,null,null,null,{"$f":"(SUM(K46,K55,K64))*I118/100","v":0}]
[]
[]
[null,null,null,null,{"$f":"ListesDeroulantes!A144","v":"Coût complet du projet (hors frais d'environnement, en €)"},null,null,null,{"$f":"SUM(K115,K109,K100,K91,K82,K73,K64,K55,K46,K37)","v":0}]
[]
[null,null,null,null,{"$f":"ListesDeroulantes!A146","v":"Total éligible pour le calcul de l'aide : Total assiette de l'aide (en €)"},null,null,null,null,null,{"$f":"IF(SUM(L37,L55,L64,L73,L82,L91,L100,L109,L115)<>0,SUM(L37,L55,L64,L73,L82,L91,L100,L109,L115),\"- €\")","v":"- €"}]
[]
[null,null,{"$f":"IF(I125=FALSE,\"Erreur : le type de partenaire (cellule D12) n'est pas reinsegné\",\"\")","v":"Erreur : le type de partenaire (cellule D12) n'est pas reinsegné"},null,{"$f":"ListesDeroulantes!A148","v":"Taux d'aide demandé (%)"},null,null,null,{"$f":"Q9","v":false},null,null,null,null,null,{"$f":"IF(ISNUMBER(K125),\"\",ListesDeroulantes!A197)","v":"Erreur : le taux n'est pas renseigné."}]
[]
[null,null,null,null,{"$f":"ListesDeroulantes!A152","v":"Aide demandée (en €)"},null,null,null,null,null,{"$f":"IF(AND(ISNUMBER(K123),ISNUMBER(K125)),K123*K125/100,\"- €\")","v":"- €"}]
[]
[]
[null,null,null,null,{"$f":"ListesDeroulantes!A145","v":"Coût complet du projet comprenant les frais d'environnement (en €)"},null,null,null,{"$f":"(SUM(K118,K115,K109,K100,K91,K82,K73,K64,K55,K46,K37))","v":0}]
[]
[]
[null,{"$f":"ListesDeroulantes!A163","v":"Autres soutiens financiers (sollicités ou obtenus par le partenaire pour le projet)"}]
[]
[]
[null,{"$f":"ListesDeroulantes!A164","v":"Identification des financeurs"},null,null,{"$f":"ListesDeroulantes!A165","v":"Nature et objet du financement et, le cas échéant, WP(s) et tâche(s) concernés"},{"$f":"ListesDeroulantes!A166","v":"Type de financement (public/privé)"},{"$f":"ListesDeroulantes!A169","v":"Montant sollicité"},null,null,{"$f":"ListesDeroulantes!A170","v":"Montant obtenu"},null,{"$f":"ListesDeroulantes!A171","v":"Date effective ou prévue du financement"}]
[]
[]
[]
[]
[]
[]
[]
[null,null,null,null,"Sous-total autres financements publics",null,{"$f":"SUMIF(F141:F143,\"Public\",G141:I143)","v":0},null,null,{"$f":"SUMIF(F141:F143,\"Public\",J141:K143)","v":0}]
[null,null,null,null,"Sous-total autres financements privés",null,{"$f":"SUMIF(F141:F143,\"Privé\",G141:I143)","v":0},null,null,{"$f":"SUMIF(F141:F143,\"Privé\",J141:K143)","v":0}]
[null,null,null,null,"Total",null,{"$f":"IF(SUM(G144:I145)<>0,SUM(G144:I145),\"- €\")","v":"- €"},null,null,{"$f":"IF(SUM(J144:K145)<>0,SUM(J144:K145),\"- €\")","v":"- €"}]
[]
[null,{"$f":"ListesDeroulantes!A172","v":"Publication d'informations relatives au projet"}]
[]
[null,{"$f":"ListesDeroulantes!A173","v":"Si le projet est retenu pour financement, l'opérateur se réserve la possibilité de rendre publiques les informations suivantes : nom du responsable du projet, dénominations des partenaires qu'ils soient des entreprises ou qu'ils appartiennent à un organisme de recherche. L'opérateur ne rendra pas publiques les informations sur les personnes ou les partenaires qui en auront fait le demande."}]
[]
[]
[]
[]
[null,{"$f":"ListesDeroulantes!A174","v":"En cas de refus de publication remplacer ci-dessous la mention \"Oui\" par \"Non\" : "}]
[null,{"$f":"ListesDeroulantes!A177","v":"Nom et prénom du responsable du projet :"},null,null,null,null,null,null,null,{"$f":"ListesDeroulantes!A$175","v":"Oui"}]
[]
[null,{"$f":"ListesDeroulantes!A179","v":"Dénomination du partenaire (si \"Non\", celle-ci sera remplacée par la mention générique \"Entreprise\" ou \"Organisme de recherche\") : "},null,null,null,null,null,null,null,{"$f":"ListesDeroulantes!A$175","v":"Oui"}]
[]
[null,{"$f":"ListesDeroulantes!A180","v":"Nota : en déposant un projet, les partenaires ont accepté que l'opérateur publie l'acronyme, le titre, le résumé, l'aide accordée au projet, la date de début de projet et la durée."}]
[]
[null,{"$f":"ListesDeroulantes!A181","v":"Commentaires (le cas échéant)"}]
[]
[]
[]
[]
[]
[]
[null,{"$f":"ListesDeroulantes!A182","v":"Les informations personnelles transmises dans ces documents sont obligatoires et seront conservées en fichiers par l'opérateur pour assurer la conduite opérationnelle de l'évaluation et l'administration des dossiers.\nConformément à la loi n° 78-17 du 6 janvier 1978 modifiée, relative à l'Informatique, aux Fichiers et aux Libertés, les personnes concernées disposent d'un droit d'accès et de rectification des données personnelles les concernant. Les personnes concernées peuvent exercer ce droit en s'adressant à l'opérateur (voir coordonnées dans le texte de l’appel à projets)."}]
[]
[]
[]
["Lettre d’engagement"]
[]
["Le présent engagement est à compléter, signer, viser par la personne habilitée à engager l’Etablissement Chef de File."]
[]
["LIEN DU SITE DE DEPOT"]
["https://france2030.agencerecherche.fr/CMA/"]
[]
["Ayant le pouvoir d'engager juridiquement l'établissement ci-dessus, je déclare :"]
["▪ avoir pris connaissance du dossier complet de dépôt (document de description du projet, y compris son annexe, et document administratif et financier) tel que déposé sur le site de l’ANR et du règlement relatif aux modalités d'attribution des aides au titre de l’AMI- CMA ;"]
["▪ m'engager à négocier et signer un accord de consortium (ou équivalent) et mettre en œuvre tous les moyens nécessaires pour finaliser ce document dans les conditions et délais prévus par le règlement relatif aux modalités d'attribution des aides précité ;"]
["▪ m'engager à mettre en œuvre tous les moyens nécessaires à la réalisation du projet tels que décrits dans le dossier de dépôt, dans les conditions prévues par le règlement relatif aux modalités d'attribution des aides précité ;"]
["▪ m'engager à respecter les engagements financiers tels que détaillés dans le document administratif et financier du document déposé ;"]
["▪ m’engager à mettre en œuvre les recrutements sur contrat des personnels nécessaires à la réalisation de la proposition déposée et cela en conformité avec tous les lois et règlements en vigueur applicables ; à mettre à disposition des personnels engagés dans la réalisation du projet les surfaces de travail nécessaires à l’accomplissement de leurs missions pendant la durée du projet ;"]
["▪ souscrire aux obligations qui découlent du financement du projet par l’ANR, notamment à des fins d'évaluation globale de l'action ;"]
["▪ que le projet ne cause pas un préjudice important du point de vue de l’environnement (application du principe DNSH – Do No Significant Harm ou « absence de préjudice important ») au sens de l’article 17 du règlement européen sur la taxonomie ;"]
[{"$f":"IF(Q11=\"Entreprise\", \"▪ m’engager à ne pas avoir initié de travaux liés au projet déposé.\", \"\")","v":"▪ m’engager à ne pas avoir initié de travaux liés au projet déposé."}]
[]
[]
[]
[null,{"$f":"ListesDeroulantes!A59","v":"Responsable du projet"},null,null,null,{"$f":"ListesDeroulantes!A60","v":"Personne habilitée à engager l'établissement Chef de File"}]
[]
[null,{"$f":"ListesDeroulantes!A61","v":"Prénom"},null,{"$f":"ListesDeroulantes!A62","v":"Nom"},null,{"$f":"ListesDeroulantes!A61","v":"Prénom"},null,null,null,{"$f":"ListesDeroulantes!A62","v":"Nom"}]
[null,null,null,null,null,{"$f":"IF(D22<>\"\",D22,\"\")","v":""},null,null,null,{"$f":"IF(D23<>\"\",UPPER(D23),\"\")","v":""}]
[null,null,null,null,null,{"$f":"ListesDeroulantes!A63","v":"Qualité"}]
[null,"Signature",null,null,null,{"$f":"IF(D24<>\"\",D24,\"\")","v":""}]
[]
[null,null,null,null,null,"Signature & Cachet"]

{"sheet":"Part2","index":3,"n_rows":197,"n_cols":17,"rows_kept":197,"cut":false,"hidden":false,"merged":[[93,11,95,11],[93,7,95,7],[60,4,60,5],[55,1,56,11],[57,1,59,1],[57,3,59,3],[57,10,59,10],[57,11,59,11],[84,7,86,7],[82,1,83,11],[84,1,86,1],[66,7,68,7],[75,7,77,7],[64,1,65,11],[66,1,68,1],[75,8,77,8],[75,9,77,9],[75,10,77,10],[89,4,89,5],[93,4,95,5],[132,1,132,11],[133,1,133,11],[11,3,12,3],[11,0,12,2],[13,0,13,2],[66,2,68,2],[66,3,68,3],[66,6,68,6],[75,2,77,2],[75,3,77,3],[114,4,115,7],[122,8,123,9],[122,10,123,11],[124,8,125,9],[124,10,125,11],[102,3,104,3],[102,8,104,8],[102,9,104,9],[102,10,104,10],[102,11,104,11],[102,7,104,7],[91,1,92,11],[87,4,87,5],[88,4,88,5],[197,5,200,10],[191,5,191,8],[191,9,191,10],[149,1,152,11],[154,1,154,11],[155,1,155,8],[156,1,156,8],[157,1,157,8],[159,1,159,11],[186,0,186,11],[196,5,196,10],[184,0,184,11],[185,0,185,11],[140,9,140,10],[109,1,110,11],[100,1,101,11],[126,8,127,9],[126,10,127,11],[141,1,141,3],[142,1,142,3],[142,9,142,10],[143,9,143,10],[141,6,141,8],[142,6,142,8],[135,11,139,11],[141,9,141,10],[135,1,139,3],[140,1,140,3],[120,8,121,9],[120,10,121,11],[135,5,139,5],[135,6,139,8],[140,6,140,8],[135,4,139,4],[135,9,139,10],[102,1,104,1],[102,2,104,2],[143,6,143,8],[143,4,143,5],[144,4,144,5],[144,6,144,8],[144,9,144,10],[145,4,145,5],[145,6,145,8],[145,9,145,10],[147,1,147,11],[191,14,194,14],[192,5,192,8],[192,9,192,10],[193,5,193,10],[194,5,194,10],[161,1,161,11],[163,1,166,11],[168,1,170,11],[189,1,189,3],[189,5,189,10],[172,0,172,11],[176,0,176,11],[177,0,177,11],[187,0,187,11],[179,0,179,11],[180,0,180,11],[181,0,181,11],[182,0,182,11],[183,0,183,11],[120,4,121,7],[122,4,123,7],[124,4,125,7],[126,4,127,7],[116,14,117,14],[114,9,115,9],[114,10,115,10],[114,11,115,11],[114,14,115,14],[114,8,115,8],[124,14,125,14],[117,9,118,9],[117,10,118,10],[117,11,118,11],[96,4,96,5],[97,4,97,5],[98,4,98,5],[42,4,42,5],[43,4,43,5],[44,4,44,5],[48,4,50,5],[51,4,51,5],[52,4,52,5],[53,4,53,5],[57,4,59,5],[102,4,104,5],[109,14,110,14],[105,4,105,5],[106,4,106,5],[107,4,107,5],[111,9,113,9],[111,10,113,10],[111,11,113,11],[111,8,113,8],[111,4,113,7],[28,8,28,11],[37,1,38,11],[39,1,41,1],[39,2,41,2],[39,3,41,3],[39,8,41,8],[39,9,41,9],[39,10,41,10],[39,11,41,11],[39,7,41,7],[39,4,41,5],[30,4,32,5],[33,4,33,5],[34,4,34,5],[35,4,35,5],[30,6,32,6],[39,6,41,6],[6,14,7,14],[9,0,9,2],[9,5,9,11],[10,0,10,2],[25,1,25,11],[26,1,27,11],[10,3,10,5],[30,14,32,14],[30,1,32,1],[30,2,32,2],[30,3,32,3],[30,8,32,8],[30,9,32,9],[30,10,32,10],[30,11,32,11],[30,7,32,7],[18,1,18,11],[20,0,20,2],[20,14,23,14],[21,0,21,2],[21,3,21,11],[22,0,22,2],[22,3,22,11],[23,0,23,2],[23,3,23,11],[93,1,95,1],[93,2,95,2],[93,3,95,3],[93,8,95,8],[93,9,95,9],[93,10,95,10],[0,0,2,4],[0,5,0,11],[70,4,70,5],[71,4,71,5],[75,4,77,5],[73,1,74,11],[75,1,77,1],[84,8,86,8],[84,9,86,9],[84,10,86,10],[84,11,86,11],[57,8,59,8],[57,9,59,9],[57,2,59,2],[48,7,50,7],[57,7,59,7],[28,4,28,6],[0,14,4,14],[1,5,1,8],[1,9,1,11],[2,5,2,8],[2,9,2,11],[4,1,4,11],[66,8,68,8],[66,9,68,9],[66,10,68,10],[66,11,68,11],[11,5,12,11],[14,0,15,2],[6,0,7,2],[6,3,7,11],[14,14,16,14],[16,0,16,2],[46,1,47,11],[48,1,50,1],[48,2,50,2],[48,3,50,3],[48,8,50,8],[48,9,50,9],[48,10,50,10],[48,11,50,11],[124,2,125,3],[129,4,130,7],[129,8,130,9],[174,0,174,11],[48,6,50,6],[57,6,59,6],[84,6,86,6],[93,6,95,6],[102,6,104,6],[84,2,86,2],[84,3,86,3],[78,4,78,5],[79,4,79,5],[80,4,80,5],[84,4,86,5],[117,0,118,0],[117,4,118,7],[117,8,118,8],[75,11,77,11],[75,6,77,6],[61,4,61,5],[62,4,62,5],[66,4,68,5],[69,4,69,5]]}
[{"$f":"ListesDeroulantes!A64&IF(ISNUMBER(RIGHT(CELL(\"filename\",$A$1),2)*1),RIGHT(CELL(\"filename\",$A$1),2)*1,IF(ISNUMBER(RIGHT(CELL(\"filename\",$A$1),1)*1),RIGHT(CELL(\"filename\",$A$1),1)*1,\"N/A\"))&ListesDeroulantes!A65","v":"Fiche partenaire n°2 : Identification et budget"}]
[null,null,null,null,null,{"$f":"ListesDeroulantes!A4","v":"N° de partenaire"},null,null,null,{"$f":"Volet_general!$Q$2 & \"-\" &IF(IF(ISNUMBER(RIGHT(CELL(\"filename\",$A$1),2)*1),RIGHT(CELL(\"filename\",$A$1),2)*1,IF(ISNUMBER(RIGHT(CELL(\"filename\",$A$1),1)*1),RIGHT(CELL(\"filename\",$A$1),1)*1,\"#N/A\"))<10,\"0\",\"\")&IF(ISNUMBER(RIGHT(CELL(\"filename\",$A$1),2)*1),RIGHT(CELL(\"filename\",$A$1),2)*1,IF(ISNUMBER(RIGHT(CELL(\"filename\",$A$1),1)*1),RIGHT(CELL(\"filename\",$A$1),1)*1,\"#N/A\"))","v":"2023-02"}]
[null,null,null,null,null,{"$f":"ListesDeroulantes!A5","v":"Acronyme"},null,null,null,{"$f":"Volet_general!D12","v":0}]
[]
[null,{"$f":"ListesDeroulantes!A66","v":"Identification de l'établissement partenaire"}]
[]
[{"$f":"ListesDeroulantes!A67","v":"Nom complet du partenaire"}]
[null,null,null,null,null,null,null,null,null,null,null,null,null,null,null,null,"Taux"]
[null,null,null,null,null,null,null,null,null,null,null,null,null,null,null,null,{"$f":"IF(Volet_general!F21=\"Oui\",\nIF(Q11=\"OR\",\"Taux max 100%\",\n(IF(D12=\"Petite entreprise\",\"Taux max 60%\",\n(IF(D12=\"Moyenne entreprise\",\"Taux max 50%\",\n(IF(D12=\"Grande entreprise\",\"Taux max 40%\",\n(IF(D12=\"Établissement étranger\",\"Etablissement non éligible à l'aide\"))))))))),\nIF(Q11=\"OR\",\"Taux max 100%\",\n(IF(D12=\"Petite entreprise\",\"Taux max 45%\",\n(IF(D12=\"Moyenne entreprise\",\"Taux max 35%\",\n(IF(D12=\"Grande entreprise\",\"Taux max 25%\",\n(IF(D12=\"Établissement étranger\",\"Etablissement non éligible à l'aide\"))))))))))","v":false}]
[{"$f":"ListesDeroulantes!A68","v":"Sigle du partenaire "},null,null,null,null,null,null,null,null,null,null,null,null,null,null,null,"OR/Entreprise"]
[null,null,null,null,null,null,null,null,null,null,null,null,null,null,null,null,{"$f":"IF(OR(D12=Q12,D12=Q13,D12=Q14,D12=Q15,D12=Q16,D12=Q17,D12=Q18,D12=Q19,D12=Q20),\"OR\",\"Entreprise\")","v":"Entreprise"}]
[{"$f":"ListesDeroulantes!A72","v":"Forme juridique"},null,null,null,null,null,null,null,null,null,null,null,null,null,{"$f":"IF(OR(D11=ListesDeroulantes!B77,D11=ListesDeroulantes!C77),IF(COUNTIF(ListesDeroulantes!B79:C83,D12)>0,ListesDeroulantes!A193,\"\"),\"\")&IF(OR(D11=ListesDeroulantes!B76,D11=ListesDeroulantes!C76),IF(COUNTIF(ListesDeroulantes!B84:C86,D12)>0,ListesDeroulantes!A193,\"\"),\"\")","v":""},null,"EPSCP"]
[null,null,null,null,null,null,null,null,null,null,null,null,null,null,null,null,"EPST"]
[null,null,null,null,null,null,null,null,null,null,null,null,null,null,null,null,"EPLE"]
[{"$f":"ListesDeroulantes!A84","v":"N° de SIRET"},null,null,{"$f":"ListesDeroulantes!A85","v":"Saisir un n°SIRET de 14digits"},null,null,null,null,null,null,null,null,null,null,null,null,"EPA"]
[null,null,null,0,null,null,null,null,null,null,null,null,null,null,null,null,"EPIC"]
[{"$f":"ListesDeroulantes!A86","v":"Assujetti à la TVA "},null,null,null,null,null,null,null,null,null,null,null,null,null,null,null,"Fondation de recherche"]
[null,null,null,null,null,null,null,null,null,null,null,null,null,null,null,null,"Association à but non lucratif"]
[null,{"$f":"ListesDeroulantes!A89","v":"Personne habilitée à représenter juridiquement l'établissement partenaire (pour signature du contrat attributif d'aide ou de reversement)"},null,null,null,null,null,null,null,null,null,null,null,null,null,null,"Autre établissement public à but non lucratif"]
[null,null,null,null,null,null,null,null,null,null,null,null,null,null,null,null,"Autre établissement privé à but non lucratif"]
[{"$f":"ListesDeroulantes!A90","v":"Genre"},null,null,null,null,null,null,null,null,null,null,null,null,null,null,null,"Petite entreprise"]
[{"$f":"ListesDeroulantes!A61","v":"Prénom"},null,null,null,null,null,null,null,null,null,null,null,null,null,null,null,"Moyenne entreprise"]
[{"$f":"ListesDeroulantes!A62","v":"Nom"},null,null,null,null,null,null,null,null,null,null,null,null,null,null,null,"Grande entreprise"]
[{"$f":"ListesDeroulantes!A63","v":"Qualité"},null,null,null,null,null,null,null,null,null,null,null,null,null,null,null,"Établissement étranger"]
[]
[null,{"$f":"ListesDeroulantes!A93","v":"Demande financière détaillée du projet (montant HT en €, incluant la TVA non récupérable le cas échéant)"}]
[null,{"$f":"ListesDeroulantes!A94","v":"Equipements ou amortissement d'équipements de R&D"}]
[]
[null,null,null,null,{"$f":"ListesDeroulantes!A95","v":"Seuil d’immobilisation propre à l'établissement"},null,null,null,{"$f":"ListesDeroulantes!A96","v":"Le coût d'achat est égal ou supérieur au seuil d’immobilisation."}]
[]
[null,null,null,null,{"$f":"ListesDeroulantes!A$97","v":"Descriptif"},null,{"$f":"ListesDeroulantes!A$98","v":"WP concerné"},{"$f":"ListesDeroulantes!A$99","v":"Sous-WP"},{"$f":"ListesDeroulantes!A$101","v":"Coût d'achat\n(en €)"},{"$f":"ListesDeroulantes!A102","v":"Pourcentage d'utilisation (en %)"},{"$f":"ListesDeroulantes!A$103","v":"Coût total\n(en €)"},{"$f":"ListesDeroulantes!A$104","v":"Assiette de l'aide (en €) "}]
[]
[]
[null,{"$f":"B33+1","v":1},null,null,null,null,null,null,null,null,{"$f":"IF(J34<>0,I34*J34/100,I34)","v":0}]
[null,{"$f":"B34+1","v":2},null,null,null,null,null,null,null,null,{"$f":"IF(J35<>0,I35*J35/100,I35)","v":0},null,null,null,{"$f":"IF(AND(ISNUMBER(L35),ISNUMBER(K35)),IF(L35>K35,ListesDeroulantes!A$195,\"\"),IF(AND(ISNUMBER(L35),NOT(ISNUMBER(K35))),ListesDeroulantes!A$195,\"\"))","v":""}]
[null,{"$f":"B35+1","v":3},null,null,null,null,null,null,null,null,0,null,null,null,{"$f":"IF(AND(ISNUMBER(L36),ISNUMBER(K36)),IF(L36>K36,ListesDeroulantes!A$195,\"\"),IF(AND(ISNUMBER(L36),NOT(ISNUMBER(K36))),ListesDeroulantes!A$195,\"\"))","v":""}]
[null,null,null,null,"Total",null,null,null,null,null,{"$f":"IF(SUM(K34:K36)<>0,SUM(K34:K36),\"- €\")","v":"- €"},{"$f":"IF(SUM(L34:L36)<>0,SUM(L34:L36),\"- €\")","v":"- €"}]
[null,{"$f":"ListesDeroulantes!A105","v":"Personnels sans financement"}]
[]
[null,null,null,{"$f":"ListesDeroulantes!A$110","v":"Catégorie de personnel"},{"$f":"ListesDeroulantes!A$97","v":"Descriptif"},null,{"$f":"ListesDeroulantes!A$98","v":"WP concerné"},{"$f":"ListesDeroulantes!A$99","v":"Sous-WP"},{"$f":"ListesDeroulantes!A$118","v":"Coût mensuel (en €)"},{"$f":"ListesDeroulantes!A$119","v":"Personne. Mois"},{"$f":"ListesDeroulantes!A$103","v":"Coût total\n(en €)"}]
[]
[]
[null,{"$f":"B42+1","v":1},null,null,null,null,null,null,null,null,{"$f":"IF(I43*J43<>0,I43*J43,\"\")","v":""},null,null,null,{"$f":"IF(AND(OR(C43<>\"\",D43<>\"\",E43<>\"\",F43<>\"\",I43<>\"\",J43<>\"\"),COUNTIF(ListesDeroulantes!$B$72:$C$72,$F$10)>0),ListesDeroulantes!A$194,\"\")","v":""}]
[null,{"$f":"B43+1","v":2},null,null,null,null,null,null,null,null,{"$f":"IF(I44*J44<>0,I44*J44,\"\")","v":""},null,null,null,{"$f":"IF(AND(OR(C44<>\"\",D44<>\"\",E44<>\"\",F44<>\"\",I44<>\"\",J44<>\"\"),COUNTIF(ListesDeroulantes!$B$72:$C$72,$F$10)>0),ListesDeroulantes!A$194,\"\")","v":""}]
[null,{"$f":"B44+1","v":3},null,null,null,null,null,null,null,null,{"$f":"IF(I45*J45<>0,I45*J45,\"\")","v":""},null,null,null,{"$f":"IF(AND(OR(C45<>\"\",D45<>\"\",E45<>\"\",F45<>\"\",I45<>\"\",J45<>\"\"),COUNTIF(ListesDeroulantes!$B$72:$C$72,$F$10)>0),ListesDeroulantes!A$194,\"\")","v":""}]
[null,null,null,null,"Total",null,null,null,null,{"$f":"SUM(J43:J45)","v":0},{"$f":"SUM(K43:K45)","v":0}]
[null,{"$f":"ListesDeroulantes!A120","v":"Personnels avec financement en contrat à durée déterminée"}]
[]
[null,null,null,{"$f":"ListesDeroulantes!A$110","v":"Catégorie de personnel"},{"$f":"ListesDeroulantes!A$97","v":"Descriptif"},null,{"$f":"ListesDeroulantes!A$98","v":"WP concerné"},{"$f":"ListesDeroulantes!A$99","v":"Sous-WP"},{"$f":"ListesDeroulantes!A$118","v":"Coût mensuel (en €)"},{"$f":"ListesDeroulantes!A$119","v":"Personne. Mois"},{"$f":"ListesDeroulantes!A$103","v":"Coût total\n(en €)"},{"$f":"ListesDeroulantes!A$104","v":"Assiette de l'aide (en €) "}]
[]
[]
[null,{"$f":"B51+1","v":1},null,null,null,null,null,null,null,null,{"$f":"IF(I52*J52<>0,I52*J52,\"\")","v":""},null,null,null,{"$f":"IF(AND(ISNUMBER(L52),ISNUMBER(K52)),IF(L52>K52,ListesDeroulantes!A$195,\"\"),IF(AND(ISNUMBER(L52),NOT(ISNUMBER(K52))),ListesDeroulantes!A$195,\"\"))","v":""}]
[null,{"$f":"B52+1","v":2},null,null,null,null,null,null,null,null,{"$f":"IF(I53*J53<>0,I53*J53,\"\")","v":""},null,null,null,{"$f":"IF(AND(ISNUMBER(L53),ISNUMBER(K53)),IF(L53>K53,ListesDeroulantes!A$195,\"\"),IF(AND(ISNUMBER(L53),NOT(ISNUMBER(K53))),ListesDeroulantes!A$195,\"\"))","v":""}]
[null,{"$f":"B53+1","v":3},null,null,null,null,null,null,null,null,{"$f":"IF(I54*J54<>0,I54*J54,\"\")","v":""},null,null,null,{"$f":"IF(AND(ISNUMBER(L54),ISNUMBER(K54)),IF(L54>K54,ListesDeroulantes!A$195,\"\"),IF(AND(ISNUMBER(L54),NOT(ISNUMBER(K54))),ListesDeroulantes!A$195,\"\"))","v":""}]
[null,null,null,null,"Total",null,null,null,null,{"$f":"IF(SUM(J52:J54)<>0,SUM(J52:J54),\"-\")","v":"-"},{"$f":"IF(SUM(K52:K54)<>0,SUM(K52:K54),\"- €\")","v":"- €"},{"$f":"IF(SUM(L52:L54)<>0,SUM(L52:L54),\"- €\")","v":"- €"}]
[null,{"$f":"ListesDeroulantes!A127","v":"Personnels avec financement en contrat à durée indéterminée"}]
[]
[null,null,null,{"$f":"ListesDeroulantes!A$110","v":"Catégorie de personnel"},{"$f":"ListesDeroulantes!A$97","v":"Descriptif"},null,{"$f":"ListesDeroulantes!A$98","v":"WP concerné"},{"$f":"ListesDeroulantes!A$99","v":"Sous-WP"},{"$f":"ListesDeroulantes!A$118","v":"Coût mensuel (en €)"},{"$f":"ListesDeroulantes!A$119","v":"Personne. Mois"},{"$f":"ListesDeroulantes!A$103","v":"Coût total\n(en €)"},{"$f":"ListesDeroulantes!A$104","v":"Assiette de l'aide (en €) "}]
[]
[]
[null,{"$f":"B60+1","v":1},null,null,null,null,null,null,null,null,{"$f":"IF(I61*J61<>0,I61*J61,\"\")","v":""},null,null,null,{"$f":"IF(AND(ISNUMBER(L61),ISNUMBER(K61)),IF(L61>K61,ListesDeroulantes!A$195,\"\"),IF(AND(ISNUMBER(L61),NOT(ISNUMBER(K61))),ListesDeroulantes!A$195,\"\"))","v":""}]
[null,{"$f":"B61+1","v":2},null,null,null,null,null,null,null,null,{"$f":"IF(I62*J62<>0,I62*J62,\"\")","v":""},null,null,null,{"$f":"IF(AND(ISNUMBER(L62),ISNUMBER(K62)),IF(L62>K62,ListesDeroulantes!A$195,\"\"),IF(AND(ISNUMBER(L62),NOT(ISNUMBER(K62))),ListesDeroulantes!A$195,\"\"))","v":""}]
[null,{"$f":"B62+1","v":3},null,null,null,null,null,null,null,null,{"$f":"IF(I63*J63<>0,I63*J63,\"\")","v":""},null,null,null,{"$f":"IF(AND(ISNUMBER(L63),ISNUMBER(K63)),IF(L63>K63,ListesDeroulantes!A$195,\"\"),IF(AND(ISNUMBER(L63),NOT(ISNUMBER(K63))),ListesDeroulantes!A$195,\"\"))","v":""}]
[null,null,null,null,"Total",null,null,null,null,{"$f":"IF(SUM(J61:J63)<>0,SUM(J61:J63),\"-\")","v":"-"},{"$f":"IF(SUM(K61:K63)<>0,SUM(K61:K63),\"- €\")","v":"- €"},{"$f":"IF(SUM(L61:L63)<>0,SUM(L61:L63),\"- €\")","v":"- €"}]
[null,{"$f":"ListesDeroulantes!A128","v":"Heures complémentaires d’enseignement et modulation de service (établissements d'enseignement et formation, organismes de recherche)"}]
[]
[null,null,null,null,{"$f":"ListesDeroulantes!A$97","v":"Descriptif"},null,{"$f":"ListesDeroulantes!A$98","v":"WP concerné"},{"$f":"ListesDeroulantes!A$99","v":"Sous-WP"},null,null,{"$f":"ListesDeroulantes!A$103","v":"Coût total\n(en €)"},{"$f":"ListesDeroulantes!A$104","v":"Assiette de l'aide (en €) "}]
[]
[]
[null,{"$f":"B69+1","v":1},null,null,null,null,null,null,null,null,null,null,null,null,{"$f":"IF(AND(ISNUMBER(L70),ISNUMBER(K70)),IF(L70>K70,ListesDeroulantes!A$195,\"\"),IF(AND(ISNUMBER(L70),NOT(ISNUMBER(K70))),ListesDeroulantes!A$195,\"\"))","v":""}]
[null,{"$f":"B70+1","v":2},null,null,null,null,null,null,null,null,null,null,null,null,{"$f":"IF(AND(ISNUMBER(L71),ISNUMBER(K71)),IF(L71>K71,ListesDeroulantes!A$195,\"\"),IF(AND(ISNUMBER(L71),NOT(ISNUMBER(K71))),ListesDeroulantes!A$195,\"\"))","v":""}]
[null,{"$f":"B71+1","v":3},null,null,null,null,null,null,null,null,null,null,null,null,{"$f":"IF(AND(ISNUMBER(L72),ISNUMBER(K72)),IF(L72>K72,ListesDeroulantes!A$195,\"\"),IF(AND(ISNUMBER(L72),NOT(ISNUMBER(K72))),ListesDeroulantes!A$195,\"\"))","v":""}]
[null,null,null,null,"Total",null,null,null,null,null,{"$f":"IF(SUM(K70:K72)<>0,SUM(K70:K72),\"- €\")","v":"- €"},{"$f":"IF(SUM(L70:L72)<>0,SUM(L70:L72),\"- €\")","v":"- €"}]
[null,{"$f":"ListesDeroulantes!A129","v":"Reconnaissance au titre des activités prévues au référentiel horaire (établissements d'enseignement et formation, organismes de recherche)"}]
[]
[null,null,null,null,{"$f":"ListesDeroulantes!A$97","v":"Descriptif"},null,{"$f":"ListesDeroulantes!A$98","v":"WP concerné"},{"$f":"ListesDeroulantes!A$99","v":"Sous-WP"},null,null,{"$f":"ListesDeroulantes!A$103","v":"Coût total\n(en €)"},{"$f":"ListesDeroulantes!A$104","v":"Assiette de l'aide (en €) "}]
[]
[]
[null,{"$f":"B78+1","v":1},null,null,null,null,null,null,null,null,null,null,null,null,{"$f":"IF(AND(ISNUMBER(L79),ISNUMBER(K79)),IF(L79>K79,ListesDeroulantes!A$195,\"\"),IF(AND(ISNUMBER(L79),NOT(ISNUMBER(K79))),ListesDeroulantes!A$195,\"\"))","v":""}]
[null,{"$f":"B79+1","v":2},null,null,null,null,null,null,null,null,null,null,null,null,{"$f":"IF(AND(ISNUMBER(L80),ISNUMBER(K80)),IF(L80>K80,ListesDeroulantes!A$195,\"\"),IF(AND(ISNUMBER(L80),NOT(ISNUMBER(K80))),ListesDeroulantes!A$195,\"\"))","v":""}]
[null,{"$f":"B80+1","v":3},null,null,null,null,null,null,null,null,null,null,null,null,{"$f":"IF(AND(ISNUMBER(L81),ISNUMBER(K81)),IF(L81>K81,ListesDeroulantes!A$195,\"\"),IF(AND(ISNUMBER(L81),NOT(ISNUMBER(K81))),ListesDeroulantes!A$195,\"\"))","v":""}]
[null,null,null,null,"Total",null,null,null,null,null,{"$f":"IF(SUM(K79:K81)<>0,SUM(K79:K81),\"- €\")","v":"- €"},{"$f":"IF(SUM(L79:L81)<>0,SUM(L79:L81),\"- €\")","v":"- €"}]
[null,{"$f":"ListesDeroulantes!A130","v":"Prestations de service externes"}]
[]
[null,null,null,null,{"$f":"ListesDeroulantes!A$97","v":"Descriptif"},null,{"$f":"ListesDeroulantes!A$98","v":"WP concerné"},{"$f":"ListesDeroulantes!A$99","v":"Sous-WP"},null,null,{"$f":"ListesDeroulantes!A$103","v":"Coût total\n(en €)"},{"$f":"ListesDeroulantes!A$104","v":"Assiette de l'aide (en €) "}]
[]
[]
[null,{"$f":"B87+1","v":1},null,null,null,null,null,null,null,null,null,null,null,null,{"$f":"IF(AND(ISNUMBER(L88),ISNUMBER(K88)),IF(L88>K88,ListesDeroulantes!A$195,\"\"),IF(AND(ISNUMBER(L88),NOT(ISNUMBER(K88))),ListesDeroulantes!A$195,\"\"))","v":""}]
[null,{"$f":"B88+1","v":2},null,null,null,null,null,null,null,null,null,null,null,null,{"$f":"IF(AND(ISNUMBER(L89),ISNUMBER(K89)),IF(L89>K89,ListesDeroulantes!A$195,\"\"),IF(AND(ISNUMBER(L89),NOT(ISNUMBER(K89))),ListesDeroulantes!A$195,\"\"))","v":""}]
[null,{"$f":"B89+1","v":3},null,null,null,null,null,null,null,null,null,null,null,null,{"$f":"IF(AND(ISNUMBER(L90),ISNUMBER(K90)),IF(L90>K90,ListesDeroulantes!A$195,\"\"),IF(AND(ISNUMBER(L90),NOT(ISNUMBER(K90))),ListesDeroulantes!A$195,\"\"))","v":""}]
[null,null,null,null,"Total",null,null,null,null,null,{"$f":"IF(SUM(K88:K90)<>0,SUM(K88:K90),\"- €\")","v":"- €"},{"$f":"IF(SUM(L88:L90)<>0,SUM(L88:L90),\"- €\")","v":"- €"}]
[null,{"$f":"ListesDeroulantes!A131","v":"Missions"}]
[]
[null,null,null,null,{"$f":"ListesDeroulantes!A$97","v":"Descriptif"},null,{"$f":"ListesDeroulantes!A$98","v":"WP concerné"},{"$f":"ListesDeroulantes!A$99","v":"Sous-WP"},null,null,{"$f":"ListesDeroulantes!A$103","v":"Coût total\n(en €)"},{"$f":"ListesDeroulantes!A$104","v":"Assiette de l'aide (en €) "}]
[]
[]
[null,{"$f":"B96+1","v":1},null,null,null,null,null,null,null,null,null,null,null,null,{"$f":"IF(AND(ISNUMBER(L97),ISNUMBER(K97)),IF(L97>K97,ListesDeroulantes!A$195,\"\"),IF(AND(ISNUMBER(L97),NOT(ISNUMBER(K97))),ListesDeroulantes!A$195,\"\"))","v":""}]
[null,{"$f":"B97+1","v":2},null,null,null,null,null,null,null,null,null,null,null,null,{"$f":"IF(AND(ISNUMBER(L98),ISNUMBER(K98)),IF(L98>K98,ListesDeroulantes!A$195,\"\"),IF(AND(ISNUMBER(L98),NOT(ISNUMBER(K98))),ListesDeroulantes!A$195,\"\"))","v":""}]
[null,{"$f":"B98+1","v":3},null,null,null,null,null,null,null,null,null,null,null,null,{"$f":"IF(AND(ISNUMBER(L99),ISNUMBER(K99)),IF(L99>K99,ListesDeroulantes!A$195,\"\"),IF(AND(ISNUMBER(L99),NOT(ISNUMBER(K99))),ListesDeroulantes!A$195,\"\"))","v":""}]
[null,null,null,null,"Total",null,null,null,null,null,{"$f":"IF(SUM(K97:K99)<>0,SUM(K97:K99),\"- €\")","v":"- €"},{"$f":"IF(SUM(L97:L99)<>0,SUM(L97:L99),\"- €\")","v":"- €"}]
[null,{"$f":"ListesDeroulantes!A132","v":"Autres dépenses externes (consommables, petits matériels …)"}]
[]
[null,null,null,null,{"$f":"ListesDeroulantes!A$97","v":"Descriptif"},null,{"$f":"ListesDeroulantes!A$98","v":"WP concerné"},{"$f":"ListesDeroulantes!A$99","v":"Sous-WP"},null,null,{"$f":"ListesDeroulantes!A$103","v":"Coût total\n(en €)"},{"$f":"ListesDeroulantes!A$104","v":"Assiette de l'aide (en €) "}]
[]
[]
[null,{"$f":"B105+1","v":1},null,null,null,null,null,null,null,null,null,null,null,null,{"$f":"IF(AND(ISNUMBER(L106),ISNUMBER(K106)),IF(L106>K106,ListesDeroulantes!A$195,\"\"),IF(AND(ISNUMBER(L106),NOT(ISNUMBER(K106))),ListesDeroulantes!A$195,\"\"))","v":""}]
[null,{"$f":"B106+1","v":2},null,null,null,null,null,null,null,null,null,null,null,null,{"$f":"IF(AND(ISNUMBER(L107),ISNUMBER(K107)),IF(L107>K107,ListesDeroulantes!A$195,\"\"),IF(AND(ISNUMBER(L107),NOT(ISNUMBER(K107))),ListesDeroulantes!A$195,\"\"))","v":""}]
[null,{"$f":"B107+1","v":3},null,null,null,null,null,null,null,null,null,null,null,null,{"$f":"IF(AND(ISNUMBER(L108),ISNUMBER(K108)),IF(L108>K108,ListesDeroulantes!A$195,\"\"),IF(AND(ISNUMBER(L108),NOT(ISNUMBER(K108))),ListesDeroulantes!A$195,\"\"))","v":""}]
[null,null,null,null,"Total",null,null,null,null,null,{"$f":"IF(SUM(K106:K108)<>0,SUM(K106:K108),\"- €\")","v":"- €"},{"$f":"IF(SUM(L106:L108)<>0,SUM(L106:L108),\"- €\")","v":"- €"}]
[]
[]
[null,null,null,null,null,null,null,null,{"$f":"ListesDeroulantes!A138","v":"Taux (en %)"},null,{"$f":"ListesDeroulantes!A103","v":"Coût total\n(en €)"},{"$f":"ListesDeroulantes!A104","v":"Assiette de l'aide (en €) "}]
[]
[]
[null,null,null,null,{"$f":"ListesDeroulantes!A141","v":"Frais généraux (max. 20% des coûts entrant dans l'assiette de l'aide)"},null,null,null,null,null,{"$f":"L115","v":0},{"$f":"(SUM(L37,L46,L55,L64,L73,L82,L91,L100,L109))*I115/100","v":0}]
[]
[]
[null,null,null,null,{"$f":"ListesDeroulantes!A140","v":"Taux d'environnement (compris entre 0 et 100 % ; uniquement pour les organismes publics)"},null,null,null,null,null,{"$f":"(SUM(K46,K55,K64))*I118/100","v":0}]
[]
[]
[null,null,null,null,{"$f":"ListesDeroulantes!A144","v":"Coût complet du projet (hors frais d'environnement, en €)"},null,null,null,{"$f":"SUM(K115,K109,K100,K91,K82,K73,K64,K55,K46,K37)","v":0}]
[]
[null,null,null,null,{"$f":"ListesDeroulantes!A146","v":"Total éligible pour le calcul de l'aide : Total assiette de l'aide (en €)"},null,null,null,null,null,{"$f":"IF(SUM(L37,L55,L64,L73,L82,L91,L100,L109,L115)<>0,SUM(L37,L55,L64,L73,L82,L91,L100,L109,L115),\"- €\")","v":"- €"}]
[]
[null,null,{"$f":"IF(I125=FALSE,\"Erreur : le type de partenaire (cellule D12) n'est pas reinsegné\",\"\")","v":"Erreur : le type de partenaire (cellule D12) n'est pas reinsegné"},null,{"$f":"ListesDeroulantes!A148","v":"Taux d'aide demandé (%)"},null,null,null,{"$f":"Q9","v":false},null,null,null,null,null,{"$f":"IF(ISNUMBER(K125),\"\",ListesDeroulantes!A197)","v":"Erreur : le taux n'est pas renseigné."}]
[]
[null,null,null,null,{"$f":"ListesDeroulantes!A152","v":"Aide demandée (en €)"},null,null,null,null,null,{"$f":"IF(AND(ISNUMBER(K123),ISNUMBER(K125)),K123*K125/100,\"- €\")","v":"- €"}]
[]
[]
[null,null,null,null,{"$f":"ListesDeroulantes!A145","v":"Coût complet du projet comprenant les frais d'environnement (en €)"},null,null,null,{"$f":"(SUM(K118,K115,K109,K100,K91,K82,K73,K64,K55,K46,K37))","v":0}]
[]
[]
[null,{"$f":"ListesDeroulantes!A163","v":"Autres soutiens financiers (sollicités ou obtenus par le partenaire pour le projet)"}]
[]
[]
[null,{"$f":"ListesDeroulantes!A164","v":"Identification des financeurs"},null,null,{"$f":"ListesDeroulantes!A165","v":"Nature et objet du financement et, le cas échéant, WP(s) et tâche(s) concernés"},{"$f":"ListesDeroulantes!A166","v":"Type de financement (public/privé)"},{"$f":"ListesDeroulantes!A169","v":"Montant sollicité"},null,null,{"$f":"ListesDeroulantes!A170","v":"Montant obtenu"},null,{"$f":"ListesDeroulantes!A171","v":"Date effective ou prévue du financement"}]
[]
[]
[]
[]
[]
[]
[]
[null,null,null,null,"Sous-total autres financements publics",null,{"$f":"SUMIF(F141:F143,\"Public\",G141:I143)","v":0},null,null,{"$f":"SUMIF(F141:F143,\"Public\",J141:K143)","v":0}]
[null,null,null,null,"Sous-total autres financements privés",null,{"$f":"SUMIF(F141:F143,\"Privé\",G141:I143)","v":0},null,null,{"$f":"SUMIF(F141:F143,\"Privé\",J141:K143)","v":0}]
[null,null,null,null,"Total",null,{"$f":"IF(SUM(G144:I145)<>0,SUM(G144:I145),\"- €\")","v":"- €"},null,null,{"$f":"IF(SUM(J144:K145)<>0,SUM(J144:K145),\"- €\")","v":"- €"}]
[]
[null,{"$f":"ListesDeroulantes!A172","v":"Publication d'informations relatives au projet"}]
[]
[null,{"$f":"ListesDeroulantes!A173","v":"Si le projet est retenu pour financement, l'opérateur se réserve la possibilité de rendre publiques les informations suivantes : nom du responsable du projet, dénominations des partenaires qu'ils soient des entreprises ou qu'ils appartiennent à un organisme de recherche. L'opérateur ne rendra pas publiques les informations sur les personnes ou les partenaires qui en auront fait le demande."}]
[]
[]
[]
[]
[null,{"$f":"ListesDeroulantes!A174","v":"En cas de refus de publication remplacer ci-dessous la mention \"Oui\" par \"Non\" : "}]
[]
[]
[null,{"$f":"ListesDeroulantes!A179","v":"Dénomination du partenaire (si \"Non\", celle-ci sera remplacée par la mention générique \"Entreprise\" ou \"Organisme de recherche\") : "},null,null,null,null,null,null,null,{"$f":"ListesDeroulantes!A$175","v":"Oui"}]
[]
[null,{"$f":"ListesDeroulantes!A180","v":"Nota : en déposant un projet, les partenaires ont accepté que l'opérateur publie l'acronyme, le titre, le résumé, l'aide accordée au projet, la date de début de projet et la durée."}]
[]
[null,{"$f":"ListesDeroulantes!A181","v":"Commentaires (le cas échéant)"}]
[]
[]
[]
[]
[]
[]
[null,{"$f":"ListesDeroulantes!A182","v":"Les informations personnelles transmises dans ces documents sont obligatoires et seront conservées en fichiers par l'opérateur pour assurer la conduite opérationnelle de l'évaluation et l'administration des dossiers.\nConformément à la loi n° 78-17 du 6 janvier 1978 modifiée, relative à l'Informatique, aux Fichiers et aux Libertés, les personnes concernées disposent d'un droit d'accès et de rectification des données personnelles les concernant. Les personnes concernées peuvent exercer ce droit en s'adressant à l'opérateur (voir coordonnées dans le texte de l’appel à projets)."}]
[]
[]
[]
["Lettre d’engagement"]
[]
["Le présent engagement est à compléter, signer, viser par la personne habilitée à engager l’Etablissement."]
[]
["LIEN DU SITE DE DEPOT"]
["https://france2030.agencerecherche.fr/CMA/accueil.php?"]
[]
["Ayant le pouvoir d'engager juridiquement l'établissement ci-dessus, je déclare :"]
["▪ avoir pris connaissance du dossier complet de dépôt (document de description du projet, y compris son annexe, et document administratif et financier) tel que déposé sur le site de l’ANR et du règlement relatif aux modalités d'attribution des aides au titre de l’AMI- CMA ;"]
["▪ m'engager à négocier et signer un accord de consortium (ou équivalent) et mettre en œuvre tous les moyens nécessaires pour finaliser ce document dans les conditions et délais prévus par le règlement relatif aux modalités d'attribution des aides précité ;"]
["▪ m'engager à mettre en œuvre tous les moyens nécessaires à la réalisation du projet tels que décrits dans le dossier de dépôt, dans les conditions prévues par le règlement relatif aux modalités d'attribution des aides précité ;"]
["▪ m'engager à respecter les engagements financiers tels que détaillés dans le document administratif et financier du document déposé ;"]
["▪ m’engager à mettre en œuvre les recrutements sur contrat des personnels nécessaires à la réalisation de la proposition déposée et cela en conformité avec tous les lois et règlements en vigueur applicables ; à mettre à disposition des personnels engagés dans la réalisation du projet les surfaces de travail nécessaires à l’accomplissement de leurs missions pendant la durée du projet ;"]
["▪ souscrire aux obligations qui découlent du financement du projet par l’ANR, notamment à des fins d'évaluation globale de l'action ;"]
["▪ que le projet ne cause pas un préjudice important du point de vue de l’environnement (application du principe DNSH – Do No Significant Harm ou « absence de préjudice important ») au sens de l’article 17 du règlement européen sur la taxonomie ;"]
[{"$f":"IF(Q11=\"Entreprise\", \"▪ m’engager à ne pas avoir initié de travaux liés au projet déposé.\", \"\")","v":"▪ m’engager à ne pas avoir initié de travaux liés au projet déposé."}]
[]
[null,null,null,null,null,{"$f":"ListesDeroulantes!A185","v":"Personne habilitée à engager l'établissement partenaire (EP)"}]
[]
[null,null,null,null,null,{"$f":"ListesDeroulantes!A61","v":"Prénom"},null,null,null,{"$f":"ListesDeroulantes!A62","v":"Nom"}]
[null,null,null,null,null,{"$f":"IF(D22<>\"\",D22,\"\")","v":""},null,null,null,{"$f":"IF(D23<>\"\",D23,\"\")","v":""}]
[null,null,null,null,null,{"$f":"ListesDeroulantes!A63","v":"Qualité"}]
[null,null,null,null,null,{"$f":"IF(D24<>\"\",D24,\"\")","v":""}]
[]
[null,null,null,null,null,"Signature & Cachet"]

{"sheet":"Part3","index":4,"n_rows":197,"n_cols":17,"rows_kept":197,"cut":false,"hidden":false,"merged":[[84,1,86,1],[84,2,86,2],[84,3,86,3],[84,8,86,8],[84,9,86,9],[84,10,86,10],[84,11,86,11],[84,6,86,6],[84,7,86,7],[66,2,68,2],[105,4,105,5],[106,4,106,5],[107,4,107,5],[89,4,89,5],[93,4,95,5],[96,4,96,5],[97,4,97,5],[98,4,98,5],[91,1,92,11],[80,4,80,5],[84,4,86,5],[87,4,87,5],[88,4,88,5],[82,1,83,11],[70,4,70,5],[71,4,71,5],[75,4,77,5],[78,4,78,5],[79,4,79,5],[73,1,74,11],[75,1,77,1],[75,2,77,2],[75,3,77,3],[61,4,61,5],[62,4,62,5],[66,4,68,5],[69,4,69,5],[46,1,47,11],[48,1,50,1],[48,2,50,2],[48,3,50,3],[48,8,50,8],[48,9,50,9],[48,10,50,10],[48,11,50,11],[48,6,50,6],[48,7,50,7],[64,1,65,11],[66,1,68,1],[57,11,59,11],[57,6,59,6],[57,7,59,7],[57,1,59,1],[57,2,59,2],[57,3,59,3],[57,8,59,8],[57,9,59,9],[42,4,42,5],[43,4,43,5],[44,4,44,5],[48,4,50,5],[51,4,51,5],[52,4,52,5],[53,4,53,5],[57,4,59,5],[60,4,60,5],[75,6,77,6],[75,8,77,8],[75,9,77,9],[75,10,77,10],[75,11,77,11],[75,7,77,7],[0,0,2,4],[0,5,0,11],[0,14,4,14],[1,5,1,8],[1,9,1,11],[2,5,2,8],[2,9,2,11],[4,1,4,11],[66,3,68,3],[66,6,68,6],[66,8,68,8],[66,9,68,9],[66,10,68,10],[66,11,68,11],[66,7,68,7],[55,1,56,11],[57,10,59,10],[14,0,15,2],[14,14,16,14],[16,0,16,2],[6,0,7,2],[6,3,7,11],[9,0,9,2],[9,5,9,11],[10,0,10,2],[11,5,12,11],[6,14,7,14],[10,3,10,5],[11,0,12,2],[11,3,12,3],[13,0,13,2],[18,1,18,11],[20,0,20,2],[20,14,23,14],[21,0,21,2],[21,3,21,11],[22,0,22,2],[22,3,22,11],[23,0,23,2],[23,3,23,11],[25,1,25,11],[26,1,27,11],[30,1,32,1],[30,2,32,2],[30,3,32,3],[30,8,32,8],[30,9,32,9],[30,10,32,10],[30,11,32,11],[30,7,32,7],[28,4,28,6],[28,8,28,11],[30,4,32,5],[30,14,32,14],[37,1,38,11],[39,1,41,1],[39,2,41,2],[39,3,41,3],[39,8,41,8],[39,9,41,9],[39,10,41,10],[39,11,41,11],[30,6,32,6],[39,6,41,6],[39,7,41,7],[39,4,41,5],[33,4,33,5],[34,4,34,5],[35,4,35,5],[93,1,95,1],[93,2,95,2],[93,3,95,3],[93,8,95,8],[93,9,95,9],[93,10,95,10],[93,11,95,11],[93,6,95,6],[93,7,95,7],[100,1,101,11],[102,1,104,1],[102,2,104,2],[102,3,104,3],[102,8,104,8],[102,9,104,9],[102,10,104,10],[102,11,104,11],[102,6,104,6],[102,7,104,7],[102,4,104,5],[109,1,110,11],[109,14,110,14],[111,8,113,8],[111,9,113,9],[111,10,113,10],[111,11,113,11],[111,4,113,7],[117,4,118,7],[117,8,118,8],[114,10,115,10],[114,11,115,11],[114,14,115,14],[114,8,115,8],[114,9,115,9],[116,14,117,14],[114,4,115,7],[117,11,118,11],[120,8,121,9],[120,10,121,11],[120,4,121,7],[122,4,123,7],[124,4,125,7],[126,4,127,7],[117,0,118,0],[117,9,118,9],[117,10,118,10],[124,2,125,3],[135,5,139,5],[135,6,139,8],[129,4,130,7],[129,8,130,9],[124,8,125,9],[124,10,125,11],[126,8,127,9],[126,10,127,11],[122,8,123,9],[122,10,123,11],[132,1,132,11],[133,1,133,11],[135,1,139,3],[135,4,139,4],[135,9,139,10],[135,11,139,11],[124,14,125,14],[196,5,196,10],[197,5,200,10],[191,5,191,8],[191,9,191,10],[191,14,194,14],[192,5,192,8],[192,9,192,10],[193,5,193,10],[194,5,194,10],[161,1,161,11],[163,1,166,11],[168,1,170,11],[189,5,189,10],[149,1,152,11],[154,1,154,11],[155,1,155,8],[156,1,156,8],[157,1,157,8],[159,1,159,11],[142,1,142,3],[142,9,142,10],[181,0,181,11],[182,0,182,11],[183,0,183,11],[184,0,184,11],[185,0,185,11],[186,0,186,11],[187,0,187,11],[172,0,172,11],[176,0,176,11],[177,0,177,11],[179,0,179,11],[180,0,180,11],[174,0,174,11],[147,1,147,11],[140,1,140,3],[140,9,140,10],[141,1,141,3],[141,9,141,10],[140,6,140,8],[141,6,141,8],[142,6,142,8],[143,6,143,8],[143,4,143,5],[144,4,144,5],[144,6,144,8],[144,9,144,10],[145,4,145,5],[145,6,145,8],[145,9,145,10],[143,9,143,10]]}
[{"$f":"ListesDeroulantes!A64&IF(ISNUMBER(RIGHT(CELL(\"filename\",$A$1),2)*1),RIGHT(CELL(\"filename\",$A$1),2)*1,IF(ISNUMBER(RIGHT(CELL(\"filename\",$A$1),1)*1),RIGHT(CELL(\"filename\",$A$1),1)*1,\"N/A\"))&ListesDeroulantes!A65","v":"Fiche partenaire n°3 : Identification et budget"}]
[null,null,null,null,null,{"$f":"ListesDeroulantes!A4","v":"N° de partenaire"},null,null,null,{"$f":"Volet_general!$Q$2 & \"-\" &IF(IF(ISNUMBER(RIGHT(CELL(\"filename\",$A$1),2)*1),RIGHT(CELL(\"filename\",$A$1),2)*1,IF(ISNUMBER(RIGHT(CELL(\"filename\",$A$1),1)*1),RIGHT(CELL(\"filename\",$A$1),1)*1,\"#N/A\"))<10,\"0\",\"\")&IF(ISNUMBER(RIGHT(CELL(\"filename\",$A$1),2)*1),RIGHT(CELL(\"filename\",$A$1),2)*1,IF(ISNUMBER(RIGHT(CELL(\"filename\",$A$1),1)*1),RIGHT(CELL(\"filename\",$A$1),1)*1,\"#N/A\"))","v":"2023-03"}]
[null,null,null,null,null,{"$f":"ListesDeroulantes!A5","v":"Acronyme"},null,null,null,{"$f":"Volet_general!D12","v":0}]
[]
[null,{"$f":"ListesDeroulantes!A66","v":"Identification de l'établissement partenaire"}]
[]
[{"$f":"ListesDeroulantes!A67","v":"Nom complet du partenaire"}]
[null,null,null,null,null,null,null,null,null,null,null,null,null,null,null,null,"Taux"]
[null,null,null,null,null,null,null,null,null,null,null,null,null,null,null,null,{"$f":"IF(Volet_general!F21=\"Oui\",\nIF(Q11=\"OR\",\"Taux max 100%\",\n(IF(D12=\"Petite entreprise\",\"Taux max 60%\",\n(IF(D12=\"Moyenne entreprise\",\"Taux max 50%\",\n(IF(D12=\"Grande entreprise\",\"Taux max 40%\",\n(IF(D12=\"Établissement étranger\",\"Etablissement non éligible à l'aide\"))))))))),\nIF(Q11=\"OR\",\"Taux max 100%\",\n(IF(D12=\"Petite entreprise\",\"Taux max 45%\",\n(IF(D12=\"Moyenne entreprise\",\"Taux max 35%\",\n(IF(D12=\"Grande entreprise\",\"Taux max 25%\",\n(IF(D12=\"Établissement étranger\",\"Etablissement non éligible à l'aide\"))))))))))","v":false}]
[{"$f":"ListesDeroulantes!A68","v":"Sigle du partenaire "},null,null,null,null,null,null,null,null,null,null,null,null,null,null,null,"OR/Entreprise"]
[null,null,null,null,null,null,null,null,null,null,null,null,null,null,null,null,{"$f":"IF(OR(D12=Q12,D12=Q13,D12=Q14,D12=Q15,D12=Q16,D12=Q17,D12=Q18,D12=Q19,D12=Q20),\"OR\",\"Entreprise\")","v":"Entreprise"}]
[{"$f":"ListesDeroulantes!A72","v":"Forme juridique"},null,null,null,null,null,null,null,null,null,null,null,null,null,{"$f":"IF(OR(D11=ListesDeroulantes!B77,D11=ListesDeroulantes!C77),IF(COUNTIF(ListesDeroulantes!B79:C83,D12)>0,ListesDeroulantes!A193,\"\"),\"\")&IF(OR(D11=ListesDeroulantes!B76,D11=ListesDeroulantes!C76),IF(COUNTIF(ListesDeroulantes!B84:C86,D12)>0,ListesDeroulantes!A193,\"\"),\"\")","v":""},null,"EPSCP"]
[null,null,null,null,null,null,null,null,null,null,null,null,null,null,null,null,"EPST"]
[null,null,null,null,null,null,null,null,null,null,null,null,null,null,null,null,"EPLE"]
[{"$f":"ListesDeroulantes!A84","v":"N° de SIRET"},null,null,{"$f":"ListesDeroulantes!A85","v":"Saisir un n°SIRET de 14digits"},null,null,null,null,null,null,null,null,null,null,null,null,"EPA"]
[null,null,null,0,null,null,null,null,null,null,null,null,null,null,null,null,"EPIC"]
[{"$f":"ListesDeroulantes!A86","v":"Assujetti à la TVA "},null,null,null,null,null,null,null,null,null,null,null,null,null,null,null,"Fondation de recherche"]
[null,null,null,null,null,null,null,null,null,null,null,null,null,null,null,null,"Association à but non lucratif"]
[null,{"$f":"ListesDeroulantes!A89","v":"Personne habilitée à représenter juridiquement l'établissement partenaire (pour signature du contrat attributif d'aide ou de reversement)"},null,null,null,null,null,null,null,null,null,null,null,null,null,null,"Autre établissement public à but non lucratif"]
[null,null,null,null,null,null,null,null,null,null,null,null,null,null,null,null,"Autre établissement privé à but non lucratif"]
[{"$f":"ListesDeroulantes!A90","v":"Genre"},null,null,null,null,null,null,null,null,null,null,null,null,null,null,null,"Petite entreprise"]
[{"$f":"ListesDeroulantes!A61","v":"Prénom"},null,null,null,null,null,null,null,null,null,null,null,null,null,null,null,"Moyenne entreprise"]
[{"$f":"ListesDeroulantes!A62","v":"Nom"},null,null,null,null,null,null,null,null,null,null,null,null,null,null,null,"Grande entreprise"]
[{"$f":"ListesDeroulantes!A63","v":"Qualité"},null,null,null,null,null,null,null,null,null,null,null,null,null,null,null,"Établissement étranger"]
[]
[null,{"$f":"ListesDeroulantes!A93","v":"Demande financière détaillée du projet (montant HT en €, incluant la TVA non récupérable le cas échéant)"}]
[null,{"$f":"ListesDeroulantes!A94","v":"Equipements ou amortissement d'équipements de R&D"}]
[]
[null,null,null,null,{"$f":"ListesDeroulantes!A95","v":"Seuil d’immobilisation propre à l'établissement"},null,null,null,{"$f":"ListesDeroulantes!A96","v":"Le coût d'achat est égal ou supérieur au seuil d’immobilisation."}]
[]
[null,null,null,null,{"$f":"ListesDeroulantes!A$97","v":"Descriptif"},null,{"$f":"ListesDeroulantes!A$98","v":"WP concerné"},{"$f":"ListesDeroulantes!A$99","v":"Sous-WP"},{"$f":"ListesDeroulantes!A$101","v":"Coût d'achat\n(en €)"},{"$f":"ListesDeroulantes!A102","v":"Pourcentage d'utilisation (en %)"},{"$f":"ListesDeroulantes!A$103","v":"Coût total\n(en €)"},{"$f":"ListesDeroulantes!A$104","v":"Assiette de l'aide (en €) "}]
[]
[]
[null,{"$f":"B33+1","v":1},null,null,null,null,null,null,null,null,{"$f":"IF(J34<>0,I34*J34/100,I34)","v":0},null,null,null,{"$f":"IF(AND(ISNUMBER(L34),ISNUMBER(K34)),IF(L34>K34,ListesDeroulantes!A$195,\"\"),IF(AND(ISNUMBER(L34),NOT(ISNUMBER(K34))),ListesDeroulantes!A$195,\"\"))","v":""}]
[null,{"$f":"B34+1","v":2},null,null,null,null,null,null,null,null,{"$f":"IF(J35<>0,I35*J35/100,I35)","v":0},null,null,null,{"$f":"IF(AND(ISNUMBER(L35),ISNUMBER(K35)),IF(L35>K35,ListesDeroulantes!A$195,\"\"),IF(AND(ISNUMBER(L35),NOT(ISNUMBER(K35))),ListesDeroulantes!A$195,\"\"))","v":""}]
[null,{"$f":"B35+1","v":3},null,null,null,null,null,null,null,null,0,null,null,null,{"$f":"IF(AND(ISNUMBER(L36),ISNUMBER(K36)),IF(L36>K36,ListesDeroulantes!A$195,\"\"),IF(AND(ISNUMBER(L36),NOT(ISNUMBER(K36))),ListesDeroulantes!A$195,\"\"))","v":""}]
[null,null,null,null,"Total",null,null,null,null,null,{"$f":"IF(SUM(K34:K36)<>0,SUM(K34:K36),\"- €\")","v":"- €"},{"$f":"IF(SUM(L34:L36)<>0,SUM(L34:L36),\"- €\")","v":"- €"}]
[null,{"$f":"ListesDeroulantes!A105","v":"Personnels sans financement"}]
[]
[null,null,null,{"$f":"ListesDeroulantes!A$110","v":"Catégorie de personnel"},{"$f":"ListesDeroulantes!A$97","v":"Descriptif"},null,{"$f":"ListesDeroulantes!A$98","v":"WP concerné"},{"$f":"ListesDeroulantes!A$99","v":"Sous-WP"},{"$f":"ListesDeroulantes!A$118","v":"Coût mensuel (en €)"},{"$f":"ListesDeroulantes!A$119","v":"Personne. Mois"},{"$f":"ListesDeroulantes!A$103","v":"Coût total\n(en €)"}]
[]
[]
[null,{"$f":"B42+1","v":1},null,null,null,null,null,null,null,null,{"$f":"IF(I43*J43<>0,I43*J43,\"\")","v":""},null,null,null,{"$f":"IF(AND(OR(C43<>\"\",D43<>\"\",E43<>\"\",F43<>\"\",I43<>\"\",J43<>\"\"),COUNTIF(ListesDeroulantes!$B$72:$C$72,$F$10)>0),ListesDeroulantes!A$194,\"\")","v":""}]
[null,{"$f":"B43+1","v":2},null,null,null,null,null,null,null,null,{"$f":"IF(I44*J44<>0,I44*J44,\"\")","v":""},null,null,null,{"$f":"IF(AND(OR(C44<>\"\",D44<>\"\",E44<>\"\",F44<>\"\",I44<>\"\",J44<>\"\"),COUNTIF(ListesDeroulantes!$B$72:$C$72,$F$10)>0),ListesDeroulantes!A$194,\"\")","v":""}]
[null,{"$f":"B44+1","v":3},null,null,null,null,null,null,null,null,{"$f":"IF(I45*J45<>0,I45*J45,\"\")","v":""},null,null,null,{"$f":"IF(AND(OR(C45<>\"\",D45<>\"\",E45<>\"\",F45<>\"\",I45<>\"\",J45<>\"\"),COUNTIF(ListesDeroulantes!$B$72:$C$72,$F$10)>0),ListesDeroulantes!A$194,\"\")","v":""}]
[null,null,null,null,"Total",null,null,null,null,{"$f":"SUM(J43:J45)","v":0},{"$f":"SUM(K43:K45)","v":0}]
[null,{"$f":"ListesDeroulantes!A120","v":"Personnels avec financement en contrat à durée déterminée"}]
[]
[null,null,null,{"$f":"ListesDeroulantes!A$110","v":"Catégorie de personnel"},{"$f":"ListesDeroulantes!A$97","v":"Descriptif"},null,{"$f":"ListesDeroulantes!A$98","v":"WP concerné"},{"$f":"ListesDeroulantes!A$99","v":"Sous-WP"},{"$f":"ListesDeroulantes!A$118","v":"Coût mensuel (en €)"},{"$f":"ListesDeroulantes!A$119","v":"Personne. Mois"},{"$f":"ListesDeroulantes!A$103","v":"Coût total\n(en €)"},{"$f":"ListesDeroulantes!A$104","v":"Assiette de l'aide (en €) "}]
[]
[]
[null,{"$f":"B51+1","v":1},null,null,null,null,null,null,null,null,{"$f":"IF(I52*J52<>0,I52*J52,\"\")","v":""},null,null,null,{"$f":"IF(AND(ISNUMBER(L52),ISNUMBER(K52)),IF(L52>K52,ListesDeroulantes!A$195,\"\"),IF(AND(ISNUMBER(L52),NOT(ISNUMBER(K52))),ListesDeroulantes!A$195,\"\"))","v":""}]
[null,{"$f":"B52+1","v":2},null,null,null,null,null,null,null,null,{"$f":"IF(I53*J53<>0,I53*J53,\"\")","v":""},null,null,null,{"$f":"IF(AND(ISNUMBER(L53),ISNUMBER(K53)),IF(L53>K53,ListesDeroulantes!A$195,\"\"),IF(AND(ISNUMBER(L53),NOT(ISNUMBER(K53))),ListesDeroulantes!A$195,\"\"))","v":""}]
[null,{"$f":"B53+1","v":3},null,null,null,null,null,null,null,null,{"$f":"IF(I54*J54<>0,I54*J54,\"\")","v":""},null,null,null,{"$f":"IF(AND(ISNUMBER(L54),ISNUMBER(K54)),IF(L54>K54,ListesDeroulantes!A$195,\"\"),IF(AND(ISNUMBER(L54),NOT(ISNUMBER(K54))),ListesDeroulantes!A$195,\"\"))","v":""}]
[null,null,null,null,"Total",null,null,null,null,{"$f":"IF(SUM(J52:J54)<>0,SUM(J52:J54),\"-\")","v":"-"},{"$f":"IF(SUM(K52:K54)<>0,SUM(K52:K54),\"- €\")","v":"- €"},{"$f":"IF(SUM(L52:L54)<>0,SUM(L52:L54),\"- €\")","v":"- €"}]
[null,{"$f":"ListesDeroulantes!A127","v":"Personnels avec financement en contrat à durée indéterminée"}]
[]
[null,null,null,{"$f":"ListesDeroulantes!A$110","v":"Catégorie de personnel"},{"$f":"ListesDeroulantes!A$97","v":"Descriptif"},null,{"$f":"ListesDeroulantes!A$98","v":"WP concerné"},{"$f":"ListesDeroulantes!A$99","v":"Sous-WP"},{"$f":"ListesDeroulantes!A$118","v":"Coût mensuel (en €)"},{"$f":"ListesDeroulantes!A$119","v":"Personne. Mois"},{"$f":"ListesDeroulantes!A$103","v":"Coût total\n(en €)"},{"$f":"ListesDeroulantes!A$104","v":"Assiette de l'aide (en €) "}]
[]
[]
[null,{"$f":"B60+1","v":1},null,null,null,null,null,null,null,null,{"$f":"IF(I61*J61<>0,I61*J61,\"\")","v":""},null,null,null,{"$f":"IF(AND(ISNUMBER(L61),ISNUMBER(K61)),IF(L61>K61,ListesDeroulantes!A$195,\"\"),IF(AND(ISNUMBER(L61),NOT(ISNUMBER(K61))),ListesDeroulantes!A$195,\"\"))","v":""}]
[null,{"$f":"B61+1","v":2},null,null,null,null,null,null,null,null,{"$f":"IF(I62*J62<>0,I62*J62,\"\")","v":""},null,null,null,{"$f":"IF(AND(ISNUMBER(L62),ISNUMBER(K62)),IF(L62>K62,ListesDeroulantes!A$195,\"\"),IF(AND(ISNUMBER(L62),NOT(ISNUMBER(K62))),ListesDeroulantes!A$195,\"\"))","v":""}]
[null,{"$f":"B62+1","v":3},null,null,null,null,null,null,null,null,{"$f":"IF(I63*J63<>0,I63*J63,\"\")","v":""},null,null,null,{"$f":"IF(AND(ISNUMBER(L63),ISNUMBER(K63)),IF(L63>K63,ListesDeroulantes!A$195,\"\"),IF(AND(ISNUMBER(L63),NOT(ISNUMBER(K63))),ListesDeroulantes!A$195,\"\"))","v":""}]
[null,null,null,null,"Total",null,null,null,null,{"$f":"IF(SUM(J61:J63)<>0,SUM(J61:J63),\"-\")","v":"-"},{"$f":"IF(SUM(K61:K63)<>0,SUM(K61:K63),\"- €\")","v":"- €"},{"$f":"IF(SUM(L61:L63)<>0,SUM(L61:L63),\"- €\")","v":"- €"}]
[null,{"$f":"ListesDeroulantes!A128","v":"Heures complémentaires d’enseignement et modulation de service (établissements d'enseignement et formation, organismes de recherche)"}]
[]
[null,null,null,null,{"$f":"ListesDeroulantes!A$97","v":"Descriptif"},null,{"$f":"ListesDeroulantes!A$98","v":"WP concerné"},{"$f":"ListesDeroulantes!A$99","v":"Sous-WP"},null,null,{"$f":"ListesDeroulantes!A$103","v":"Coût total\n(en €)"},{"$f":"ListesDeroulantes!A$104","v":"Assiette de l'aide (en €) "}]
[]
[]
[null,{"$f":"B69+1","v":1},null,null,null,null,null,null,null,null,null,null,null,null,{"$f":"IF(AND(ISNUMBER(L70),ISNUMBER(K70)),IF(L70>K70,ListesDeroulantes!A$195,\"\"),IF(AND(ISNUMBER(L70),NOT(ISNUMBER(K70))),ListesDeroulantes!A$195,\"\"))","v":""}]
[null,{"$f":"B70+1","v":2},null,null,null,null,null,null,null,null,null,null,null,null,{"$f":"IF(AND(ISNUMBER(L71),ISNUMBER(K71)),IF(L71>K71,ListesDeroulantes!A$195,\"\"),IF(AND(ISNUMBER(L71),NOT(ISNUMBER(K71))),ListesDeroulantes!A$195,\"\"))","v":""}]
[null,{"$f":"B71+1","v":3},null,null,null,null,null,null,null,null,null,null,null,null,{"$f":"IF(AND(ISNUMBER(L72),ISNUMBER(K72)),IF(L72>K72,ListesDeroulantes!A$195,\"\"),IF(AND(ISNUMBER(L72),NOT(ISNUMBER(K72))),ListesDeroulantes!A$195,\"\"))","v":""}]
[null,null,null,null,"Total",null,null,null,null,null,{"$f":"IF(SUM(K70:K72)<>0,SUM(K70:K72),\"- €\")","v":"- €"},{"$f":"IF(SUM(L70:L72)<>0,SUM(L70:L72),\"- €\")","v":"- €"}]
[null,{"$f":"ListesDeroulantes!A129","v":"Reconnaissance au titre des activités prévues au référentiel horaire (établissements d'enseignement et formation, organismes de recherche)"}]
[]
[null,null,null,null,{"$f":"ListesDeroulantes!A$97","v":"Descriptif"},null,{"$f":"ListesDeroulantes!A$98","v":"WP concerné"},{"$f":"ListesDeroulantes!A$99","v":"Sous-WP"},null,null,{"$f":"ListesDeroulantes!A$103","v":"Coût total\n(en €)"},{"$f":"ListesDeroulantes!A$104","v":"Assiette de l'aide (en €) "}]
[]
[]
[null,{"$f":"B78+1","v":1},null,null,null,null,null,null,null,null,null,null,null,null,{"$f":"IF(AND(ISNUMBER(L79),ISNUMBER(K79)),IF(L79>K79,ListesDeroulantes!A$195,\"\"),IF(AND(ISNUMBER(L79),NOT(ISNUMBER(K79))),ListesDeroulantes!A$195,\"\"))","v":""}]
[null,{"$f":"B79+1","v":2},null,null,null,null,null,null,null,null,null,null,null,null,{"$f":"IF(AND(ISNUMBER(L80),ISNUMBER(K80)),IF(L80>K80,ListesDeroulantes!A$195,\"\"),IF(AND(ISNUMBER(L80),NOT(ISNUMBER(K80))),ListesDeroulantes!A$195,\"\"))","v":""}]
[null,{"$f":"B80+1","v":3},null,null,null,null,null,null,null,null,null,null,null,null,{"$f":"IF(AND(ISNUMBER(L81),ISNUMBER(K81)),IF(L81>K81,ListesDeroulantes!A$195,\"\"),IF(AND(ISNUMBER(L81),NOT(ISNUMBER(K81))),ListesDeroulantes!A$195,\"\"))","v":""}]
[null,null,null,null,"Total",null,null,null,null,null,{"$f":"IF(SUM(K79:K81)<>0,SUM(K79:K81),\"- €\")","v":"- €"},{"$f":"IF(SUM(L79:L81)<>0,SUM(L79:L81),\"- €\")","v":"- €"}]
[null,{"$f":"ListesDeroulantes!A130","v":"Prestations de service externes"}]
[]
[null,null,null,null,{"$f":"ListesDeroulantes!A$97","v":"Descriptif"},null,{"$f":"ListesDeroulantes!A$98","v":"WP concerné"},{"$f":"ListesDeroulantes!A$99","v":"Sous-WP"},null,null,{"$f":"ListesDeroulantes!A$103","v":"Coût total\n(en €)"},{"$f":"ListesDeroulantes!A$104","v":"Assiette de l'aide (en €) "}]
[]
[]
[null,{"$f":"B87+1","v":1},null,null,null,null,null,null,null,null,null,null,null,null,{"$f":"IF(AND(ISNUMBER(L88),ISNUMBER(K88)),IF(L88>K88,ListesDeroulantes!A$195,\"\"),IF(AND(ISNUMBER(L88),NOT(ISNUMBER(K88))),ListesDeroulantes!A$195,\"\"))","v":""}]
[null,{"$f":"B88+1","v":2},null,null,null,null,null,null,null,null,null,null,null,null,{"$f":"IF(AND(ISNUMBER(L89),ISNUMBER(K89)),IF(L89>K89,ListesDeroulantes!A$195,\"\"),IF(AND(ISNUMBER(L89),NOT(ISNUMBER(K89))),ListesDeroulantes!A$195,\"\"))","v":""}]
[null,{"$f":"B89+1","v":3},null,null,null,null,null,null,null,null,null,null,null,null,{"$f":"IF(AND(ISNUMBER(L90),ISNUMBER(K90)),IF(L90>K90,ListesDeroulantes!A$195,\"\"),IF(AND(ISNUMBER(L90),NOT(ISNUMBER(K90))),ListesDeroulantes!A$195,\"\"))","v":""}]
[null,null,null,null,"Total",null,null,null,null,null,{"$f":"IF(SUM(K88:K90)<>0,SUM(K88:K90),\"- €\")","v":"- €"},{"$f":"IF(SUM(L88:L90)<>0,SUM(L88:L90),\"- €\")","v":"- €"}]
[null,{"$f":"ListesDeroulantes!A131","v":"Missions"}]
[]
[null,null,null,null,{"$f":"ListesDeroulantes!A$97","v":"Descriptif"},null,{"$f":"ListesDeroulantes!A$98","v":"WP concerné"},{"$f":"ListesDeroulantes!A$99","v":"Sous-WP"},null,null,{"$f":"ListesDeroulantes!A$103","v":"Coût total\n(en €)"},{"$f":"ListesDeroulantes!A$104","v":"Assiette de l'aide (en €) "}]
[]
[]
[null,{"$f":"B96+1","v":1},null,null,null,null,null,null,null,null,null,null,null,null,{"$f":"IF(AND(ISNUMBER(L97),ISNUMBER(K97)),IF(L97>K97,ListesDeroulantes!A$195,\"\"),IF(AND(ISNUMBER(L97),NOT(ISNUMBER(K97))),ListesDeroulantes!A$195,\"\"))","v":""}]
[null,{"$f":"B97+1","v":2},null,null,null,null,null,null,null,null,null,null,null,null,{"$f":"IF(AND(ISNUMBER(L98),ISNUMBER(K98)),IF(L98>K98,ListesDeroulantes!A$195,\"\"),IF(AND(ISNUMBER(L98),NOT(ISNUMBER(K98))),ListesDeroulantes!A$195,\"\"))","v":""}]
[null,{"$f":"B98+1","v":3},null,null,null,null,null,null,null,null,null,null,null,null,{"$f":"IF(AND(ISNUMBER(L99),ISNUMBER(K99)),IF(L99>K99,ListesDeroulantes!A$195,\"\"),IF(AND(ISNUMBER(L99),NOT(ISNUMBER(K99))),ListesDeroulantes!A$195,\"\"))","v":""}]
[null,null,null,null,"Total",null,null,null,null,null,{"$f":"IF(SUM(K97:K99)<>0,SUM(K97:K99),\"- €\")","v":"- €"},{"$f":"IF(SUM(L97:L99)<>0,SUM(L97:L99),\"- €\")","v":"- €"}]
[null,{"$f":"ListesDeroulantes!A132","v":"Autres dépenses externes (consommables, petits matériels …)"}]
[]
[null,null,null,null,{"$f":"ListesDeroulantes!A$97","v":"Descriptif"},null,{"$f":"ListesDeroulantes!A$98","v":"WP concerné"},{"$f":"ListesDeroulantes!A$99","v":"Sous-WP"},null,null,{"$f":"ListesDeroulantes!A$103","v":"Coût total\n(en €)"},{"$f":"ListesDeroulantes!A$104","v":"Assiette de l'aide (en €) "}]
[]
[]
[null,{"$f":"B105+1","v":1},null,null,null,null,null,null,null,null,null,null,null,null,{"$f":"IF(AND(ISNUMBER(L106),ISNUMBER(K106)),IF(L106>K106,ListesDeroulantes!A$195,\"\"),IF(AND(ISNUMBER(L106),NOT(ISNUMBER(K106))),ListesDeroulantes!A$195,\"\"))","v":""}]
[null,{"$f":"B106+1","v":2},null,null,null,null,null,null,null,null,null,null,null,null,{"$f":"IF(AND(ISNUMBER(L107),ISNUMBER(K107)),IF(L107>K107,ListesDeroulantes!A$195,\"\"),IF(AND(ISNUMBER(L107),NOT(ISNUMBER(K107))),ListesDeroulantes!A$195,\"\"))","v":""}]
[null,{"$f":"B107+1","v":3},null,null,null,null,null,null,null,null,null,null,null,null,{"$f":"IF(AND(ISNUMBER(L108),ISNUMBER(K108)),IF(L108>K108,ListesDeroulantes!A$195,\"\"),IF(AND(ISNUMBER(L108),NOT(ISNUMBER(K108))),ListesDeroulantes!A$195,\"\"))","v":""}]
[null,null,null,null,"Total",null,null,null,null,null,{"$f":"IF(SUM(K106:K108)<>0,SUM(K106:K108),\"- €\")","v":"- €"},{"$f":"IF(SUM(L106:L108)<>0,SUM(L106:L108),\"- €\")","v":"- €"}]
[]
[]
[null,null,null,null,null,null,null,null,{"$f":"ListesDeroulantes!A138","v":"Taux (en %)"},null,{"$f":"ListesDeroulantes!A103","v":"Coût total\n(en €)"},{"$f":"ListesDeroulantes!A104","v":"Assiette de l'aide (en €) "}]
[]
[]
[null,null,null,null,{"$f":"ListesDeroulantes!A141","v":"Frais généraux (max. 20% des coûts entrant dans l'assiette de l'aide)"},null,null,null,null,null,{"$f":"L115","v":0},{"$f":"(SUM(L37,L46,L55,L64,L73,L82,L91,L100,L109))*I115/100","v":0}]
[]
[]
[null,null,null,null,{"$f":"ListesDeroulantes!A140","v":"Taux d'environnement (compris entre 0 et 100 % ; uniquement pour les organismes publics)"},null,null,null,null,null,{"$f":"(SUM(K46,K55,K64))*I118/100","v":0}]
[]
[]
[null,null,null,null,{"$f":"ListesDeroulantes!A144","v":"Coût complet du projet (hors frais d'environnement, en €)"},null,null,null,{"$f":"SUM(K115,K109,K100,K91,K82,K73,K64,K55,K46,K37)","v":0}]
[]
[null,null,null,null,{"$f":"ListesDeroulantes!A146","v":"Total éligible pour le calcul de l'aide : Total assiette de l'aide (en €)"},null,null,null,null,null,{"$f":"IF(SUM(L37,L55,L64,L73,L82,L91,L100,L109,L115)<>0,SUM(L37,L55,L64,L73,L82,L91,L100,L109,L115),\"- €\")","v":"- €"}]
[]
[null,null,{"$f":"IF(I125=FALSE,\"Erreur : le type de partenaire (cellule D12) n'est pas reinsegné\",\"\")","v":"Erreur : le type de partenaire (cellule D12) n'est pas reinsegné"},null,{"$f":"ListesDeroulantes!A148","v":"Taux d'aide demandé (%)"},null,null,null,{"$f":"Q9","v":false},null,null,null,null,null,{"$f":"IF(ISNUMBER(K125),\"\",ListesDeroulantes!A197)","v":"Erreur : le taux n'est pas renseigné."}]
[]
[null,null,null,null,{"$f":"ListesDeroulantes!A152","v":"Aide demandée (en €)"},null,null,null,null,null,{"$f":"IF(AND(ISNUMBER(K123),ISNUMBER(K125)),K123*K125/100,\"- €\")","v":"- €"}]
[]
[]
[null,null,null,null,{"$f":"ListesDeroulantes!A145","v":"Coût complet du projet comprenant les frais d'environnement (en €)"},null,null,null,{"$f":"(SUM(K118,K115,K109,K100,K91,K82,K73,K64,K55,K46,K37))","v":0}]
[]
[]
[null,{"$f":"ListesDeroulantes!A163","v":"Autres soutiens financiers (sollicités ou obtenus par le partenaire pour le projet)"}]
[]
[]
[null,{"$f":"ListesDeroulantes!A164","v":"Identification des financeurs"},null,null,{"$f":"ListesDeroulantes!A165","v":"Nature et objet du financement et, le cas échéant, WP(s) et tâche(s) concernés"},{"$f":"ListesDeroulantes!A166","v":"Type de financement (public/privé)"},{"$f":"ListesDeroulantes!A169","v":"Montant sollicité"},null,null,{"$f":"ListesDeroulantes!A170","v":"Montant obtenu"},null,{"$f":"ListesDeroulantes!A171","v":"Date effective ou prévue du financement"}]
[]
[]
[]
[]
[]
[]
[]
[null,null,null,null,"Sous-total autres financements publics",null,{"$f":"SUMIF(F141:F143,\"Public\",G141:I143)","v":0},null,null,{"$f":"SUMIF(F141:F143,\"Public\",J141:K143)","v":0}]
[null,null,null,null,"Sous-total autres financements privés",null,{"$f":"SUMIF(F141:F143,\"Privé\",G141:I143)","v":0},null,null,{"$f":"SUMIF(F141:F143,\"Privé\",J141:K143)","v":0}]
[null,null,null,null,"Total",null,{"$f":"IF(SUM(G144:I145)<>0,SUM(G144:I145),\"- €\")","v":"- €"},null,null,{"$f":"IF(SUM(J144:K145)<>0,SUM(J144:K145),\"- €\")","v":"- €"}]
[]
[null,{"$f":"ListesDeroulantes!A172","v":"Publication d'informations relatives au projet"}]
[]
[null,{"$f":"ListesDeroulantes!A173","v":"Si le projet est retenu pour financement, l'opérateur se réserve la possibilité de rendre publiques les informations suivantes : nom du responsable du projet, dénominations des partenaires qu'ils soient des entreprises ou qu'ils appartiennent à un organisme de recherche. L'opérateur ne rendra pas publiques les informations sur les personnes ou les partenaires qui en auront fait le demande."}]
[]
[]
[]
[]
[null,{"$f":"ListesDeroulantes!A174","v":"En cas de refus de publication remplacer ci-dessous la mention \"Oui\" par \"Non\" : "}]
[]
[]
[null,{"$f":"ListesDeroulantes!A179","v":"Dénomination du partenaire (si \"Non\", celle-ci sera remplacée par la mention générique \"Entreprise\" ou \"Organisme de recherche\") : "},null,null,null,null,null,null,null,{"$f":"ListesDeroulantes!A$175","v":"Oui"}]
[]
[null,{"$f":"ListesDeroulantes!A180","v":"Nota : en déposant un projet, les partenaires ont accepté que l'opérateur publie l'acronyme, le titre, le résumé, l'aide accordée au projet, la date de début de projet et la durée."}]
[]
[null,{"$f":"ListesDeroulantes!A181","v":"Commentaires (le cas échéant)"}]
[]
[]
[]
[]
[]
[]
[null,{"$f":"ListesDeroulantes!A182","v":"Les informations personnelles transmises dans ces documents sont obligatoires et seront conservées en fichiers par l'opérateur pour assurer la conduite opérationnelle de l'évaluation et l'administration des dossiers.\nConformément à la loi n° 78-17 du 6 janvier 1978 modifiée, relative à l'Informatique, aux Fichiers et aux Libertés, les personnes concernées disposent d'un droit d'accès et de rectification des données personnelles les concernant. Les personnes concernées peuvent exercer ce droit en s'adressant à l'opérateur (voir coordonnées dans le texte de l’appel à projets)."}]
[]
[]
[]
["Lettre d’engagement"]
[]
["Le présent engagement est à compléter, signer, viser par la personne habilitée à engager l’Etablissement."]
[]
["LIEN DU SITE DE DEPOT"]
["https://france2030.agencerecherche.fr/CMA/accueil.php?"]
[]
["Ayant le pouvoir d'engager juridiquement l'établissement ci-dessus, je déclare :"]
["▪ avoir pris connaissance du dossier complet de dépôt (document de description du projet, y compris son annexe, et document administratif et financier) tel que déposé sur le site de l’ANR et du règlement relatif aux modalités d'attribution des aides au titre de l’AMI- CMA ;"]
["▪ m'engager à négocier et signer un accord de consortium (ou équivalent) et mettre en œuvre tous les moyens nécessaires pour finaliser ce document dans les conditions et délais prévus par le règlement relatif aux modalités d'attribution des aides précité ;"]
["▪ m'engager à mettre en œuvre tous les moyens nécessaires à la réalisation du projet tels que décrits dans le dossier de dépôt, dans les conditions prévues par le règlement relatif aux modalités d'attribution des aides précité ;"]
["▪ m'engager à respecter les engagements financiers tels que détaillés dans le document administratif et financier du document déposé ;"]
["▪ m’engager à mettre en œuvre les recrutements sur contrat des personnels nécessaires à la réalisation de la proposition déposée et cela en conformité avec tous les lois et règlements en vigueur applicables ; à mettre à disposition des personnels engagés dans la réalisation du projet les surfaces de travail nécessaires à l’accomplissement de leurs missions pendant la durée du projet ;"]
["▪ souscrire aux obligations qui découlent du financement du projet par l’ANR, notamment à des fins d'évaluation globale de l'action ;"]
["▪ que le projet ne cause pas un préjudice important du point de vue de l’environnement (application du principe DNSH – Do No Significant Harm ou « absence de préjudice important ») au sens de l’article 17 du règlement européen sur la taxonomie ;"]
[{"$f":"IF(Q11=\"Entreprise\", \"▪ m’engager à ne pas avoir initié de travaux liés au projet déposé.\", \"\")","v":"▪ m’engager à ne pas avoir initié de travaux liés au projet déposé."}]
[]
[null,null,null,null,null,{"$f":"ListesDeroulantes!A185","v":"Personne habilitée à engager l'établissement partenaire (EP)"}]
[]
[null,null,null,null,null,{"$f":"ListesDeroulantes!A61","v":"Prénom"},null,null,null,{"$f":"ListesDeroulantes!A62","v":"Nom"}]
[null,null,null,null,null,{"$f":"IF(D22<>\"\",D22,\"\")","v":""},null,null,null,{"$f":"IF(D23<>\"\",D23,\"\")","v":""}]
[null,null,null,null,null,{"$f":"ListesDeroulantes!A63","v":"Qualité"}]
[null,null,null,null,null,{"$f":"IF(D24<>\"\",D24,\"\")","v":""}]
[]
[null,null,null,null,null,"Signature & Cachet"]

{"sheet":"Partenaire vide","index":5,"n_rows":197,"n_cols":17,"rows_kept":197,"cut":false,"hidden":true,"merged":[[124,2,125,3],[124,8,125,9],[141,1,141,3],[141,9,141,10],[39,9,41,9],[48,10,50,10],[126,8,127,9],[141,6,141,8],[93,8,95,8],[114,4,115,7],[84,4,86,5],[39,8,41,8],[48,9,50,9],[89,4,89,5],[93,4,95,5],[75,1,77,1],[75,3,77,3],[75,2,77,2],[48,1,50,1],[48,2,50,2],[48,3,50,3],[48,8,50,8],[70,4,70,5],[71,4,71,5],[117,0,118,0],[117,8,118,8],[117,9,118,9],[140,6,140,8],[135,5,139,5],[135,6,139,8],[132,1,132,11],[133,1,133,11],[135,1,139,3],[124,10,125,11],[117,11,118,11],[120,8,121,9],[120,10,121,11],[122,8,123,9],[122,10,123,11],[117,4,118,7],[120,4,121,7],[122,4,123,7],[129,4,130,7],[129,8,130,9],[135,11,139,11],[126,10,127,11],[140,1,140,3],[140,9,140,10],[30,14,32,14],[109,14,110,14],[20,14,23,14],[109,1,110,11],[100,1,101,11],[102,1,104,1],[102,2,104,2],[102,3,104,3],[102,8,104,8],[102,9,104,9],[102,10,104,10],[102,11,104,11],[91,1,92,11],[93,1,95,1],[93,2,95,2],[93,3,95,3],[84,2,86,2],[84,3,86,3],[33,4,33,5],[34,4,34,5],[35,4,35,5],[75,4,77,5],[78,4,78,5],[79,4,79,5],[0,14,4,14],[11,5,12,11],[114,14,115,14],[117,14,118,14],[64,1,65,11],[66,1,68,1],[66,2,68,2],[66,3,68,3],[66,6,68,6],[66,8,68,8],[66,9,68,9],[66,10,68,10],[66,11,68,11],[66,7,68,7],[102,7,104,7],[73,1,74,11],[93,9,95,9],[93,10,95,10],[93,11,95,11],[82,1,83,11],[84,1,86,1],[114,8,115,8],[114,9,115,9],[14,14,16,14],[191,14,194,14],[194,5,194,10],[143,9,143,10],[147,1,147,11],[193,5,193,10],[161,1,161,11],[163,1,166,11],[168,1,170,11],[149,1,152,11],[154,1,154,11],[155,1,155,8],[156,1,156,8],[157,1,157,8],[159,1,159,11],[189,5,189,10],[144,4,144,5],[144,6,144,8],[144,9,144,10],[145,4,145,5],[174,0,174,11],[145,6,145,8],[145,9,145,10],[143,6,143,8],[182,0,182,11],[196,5,196,10],[197,5,200,10],[191,5,191,8],[191,9,191,10],[192,5,192,8],[192,9,192,10],[135,4,139,4],[135,9,139,10],[124,4,125,7],[126,4,127,7],[142,6,142,8],[186,0,186,11],[187,0,187,11],[172,0,172,11],[176,0,176,11],[177,0,177,11],[179,0,179,11],[142,1,142,3],[142,9,142,10],[181,0,181,11],[185,0,185,11],[180,0,180,11],[143,4,143,5],[184,0,184,11],[9,5,9,11],[30,1,32,1],[30,2,32,2],[30,3,32,3],[114,11,115,11],[87,4,87,5],[111,8,113,8],[111,4,113,7],[102,6,104,6],[111,9,113,9],[111,10,113,10],[106,4,106,5],[107,4,107,5],[97,4,97,5],[111,11,113,11],[48,11,50,11],[48,6,50,6],[84,11,86,11],[84,6,86,6],[93,6,95,6],[39,3,41,3],[46,1,47,11],[60,4,60,5],[61,4,61,5],[183,0,183,11],[57,4,59,5],[6,14,7,14],[124,14,125,14],[0,5,0,11],[1,5,1,8],[1,9,1,11],[2,5,2,8],[2,9,2,11],[4,1,4,11],[0,0,2,4],[16,0,16,2],[18,1,18,11],[20,0,20,2],[21,0,21,2],[21,3,21,11],[22,0,22,2],[22,3,22,11],[6,0,7,2],[6,3,7,11],[9,0,9,2],[114,10,115,10],[117,10,118,10],[13,0,13,2],[80,4,80,5],[88,4,88,5],[51,4,51,5],[52,4,52,5],[53,4,53,5],[98,4,98,5],[102,4,104,5],[105,4,105,5],[30,10,32,10],[30,6,32,6],[39,4,41,5],[48,7,50,7],[62,4,62,5],[66,4,68,5],[69,4,69,5],[42,4,42,5],[43,4,43,5],[44,4,44,5],[48,4,50,5],[84,8,86,8],[75,11,77,11],[75,7,77,7],[75,6,77,6],[75,8,77,8],[75,9,77,9],[75,10,77,10],[84,9,86,9],[84,10,86,10],[84,7,86,7],[55,1,56,11],[37,1,38,11],[30,8,32,8],[30,9,32,9],[10,3,10,5],[14,5,16,5],[14,6,16,6],[14,8,16,8],[14,9,16,9],[14,10,16,10],[14,11,16,11],[23,3,23,11],[25,1,25,11],[10,0,10,2],[30,4,32,5],[30,11,32,11],[39,1,41,1],[39,2,41,2],[93,7,95,7],[96,4,96,5],[26,1,27,11],[14,4,16,4],[14,0,15,2],[23,0,23,2],[11,0,12,2],[11,3,12,3],[28,4,28,6],[57,1,59,1],[57,2,59,2],[57,3,59,3],[57,7,59,7],[57,11,59,11],[57,8,59,8],[57,9,59,9],[57,10,59,10],[57,6,59,6],[28,8,28,11],[30,7,32,7],[39,10,41,10],[39,11,41,11],[39,6,41,6],[39,7,41,7]]}
[{"$f":"ListesDeroulantes!A64&IF(ISNUMBER(RIGHT(CELL(\"filename\",$A$1),2)*1),RIGHT(CELL(\"filename\",$A$1),2)*1,IF(ISNUMBER(RIGHT(CELL(\"filename\",$A$1),1)*1),RIGHT(CELL(\"filename\",$A$1),1)*1,\"N/A\"))&ListesDeroulantes!A65","v":"Fiche partenaire n°N/A : Identification et budget"}]
[null,null,null,null,null,{"$f":"ListesDeroulantes!A4","v":"N° de partenaire"},null,null,null,{"$f":"Volet_general!$Q$2 & \"-\" &IF(IF(ISNUMBER(RIGHT(CELL(\"filename\",$A$1),2)*1),RIGHT(CELL(\"filename\",$A$1),2)*1,IF(ISNUMBER(RIGHT(CELL(\"filename\",$A$1),1)*1),RIGHT(CELL(\"filename\",$A$1),1)*1,\"#N/A\"))<10,\"0\",\"\")&IF(ISNUMBER(RIGHT(CELL(\"filename\",$A$1),2)*1),RIGHT(CELL(\"filename\",$A$1),2)*1,IF(ISNUMBER(RIGHT(CELL(\"filename\",$A$1),1)*1),RIGHT(CELL(\"filename\",$A$1),1)*1,\"#N/A\"))","v":"2023-#N/A"}]
[null,null,null,null,null,{"$f":"ListesDeroulantes!A5","v":"Acronyme"},null,null,null,{"$f":"Volet_general!D12","v":0}]
[]
[null,{"$f":"ListesDeroulantes!A66","v":"Identification de l'établissement partenaire"}]
[]
[{"$f":"ListesDeroulantes!A67","v":"Nom complet du partenaire"}]
[null,null,null,null,null,null,null,null,null,null,null,null,null,null,null,null,"Taux"]
[null,null,null,null,null,null,null,null,null,null,null,null,null,null,null,null,{"$f":"IF(Volet_general!F21=\"Oui\",\nIF(Q11=\"OR\",\"Taux max 100%\",\n(IF(D12=\"Petite entreprise\",\"Taux max 60%\",\n(IF(D12=\"Moyenne entreprise\",\"Taux max 50%\",\n(IF(D12=\"Grande entreprise\",\"Taux max 40%\",\n(IF(D12=\"Établissement étranger\",\"Etablissement non éligible à l'aide\"))))))))),\nIF(Q11=\"OR\",\"Taux max 100%\",\n(IF(D12=\"Petite entreprise\",\"Taux max 45%\",\n(IF(D12=\"Moyenne entreprise\",\"Taux max 35%\",\n(IF(D12=\"Grande entreprise\",\"Taux max 25%\",\n(IF(D12=\"Établissement étranger\",\"Etablissement non éligible à l'aide\"))))))))))","v":false}]
[{"$f":"ListesDeroulantes!A68","v":"Sigle du partenaire "},null,null,null,null,null,null,null,null,null,null,null,null,null,null,null,"OR/Entreprise"]
[null,null,null,null,null,null,null,null,null,null,null,null,null,null,null,null,{"$f":"IF(OR(D12=Q12,D12=Q13,D12=Q14,D12=Q15,D12=Q16,D12=Q17,D12=Q18,D12=Q19,D12=Q20),\"OR\",\"Entreprise\")","v":"Entreprise"}]
[{"$f":"ListesDeroulantes!A72","v":"Forme juridique"},null,null,null,null,null,null,null,null,null,null,null,null,null,{"$f":"IF(OR(D11=ListesDeroulantes!B77,D11=ListesDeroulantes!C77),IF(COUNTIF(ListesDeroulantes!B79:C83,D12)>0,ListesDeroulantes!A193,\"\"),\"\")&IF(OR(D11=ListesDeroulantes!B76,D11=ListesDeroulantes!C76),IF(COUNTIF(ListesDeroulantes!B84:C86,D12)>0,ListesDeroulantes!A193,\"\"),\"\")","v":""},null,"EPSCP"]
[null,null,null,null,null,null,null,null,null,null,null,null,null,null,null,null,"EPST"]
[null,null,null,null,null,null,null,null,null,null,null,null,null,null,null,null,"EPLE"]
[{"$f":"ListesDeroulantes!A84","v":"N° de SIRET"},null,null,{"$f":"ListesDeroulantes!A85","v":"Saisir un n°SIRET de 14digits"},null,null,null,null,null,null,null,null,null,null,null,null,"EPA"]
[null,null,null,null,null,null,null,null,null,null,null,null,null,null,null,null,"EPIC"]
[{"$f":"ListesDeroulantes!A86","v":"Assujetti à la TVA "},null,null,null,null,null,null,null,null,null,null,null,null,null,null,null,"Fondation de recherche"]
[null,null,null,null,null,null,null,null,null,null,null,null,null,null,null,null,"Association à but non lucratif"]
[null,{"$f":"ListesDeroulantes!A89","v":"Personne habilitée à représenter juridiquement l'établissement partenaire (pour signature du contrat attributif d'aide ou de reversement)"},null,null,null,null,null,null,null,null,null,null,null,null,null,null,"Autre établissement public à but non lucratif"]
[null,null,null,null,null,null,null,null,null,null,null,null,null,null,null,null,"Autre établissement privé à but non lucratif"]
[{"$f":"ListesDeroulantes!A90","v":"Genre"},null,null,null,null,null,null,null,null,null,null,null,null,null,null,null,"Petite entreprise"]
[{"$f":"ListesDeroulantes!A61","v":"Prénom"},null,null,null,null,null,null,null,null,null,null,null,null,null,null,null,"Moyenne entreprise"]
[{"$f":"ListesDeroulantes!A62","v":"Nom"},null,null,null,null,null,null,null,null,null,null,null,null,null,null,null,"Grande entreprise"]
[{"$f":"ListesDeroulantes!A63","v":"Qualité"},null,null,null,null,null,null,null,null,null,null,null,null,null,null,null,"Établissement étranger"]
[]
[null,{"$f":"ListesDeroulantes!A93","v":"Demande financière détaillée du projet (montant HT en €, incluant la TVA non récupérable le cas échéant)"}]
[null,{"$f":"ListesDeroulantes!A94","v":"Equipements ou amortissement d'équipements de R&D"}]
[]
[null,null,null,null,{"$f":"ListesDeroulantes!A95","v":"Seuil d’immobilisation propre à l'établissement"},null,null,null,{"$f":"ListesDeroulantes!A96","v":"Le coût d'achat est égal ou supérieur au seuil d’immobilisation."}]
[]
[null,null,null,null,{"$f":"ListesDeroulantes!A$97","v":"Descriptif"},null,{"$f":"ListesDeroulantes!A$98","v":"WP concerné"},{"$f":"ListesDeroulantes!A$99","v":"Sous-WP"},{"$f":"ListesDeroulantes!A$101","v":"Coût d'achat\n(en €)"},{"$f":"ListesDeroulantes!A102","v":"Pourcentage d'utilisation (en %)"},{"$f":"ListesDeroulantes!A$103","v":"Coût total\n(en €)"},{"$f":"ListesDeroulantes!A$104","v":"Assiette de l'aide (en €) "}]
[]
[]
[null,{"$f":"B33+1","v":1},null,null,null,null,null,null,null,null,{"$f":"IF(J34<>0,I34*J34/100,I34)","v":0},null,null,null,{"$f":"IF(AND(ISNUMBER(L34),ISNUMBER(K34)),IF(L34>K34,ListesDeroulantes!A$195,\"\"),IF(AND(ISNUMBER(L34),NOT(ISNUMBER(K34))),ListesDeroulantes!A$195,\"\"))","v":""}]
[null,{"$f":"B34+1","v":2},null,null,null,null,null,null,null,null,{"$f":"IF(J35<>0,I35*J35/100,I35)","v":0},null,null,null,{"$f":"IF(AND(ISNUMBER(L35),ISNUMBER(K35)),IF(L35>K35,ListesDeroulantes!A$195,\"\"),IF(AND(ISNUMBER(L35),NOT(ISNUMBER(K35))),ListesDeroulantes!A$195,\"\"))","v":""}]
[null,{"$f":"B35+1","v":3},null,null,null,null,null,null,null,null,0,null,null,null,{"$f":"IF(AND(ISNUMBER(L36),ISNUMBER(K36)),IF(L36>K36,ListesDeroulantes!A$195,\"\"),IF(AND(ISNUMBER(L36),NOT(ISNUMBER(K36))),ListesDeroulantes!A$195,\"\"))","v":""}]
[null,null,null,null,"Total",null,null,null,null,null,{"$f":"IF(SUM(K34:K36)<>0,SUM(K34:K36),\"- €\")","v":"- €"},{"$f":"IF(SUM(L34:L36)<>0,SUM(L34:L36),\"- €\")","v":"- €"}]
[null,{"$f":"ListesDeroulantes!A105","v":"Personnels sans financement"}]
[]
[null,null,null,{"$f":"ListesDeroulantes!A$110","v":"Catégorie de personnel"},{"$f":"ListesDeroulantes!A$97","v":"Descriptif"},null,{"$f":"ListesDeroulantes!A$98","v":"WP concerné"},{"$f":"ListesDeroulantes!A$99","v":"Sous-WP"},{"$f":"ListesDeroulantes!A$118","v":"Coût mensuel (en €)"},{"$f":"ListesDeroulantes!A$119","v":"Personne. Mois"},{"$f":"ListesDeroulantes!A$103","v":"Coût total\n(en €)"}]
[]
[]
[null,{"$f":"B42+1","v":1},null,null,null,null,null,null,null,null,{"$f":"IF(I43*J43<>0,I43*J43,\"\")","v":""}]
[null,{"$f":"B43+1","v":2},null,null,null,null,null,null,null,null,{"$f":"IF(I44*J44<>0,I44*J44,\"\")","v":""}]
[null,{"$f":"B44+1","v":3},null,null,null,null,null,null,null,null,{"$f":"IF(I45*J45<>0,I45*J45,\"\")","v":""}]
[null,null,null,null,"Total",null,null,null,null,{"$f":"SUM(J43:J45)","v":0},{"$f":"SUM(K43:K45)","v":0}]
[null,{"$f":"ListesDeroulantes!A120","v":"Personnels avec financement en contrat à durée déterminée"}]
[]
[null,null,null,{"$f":"ListesDeroulantes!A$110","v":"Catégorie de personnel"},{"$f":"ListesDeroulantes!A$97","v":"Descriptif"},null,{"$f":"ListesDeroulantes!A$98","v":"WP concerné"},{"$f":"ListesDeroulantes!A$99","v":"Sous-WP"},{"$f":"ListesDeroulantes!A$118","v":"Coût mensuel (en €)"},{"$f":"ListesDeroulantes!A$119","v":"Personne. Mois"},{"$f":"ListesDeroulantes!A$103","v":"Coût total\n(en €)"},{"$f":"ListesDeroulantes!A$104","v":"Assiette de l'aide (en €) "}]
[]
[]
[null,{"$f":"B51+1","v":1},null,null,null,null,null,null,null,null,{"$f":"IF(I52*J52<>0,I52*J52,\"\")","v":""},null,null,null,{"$f":"IF(AND(ISNUMBER(L52),ISNUMBER(K52)),IF(L52>K52,ListesDeroulantes!A$195,\"\"),IF(AND(ISNUMBER(L52),NOT(ISNUMBER(K52))),ListesDeroulantes!A$195,\"\"))","v":""}]
[null,{"$f":"B52+1","v":2},null,null,null,null,null,null,null,null,{"$f":"IF(I53*J53<>0,I53*J53,\"\")","v":""},null,null,null,{"$f":"IF(AND(ISNUMBER(L53),ISNUMBER(K53)),IF(L53>K53,ListesDeroulantes!A$195,\"\"),IF(AND(ISNUMBER(L53),NOT(ISNUMBER(K53))),ListesDeroulantes!A$195,\"\"))","v":""}]
[null,{"$f":"B53+1","v":3},null,null,null,null,null,null,null,null,{"$f":"IF(I54*J54<>0,I54*J54,\"\")","v":""},null,null,null,{"$f":"IF(AND(ISNUMBER(L54),ISNUMBER(K54)),IF(L54>K54,ListesDeroulantes!A$195,\"\"),IF(AND(ISNUMBER(L54),NOT(ISNUMBER(K54))),ListesDeroulantes!A$195,\"\"))","v":""}]
[null,null,null,null,"Total",null,null,null,null,{"$f":"IF(SUM(J52:J54)<>0,SUM(J52:J54),\"-\")","v":"-"},{"$f":"IF(SUM(K52:K54)<>0,SUM(K52:K54),\"- €\")","v":"- €"},{"$f":"IF(SUM(L52:L54)<>0,SUM(L52:L54),\"- €\")","v":"- €"}]
[null,{"$f":"ListesDeroulantes!A127","v":"Personnels avec financement en contrat à durée indéterminée"}]
[]
[null,null,null,{"$f":"ListesDeroulantes!A$110","v":"Catégorie de personnel"},{"$f":"ListesDeroulantes!A$97","v":"Descriptif"},null,{"$f":"ListesDeroulantes!A$98","v":"WP concerné"},{"$f":"ListesDeroulantes!A$99","v":"Sous-WP"},{"$f":"ListesDeroulantes!A$118","v":"Coût mensuel (en €)"},{"$f":"ListesDeroulantes!A$119","v":"Personne. Mois"},{"$f":"ListesDeroulantes!A$103","v":"Coût total\n(en €)"},{"$f":"ListesDeroulantes!A$104","v":"Assiette de l'aide (en €) "}]
[]
[]
[null,{"$f":"B60+1","v":1},null,null,null,null,null,null,null,null,{"$f":"IF(I61*J61<>0,I61*J61,\"\")","v":""},null,null,null,{"$f":"IF(AND(ISNUMBER(L61),ISNUMBER(K61)),IF(L61>K61,ListesDeroulantes!A$195,\"\"),IF(AND(ISNUMBER(L61),NOT(ISNUMBER(K61))),ListesDeroulantes!A$195,\"\"))","v":""}]
[null,{"$f":"B61+1","v":2},null,null,null,null,null,null,null,null,{"$f":"IF(I62*J62<>0,I62*J62,\"\")","v":""},null,null,null,{"$f":"IF(AND(ISNUMBER(L62),ISNUMBER(K62)),IF(L62>K62,ListesDeroulantes!A$195,\"\"),IF(AND(ISNUMBER(L62),NOT(ISNUMBER(K62))),ListesDeroulantes!A$195,\"\"))","v":""}]
[null,{"$f":"B62+1","v":3},null,null,null,null,null,null,null,null,{"$f":"IF(I63*J63<>0,I63*J63,\"\")","v":""},null,null,null,{"$f":"IF(AND(ISNUMBER(L63),ISNUMBER(K63)),IF(L63>K63,ListesDeroulantes!A$195,\"\"),IF(AND(ISNUMBER(L63),NOT(ISNUMBER(K63))),ListesDeroulantes!A$195,\"\"))","v":""}]
[null,null,null,null,"Total",null,null,null,null,{"$f":"IF(SUM(J61:J63)<>0,SUM(J61:J63),\"-\")","v":"-"},{"$f":"IF(SUM(K61:K63)<>0,SUM(K61:K63),\"- €\")","v":"- €"},{"$f":"IF(SUM(L61:L63)<>0,SUM(L61:L63),\"- €\")","v":"- €"}]
[null,{"$f":"ListesDeroulantes!A128","v":"Heures complémentaires d’enseignement et modulation de service (établissements d'enseignement et formation, organismes de recherche)"}]
[]
[null,null,null,null,{"$f":"ListesDeroulantes!A$97","v":"Descriptif"},null,{"$f":"ListesDeroulantes!A$98","v":"WP concerné"},{"$f":"ListesDeroulantes!A$99","v":"Sous-WP"},null,null,{"$f":"ListesDeroulantes!A$103","v":"Coût total\n(en €)"},{"$f":"ListesDeroulantes!A$104","v":"Assiette de l'aide (en €) "}]
[]
[]
[null,{"$f":"B69+1","v":1},null,null,null,null,null,null,null,null,null,null,null,null,{"$f":"IF(AND(ISNUMBER(L70),ISNUMBER(K70)),IF(L70>K70,ListesDeroulantes!A$195,\"\"),IF(AND(ISNUMBER(L70),NOT(ISNUMBER(K70))),ListesDeroulantes!A$195,\"\"))","v":""}]
[null,{"$f":"B70+1","v":2},null,null,null,null,null,null,null,null,null,null,null,null,{"$f":"IF(AND(ISNUMBER(L71),ISNUMBER(K71)),IF(L71>K71,ListesDeroulantes!A$195,\"\"),IF(AND(ISNUMBER(L71),NOT(ISNUMBER(K71))),ListesDeroulantes!A$195,\"\"))","v":""}]
[null,{"$f":"B71+1","v":3},null,null,null,null,null,null,null,null,null,null,null,null,{"$f":"IF(AND(ISNUMBER(L72),ISNUMBER(K72)),IF(L72>K72,ListesDeroulantes!A$195,\"\"),IF(AND(ISNUMBER(L72),NOT(ISNUMBER(K72))),ListesDeroulantes!A$195,\"\"))","v":""}]
[null,null,null,null,"Total",null,null,null,null,null,{"$f":"IF(SUM(K70:K72)<>0,SUM(K70:K72),\"- €\")","v":"- €"},{"$f":"IF(SUM(L70:L72)<>0,SUM(L70:L72),\"- €\")","v":"- €"}]
[null,{"$f":"ListesDeroulantes!A129","v":"Reconnaissance au titre des activités prévues au référentiel horaire (établissements d'enseignement et formation, organismes de recherche)"}]
[]
[null,null,null,null,{"$f":"ListesDeroulantes!A$97","v":"Descriptif"},null,{"$f":"ListesDeroulantes!A$98","v":"WP concerné"},{"$f":"ListesDeroulantes!A$99","v":"Sous-WP"},null,null,{"$f":"ListesDeroulantes!A$103","v":"Coût total\n(en €)"},{"$f":"ListesDeroulantes!A$104","v":"Assiette de l'aide (en €) "}]
[]
[]
[null,{"$f":"B78+1","v":1},null,null,null,null,null,null,null,null,null,null,null,null,{"$f":"IF(AND(ISNUMBER(L79),ISNUMBER(K79)),IF(L79>K79,ListesDeroulantes!A$195,\"\"),IF(AND(ISNUMBER(L79),NOT(ISNUMBER(K79))),ListesDeroulantes!A$195,\"\"))","v":""}]
[null,{"$f":"B79+1","v":2},null,null,null,null,null,null,null,null,null,null,null,null,{"$f":"IF(AND(ISNUMBER(L80),ISNUMBER(K80)),IF(L80>K80,ListesDeroulantes!A$195,\"\"),IF(AND(ISNUMBER(L80),NOT(ISNUMBER(K80))),ListesDeroulantes!A$195,\"\"))","v":""}]
[null,{"$f":"B80+1","v":3},null,null,null,null,null,null,null,null,null,null,null,null,{"$f":"IF(AND(ISNUMBER(L81),ISNUMBER(K81)),IF(L81>K81,ListesDeroulantes!A$195,\"\"),IF(AND(ISNUMBER(L81),NOT(ISNUMBER(K81))),ListesDeroulantes!A$195,\"\"))","v":""}]
[null,null,null,null,"Total",null,null,null,null,null,{"$f":"IF(SUM(K79:K81)<>0,SUM(K79:K81),\"- €\")","v":"- €"},{"$f":"IF(SUM(L79:L81)<>0,SUM(L79:L81),\"- €\")","v":"- €"}]
[null,{"$f":"ListesDeroulantes!A130","v":"Prestations de service externes"}]
[]
[null,null,null,null,{"$f":"ListesDeroulantes!A$97","v":"Descriptif"},null,{"$f":"ListesDeroulantes!A$98","v":"WP concerné"},{"$f":"ListesDeroulantes!A$99","v":"Sous-WP"},null,null,{"$f":"ListesDeroulantes!A$103","v":"Coût total\n(en €)"},{"$f":"ListesDeroulantes!A$104","v":"Assiette de l'aide (en €) "}]
[]
[]
[null,{"$f":"B87+1","v":1},null,null,null,null,null,null,null,null,null,null,null,null,{"$f":"IF(AND(ISNUMBER(L88),ISNUMBER(K88)),IF(L88>K88,ListesDeroulantes!A$195,\"\"),IF(AND(ISNUMBER(L88),NOT(ISNUMBER(K88))),ListesDeroulantes!A$195,\"\"))","v":""}]
[null,{"$f":"B88+1","v":2},null,null,null,null,null,null,null,null,null,null,null,null,{"$f":"IF(AND(ISNUMBER(L89),ISNUMBER(K89)),IF(L89>K89,ListesDeroulantes!A$195,\"\"),IF(AND(ISNUMBER(L89),NOT(ISNUMBER(K89))),ListesDeroulantes!A$195,\"\"))","v":""}]
[null,{"$f":"B89+1","v":3},null,null,null,null,null,null,null,null,null,null,null,null,{"$f":"IF(AND(ISNUMBER(L90),ISNUMBER(K90)),IF(L90>K90,ListesDeroulantes!A$195,\"\"),IF(AND(ISNUMBER(L90),NOT(ISNUMBER(K90))),ListesDeroulantes!A$195,\"\"))","v":""}]
[null,null,null,null,"Total",null,null,null,null,null,{"$f":"IF(SUM(K88:K90)<>0,SUM(K88:K90),\"- €\")","v":"- €"},{"$f":"IF(SUM(L88:L90)<>0,SUM(L88:L90),\"- €\")","v":"- €"}]
[null,{"$f":"ListesDeroulantes!A131","v":"Missions"}]
[]
[null,null,null,null,{"$f":"ListesDeroulantes!A$97","v":"Descriptif"},null,{"$f":"ListesDeroulantes!A$98","v":"WP concerné"},{"$f":"ListesDeroulantes!A$99","v":"Sous-WP"},null,null,{"$f":"ListesDeroulantes!A$103","v":"Coût total\n(en €)"},{"$f":"ListesDeroulantes!A$104","v":"Assiette de l'aide (en €) "}]
[]
[]
[null,{"$f":"B96+1","v":1},null,null,null,null,null,null,null,null,null,null,null,null,{"$f":"IF(AND(ISNUMBER(L97),ISNUMBER(K97)),IF(L97>K97,ListesDeroulantes!A$195,\"\"),IF(AND(ISNUMBER(L97),NOT(ISNUMBER(K97))),ListesDeroulantes!A$195,\"\"))","v":""}]
[null,{"$f":"B97+1","v":2},null,null,null,null,null,null,null,null,null,null,null,null,{"$f":"IF(AND(ISNUMBER(L98),ISNUMBER(K98)),IF(L98>K98,ListesDeroulantes!A$195,\"\"),IF(AND(ISNUMBER(L98),NOT(ISNUMBER(K98))),ListesDeroulantes!A$195,\"\"))","v":""}]
[null,{"$f":"B98+1","v":3},null,null,null,null,null,null,null,null,null,null,null,null,{"$f":"IF(AND(ISNUMBER(L99),ISNUMBER(K99)),IF(L99>K99,ListesDeroulantes!A$195,\"\"),IF(AND(ISNUMBER(L99),NOT(ISNUMBER(K99))),ListesDeroulantes!A$195,\"\"))","v":""}]
[null,null,null,null,"Total",null,null,null,null,null,{"$f":"IF(SUM(K97:K99)<>0,SUM(K97:K99),\"- €\")","v":"- €"},{"$f":"IF(SUM(L97:L99)<>0,SUM(L97:L99),\"- €\")","v":"- €"}]
[null,{"$f":"ListesDeroulantes!A132","v":"Autres dépenses externes (consommables, petits matériels …)"}]
[]
[null,null,null,null,{"$f":"ListesDeroulantes!A$97","v":"Descriptif"},null,{"$f":"ListesDeroulantes!A$98","v":"WP concerné"},{"$f":"ListesDeroulantes!A$99","v":"Sous-WP"},null,null,{"$f":"ListesDeroulantes!A$103","v":"Coût total\n(en €)"},{"$f":"ListesDeroulantes!A$104","v":"Assiette de l'aide (en €) "}]
[]
[]
[null,{"$f":"B105+1","v":1},null,null,null,null,null,null,null,null,null,null,null,null,{"$f":"IF(AND(ISNUMBER(L106),ISNUMBER(K106)),IF(L106>K106,ListesDeroulantes!A$195,\"\"),IF(AND(ISNUMBER(L106),NOT(ISNUMBER(K106))),ListesDeroulantes!A$195,\"\"))","v":""}]
[null,{"$f":"B106+1","v":2},null,null,null,null,null,null,null,null,null,null,null,null,{"$f":"IF(AND(ISNUMBER(L107),ISNUMBER(K107)),IF(L107>K107,ListesDeroulantes!A$195,\"\"),IF(AND(ISNUMBER(L107),NOT(ISNUMBER(K107))),ListesDeroulantes!A$195,\"\"))","v":""}]
[null,{"$f":"B107+1","v":3},null,null,null,null,null,null,null,null,null,null,null,null,{"$f":"IF(AND(ISNUMBER(L108),ISNUMBER(K108)),IF(L108>K108,ListesDeroulantes!A$195,\"\"),IF(AND(ISNUMBER(L108),NOT(ISNUMBER(K108))),ListesDeroulantes!A$195,\"\"))","v":""}]
[null,null,null,null,"Total",null,null,null,null,null,{"$f":"IF(SUM(K106:K108)<>0,SUM(K106:K108),\"- €\")","v":"- €"},{"$f":"IF(SUM(L106:L108)<>0,SUM(L106:L108),\"- €\")","v":"- €"}]
[]
[]
[null,null,null,null,null,null,null,null,{"$f":"ListesDeroulantes!A138","v":"Taux (en %)"},null,{"$f":"ListesDeroulantes!A103","v":"Coût total\n(en €)"},{"$f":"ListesDeroulantes!A104","v":"Assiette de l'aide (en €) "}]
[]
[]
[null,null,null,null,{"$f":"ListesDeroulantes!A141","v":"Frais généraux (max. 20% des coûts entrant dans l'assiette de l'aide)"},null,null,null,null,null,{"$f":"L115","v":0},{"$f":"(SUM(L37,L46,L55,L64,L73,L82,L91,L100,L109))*I115/100","v":0}]
[]
[]
[null,null,null,null,{"$f":"ListesDeroulantes!A140","v":"Taux d'environnement (compris entre 0 et 100 % ; uniquement pour les organismes publics)"},null,null,null,null,null,{"$f":"(SUM(K46,K55,K64))*I118/100","v":0}]
[]
[]
[null,null,null,null,{"$f":"ListesDeroulantes!A144","v":"Coût complet du projet (hors frais d'environnement, en €)"},null,null,null,{"$f":"SUM(K115,K109,K100,K91,K82,K73,K64,K55,K46,K37)","v":0}]
[]
[null,null,null,null,{"$f":"ListesDeroulantes!A146","v":"Total éligible pour le calcul de l'aide : Total assiette de l'aide (en €)"},null,null,null,null,null,{"$f":"IF(SUM(L37,L55,L64,L73,L82,L91,L100,L109,L115)<>0,SUM(L37,L55,L64,L73,L82,L91,L100,L109,L115),\"- €\")","v":"- €"}]
[]
[null,null,{"$f":"IF(I125=FALSE,\"Erreur : le type de partenaire (cellule D12) n'est pas reinsegné\",\"\")","v":"Erreur : le type de partenaire (cellule D12) n'est pas reinsegné"},null,{"$f":"ListesDeroulantes!A148","v":"Taux d'aide demandé (%)"},null,null,null,{"$f":"Q9","v":false},null,null,null,null,null,{"$f":"IF(ISNUMBER(K125),\"\",ListesDeroulantes!A197)","v":"Erreur : le taux n'est pas renseigné."}]
[]
[null,null,null,null,{"$f":"ListesDeroulantes!A152","v":"Aide demandée (en €)"},null,null,null,null,null,{"$f":"IF(AND(ISNUMBER(K123),ISNUMBER(K125)),K123*K125/100,\"- €\")","v":"- €"}]
[]
[]
[null,null,null,null,{"$f":"ListesDeroulantes!A145","v":"Coût complet du projet comprenant les frais d'environnement (en €)"},null,null,null,{"$f":"(SUM(K118,K115,K109,K100,K91,K82,K73,K64,K55,K46,K37))","v":0}]
[]
[]
[null,{"$f":"ListesDeroulantes!A163","v":"Autres soutiens financiers (sollicités ou obtenus par le partenaire pour le projet)"}]
[]
[]
[null,{"$f":"ListesDeroulantes!A164","v":"Identification des financeurs"},null,null,{"$f":"ListesDeroulantes!A165","v":"Nature et objet du financement et, le cas échéant, WP(s) et tâche(s) concernés"},{"$f":"ListesDeroulantes!A166","v":"Type de financement (public/privé)"},{"$f":"ListesDeroulantes!A169","v":"Montant sollicité"},null,null,{"$f":"ListesDeroulantes!A170","v":"Montant obtenu"},null,{"$f":"ListesDeroulantes!A171","v":"Date effective ou prévue du financement"}]
[]
[]
[]
[]
[]
[]
[]
[null,null,null,null,"Sous-total autres financements publics",null,{"$f":"SUMIF(F141:F143,\"Public\",G141:I143)","v":0},null,null,{"$f":"SUMIF(F141:F143,\"Public\",J141:K143)","v":0}]
[null,null,null,null,"Sous-total autres financements privés",null,{"$f":"SUMIF(F141:F143,\"Privé\",G141:I143)","v":0},null,null,{"$f":"SUMIF(F141:F143,\"Privé\",J141:K143)","v":0}]
[null,null,null,null,"Total",null,{"$f":"IF(SUM(G144:I145)<>0,SUM(G144:I145),\"- €\")","v":"- €"},null,null,{"$f":"IF(SUM(J144:K145)<>0,SUM(J144:K145),\"- €\")","v":"- €"}]
[]
[null,{"$f":"ListesDeroulantes!A172","v":"Publication d'informations relatives au projet"}]
[]
[null,{"$f":"ListesDeroulantes!A173","v":"Si le projet est retenu pour financement, l'opérateur se réserve la possibilité de rendre publiques les informations suivantes : nom du responsable du projet, dénominations des partenaires qu'ils soient des entreprises ou qu'ils appartiennent à un organisme de recherche. L'opérateur ne rendra pas publiques les informations sur les personnes ou les partenaires qui en auront fait le demande."}]
[]
[]
[]
[]
[null,{"$f":"ListesDeroulantes!A174","v":"En cas de refus de publication remplacer ci-dessous la mention \"Oui\" par \"Non\" : "}]
[]
[]
[null,{"$f":"ListesDeroulantes!A179","v":"Dénomination du partenaire (si \"Non\", celle-ci sera remplacée par la mention générique \"Entreprise\" ou \"Organisme de recherche\") : "},null,null,null,null,null,null,null,{"$f":"ListesDeroulantes!A$175","v":"Oui"}]
[]
[null,{"$f":"ListesDeroulantes!A180","v":"Nota : en déposant un projet, les partenaires ont accepté que l'opérateur publie l'acronyme, le titre, le résumé, l'aide accordée au projet, la date de début de projet et la durée."}]
[]
[null,{"$f":"ListesDeroulantes!A181","v":"Commentaires (le cas échéant)"}]
[]
[]
[]
[]
[]
[]
[null,{"$f":"ListesDeroulantes!A182","v":"Les informations personnelles transmises dans ces documents sont obligatoires et seront conservées en fichiers par l'opérateur pour assurer la conduite opérationnelle de l'évaluation et l'administration des dossiers.\nConformément à la loi n° 78-17 du 6 janvier 1978 modifiée, relative à l'Informatique, aux Fichiers et aux Libertés, les personnes concernées disposent d'un droit d'accès et de rectification des données personnelles les concernant. Les personnes concernées peuvent exercer ce droit en s'adressant à l'opérateur (voir coordonnées dans le texte de l’appel à projets)."}]
[]
[]
[]
["Lettre d’engagement"]
[]
["Le présent engagement est à compléter, signer, viser par la personne habilitée à engager l’Etablissement."]
[]
["LIEN DU SITE DE DEPOT"]
["https://france2030.agencerecherche.fr/CMA/accueil.php?"]
[]
["Ayant le pouvoir d'engager juridiquement l'établissement ci-dessus, je déclare :"]
["▪ avoir pris connaissance du dossier complet de dépôt (document de description du projet, y compris son annexe, et document administratif et financier) tel que déposé sur le site de l’ANR et du règlement relatif aux modalités d'attribution des aides au titre de l’AMI- CMA ;"]
["▪ m'engager à négocier et signer un accord de consortium (ou équivalent) et mettre en œuvre tous les moyens nécessaires pour finaliser ce document dans les conditions et délais prévus par le règlement relatif aux modalités d'attribution des aides précité ;"]
["▪ m'engager à mettre en œuvre tous les moyens nécessaires à la réalisation du projet tels que décrits dans le dossier de dépôt, dans les conditions prévues par le règlement relatif aux modalités d'attribution des aides précité ;"]
["▪ m'engager à respecter les engagements financiers tels que détaillés dans le document administratif et financier du document déposé ;"]
["▪ m’engager à mettre en œuvre les recrutements sur contrat des personnels nécessaires à la réalisation de la proposition déposée et cela en conformité avec tous les lois et règlements en vigueur applicables ; à mettre à disposition des personnels engagés dans la réalisation du projet les surfaces de travail nécessaires à l’accomplissement de leurs missions pendant la durée du projet ;"]
["▪ souscrire aux obligations qui découlent du financement du projet par l’ANR, notamment à des fins d'évaluation globale de l'action ;"]
["▪ que le projet ne cause pas un préjudice important du point de vue de l’environnement (application du principe DNSH – Do No Significant Harm ou « absence de préjudice important ») au sens de l’article 17 du règlement européen sur la taxonomie ;"]
[{"$f":"IF(Q11=\"Entreprise\", \"▪ m’engager à ne pas avoir initié de travaux liés au projet déposé.\", \"\")","v":"▪ m’engager à ne pas avoir initié de travaux liés au projet déposé."}]
[]
[null,null,null,null,null,{"$f":"ListesDeroulantes!A185","v":"Personne habilitée à engager l'établissement partenaire (EP)"}]
[]
[null,null,null,null,null,{"$f":"ListesDeroulantes!A61","v":"Prénom"},null,null,null,{"$f":"ListesDeroulantes!A62","v":"Nom"}]
[null,null,null,null,null,{"$f":"IF(D22<>\"\",D22,\"\")","v":""},null,null,null,{"$f":"IF(D23<>\"\",D23,\"\")","v":""}]
[null,null,null,null,null,{"$f":"ListesDeroulantes!A63","v":"Qualité"}]
[null,null,null,null,null,{"$f":"IF(D24<>\"\",D24,\"\")","v":""}]
[]
[null,null,null,null,null,"Signature & Cachet"]

{"sheet":"Part4","index":6,"n_rows":197,"n_cols":17,"rows_kept":197,"cut":false,"hidden":false,"merged":[[196,5,196,10],[197,5,200,10],[191,5,191,8],[191,9,191,10],[191,14,194,14],[192,5,192,8],[192,9,192,10],[193,5,193,10],[194,5,194,10],[183,0,183,11],[184,0,184,11],[185,0,185,11],[186,0,186,11],[187,0,187,11],[189,5,189,10],[176,0,176,11],[177,0,177,11],[179,0,179,11],[180,0,180,11],[181,0,181,11],[182,0,182,11],[159,1,159,11],[161,1,161,11],[163,1,166,11],[168,1,170,11],[172,0,172,11],[174,0,174,11],[147,1,147,11],[149,1,152,11],[154,1,154,11],[155,1,155,8],[156,1,156,8],[157,1,157,8],[144,4,144,5],[144,6,144,8],[144,9,144,10],[145,4,145,5],[145,6,145,8],[145,9,145,10],[142,1,142,3],[142,6,142,8],[142,9,142,10],[143,4,143,5],[143,6,143,8],[143,9,143,10],[140,1,140,3],[140,6,140,8],[140,9,140,10],[141,1,141,3],[141,6,141,8],[141,9,141,10],[129,4,130,7],[129,8,130,9],[132,1,132,11],[133,1,133,11],[135,1,139,3],[135,4,139,4],[135,5,139,5],[135,6,139,8],[135,9,139,10],[135,11,139,11],[124,4,125,7],[124,8,125,9],[124,10,125,11],[124,14,125,14],[126,4,127,7],[126,8,127,9],[126,10,127,11],[120,4,121,7],[120,8,121,9],[120,10,121,11],[122,4,123,7],[122,8,123,9],[122,10,123,11],[114,14,115,14],[117,0,118,0],[117,4,118,7],[117,8,118,8],[117,9,118,9],[117,10,118,10],[117,11,118,11],[117,14,118,14],[111,4,113,7],[111,8,113,8],[111,9,113,9],[111,10,113,10],[111,11,113,11],[114,4,115,7],[114,8,115,8],[114,9,115,9],[114,10,115,10],[114,11,115,11],[102,11,104,11],[105,4,105,5],[106,4,106,5],[107,4,107,5],[109,1,110,11],[109,14,110,14],[100,1,101,11],[102,1,104,1],[102,2,104,2],[102,3,104,3],[102,4,104,5],[102,6,104,6],[102,7,104,7],[102,8,104,8],[102,9,104,9],[102,10,104,10],[93,9,95,9],[93,10,95,10],[93,11,95,11],[96,4,96,5],[97,4,97,5],[98,4,98,5],[88,4,88,5],[89,4,89,5],[91,1,92,11],[93,1,95,1],[93,2,95,2],[93,3,95,3],[93,4,95,5],[93,6,95,6],[93,7,95,7],[93,8,95,8],[84,7,86,7],[84,8,86,8],[84,9,86,9],[84,10,86,10],[84,11,86,11],[87,4,87,5],[75,11,77,11],[78,4,78,5],[79,4,79,5],[80,4,80,5],[82,1,83,11],[84,1,86,1],[84,2,86,2],[84,3,86,3],[84,4,86,5],[84,6,86,6],[73,1,74,11],[75,1,77,1],[75,2,77,2],[75,3,77,3],[75,4,77,5],[75,6,77,6],[75,7,77,7],[75,8,77,8],[75,9,77,9],[75,10,77,10],[66,9,68,9],[66,10,68,10],[66,11,68,11],[69,4,69,5],[70,4,70,5],[71,4,71,5],[61,4,61,5],[62,4,62,5],[64,1,65,11],[66,1,68,1],[66,2,68,2],[66,3,68,3],[66,4,68,5],[66,6,68,6],[66,7,68,7],[66,8,68,8],[57,7,59,7],[57,8,59,8],[57,9,59,9],[57,10,59,10],[57,11,59,11],[60,4,60,5],[48,11,50,11],[51,4,51,5],[52,4,52,5],[53,4,53,5],[55,1,56,11],[57,1,59,1],[57,2,59,2],[57,3,59,3],[57,4,59,5],[57,6,59,6],[46,1,47,11],[48,1,50,1],[48,2,50,2],[48,3,50,3],[48,4,50,5],[48,6,50,6],[48,7,50,7],[48,8,50,8],[48,9,50,9],[48,10,50,10],[39,9,41,9],[39,10,41,10],[39,11,41,11],[42,4,42,5],[43,4,43,5],[44,4,44,5],[34,4,34,5],[35,4,35,5],[37,1,38,11],[39,1,41,1],[39,2,41,2],[39,3,41,3],[39,4,41,5],[39,6,41,6],[39,7,41,7],[39,8,41,8],[30,8,32,8],[30,9,32,9],[30,10,32,10],[30,11,32,11],[30,14,32,14],[33,4,33,5],[30,1,32,1],[30,2,32,2],[30,3,32,3],[30,4,32,5],[30,6,32,6],[30,7,32,7],[22,3,22,11],[23,0,23,2],[23,3,23,11],[25,1,25,11],[26,1,27,11],[28,4,28,6],[28,8,28,11],[14,10,16,10],[14,11,16,11],[11,0,12,2],[11,3,12,3],[11,5,12,11],[13,0,13,2],[14,0,15,2],[14,4,16,4],[14,5,16,5],[14,6,16,6],[14,8,16,8],[14,9,16,9],[124,2,125,3],[6,0,7,2],[6,3,7,11],[6,14,7,14],[9,0,9,2],[9,5,9,11],[10,0,10,2],[10,3,10,5],[0,0,2,4],[0,5,0,11],[0,14,4,14],[1,5,1,8],[1,9,1,11],[2,5,2,8],[2,9,2,11],[4,1,4,11],[14,14,16,14],[16,0,16,2],[18,1,18,11],[20,0,20,2],[20,14,23,14],[21,0,21,2],[21,3,21,11],[22,0,22,2]]}
[{"$f":"ListesDeroulantes!A64&IF(ISNUMBER(RIGHT(CELL(\"filename\",$A$1),2)*1),RIGHT(CELL(\"filename\",$A$1),2)*1,IF(ISNUMBER(RIGHT(CELL(\"filename\",$A$1),1)*1),RIGHT(CELL(\"filename\",$A$1),1)*1,\"N/A\"))&ListesDeroulantes!A65","v":"Fiche partenaire n°4 : Identification et budget"}]
[null,null,null,null,null,{"$f":"ListesDeroulantes!A4","v":"N° de partenaire"},null,null,null,{"$f":"Volet_general!$Q$2 & \"-\" &IF(IF(ISNUMBER(RIGHT(CELL(\"filename\",$A$1),2)*1),RIGHT(CELL(\"filename\",$A$1),2)*1,IF(ISNUMBER(RIGHT(CELL(\"filename\",$A$1),1)*1),RIGHT(CELL(\"filename\",$A$1),1)*1,\"#N/A\"))<10,\"0\",\"\")&IF(ISNUMBER(RIGHT(CELL(\"filename\",$A$1),2)*1),RIGHT(CELL(\"filename\",$A$1),2)*1,IF(ISNUMBER(RIGHT(CELL(\"filename\",$A$1),1)*1),RIGHT(CELL(\"filename\",$A$1),1)*1,\"#N/A\"))","v":"2023-04"}]
[null,null,null,null,null,{"$f":"ListesDeroulantes!A5","v":"Acronyme"},null,null,null,{"$f":"Volet_general!D12","v":0}]
[]
[null,{"$f":"ListesDeroulantes!A66","v":"Identification de l'établissement partenaire"}]
[]
[{"$f":"ListesDeroulantes!A67","v":"Nom complet du partenaire"}]
[null,null,null,null,null,null,null,null,null,null,null,null,null,null,null,null,"Taux"]
[null,null,null,null,null,null,null,null,null,null,null,null,null,null,null,null,{"$f":"IF(Volet_general!F21=\"Oui\",\nIF(Q11=\"OR\",\"Taux max 100%\",\n(IF(D12=\"Petite entreprise\",\"Taux max 60%\",\n(IF(D12=\"Moyenne entreprise\",\"Taux max 50%\",\n(IF(D12=\"Grande entreprise\",\"Taux max 40%\",\n(IF(D12=\"Établissement étranger\",\"Etablissement non éligible à l'aide\"))))))))),\nIF(Q11=\"OR\",\"Taux max 100%\",\n(IF(D12=\"Petite entreprise\",\"Taux max 45%\",\n(IF(D12=\"Moyenne entreprise\",\"Taux max 35%\",\n(IF(D12=\"Grande entreprise\",\"Taux max 25%\",\n(IF(D12=\"Établissement étranger\",\"Etablissement non éligible à l'aide\"))))))))))","v":false}]
[{"$f":"ListesDeroulantes!A68","v":"Sigle du partenaire "},null,null,null,null,null,null,null,null,null,null,null,null,null,null,null,"OR/Entreprise"]
[null,null,null,null,null,null,null,null,null,null,null,null,null,null,null,null,{"$f":"IF(OR(D12=Q12,D12=Q13,D12=Q14,D12=Q15,D12=Q16,D12=Q17,D12=Q18,D12=Q19,D12=Q20),\"OR\",\"Entreprise\")","v":"Entreprise"}]
[{"$f":"ListesDeroulantes!A72","v":"Forme juridique"},null,null,null,null,null,null,null,null,null,null,null,null,null,{"$f":"IF(OR(D11=ListesDeroulantes!B77,D11=ListesDeroulantes!C77),IF(COUNTIF(ListesDeroulantes!B79:C83,D12)>0,ListesDeroulantes!A193,\"\"),\"\")&IF(OR(D11=ListesDeroulantes!B76,D11=ListesDeroulantes!C76),IF(COUNTIF(ListesDeroulantes!B84:C86,D12)>0,ListesDeroulantes!A193,\"\"),\"\")","v":""},null,"EPSCP"]
[null,null,null,null,null,null,null,null,null,null,null,null,null,null,null,null,"EPST"]
[null,null,null,null,null,null,null,null,null,null,null,null,null,null,null,null,"EPLE"]
[{"$f":"ListesDeroulantes!A84","v":"N° de SIRET"},null,null,{"$f":"ListesDeroulantes!A85","v":"Saisir un n°SIRET de 14digits"},null,null,null,null,null,null,null,null,null,null,null,null,"EPA"]
[null,null,null,null,null,null,null,null,null,null,null,null,null,null,null,null,"EPIC"]
[{"$f":"ListesDeroulantes!A86","v":"Assujetti à la TVA "},null,null,null,null,null,null,null,null,null,null,null,null,null,null,null,"Fondation de recherche"]
[null,null,null,null,null,null,null,null,null,null,null,null,null,null,null,null,"Association à but non lucratif"]
[null,{"$f":"ListesDeroulantes!A89","v":"Personne habilitée à représenter juridiquement l'établissement partenaire (pour signature du contrat attributif d'aide ou de reversement)"},null,null,null,null,null,null,null,null,null,null,null,null,null,null,"Autre établissement public à but non lucratif"]
[null,null,null,null,null,null,null,null,null,null,null,null,null,null,null,null,"Autre établissement privé à but non lucratif"]
[{"$f":"ListesDeroulantes!A90","v":"Genre"},null,null,null,null,null,null,null,null,null,null,null,null,null,null,null,"Petite entreprise"]
[{"$f":"ListesDeroulantes!A61","v":"Prénom"},null,null,null,null,null,null,null,null,null,null,null,null,null,null,null,"Moyenne entreprise"]
[{"$f":"ListesDeroulantes!A62","v":"Nom"},null,null,null,null,null,null,null,null,null,null,null,null,null,null,null,"Grande entreprise"]
[{"$f":"ListesDeroulantes!A63","v":"Qualité"},null,null,null,null,null,null,null,null,null,null,null,null,null,null,null,"Établissement étranger"]
[]
[null,{"$f":"ListesDeroulantes!A93","v":"Demande financière détaillée du projet (montant HT en €, incluant la TVA non récupérable le cas échéant)"}]
[null,{"$f":"ListesDeroulantes!A94","v":"Equipements ou amortissement d'équipements de R&D"}]
[]
[null,null,null,null,{"$f":"ListesDeroulantes!A95","v":"Seuil d’immobilisation propre à l'établissement"},null,null,null,{"$f":"ListesDeroulantes!A96","v":"Le coût d'achat est égal ou supérieur au seuil d’immobilisation."}]
[]
[null,null,null,null,{"$f":"ListesDeroulantes!A$97","v":"Descriptif"},null,{"$f":"ListesDeroulantes!A$98","v":"WP concerné"},{"$f":"ListesDeroulantes!A$99","v":"Sous-WP"},{"$f":"ListesDeroulantes!A$101","v":"Coût d'achat\n(en €)"},{"$f":"ListesDeroulantes!A102","v":"Pourcentage d'utilisation (en %)"},{"$f":"ListesDeroulantes!A$103","v":"Coût total\n(en €)"},{"$f":"ListesDeroulantes!A$104","v":"Assiette de l'aide (en €) "}]
[]
[]
[null,{"$f":"B33+1","v":1},null,null,null,null,null,null,null,null,{"$f":"IF(J34<>0,I34*J34/100,I34)","v":0},null,null,null,{"$f":"IF(AND(ISNUMBER(L34),ISNUMBER(K34)),IF(L34>K34,ListesDeroulantes!A$195,\"\"),IF(AND(ISNUMBER(L34),NOT(ISNUMBER(K34))),ListesDeroulantes!A$195,\"\"))","v":""}]
[null,{"$f":"B34+1","v":2},null,null,null,null,null,null,null,null,{"$f":"IF(J35<>0,I35*J35/100,I35)","v":0},null,null,null,{"$f":"IF(AND(ISNUMBER(L35),ISNUMBER(K35)),IF(L35>K35,ListesDeroulantes!A$195,\"\"),IF(AND(ISNUMBER(L35),NOT(ISNUMBER(K35))),ListesDeroulantes!A$195,\"\"))","v":""}]
[null,{"$f":"B35+1","v":3},null,null,null,null,null,null,null,null,0,null,null,null,{"$f":"IF(AND(ISNUMBER(L36),ISNUMBER(K36)),IF(L36>K36,ListesDeroulantes!A$195,\"\"),IF(AND(ISNUMBER(L36),NOT(ISNUMBER(K36))),ListesDeroulantes!A$195,\"\"))","v":""}]
[null,null,null,null,"Total",null,null,null,null,null,{"$f":"IF(SUM(K34:K36)<>0,SUM(K34:K36),\"- €\")","v":"- €"},{"$f":"IF(SUM(L34:L36)<>0,SUM(L34:L36),\"- €\")","v":"- €"}]
[null,{"$f":"ListesDeroulantes!A105","v":"Personnels sans financement"}]
[]
[null,null,null,{"$f":"ListesDeroulantes!A$110","v":"Catégorie de personnel"},{"$f":"ListesDeroulantes!A$97","v":"Descriptif"},null,{"$f":"ListesDeroulantes!A$98","v":"WP concerné"},{"$f":"ListesDeroulantes!A$99","v":"Sous-WP"},{"$f":"ListesDeroulantes!A$118","v":"Coût mensuel (en €)"},{"$f":"ListesDeroulantes!A$119","v":"Personne. Mois"},{"$f":"ListesDeroulantes!A$103","v":"Coût total\n(en €)"}]
[]
[]
[null,{"$f":"B42+1","v":1},null,null,null,null,null,null,null,null,{"$f":"IF(I43*J43<>0,I43*J43,\"\")","v":""}]
[null,{"$f":"B43+1","v":2},null,null,null,null,null,null,null,null,{"$f":"IF(I44*J44<>0,I44*J44,\"\")","v":""}]
[null,{"$f":"B44+1","v":3},null,null,null,null,null,null,null,null,{"$f":"IF(I45*J45<>0,I45*J45,\"\")","v":""}]
[null,null,null,null,"Total",null,null,null,null,{"$f":"SUM(J43:J45)","v":0},{"$f":"SUM(K43:K45)","v":0}]
[null,{"$f":"ListesDeroulantes!A120","v":"Personnels avec financement en contrat à durée déterminée"}]
[]
[null,null,null,{"$f":"ListesDeroulantes!A$110","v":"Catégorie de personnel"},{"$f":"ListesDeroulantes!A$97","v":"Descriptif"},null,{"$f":"ListesDeroulantes!A$98","v":"WP concerné"},{"$f":"ListesDeroulantes!A$99","v":"Sous-WP"},{"$f":"ListesDeroulantes!A$118","v":"Coût mensuel (en €)"},{"$f":"ListesDeroulantes!A$119","v":"Personne. Mois"},{"$f":"ListesDeroulantes!A$103","v":"Coût total\n(en €)"},{"$f":"ListesDeroulantes!A$104","v":"Assiette de l'aide (en €) "}]
[]
[]
[null,{"$f":"B51+1","v":1},null,null,null,null,null,null,null,null,{"$f":"IF(I52*J52<>0,I52*J52,\"\")","v":""},null,null,null,{"$f":"IF(AND(ISNUMBER(L52),ISNUMBER(K52)),IF(L52>K52,ListesDeroulantes!A$195,\"\"),IF(AND(ISNUMBER(L52),NOT(ISNUMBER(K52))),ListesDeroulantes!A$195,\"\"))","v":""}]
[null,{"$f":"B52+1","v":2},null,null,null,null,null,null,null,null,{"$f":"IF(I53*J53<>0,I53*J53,\"\")","v":""},null,null,null,{"$f":"IF(AND(ISNUMBER(L53),ISNUMBER(K53)),IF(L53>K53,ListesDeroulantes!A$195,\"\"),IF(AND(ISNUMBER(L53),NOT(ISNUMBER(K53))),ListesDeroulantes!A$195,\"\"))","v":""}]
[null,{"$f":"B53+1","v":3},null,null,null,null,null,null,null,null,{"$f":"IF(I54*J54<>0,I54*J54,\"\")","v":""},null,null,null,{"$f":"IF(AND(ISNUMBER(L54),ISNUMBER(K54)),IF(L54>K54,ListesDeroulantes!A$195,\"\"),IF(AND(ISNUMBER(L54),NOT(ISNUMBER(K54))),ListesDeroulantes!A$195,\"\"))","v":""}]
[null,null,null,null,"Total",null,null,null,null,{"$f":"IF(SUM(J52:J54)<>0,SUM(J52:J54),\"-\")","v":"-"},{"$f":"IF(SUM(K52:K54)<>0,SUM(K52:K54),\"- €\")","v":"- €"},{"$f":"IF(SUM(L52:L54)<>0,SUM(L52:L54),\"- €\")","v":"- €"}]
[null,{"$f":"ListesDeroulantes!A127","v":"Personnels avec financement en contrat à durée indéterminée"}]
[]
[null,null,null,{"$f":"ListesDeroulantes!A$110","v":"Catégorie de personnel"},{"$f":"ListesDeroulantes!A$97","v":"Descriptif"},null,{"$f":"ListesDeroulantes!A$98","v":"WP concerné"},{"$f":"ListesDeroulantes!A$99","v":"Sous-WP"},{"$f":"ListesDeroulantes!A$118","v":"Coût mensuel (en €)"},{"$f":"ListesDeroulantes!A$119","v":"Personne. Mois"},{"$f":"ListesDeroulantes!A$103","v":"Coût total\n(en €)"},{"$f":"ListesDeroulantes!A$104","v":"Assiette de l'aide (en €) "}]
[]
[]
[null,{"$f":"B60+1","v":1},null,null,null,null,null,null,null,null,{"$f":"IF(I61*J61<>0,I61*J61,\"\")","v":""},null,null,null,{"$f":"IF(AND(ISNUMBER(L61),ISNUMBER(K61)),IF(L61>K61,ListesDeroulantes!A$195,\"\"),IF(AND(ISNUMBER(L61),NOT(ISNUMBER(K61))),ListesDeroulantes!A$195,\"\"))","v":""}]
[null,{"$f":"B61+1","v":2},null,null,null,null,null,null,null,null,{"$f":"IF(I62*J62<>0,I62*J62,\"\")","v":""},null,null,null,{"$f":"IF(AND(ISNUMBER(L62),ISNUMBER(K62)),IF(L62>K62,ListesDeroulantes!A$195,\"\"),IF(AND(ISNUMBER(L62),NOT(ISNUMBER(K62))),ListesDeroulantes!A$195,\"\"))","v":""}]
[null,{"$f":"B62+1","v":3},null,null,null,null,null,null,null,null,{"$f":"IF(I63*J63<>0,I63*J63,\"\")","v":""},null,null,null,{"$f":"IF(AND(ISNUMBER(L63),ISNUMBER(K63)),IF(L63>K63,ListesDeroulantes!A$195,\"\"),IF(AND(ISNUMBER(L63),NOT(ISNUMBER(K63))),ListesDeroulantes!A$195,\"\"))","v":""}]
[null,null,null,null,"Total",null,null,null,null,{"$f":"IF(SUM(J61:J63)<>0,SUM(J61:J63),\"-\")","v":"-"},{"$f":"IF(SUM(K61:K63)<>0,SUM(K61:K63),\"- €\")","v":"- €"},{"$f":"IF(SUM(L61:L63)<>0,SUM(L61:L63),\"- €\")","v":"- €"}]
[null,{"$f":"ListesDeroulantes!A128","v":"Heures complémentaires d’enseignement et modulation de service (établissements d'enseignement et formation, organismes de recherche)"}]
[]
[null,null,null,null,{"$f":"ListesDeroulantes!A$97","v":"Descriptif"},null,{"$f":"ListesDeroulantes!A$98","v":"WP concerné"},{"$f":"ListesDeroulantes!A$99","v":"Sous-WP"},null,null,{"$f":"ListesDeroulantes!A$103","v":"Coût total\n(en €)"},{"$f":"ListesDeroulantes!A$104","v":"Assiette de l'aide (en €) "}]
[]
[]
[null,{"$f":"B69+1","v":1},null,null,null,null,null,null,null,null,null,null,null,null,{"$f":"IF(AND(ISNUMBER(L70),ISNUMBER(K70)),IF(L70>K70,ListesDeroulantes!A$195,\"\"),IF(AND(ISNUMBER(L70),NOT(ISNUMBER(K70))),ListesDeroulantes!A$195,\"\"))","v":""}]
[null,{"$f":"B70+1","v":2},null,null,null,null,null,null,null,null,null,null,null,null,{"$f":"IF(AND(ISNUMBER(L71),ISNUMBER(K71)),IF(L71>K71,ListesDeroulantes!A$195,\"\"),IF(AND(ISNUMBER(L71),NOT(ISNUMBER(K71))),ListesDeroulantes!A$195,\"\"))","v":""}]
[null,{"$f":"B71+1","v":3},null,null,null,null,null,null,null,null,null,null,null,null,{"$f":"IF(AND(ISNUMBER(L72),ISNUMBER(K72)),IF(L72>K72,ListesDeroulantes!A$195,\"\"),IF(AND(ISNUMBER(L72),NOT(ISNUMBER(K72))),ListesDeroulantes!A$195,\"\"))","v":""}]
[null,null,null,null,"Total",null,null,null,null,null,{"$f":"IF(SUM(K70:K72)<>0,SUM(K70:K72),\"- €\")","v":"- €"},{"$f":"IF(SUM(L70:L72)<>0,SUM(L70:L72),\"- €\")","v":"- €"}]
[null,{"$f":"ListesDeroulantes!A129","v":"Reconnaissance au titre des activités prévues au référentiel horaire (établissements d'enseignement et formation, organismes de recherche)"}]
[]
[null,null,null,null,{"$f":"ListesDeroulantes!A$97","v":"Descriptif"},null,{"$f":"ListesDeroulantes!A$98","v":"WP concerné"},{"$f":"ListesDeroulantes!A$99","v":"Sous-WP"},null,null,{"$f":"ListesDeroulantes!A$103","v":"Coût total\n(en €)"},{"$f":"ListesDeroulantes!A$104","v":"Assiette de l'aide (en €) "}]
[]
[]
[null,{"$f":"B78+1","v":1},null,null,null,null,null,null,null,null,null,null,null,null,{"$f":"IF(AND(ISNUMBER(L79),ISNUMBER(K79)),IF(L79>K79,ListesDeroulantes!A$195,\"\"),IF(AND(ISNUMBER(L79),NOT(ISNUMBER(K79))),ListesDeroulantes!A$195,\"\"))","v":""}]
[null,{"$f":"B79+1","v":2},null,null,null,null,null,null,null,null,null,null,null,null,{"$f":"IF(AND(ISNUMBER(L80),ISNUMBER(K80)),IF(L80>K80,ListesDeroulantes!A$195,\"\"),IF(AND(ISNUMBER(L80),NOT(ISNUMBER(K80))),ListesDeroulantes!A$195,\"\"))","v":""}]
[null,{"$f":"B80+1","v":3},null,null,null,null,null,null,null,null,null,null,null,null,{"$f":"IF(AND(ISNUMBER(L81),ISNUMBER(K81)),IF(L81>K81,ListesDeroulantes!A$195,\"\"),IF(AND(ISNUMBER(L81),NOT(ISNUMBER(K81))),ListesDeroulantes!A$195,\"\"))","v":""}]
[null,null,null,null,"Total",null,null,null,null,null,{"$f":"IF(SUM(K79:K81)<>0,SUM(K79:K81),\"- €\")","v":"- €"},{"$f":"IF(SUM(L79:L81)<>0,SUM(L79:L81),\"- €\")","v":"- €"}]
[null,{"$f":"ListesDeroulantes!A130","v":"Prestations de service externes"}]
[]
[null,null,null,null,{"$f":"ListesDeroulantes!A$97","v":"Descriptif"},null,{"$f":"ListesDeroulantes!A$98","v":"WP concerné"},{"$f":"ListesDeroulantes!A$99","v":"Sous-WP"},null,null,{"$f":"ListesDeroulantes!A$103","v":"Coût total\n(en €)"},{"$f":"ListesDeroulantes!A$104","v":"Assiette de l'aide (en €) "}]
[]
[]
[null,{"$f":"B87+1","v":1},null,null,null,null,null,null,null,null,null,null,null,null,{"$f":"IF(AND(ISNUMBER(L88),ISNUMBER(K88)),IF(L88>K88,ListesDeroulantes!A$195,\"\"),IF(AND(ISNUMBER(L88),NOT(ISNUMBER(K88))),ListesDeroulantes!A$195,\"\"))","v":""}]
[null,{"$f":"B88+1","v":2},null,null,null,null,null,null,null,null,null,null,null,null,{"$f":"IF(AND(ISNUMBER(L89),ISNUMBER(K89)),IF(L89>K89,ListesDeroulantes!A$195,\"\"),IF(AND(ISNUMBER(L89),NOT(ISNUMBER(K89))),ListesDeroulantes!A$195,\"\"))","v":""}]
[null,{"$f":"B89+1","v":3},null,null,null,null,null,null,null,null,null,null,null,null,{"$f":"IF(AND(ISNUMBER(L90),ISNUMBER(K90)),IF(L90>K90,ListesDeroulantes!A$195,\"\"),IF(AND(ISNUMBER(L90),NOT(ISNUMBER(K90))),ListesDeroulantes!A$195,\"\"))","v":""}]
[null,null,null,null,"Total",null,null,null,null,null,{"$f":"IF(SUM(K88:K90)<>0,SUM(K88:K90),\"- €\")","v":"- €"},{"$f":"IF(SUM(L88:L90)<>0,SUM(L88:L90),\"- €\")","v":"- €"}]
[null,{"$f":"ListesDeroulantes!A131","v":"Missions"}]
[]
[null,null,null,null,{"$f":"ListesDeroulantes!A$97","v":"Descriptif"},null,{"$f":"ListesDeroulantes!A$98","v":"WP concerné"},{"$f":"ListesDeroulantes!A$99","v":"Sous-WP"},null,null,{"$f":"ListesDeroulantes!A$103","v":"Coût total\n(en €)"},{"$f":"ListesDeroulantes!A$104","v":"Assiette de l'aide (en €) "}]
[]
[]
[null,{"$f":"B96+1","v":1},null,null,null,null,null,null,null,null,null,null,null,null,{"$f":"IF(AND(ISNUMBER(L97),ISNUMBER(K97)),IF(L97>K97,ListesDeroulantes!A$195,\"\"),IF(AND(ISNUMBER(L97),NOT(ISNUMBER(K97))),ListesDeroulantes!A$195,\"\"))","v":""}]
[null,{"$f":"B97+1","v":2},null,null,null,null,null,null,null,null,null,null,null,null,{"$f":"IF(AND(ISNUMBER(L98),ISNUMBER(K98)),IF(L98>K98,ListesDeroulantes!A$195,\"\"),IF(AND(ISNUMBER(L98),NOT(ISNUMBER(K98))),ListesDeroulantes!A$195,\"\"))","v":""}]
[null,{"$f":"B98+1","v":3},null,null,null,null,null,null,null,null,null,null,null,null,{"$f":"IF(AND(ISNUMBER(L99),ISNUMBER(K99)),IF(L99>K99,ListesDeroulantes!A$195,\"\"),IF(AND(ISNUMBER(L99),NOT(ISNUMBER(K99))),ListesDeroulantes!A$195,\"\"))","v":""}]
[null,null,null,null,"Total",null,null,null,null,null,{"$f":"IF(SUM(K97:K99)<>0,SUM(K97:K99),\"- €\")","v":"- €"},{"$f":"IF(SUM(L97:L99)<>0,SUM(L97:L99),\"- €\")","v":"- €"}]
[null,{"$f":"ListesDeroulantes!A132","v":"Autres dépenses externes (consommables, petits matériels …)"}]
[]
[null,null,null,null,{"$f":"ListesDeroulantes!A$97","v":"Descriptif"},null,{"$f":"ListesDeroulantes!A$98","v":"WP concerné"},{"$f":"ListesDeroulantes!A$99","v":"Sous-WP"},null,null,{"$f":"ListesDeroulantes!A$103","v":"Coût total\n(en €)"},{"$f":"ListesDeroulantes!A$104","v":"Assiette de l'aide (en €) "}]
[]
[]
[null,{"$f":"B105+1","v":1},null,null,null,null,null,null,null,null,null,null,null,null,{"$f":"IF(AND(ISNUMBER(L106),ISNUMBER(K106)),IF(L106>K106,ListesDeroulantes!A$195,\"\"),IF(AND(ISNUMBER(L106),NOT(ISNUMBER(K106))),ListesDeroulantes!A$195,\"\"))","v":""}]
[null,{"$f":"B106+1","v":2},null,null,null,null,null,null,null,null,null,null,null,null,{"$f":"IF(AND(ISNUMBER(L107),ISNUMBER(K107)),IF(L107>K107,ListesDeroulantes!A$195,\"\"),IF(AND(ISNUMBER(L107),NOT(ISNUMBER(K107))),ListesDeroulantes!A$195,\"\"))","v":""}]
[null,{"$f":"B107+1","v":3},null,null,null,null,null,null,null,null,null,null,null,null,{"$f":"IF(AND(ISNUMBER(L108),ISNUMBER(K108)),IF(L108>K108,ListesDeroulantes!A$195,\"\"),IF(AND(ISNUMBER(L108),NOT(ISNUMBER(K108))),ListesDeroulantes!A$195,\"\"))","v":""}]
[null,null,null,null,"Total",null,null,null,null,null,{"$f":"IF(SUM(K106:K108)<>0,SUM(K106:K108),\"- €\")","v":"- €"},{"$f":"IF(SUM(L106:L108)<>0,SUM(L106:L108),\"- €\")","v":"- €"}]
[]
[]
[null,null,null,null,null,null,null,null,{"$f":"ListesDeroulantes!A138","v":"Taux (en %)"},null,{"$f":"ListesDeroulantes!A103","v":"Coût total\n(en €)"},{"$f":"ListesDeroulantes!A104","v":"Assiette de l'aide (en €) "}]
[]
[]
[null,null,null,null,{"$f":"ListesDeroulantes!A141","v":"Frais généraux (max. 20% des coûts entrant dans l'assiette de l'aide)"},null,null,null,null,null,{"$f":"L115","v":0},{"$f":"(SUM(L37,L46,L55,L64,L73,L82,L91,L100,L109))*I115/100","v":0}]
[]
[]
[null,null,null,null,{"$f":"ListesDeroulantes!A140","v":"Taux d'environnement (compris entre 0 et 100 % ; uniquement pour les organismes publics)"},null,null,null,null,null,{"$f":"(SUM(K46,K55,K64))*I118/100","v":0}]
[]
[]
[null,null,null,null,{"$f":"ListesDeroulantes!A144","v":"Coût complet du projet (hors frais d'environnement, en €)"},null,null,null,{"$f":"SUM(K115,K109,K100,K91,K82,K73,K64,K55,K46,K37)","v":0}]
[]
[null,null,null,null,{"$f":"ListesDeroulantes!A146","v":"Total éligible pour le calcul de l'aide : Total assiette de l'aide (en €)"},null,null,null,null,null,{"$f":"IF(SUM(L37,L55,L64,L73,L82,L91,L100,L109,L115)<>0,SUM(L37,L55,L64,L73,L82,L91,L100,L109,L115),\"- €\")","v":"- €"}]
[]
[null,null,{"$f":"IF(I125=FALSE,\"Erreur : le type de partenaire (cellule D12) n'est pas reinsegné\",\"\")","v":"Erreur : le type de partenaire (cellule D12) n'est pas reinsegné"},null,{"$f":"ListesDeroulantes!A148","v":"Taux d'aide demandé (%)"},null,null,null,{"$f":"Q9","v":false},null,null,null,null,null,{"$f":"IF(ISNUMBER(K125),\"\",ListesDeroulantes!A197)","v":"Erreur : le taux n'est pas renseigné."}]
[]
[null,null,null,null,{"$f":"ListesDeroulantes!A152","v":"Aide demandée (en €)"},null,null,null,null,null,{"$f":"IF(AND(ISNUMBER(K123),ISNUMBER(K125)),K123*K125/100,\"- €\")","v":"- €"}]
[]
[]
[null,null,null,null,{"$f":"ListesDeroulantes!A145","v":"Coût complet du projet comprenant les frais d'environnement (en €)"},null,null,null,{"$f":"(SUM(K118,K115,K109,K100,K91,K82,K73,K64,K55,K46,K37))","v":0}]
[]
[]
[null,{"$f":"ListesDeroulantes!A163","v":"Autres soutiens financiers (sollicités ou obtenus par le partenaire pour le projet)"}]
[]
[]
[null,{"$f":"ListesDeroulantes!A164","v":"Identification des financeurs"},null,null,{"$f":"ListesDeroulantes!A165","v":"Nature et objet du financement et, le cas échéant, WP(s) et tâche(s) concernés"},{"$f":"ListesDeroulantes!A166","v":"Type de financement (public/privé)"},{"$f":"ListesDeroulantes!A169","v":"Montant sollicité"},null,null,{"$f":"ListesDeroulantes!A170","v":"Montant obtenu"},null,{"$f":"ListesDeroulantes!A171","v":"Date effective ou prévue du financement"}]
[]
[]
[]
[]
[]
[]
[]
[null,null,null,null,"Sous-total autres financements publics",null,{"$f":"SUMIF(F141:F143,\"Public\",G141:I143)","v":0},null,null,{"$f":"SUMIF(F141:F143,\"Public\",J141:K143)","v":0}]
[null,null,null,null,"Sous-total autres financements privés",null,{"$f":"SUMIF(F141:F143,\"Privé\",G141:I143)","v":0},null,null,{"$f":"SUMIF(F141:F143,\"Privé\",J141:K143)","v":0}]
[null,null,null,null,"Total",null,{"$f":"IF(SUM(G144:I145)<>0,SUM(G144:I145),\"- €\")","v":"- €"},null,null,{"$f":"IF(SUM(J144:K145)<>0,SUM(J144:K145),\"- €\")","v":"- €"}]
[]
[null,{"$f":"ListesDeroulantes!A172","v":"Publication d'informations relatives au projet"}]
[]
[null,{"$f":"ListesDeroulantes!A173","v":"Si le projet est retenu pour financement, l'opérateur se réserve la possibilité de rendre publiques les informations suivantes : nom du responsable du projet, dénominations des partenaires qu'ils soient des entreprises ou qu'ils appartiennent à un organisme de recherche. L'opérateur ne rendra pas publiques les informations sur les personnes ou les partenaires qui en auront fait le demande."}]
[]
[]
[]
[]
[null,{"$f":"ListesDeroulantes!A174","v":"En cas de refus de publication remplacer ci-dessous la mention \"Oui\" par \"Non\" : "}]
[]
[]
[null,{"$f":"ListesDeroulantes!A179","v":"Dénomination du partenaire (si \"Non\", celle-ci sera remplacée par la mention générique \"Entreprise\" ou \"Organisme de recherche\") : "},null,null,null,null,null,null,null,{"$f":"ListesDeroulantes!A$175","v":"Oui"}]
[]
[null,{"$f":"ListesDeroulantes!A180","v":"Nota : en déposant un projet, les partenaires ont accepté que l'opérateur publie l'acronyme, le titre, le résumé, l'aide accordée au projet, la date de début de projet et la durée."}]
[]
[null,{"$f":"ListesDeroulantes!A181","v":"Commentaires (le cas échéant)"}]
[]
[]
[]
[]
[]
[]
[null,{"$f":"ListesDeroulantes!A182","v":"Les informations personnelles transmises dans ces documents sont obligatoires et seront conservées en fichiers par l'opérateur pour assurer la conduite opérationnelle de l'évaluation et l'administration des dossiers.\nConformément à la loi n° 78-17 du 6 janvier 1978 modifiée, relative à l'Informatique, aux Fichiers et aux Libertés, les personnes concernées disposent d'un droit d'accès et de rectification des données personnelles les concernant. Les personnes concernées peuvent exercer ce droit en s'adressant à l'opérateur (voir coordonnées dans le texte de l’appel à projets)."}]
[]
[]
[]
["Lettre d’engagement"]
[]
["Le présent engagement est à compléter, signer, viser par la personne habilitée à engager l’Etablissement."]
[]
["LIEN DU SITE DE DEPOT"]
["https://france2030.agencerecherche.fr/CMA/accueil.php?"]
[]
["Ayant le pouvoir d'engager juridiquement l'établissement ci-dessus, je déclare :"]
["▪ avoir pris connaissance du dossier complet de dépôt (document de description du projet, y compris son annexe, et document administratif et financier) tel que déposé sur le site de l’ANR et du règlement relatif aux modalités d'attribution des aides au titre de l’AMI- CMA ;"]
["▪ m'engager à négocier et signer un accord de consortium (ou équivalent) et mettre en œuvre tous les moyens nécessaires pour finaliser ce document dans les conditions et délais prévus par le règlement relatif aux modalités d'attribution des aides précité ;"]
["▪ m'engager à mettre en œuvre tous les moyens nécessaires à la réalisation du projet tels que décrits dans le dossier de dépôt, dans les conditions prévues par le règlement relatif aux modalités d'attribution des aides précité ;"]
["▪ m'engager à respecter les engagements financiers tels que détaillés dans le document administratif et financier du document déposé ;"]
["▪ m’engager à mettre en œuvre les recrutements sur contrat des personnels nécessaires à la réalisation de la proposition déposée et cela en conformité avec tous les lois et règlements en vigueur applicables ; à mettre à disposition des personnels engagés dans la réalisation du projet les surfaces de travail nécessaires à l’accomplissement de leurs missions pendant la durée du projet ;"]
["▪ souscrire aux obligations qui découlent du financement du projet par l’ANR, notamment à des fins d'évaluation globale de l'action ;"]
["▪ que le projet ne cause pas un préjudice important du point de vue de l’environnement (application du principe DNSH – Do No Significant Harm ou « absence de préjudice important ») au sens de l’article 17 du règlement européen sur la taxonomie ;"]
[{"$f":"IF(Q11=\"Entreprise\", \"▪ m’engager à ne pas avoir initié de travaux liés au projet déposé.\", \"\")","v":"▪ m’engager à ne pas avoir initié de travaux liés au projet déposé."}]
[]
[null,null,null,null,null,{"$f":"ListesDeroulantes!A185","v":"Personne habilitée à engager l'établissement partenaire (EP)"}]
[]
[null,null,null,null,null,{"$f":"ListesDeroulantes!A61","v":"Prénom"},null,null,null,{"$f":"ListesDeroulantes!A62","v":"Nom"}]
[null,null,null,null,null,{"$f":"IF(D22<>\"\",D22,\"\")","v":""},null,null,null,{"$f":"IF(D23<>\"\",D23,\"\")","v":""}]
[null,null,null,null,null,{"$f":"ListesDeroulantes!A63","v":"Qualité"}]
[null,null,null,null,null,{"$f":"IF(D24<>\"\",D24,\"\")","v":""}]
[]
[null,null,null,null,null,"Signature & Cachet"]

{"sheet":"Part5","index":7,"n_rows":197,"n_cols":17,"rows_kept":197,"cut":false,"hidden":false,"merged":[[6,0,7,2],[6,3,7,11],[6,14,7,14],[9,0,9,2],[9,5,9,11],[10,0,10,2],[10,3,10,5],[0,0,2,4],[0,5,0,11],[0,14,4,14],[1,5,1,8],[1,9,1,11],[2,5,2,8],[2,9,2,11],[4,1,4,11],[14,14,16,14],[16,0,16,2],[18,1,18,11],[20,0,20,2],[20,14,23,14],[21,0,21,2],[21,3,21,11],[22,0,22,2],[11,0,12,2],[11,3,12,3],[11,5,12,11],[13,0,13,2],[14,0,15,2],[14,4,16,4],[14,5,16,5],[14,6,16,6],[14,8,16,8],[14,9,16,9],[22,3,22,11],[23,0,23,2],[23,3,23,11],[25,1,25,11],[26,1,27,11],[28,4,28,6],[28,8,28,11],[14,10,16,10],[14,11,16,11],[30,8,32,8],[30,9,32,9],[30,10,32,10],[30,11,32,11],[30,14,32,14],[33,4,33,5],[30,1,32,1],[30,2,32,2],[30,3,32,3],[30,4,32,5],[30,6,32,6],[30,7,32,7],[39,9,41,9],[39,10,41,10],[39,11,41,11],[42,4,42,5],[43,4,43,5],[44,4,44,5],[34,4,34,5],[35,4,35,5],[37,1,38,11],[39,1,41,1],[39,2,41,2],[39,3,41,3],[39,4,41,5],[39,6,41,6],[39,7,41,7],[39,8,41,8],[46,1,47,11],[48,1,50,1],[48,2,50,2],[48,3,50,3],[48,4,50,5],[48,6,50,6],[48,7,50,7],[48,8,50,8],[48,9,50,9],[48,10,50,10],[57,7,59,7],[57,8,59,8],[57,9,59,9],[57,10,59,10],[57,11,59,11],[60,4,60,5],[48,11,50,11],[51,4,51,5],[52,4,52,5],[53,4,53,5],[55,1,56,11],[57,1,59,1],[57,2,59,2],[57,3,59,3],[57,4,59,5],[57,6,59,6],[66,9,68,9],[66,10,68,10],[66,11,68,11],[69,4,69,5],[70,4,70,5],[71,4,71,5],[61,4,61,5],[62,4,62,5],[64,1,65,11],[66,1,68,1],[66,2,68,2],[66,3,68,3],[66,4,68,5],[66,6,68,6],[66,7,68,7],[66,8,68,8],[73,1,74,11],[75,1,77,1],[75,2,77,2],[75,3,77,3],[75,4,77,5],[75,6,77,6],[75,7,77,7],[75,8,77,8],[75,9,77,9],[75,10,77,10],[84,7,86,7],[84,8,86,8],[84,9,86,9],[84,10,86,10],[84,11,86,11],[87,4,87,5],[75,11,77,11],[78,4,78,5],[79,4,79,5],[80,4,80,5],[82,1,83,11],[84,1,86,1],[84,2,86,2],[84,3,86,3],[84,4,86,5],[84,6,86,6],[93,9,95,9],[93,10,95,10],[93,11,95,11],[96,4,96,5],[97,4,97,5],[98,4,98,5],[88,4,88,5],[89,4,89,5],[91,1,92,11],[93,1,95,1],[93,2,95,2],[93,3,95,3],[93,4,95,5],[93,6,95,6],[93,7,95,7],[93,8,95,8],[102,11,104,11],[105,4,105,5],[106,4,106,5],[107,4,107,5],[109,1,110,11],[109,14,110,14],[100,1,101,11],[102,1,104,1],[102,2,104,2],[102,3,104,3],[102,4,104,5],[102,6,104,6],[102,7,104,7],[102,8,104,8],[102,9,104,9],[102,10,104,10],[114,14,115,14],[117,0,118,0],[117,4,118,7],[117,8,118,8],[117,9,118,9],[117,10,118,10],[117,11,118,11],[117,14,118,14],[111,4,113,7],[111,8,113,8],[111,9,113,9],[111,10,113,10],[111,11,113,11],[114,4,115,7],[114,8,115,8],[114,9,115,9],[114,10,115,10],[114,11,115,11],[124,4,125,7],[124,8,125,9],[124,10,125,11],[124,14,125,14],[126,4,127,7],[126,8,127,9],[126,10,127,11],[120,4,121,7],[120,8,121,9],[120,10,121,11],[122,4,123,7],[122,8,123,9],[122,10,123,11],[140,1,140,3],[140,6,140,8],[140,9,140,10],[141,1,141,3],[141,6,141,8],[141,9,141,10],[129,4,130,7],[129,8,130,9],[132,1,132,11],[133,1,133,11],[135,1,139,3],[135,4,139,4],[135,5,139,5],[135,6,139,8],[135,9,139,10],[135,11,139,11],[144,4,144,5],[144,6,144,8],[144,9,144,10],[145,4,145,5],[145,6,145,8],[145,9,145,10],[142,1,142,3],[142,6,142,8],[142,9,142,10],[143,4,143,5],[143,6,143,8],[143,9,143,10],[163,1,166,11],[168,1,170,11],[172,0,172,11],[174,0,174,11],[147,1,147,11],[149,1,152,11],[154,1,154,11],[155,1,155,8],[156,1,156,8],[157,1,157,8],[124,2,125,3],[196,5,196,10],[197,5,200,10],[191,5,191,8],[191,9,191,10],[191,14,194,14],[192,5,192,8],[192,9,192,10],[193,5,193,10],[194,5,194,10],[183,0,183,11],[184,0,184,11],[185,0,185,11],[186,0,186,11],[187,0,187,11],[189,5,189,10],[176,0,176,11],[177,0,177,11],[179,0,179,11],[180,0,180,11],[181,0,181,11],[182,0,182,11],[159,1,159,11],[161,1,161,11]]}
[{"$f":"ListesDeroulantes!A64&IF(ISNUMBER(RIGHT(CELL(\"filename\",$A$1),2)*1),RIGHT(CELL(\"filename\",$A$1),2)*1,IF(ISNUMBER(RIGHT(CELL(\"filename\",$A$1),1)*1),RIGHT(CELL(\"filename\",$A$1),1)*1,\"N/A\"))&ListesDeroulantes!A65","v":"Fiche partenaire n°5 : Identification et budget"}]
[null,null,null,null,null,{"$f":"ListesDeroulantes!A4","v":"N° de partenaire"},null,null,null,{"$f":"Volet_general!$Q$2 & \"-\" &IF(IF(ISNUMBER(RIGHT(CELL(\"filename\",$A$1),2)*1),RIGHT(CELL(\"filename\",$A$1),2)*1,IF(ISNUMBER(RIGHT(CELL(\"filename\",$A$1),1)*1),RIGHT(CELL(\"filename\",$A$1),1)*1,\"#N/A\"))<10,\"0\",\"\")&IF(ISNUMBER(RIGHT(CELL(\"filename\",$A$1),2)*1),RIGHT(CELL(\"filename\",$A$1),2)*1,IF(ISNUMBER(RIGHT(CELL(\"filename\",$A$1),1)*1),RIGHT(CELL(\"filename\",$A$1),1)*1,\"#N/A\"))","v":"2023-05"}]
[null,null,null,null,null,{"$f":"ListesDeroulantes!A5","v":"Acronyme"},null,null,null,{"$f":"Volet_general!D12","v":0}]
[]
[null,{"$f":"ListesDeroulantes!A66","v":"Identification de l'établissement partenaire"}]
[]
[{"$f":"ListesDeroulantes!A67","v":"Nom complet du partenaire"}]
[null,null,null,null,null,null,null,null,null,null,null,null,null,null,null,null,"Taux"]
[null,null,null,null,null,null,null,null,null,null,null,null,null,null,null,null,{"$f":"IF(Volet_general!F21=\"Oui\",\nIF(Q11=\"OR\",\"Taux max 100%\",\n(IF(D12=\"Petite entreprise\",\"Taux max 60%\",\n(IF(D12=\"Moyenne entreprise\",\"Taux max 50%\",\n(IF(D12=\"Grande entreprise\",\"Taux max 40%\",\n(IF(D12=\"Établissement étranger\",\"Etablissement non éligible à l'aide\"))))))))),\nIF(Q11=\"OR\",\"Taux max 100%\",\n(IF(D12=\"Petite entreprise\",\"Taux max 45%\",\n(IF(D12=\"Moyenne entreprise\",\"Taux max 35%\",\n(IF(D12=\"Grande entreprise\",\"Taux max 25%\",\n(IF(D12=\"Établissement étranger\",\"Etablissement non éligible à l'aide\"))))))))))","v":false}]
[{"$f":"ListesDeroulantes!A68","v":"Sigle du partenaire "},null,null,null,null,null,null,null,null,null,null,null,null,null,null,null,"OR/Entreprise"]
[null,null,null,null,null,null,null,null,null,null,null,null,null,null,null,null,{"$f":"IF(OR(D12=Q12,D12=Q13,D12=Q14,D12=Q15,D12=Q16,D12=Q17,D12=Q18,D12=Q19,D12=Q20),\"OR\",\"Entreprise\")","v":"Entreprise"}]
[{"$f":"ListesDeroulantes!A72","v":"Forme juridique"},null,null,null,null,null,null,null,null,null,null,null,null,null,{"$f":"IF(OR(D11=ListesDeroulantes!B77,D11=ListesDeroulantes!C77),IF(COUNTIF(ListesDeroulantes!B79:C83,D12)>0,ListesDeroulantes!A193,\"\"),\"\")&IF(OR(D11=ListesDeroulantes!B76,D11=ListesDeroulantes!C76),IF(COUNTIF(ListesDeroulantes!B84:C86,D12)>0,ListesDeroulantes!A193,\"\"),\"\")","v":""},null,"EPSCP"]
[null,null,null,null,null,null,null,null,null,null,null,null,null,null,null,null,"EPST"]
[null,null,null,null,null,null,null,null,null,null,null,null,null,null,null,null,"EPLE"]
[{"$f":"ListesDeroulantes!A84","v":"N° de SIRET"},null,null,{"$f":"ListesDeroulantes!A85","v":"Saisir un n°SIRET de 14digits"},null,null,null,null,null,null,null,null,null,null,null,null,"EPA"]
[null,null,null,null,null,null,null,null,null,null,null,null,null,null,null,null,"EPIC"]
[{"$f":"ListesDeroulantes!A86","v":"Assujetti à la TVA "},null,null,null,null,null,null,null,null,null,null,null,null,null,null,null,"Fondation de recherche"]
[null,null,null,null,null,null,null,null,null,null,null,null,null,null,null,null,"Association à but non lucratif"]
[null,{"$f":"ListesDeroulantes!A89","v":"Personne habilitée à représenter juridiquement l'établissement partenaire (pour signature du contrat attributif d'aide ou de reversement)"},null,null,null,null,null,null,null,null,null,null,null,null,null,null,"Autre établissement public à but non lucratif"]
[null,null,null,null,null,null,null,null,null,null,null,null,null,null,null,null,"Autre établissement privé à but non lucratif"]
[{"$f":"ListesDeroulantes!A90","v":"Genre"},null,null,null,null,null,null,null,null,null,null,null,null,null,null,null,"Petite entreprise"]
[{"$f":"ListesDeroulantes!A61","v":"Prénom"},null,null,null,null,null,null,null,null,null,null,null,null,null,null,null,"Moyenne entreprise"]
[{"$f":"ListesDeroulantes!A62","v":"Nom"},null,null,null,null,null,null,null,null,null,null,null,null,null,null,null,"Grande entreprise"]
[{"$f":"ListesDeroulantes!A63","v":"Qualité"},null,null,null,null,null,null,null,null,null,null,null,null,null,null,null,"Établissement étranger"]
[]
[null,{"$f":"ListesDeroulantes!A93","v":"Demande financière détaillée du projet (montant HT en €, incluant la TVA non récupérable le cas échéant)"}]
[null,{"$f":"ListesDeroulantes!A94","v":"Equipements ou amortissement d'équipements de R&D"}]
[]
[null,null,null,null,{"$f":"ListesDeroulantes!A95","v":"Seuil d’immobilisation propre à l'établissement"},null,null,null,{"$f":"ListesDeroulantes!A96","v":"Le coût d'achat est égal ou supérieur au seuil d’immobilisation."}]
[]
[null,null,null,null,{"$f":"ListesDeroulantes!A$97","v":"Descriptif"},null,{"$f":"ListesDeroulantes!A$98","v":"WP concerné"},{"$f":"ListesDeroulantes!A$99","v":"Sous-WP"},{"$f":"ListesDeroulantes!A$101","v":"Coût d'achat\n(en €)"},{"$f":"ListesDeroulantes!A102","v":"Pourcentage d'utilisation (en %)"},{"$f":"ListesDeroulantes!A$103","v":"Coût total\n(en €)"},{"$f":"ListesDeroulantes!A$104","v":"Assiette de l'aide (en €) "}]
[]
[]
[null,{"$f":"B33+1","v":1},null,null,null,null,null,null,null,null,{"$f":"IF(J34<>0,I34*J34/100,I34)","v":0},null,null,null,{"$f":"IF(AND(ISNUMBER(L34),ISNUMBER(K34)),IF(L34>K34,ListesDeroulantes!A$195,\"\"),IF(AND(ISNUMBER(L34),NOT(ISNUMBER(K34))),ListesDeroulantes!A$195,\"\"))","v":""}]
[null,{"$f":"B34+1","v":2},null,null,null,null,null,null,null,null,{"$f":"IF(J35<>0,I35*J35/100,I35)","v":0},null,null,null,{"$f":"IF(AND(ISNUMBER(L35),ISNUMBER(K35)),IF(L35>K35,ListesDeroulantes!A$195,\"\"),IF(AND(ISNUMBER(L35),NOT(ISNUMBER(K35))),ListesDeroulantes!A$195,\"\"))","v":""}]
[null,{"$f":"B35+1","v":3},null,null,null,null,null,null,null,null,0,null,null,null,{"$f":"IF(AND(ISNUMBER(L36),ISNUMBER(K36)),IF(L36>K36,ListesDeroulantes!A$195,\"\"),IF(AND(ISNUMBER(L36),NOT(ISNUMBER(K36))),ListesDeroulantes!A$195,\"\"))","v":""}]
[null,null,null,null,"Total",null,null,null,null,null,{"$f":"IF(SUM(K34:K36)<>0,SUM(K34:K36),\"- €\")","v":"- €"},{"$f":"IF(SUM(L34:L36)<>0,SUM(L34:L36),\"- €\")","v":"- €"}]
[null,{"$f":"ListesDeroulantes!A105","v":"Personnels sans financement"}]
[]
[null,null,null,{"$f":"ListesDeroulantes!A$110","v":"Catégorie de personnel"},{"$f":"ListesDeroulantes!A$97","v":"Descriptif"},null,{"$f":"ListesDeroulantes!A$98","v":"WP concerné"},{"$f":"ListesDeroulantes!A$99","v":"Sous-WP"},{"$f":"ListesDeroulantes!A$118","v":"Coût mensuel (en €)"},{"$f":"ListesDeroulantes!A$119","v":"Personne. Mois"},{"$f":"ListesDeroulantes!A$103","v":"Coût total\n(en €)"}]
[]
[]
[null,{"$f":"B42+1","v":1},null,null,null,null,null,null,null,null,{"$f":"IF(I43*J43<>0,I43*J43,\"\")","v":""}]
[null,{"$f":"B43+1","v":2},null,null,null,null,null,null,null,null,{"$f":"IF(I44*J44<>0,I44*J44,\"\")","v":""}]
[null,{"$f":"B44+1","v":3},null,null,null,null,null,null,null,null,{"$f":"IF(I45*J45<>0,I45*J45,\"\")","v":""}]
[null,null,null,null,"Total",null,null,null,null,{"$f":"SUM(J43:J45)","v":0},{"$f":"SUM(K43:K45)","v":0}]
[null,{"$f":"ListesDeroulantes!A120","v":"Personnels avec financement en contrat à durée déterminée"}]
[]
[null,null,null,{"$f":"ListesDeroulantes!A$110","v":"Catégorie de personnel"},{"$f":"ListesDeroulantes!A$97","v":"Descriptif"},null,{"$f":"ListesDeroulantes!A$98","v":"WP concerné"},{"$f":"ListesDeroulantes!A$99","v":"Sous-WP"},{"$f":"ListesDeroulantes!A$118","v":"Coût mensuel (en €)"},{"$f":"ListesDeroulantes!A$119","v":"Personne. Mois"},{"$f":"ListesDeroulantes!A$103","v":"Coût total\n(en €)"},{"$f":"ListesDeroulantes!A$104","v":"Assiette de l'aide (en €) "}]
[]
[]
[null,{"$f":"B51+1","v":1},null,null,null,null,null,null,null,null,{"$f":"IF(I52*J52<>0,I52*J52,\"\")","v":""},null,null,null,{"$f":"IF(AND(ISNUMBER(L52),ISNUMBER(K52)),IF(L52>K52,ListesDeroulantes!A$195,\"\"),IF(AND(ISNUMBER(L52),NOT(ISNUMBER(K52))),ListesDeroulantes!A$195,\"\"))","v":""}]
[null,{"$f":"B52+1","v":2},null,null,null,null,null,null,null,null,{"$f":"IF(I53*J53<>0,I53*J53,\"\")","v":""},null,null,null,{"$f":"IF(AND(ISNUMBER(L53),ISNUMBER(K53)),IF(L53>K53,ListesDeroulantes!A$195,\"\"),IF(AND(ISNUMBER(L53),NOT(ISNUMBER(K53))),ListesDeroulantes!A$195,\"\"))","v":""}]
[null,{"$f":"B53+1","v":3},null,null,null,null,null,null,null,null,{"$f":"IF(I54*J54<>0,I54*J54,\"\")","v":""},null,null,null,{"$f":"IF(AND(ISNUMBER(L54),ISNUMBER(K54)),IF(L54>K54,ListesDeroulantes!A$195,\"\"),IF(AND(ISNUMBER(L54),NOT(ISNUMBER(K54))),ListesDeroulantes!A$195,\"\"))","v":""}]
[null,null,null,null,"Total",null,null,null,null,{"$f":"IF(SUM(J52:J54)<>0,SUM(J52:J54),\"-\")","v":"-"},{"$f":"IF(SUM(K52:K54)<>0,SUM(K52:K54),\"- €\")","v":"- €"},{"$f":"IF(SUM(L52:L54)<>0,SUM(L52:L54),\"- €\")","v":"- €"}]
[null,{"$f":"ListesDeroulantes!A127","v":"Personnels avec financement en contrat à durée indéterminée"}]
[]
[null,null,null,{"$f":"ListesDeroulantes!A$110","v":"Catégorie de personnel"},{"$f":"ListesDeroulantes!A$97","v":"Descriptif"},null,{"$f":"ListesDeroulantes!A$98","v":"WP concerné"},{"$f":"ListesDeroulantes!A$99","v":"Sous-WP"},{"$f":"ListesDeroulantes!A$118","v":"Coût mensuel (en €)"},{"$f":"ListesDeroulantes!A$119","v":"Personne. Mois"},{"$f":"ListesDeroulantes!A$103","v":"Coût total\n(en €)"},{"$f":"ListesDeroulantes!A$104","v":"Assiette de l'aide (en €) "}]
[]
[]
[null,{"$f":"B60+1","v":1},null,null,null,null,null,null,null,null,{"$f":"IF(I61*J61<>0,I61*J61,\"\")","v":""},null,null,null,{"$f":"IF(AND(ISNUMBER(L61),ISNUMBER(K61)),IF(L61>K61,ListesDeroulantes!A$195,\"\"),IF(AND(ISNUMBER(L61),NOT(ISNUMBER(K61))),ListesDeroulantes!A$195,\"\"))","v":""}]
[null,{"$f":"B61+1","v":2},null,null,null,null,null,null,null,null,{"$f":"IF(I62*J62<>0,I62*J62,\"\")","v":""},null,null,null,{"$f":"IF(AND(ISNUMBER(L62),ISNUMBER(K62)),IF(L62>K62,ListesDeroulantes!A$195,\"\"),IF(AND(ISNUMBER(L62),NOT(ISNUMBER(K62))),ListesDeroulantes!A$195,\"\"))","v":""}]
[null,{"$f":"B62+1","v":3},null,null,null,null,null,null,null,null,{"$f":"IF(I63*J63<>0,I63*J63,\"\")","v":""},null,null,null,{"$f":"IF(AND(ISNUMBER(L63),ISNUMBER(K63)),IF(L63>K63,ListesDeroulantes!A$195,\"\"),IF(AND(ISNUMBER(L63),NOT(ISNUMBER(K63))),ListesDeroulantes!A$195,\"\"))","v":""}]
[null,null,null,null,"Total",null,null,null,null,{"$f":"IF(SUM(J61:J63)<>0,SUM(J61:J63),\"-\")","v":"-"},{"$f":"IF(SUM(K61:K63)<>0,SUM(K61:K63),\"- €\")","v":"- €"},{"$f":"IF(SUM(L61:L63)<>0,SUM(L61:L63),\"- €\")","v":"- €"}]
[null,{"$f":"ListesDeroulantes!A128","v":"Heures complémentaires d’enseignement et modulation de service (établissements d'enseignement et formation, organismes de recherche)"}]
[]
[null,null,null,null,{"$f":"ListesDeroulantes!A$97","v":"Descriptif"},null,{"$f":"ListesDeroulantes!A$98","v":"WP concerné"},{"$f":"ListesDeroulantes!A$99","v":"Sous-WP"},null,null,{"$f":"ListesDeroulantes!A$103","v":"Coût total\n(en €)"},{"$f":"ListesDeroulantes!A$104","v":"Assiette de l'aide (en €) "}]
[]
[]
[null,{"$f":"B69+1","v":1},null,null,null,null,null,null,null,null,null,null,null,null,{"$f":"IF(AND(ISNUMBER(L70),ISNUMBER(K70)),IF(L70>K70,ListesDeroulantes!A$195,\"\"),IF(AND(ISNUMBER(L70),NOT(ISNUMBER(K70))),ListesDeroulantes!A$195,\"\"))","v":""}]
[null,{"$f":"B70+1","v":2},null,null,null,null,null,null,null,null,null,null,null,null,{"$f":"IF(AND(ISNUMBER(L71),ISNUMBER(K71)),IF(L71>K71,ListesDeroulantes!A$195,\"\"),IF(AND(ISNUMBER(L71),NOT(ISNUMBER(K71))),ListesDeroulantes!A$195,\"\"))","v":""}]
[null,{"$f":"B71+1","v":3},null,null,null,null,null,null,null,null,null,null,null,null,{"$f":"IF(AND(ISNUMBER(L72),ISNUMBER(K72)),IF(L72>K72,ListesDeroulantes!A$195,\"\"),IF(AND(ISNUMBER(L72),NOT(ISNUMBER(K72))),ListesDeroulantes!A$195,\"\"))","v":""}]
[null,null,null,null,"Total",null,null,null,null,null,{"$f":"IF(SUM(K70:K72)<>0,SUM(K70:K72),\"- €\")","v":"- €"},{"$f":"IF(SUM(L70:L72)<>0,SUM(L70:L72),\"- €\")","v":"- €"}]
[null,{"$f":"ListesDeroulantes!A129","v":"Reconnaissance au titre des activités prévues au référentiel horaire (établissements d'enseignement et formation, organismes de recherche)"}]
[]
[null,null,null,null,{"$f":"ListesDeroulantes!A$97","v":"Descriptif"},null,{"$f":"ListesDeroulantes!A$98","v":"WP concerné"},{"$f":"ListesDeroulantes!A$99","v":"Sous-WP"},null,null,{"$f":"ListesDeroulantes!A$103","v":"Coût total\n(en €)"},{"$f":"ListesDeroulantes!A$104","v":"Assiette de l'aide (en €) "}]
[]
[]
[null,{"$f":"B78+1","v":1},null,null,null,null,null,null,null,null,null,null,null,null,{"$f":"IF(AND(ISNUMBER(L79),ISNUMBER(K79)),IF(L79>K79,ListesDeroulantes!A$195,\"\"),IF(AND(ISNUMBER(L79),NOT(ISNUMBER(K79))),ListesDeroulantes!A$195,\"\"))","v":""}]
[null,{"$f":"B79+1","v":2},null,null,null,null,null,null,null,null,null,null,null,null,{"$f":"IF(AND(ISNUMBER(L80),ISNUMBER(K80)),IF(L80>K80,ListesDeroulantes!A$195,\"\"),IF(AND(ISNUMBER(L80),NOT(ISNUMBER(K80))),ListesDeroulantes!A$195,\"\"))","v":""}]
[null,{"$f":"B80+1","v":3},null,null,null,null,null,null,null,null,null,null,null,null,{"$f":"IF(AND(ISNUMBER(L81),ISNUMBER(K81)),IF(L81>K81,ListesDeroulantes!A$195,\"\"),IF(AND(ISNUMBER(L81),NOT(ISNUMBER(K81))),ListesDeroulantes!A$195,\"\"))","v":""}]
[null,null,null,null,"Total",null,null,null,null,null,{"$f":"IF(SUM(K79:K81)<>0,SUM(K79:K81),\"- €\")","v":"- €"},{"$f":"IF(SUM(L79:L81)<>0,SUM(L79:L81),\"- €\")","v":"- €"}]
[null,{"$f":"ListesDeroulantes!A130","v":"Prestations de service externes"}]
[]
[null,null,null,null,{"$f":"ListesDeroulantes!A$97","v":"Descriptif"},null,{"$f":"ListesDeroulantes!A$98","v":"WP concerné"},{"$f":"ListesDeroulantes!A$99","v":"Sous-WP"},null,null,{"$f":"ListesDeroulantes!A$103","v":"Coût total\n(en €)"},{"$f":"ListesDeroulantes!A$104","v":"Assiette de l'aide (en €) "}]
[]
[]
[null,{"$f":"B87+1","v":1},null,null,null,null,null,null,null,null,null,null,null,null,{"$f":"IF(AND(ISNUMBER(L88),ISNUMBER(K88)),IF(L88>K88,ListesDeroulantes!A$195,\"\"),IF(AND(ISNUMBER(L88),NOT(ISNUMBER(K88))),ListesDeroulantes!A$195,\"\"))","v":""}]
[null,{"$f":"B88+1","v":2},null,null,null,null,null,null,null,null,null,null,null,null,{"$f":"IF(AND(ISNUMBER(L89),ISNUMBER(K89)),IF(L89>K89,ListesDeroulantes!A$195,\"\"),IF(AND(ISNUMBER(L89),NOT(ISNUMBER(K89))),ListesDeroulantes!A$195,\"\"))","v":""}]
[null,{"$f":"B89+1","v":3},null,null,null,null,null,null,null,null,null,null,null,null,{"$f":"IF(AND(ISNUMBER(L90),ISNUMBER(K90)),IF(L90>K90,ListesDeroulantes!A$195,\"\"),IF(AND(ISNUMBER(L90),NOT(ISNUMBER(K90))),ListesDeroulantes!A$195,\"\"))","v":""}]
[null,null,null,null,"Total",null,null,null,null,null,{"$f":"IF(SUM(K88:K90)<>0,SUM(K88:K90),\"- €\")","v":"- €"},{"$f":"IF(SUM(L88:L90)<>0,SUM(L88:L90),\"- €\")","v":"- €"}]
[null,{"$f":"ListesDeroulantes!A131","v":"Missions"}]
[]
[null,null,null,null,{"$f":"ListesDeroulantes!A$97","v":"Descriptif"},null,{"$f":"ListesDeroulantes!A$98","v":"WP concerné"},{"$f":"ListesDeroulantes!A$99","v":"Sous-WP"},null,null,{"$f":"ListesDeroulantes!A$103","v":"Coût total\n(en €)"},{"$f":"ListesDeroulantes!A$104","v":"Assiette de l'aide (en €) "}]
[]
[]
[null,{"$f":"B96+1","v":1},null,null,null,null,null,null,null,null,null,null,null,null,{"$f":"IF(AND(ISNUMBER(L97),ISNUMBER(K97)),IF(L97>K97,ListesDeroulantes!A$195,\"\"),IF(AND(ISNUMBER(L97),NOT(ISNUMBER(K97))),ListesDeroulantes!A$195,\"\"))","v":""}]
[null,{"$f":"B97+1","v":2},null,null,null,null,null,null,null,null,null,null,null,null,{"$f":"IF(AND(ISNUMBER(L98),ISNUMBER(K98)),IF(L98>K98,ListesDeroulantes!A$195,\"\"),IF(AND(ISNUMBER(L98),NOT(ISNUMBER(K98))),ListesDeroulantes!A$195,\"\"))","v":""}]
[null,{"$f":"B98+1","v":3},null,null,null,null,null,null,null,null,null,null,null,null,{"$f":"IF(AND(ISNUMBER(L99),ISNUMBER(K99)),IF(L99>K99,ListesDeroulantes!A$195,\"\"),IF(AND(ISNUMBER(L99),NOT(ISNUMBER(K99))),ListesDeroulantes!A$195,\"\"))","v":""}]
[null,null,null,null,"Total",null,null,null,null,null,{"$f":"IF(SUM(K97:K99)<>0,SUM(K97:K99),\"- €\")","v":"- €"},{"$f":"IF(SUM(L97:L99)<>0,SUM(L97:L99),\"- €\")","v":"- €"}]
[null,{"$f":"ListesDeroulantes!A132","v":"Autres dépenses externes (consommables, petits matériels …)"}]
[]
[null,null,null,null,{"$f":"ListesDeroulantes!A$97","v":"Descriptif"},null,{"$f":"ListesDeroulantes!A$98","v":"WP concerné"},{"$f":"ListesDeroulantes!A$99","v":"Sous-WP"},null,null,{"$f":"ListesDeroulantes!A$103","v":"Coût total\n(en €)"},{"$f":"ListesDeroulantes!A$104","v":"Assiette de l'aide (en €) "}]
[]
[]
[null,{"$f":"B105+1","v":1},null,null,null,null,null,null,null,null,null,null,null,null,{"$f":"IF(AND(ISNUMBER(L106),ISNUMBER(K106)),IF(L106>K106,ListesDeroulantes!A$195,\"\"),IF(AND(ISNUMBER(L106),NOT(ISNUMBER(K106))),ListesDeroulantes!A$195,\"\"))","v":""}]
[null,{"$f":"B106+1","v":2},null,null,null,null,null,null,null,null,null,null,null,null,{"$f":"IF(AND(ISNUMBER(L107),ISNUMBER(K107)),IF(L107>K107,ListesDeroulantes!A$195,\"\"),IF(AND(ISNUMBER(L107),NOT(ISNUMBER(K107))),ListesDeroulantes!A$195,\"\"))","v":""}]
[null,{"$f":"B107+1","v":3},null,null,null,null,null,null,null,null,null,null,null,null,{"$f":"IF(AND(ISNUMBER(L108),ISNUMBER(K108)),IF(L108>K108,ListesDeroulantes!A$195,\"\"),IF(AND(ISNUMBER(L108),NOT(ISNUMBER(K108))),ListesDeroulantes!A$195,\"\"))","v":""}]
[null,null,null,null,"Total",null,null,null,null,null,{"$f":"IF(SUM(K106:K108)<>0,SUM(K106:K108),\"- €\")","v":"- €"},{"$f":"IF(SUM(L106:L108)<>0,SUM(L106:L108),\"- €\")","v":"- €"}]
[]
[]
[null,null,null,null,null,null,null,null,{"$f":"ListesDeroulantes!A138","v":"Taux (en %)"},null,{"$f":"ListesDeroulantes!A103","v":"Coût total\n(en €)"},{"$f":"ListesDeroulantes!A104","v":"Assiette de l'aide (en €) "}]
[]
[]
[null,null,null,null,{"$f":"ListesDeroulantes!A141","v":"Frais généraux (max. 20% des coûts entrant dans l'assiette de l'aide)"},null,null,null,null,null,{"$f":"L115","v":0},{"$f":"(SUM(L37,L46,L55,L64,L73,L82,L91,L100,L109))*I115/100","v":0}]
[]
[]
[null,null,null,null,{"$f":"ListesDeroulantes!A140","v":"Taux d'environnement (compris entre 0 et 100 % ; uniquement pour les organismes publics)"},null,null,null,null,null,{"$f":"(SUM(K46,K55,K64))*I118/100","v":0}]
[]
[]
[null,null,null,null,{"$f":"ListesDeroulantes!A144","v":"Coût complet du projet (hors frais d'environnement, en €)"},null,null,null,{"$f":"SUM(K115,K109,K100,K91,K82,K73,K64,K55,K46,K37)","v":0}]
[]
[null,null,null,null,{"$f":"ListesDeroulantes!A146","v":"Total éligible pour le calcul de l'aide : Total assiette de l'aide (en €)"},null,null,null,null,null,{"$f":"IF(SUM(L37,L55,L64,L73,L82,L91,L100,L109,L115)<>0,SUM(L37,L55,L64,L73,L82,L91,L100,L109,L115),\"- €\")","v":"- €"}]
[]
[null,null,{"$f":"IF(I125=FALSE,\"Erreur : le type de partenaire (cellule D12) n'est pas reinsegné\",\"\")","v":"Erreur : le type de partenaire (cellule D12) n'est pas reinsegné"},null,{"$f":"ListesDeroulantes!A148","v":"Taux d'aide demandé (%)"},null,null,null,{"$f":"Q9","v":false},null,null,null,null,null,{"$f":"IF(ISNUMBER(K125),\"\",ListesDeroulantes!A197)","v":"Erreur : le taux n'est pas renseigné."}]
[]
[null,null,null,null,{"$f":"ListesDeroulantes!A152","v":"Aide demandée (en €)"},null,null,null,null,null,{"$f":"IF(AND(ISNUMBER(K123),ISNUMBER(K125)),K123*K125/100,\"- €\")","v":"- €"}]
[]
[]
[null,null,null,null,{"$f":"ListesDeroulantes!A145","v":"Coût complet du projet comprenant les frais d'environnement (en €)"},null,null,null,{"$f":"(SUM(K118,K115,K109,K100,K91,K82,K73,K64,K55,K46,K37))","v":0}]
[]
[]
[null,{"$f":"ListesDeroulantes!A163","v":"Autres soutiens financiers (sollicités ou obtenus par le partenaire pour le projet)"}]
[]
[]
[null,{"$f":"ListesDeroulantes!A164","v":"Identification des financeurs"},null,null,{"$f":"ListesDeroulantes!A165","v":"Nature et objet du financement et, le cas échéant, WP(s) et tâche(s) concernés"},{"$f":"ListesDeroulantes!A166","v":"Type de financement (public/privé)"},{"$f":"ListesDeroulantes!A169","v":"Montant sollicité"},null,null,{"$f":"ListesDeroulantes!A170","v":"Montant obtenu"},null,{"$f":"ListesDeroulantes!A171","v":"Date effective ou prévue du financement"}]
[]
[]
[]
[]
[]
[]
[]
[null,null,null,null,"Sous-total autres financements publics",null,{"$f":"SUMIF(F141:F143,\"Public\",G141:I143)","v":0},null,null,{"$f":"SUMIF(F141:F143,\"Public\",J141:K143)","v":0}]
[null,null,null,null,"Sous-total autres financements privés",null,{"$f":"SUMIF(F141:F143,\"Privé\",G141:I143)","v":0},null,null,{"$f":"SUMIF(F141:F143,\"Privé\",J141:K143)","v":0}]
[null,null,null,null,"Total",null,{"$f":"IF(SUM(G144:I145)<>0,SUM(G144:I145),\"- €\")","v":"- €"},null,null,{"$f":"IF(SUM(J144:K145)<>0,SUM(J144:K145),\"- €\")","v":"- €"}]
[]
[null,{"$f":"ListesDeroulantes!A172","v":"Publication d'informations relatives au projet"}]
[]
[null,{"$f":"ListesDeroulantes!A173","v":"Si le projet est retenu pour financement, l'opérateur se réserve la possibilité de rendre publiques les informations suivantes : nom du responsable du projet, dénominations des partenaires qu'ils soient des entreprises ou qu'ils appartiennent à un organisme de recherche. L'opérateur ne rendra pas publiques les informations sur les personnes ou les partenaires qui en auront fait le demande."}]
[]
[]
[]
[]
[null,{"$f":"ListesDeroulantes!A174","v":"En cas de refus de publication remplacer ci-dessous la mention \"Oui\" par \"Non\" : "}]
[]
[]
[null,{"$f":"ListesDeroulantes!A179","v":"Dénomination du partenaire (si \"Non\", celle-ci sera remplacée par la mention générique \"Entreprise\" ou \"Organisme de recherche\") : "},null,null,null,null,null,null,null,{"$f":"ListesDeroulantes!A$175","v":"Oui"}]
[]
[null,{"$f":"ListesDeroulantes!A180","v":"Nota : en déposant un projet, les partenaires ont accepté que l'opérateur publie l'acronyme, le titre, le résumé, l'aide accordée au projet, la date de début de projet et la durée."}]
[]
[null,{"$f":"ListesDeroulantes!A181","v":"Commentaires (le cas échéant)"}]
[]
[]
[]
[]
[]
[]
[null,{"$f":"ListesDeroulantes!A182","v":"Les informations personnelles transmises dans ces documents sont obligatoires et seront conservées en fichiers par l'opérateur pour assurer la conduite opérationnelle de l'évaluation et l'administration des dossiers.\nConformément à la loi n° 78-17 du 6 janvier 1978 modifiée, relative à l'Informatique, aux Fichiers et aux Libertés, les personnes concernées disposent d'un droit d'accès et de rectification des données personnelles les concernant. Les personnes concernées peuvent exercer ce droit en s'adressant à l'opérateur (voir coordonnées dans le texte de l’appel à projets)."}]
[]
[]
[]
["Lettre d’engagement"]
[]
["Le présent engagement est à compléter, signer, viser par la personne habilitée à engager l’Etablissement."]
[]
["LIEN DU SITE DE DEPOT"]
["https://france2030.agencerecherche.fr/CMA/accueil.php?"]
[]
["Ayant le pouvoir d'engager juridiquement l'établissement ci-dessus, je déclare :"]
["▪ avoir pris connaissance du dossier complet de dépôt (document de description du projet, y compris son annexe, et document administratif et financier) tel que déposé sur le site de l’ANR et du règlement relatif aux modalités d'attribution des aides au titre de l’AMI- CMA ;"]
["▪ m'engager à négocier et signer un accord de consortium (ou équivalent) et mettre en œuvre tous les moyens nécessaires pour finaliser ce document dans les conditions et délais prévus par le règlement relatif aux modalités d'attribution des aides précité ;"]
["▪ m'engager à mettre en œuvre tous les moyens nécessaires à la réalisation du projet tels que décrits dans le dossier de dépôt, dans les conditions prévues par le règlement relatif aux modalités d'attribution des aides précité ;"]
["▪ m'engager à respecter les engagements financiers tels que détaillés dans le document administratif et financier du document déposé ;"]
["▪ m’engager à mettre en œuvre les recrutements sur contrat des personnels nécessaires à la réalisation de la proposition déposée et cela en conformité avec tous les lois et règlements en vigueur applicables ; à mettre à disposition des personnels engagés dans la réalisation du projet les surfaces de travail nécessaires à l’accomplissement de leurs missions pendant la durée du projet ;"]
["▪ souscrire aux obligations qui découlent du financement du projet par l’ANR, notamment à des fins d'évaluation globale de l'action ;"]
["▪ que le projet ne cause pas un préjudice important du point de vue de l’environnement (application du principe DNSH – Do No Significant Harm ou « absence de préjudice important ») au sens de l’article 17 du règlement européen sur la taxonomie ;"]
[{"$f":"IF(Q11=\"Entreprise\", \"▪ m’engager à ne pas avoir initié de travaux liés au projet déposé.\", \"\")","v":"▪ m’engager à ne pas avoir initié de travaux liés au projet déposé."}]
[]
[null,null,null,null,null,{"$f":"ListesDeroulantes!A185","v":"Personne habilitée à engager l'établissement partenaire (EP)"}]
[]
[null,null,null,null,null,{"$f":"ListesDeroulantes!A61","v":"Prénom"},null,null,null,{"$f":"ListesDeroulantes!A62","v":"Nom"}]
[null,null,null,null,null,{"$f":"IF(D22<>\"\",D22,\"\")","v":""},null,null,null,{"$f":"IF(D23<>\"\",D23,\"\")","v":""}]
[null,null,null,null,null,{"$f":"ListesDeroulantes!A63","v":"Qualité"}]
[null,null,null,null,null,{"$f":"IF(D24<>\"\",D24,\"\")","v":""}]
[]
[null,null,null,null,null,"Signature & Cachet"]

{"sheet":"Part6","index":8,"n_rows":197,"n_cols":17,"rows_kept":197,"cut":false,"hidden":false,"merged":[[6,0,7,2],[6,3,7,11],[6,14,7,14],[9,0,9,2],[9,5,9,11],[10,0,10,2],[10,3,10,5],[0,0,2,4],[0,5,0,11],[0,14,4,14],[1,5,1,8],[1,9,1,11],[2,5,2,8],[2,9,2,11],[4,1,4,11],[14,14,16,14],[16,0,16,2],[18,1,18,11],[20,0,20,2],[20,14,23,14],[21,0,21,2],[21,3,21,11],[22,0,22,2],[11,0,12,2],[11,3,12,3],[11,5,12,11],[13,0,13,2],[14,0,15,2],[14,4,16,4],[14,5,16,5],[14,6,16,6],[14,8,16,8],[14,9,16,9],[22,3,22,11],[23,0,23,2],[23,3,23,11],[25,1,25,11],[26,1,27,11],[28,4,28,6],[28,8,28,11],[14,10,16,10],[14,11,16,11],[30,8,32,8],[30,9,32,9],[30,10,32,10],[30,11,32,11],[30,14,32,14],[33,4,33,5],[30,1,32,1],[30,2,32,2],[30,3,32,3],[30,4,32,5],[30,6,32,6],[30,7,32,7],[39,9,41,9],[39,10,41,10],[39,11,41,11],[42,4,42,5],[43,4,43,5],[44,4,44,5],[34,4,34,5],[35,4,35,5],[37,1,38,11],[39,1,41,1],[39,2,41,2],[39,3,41,3],[39,4,41,5],[39,6,41,6],[39,7,41,7],[39,8,41,8],[46,1,47,11],[48,1,50,1],[48,2,50,2],[48,3,50,3],[48,4,50,5],[48,6,50,6],[48,7,50,7],[48,8,50,8],[48,9,50,9],[48,10,50,10],[57,7,59,7],[57,8,59,8],[57,9,59,9],[57,10,59,10],[57,11,59,11],[60,4,60,5],[48,11,50,11],[51,4,51,5],[52,4,52,5],[53,4,53,5],[55,1,56,11],[57,1,59,1],[57,2,59,2],[57,3,59,3],[57,4,59,5],[57,6,59,6],[66,9,68,9],[66,10,68,10],[66,11,68,11],[69,4,69,5],[70,4,70,5],[71,4,71,5],[61,4,61,5],[62,4,62,5],[64,1,65,11],[66,1,68,1],[66,2,68,2],[66,3,68,3],[66,4,68,5],[66,6,68,6],[66,7,68,7],[66,8,68,8],[73,1,74,11],[75,1,77,1],[75,2,77,2],[75,3,77,3],[75,4,77,5],[75,6,77,6],[75,7,77,7],[75,8,77,8],[75,9,77,9],[75,10,77,10],[84,7,86,7],[84,8,86,8],[84,9,86,9],[84,10,86,10],[84,11,86,11],[87,4,87,5],[75,11,77,11],[78,4,78,5],[79,4,79,5],[80,4,80,5],[82,1,83,11],[84,1,86,1],[84,2,86,2],[84,3,86,3],[84,4,86,5],[84,6,86,6],[93,9,95,9],[93,10,95,10],[93,11,95,11],[96,4,96,5],[97,4,97,5],[98,4,98,5],[88,4,88,5],[89,4,89,5],[91,1,92,11],[93,1,95,1],[93,2,95,2],[93,3,95,3],[93,4,95,5],[93,6,95,6],[93,7,95,7],[93,8,95,8],[102,11,104,11],[105,4,105,5],[106,4,106,5],[107,4,107,5],[109,1,110,11],[109,14,110,14],[100,1,101,11],[102,1,104,1],[102,2,104,2],[102,3,104,3],[102,4,104,5],[102,6,104,6],[102,7,104,7],[102,8,104,8],[102,9,104,9],[102,10,104,10],[114,14,115,14],[117,0,118,0],[117,4,118,7],[117,8,118,8],[117,9,118,9],[117,10,118,10],[117,11,118,11],[117,14,118,14],[111,4,113,7],[111,8,113,8],[111,9,113,9],[111,10,113,10],[111,11,113,11],[114,4,115,7],[114,8,115,8],[114,9,115,9],[114,10,115,10],[114,11,115,11],[124,4,125,7],[124,8,125,9],[124,10,125,11],[124,14,125,14],[126,4,127,7],[126,8,127,9],[126,10,127,11],[120,4,121,7],[120,8,121,9],[120,10,121,11],[122,4,123,7],[122,8,123,9],[122,10,123,11],[140,1,140,3],[140,6,140,8],[140,9,140,10],[141,1,141,3],[141,6,141,8],[141,9,141,10],[129,4,130,7],[129,8,130,9],[132,1,132,11],[133,1,133,11],[135,1,139,3],[135,4,139,4],[135,5,139,5],[135,6,139,8],[135,9,139,10],[135,11,139,11],[144,4,144,5],[144,6,144,8],[144,9,144,10],[145,4,145,5],[145,6,145,8],[145,9,145,10],[142,1,142,3],[142,6,142,8],[142,9,142,10],[143,4,143,5],[143,6,143,8],[143,9,143,10],[163,1,166,11],[168,1,170,11],[172,0,172,11],[174,0,174,11],[147,1,147,11],[149,1,152,11],[154,1,154,11],[155,1,155,8],[156,1,156,8],[157,1,157,8],[124,2,125,3],[196,5,196,10],[197,5,200,10],[191,5,191,8],[191,9,191,10],[191,14,194,14],[192,5,192,8],[192,9,192,10],[193,5,193,10],[194,5,194,10],[183,0,183,11],[184,0,184,11],[185,0,185,11],[186,0,186,11],[187,0,187,11],[189,5,189,10],[176,0,176,11],[177,0,177,11],[179,0,179,11],[180,0,180,11],[181,0,181,11],[182,0,182,11],[159,1,159,11],[161,1,161,11]]}
[{"$f":"ListesDeroulantes!A64&IF(ISNUMBER(RIGHT(CELL(\"filename\",$A$1),2)*1),RIGHT(CELL(\"filename\",$A$1),2)*1,IF(ISNUMBER(RIGHT(CELL(\"filename\",$A$1),1)*1),RIGHT(CELL(\"filename\",$A$1),1)*1,\"N/A\"))&ListesDeroulantes!A65","v":"Fiche partenaire n°6 : Identification et budget"}]
[null,null,null,null,null,{"$f":"ListesDeroulantes!A4","v":"N° de partenaire"},null,null,null,{"$f":"Volet_general!$Q$2 & \"-\" &IF(IF(ISNUMBER(RIGHT(CELL(\"filename\",$A$1),2)*1),RIGHT(CELL(\"filename\",$A$1),2)*1,IF(ISNUMBER(RIGHT(CELL(\"filename\",$A$1),1)*1),RIGHT(CELL(\"filename\",$A$1),1)*1,\"#N/A\"))<10,\"0\",\"\")&IF(ISNUMBER(RIGHT(CELL(\"filename\",$A$1),2)*1),RIGHT(CELL(\"filename\",$A$1),2)*1,IF(ISNUMBER(RIGHT(CELL(\"filename\",$A$1),1)*1),RIGHT(CELL(\"filename\",$A$1),1)*1,\"#N/A\"))","v":"2023-06"}]
[null,null,null,null,null,{"$f":"ListesDeroulantes!A5","v":"Acronyme"},null,null,null,{"$f":"Volet_general!D12","v":0}]
[]
[null,{"$f":"ListesDeroulantes!A66","v":"Identification de l'établissement partenaire"}]
[]
[{"$f":"ListesDeroulantes!A67","v":"Nom complet du partenaire"}]
[null,null,null,null,null,null,null,null,null,null,null,null,null,null,null,null,"Taux"]
[null,null,null,null,null,null,null,null,null,null,null,null,null,null,null,null,{"$f":"IF(Volet_general!F21=\"Oui\",\nIF(Q11=\"OR\",\"Taux max 100%\",\n(IF(D12=\"Petite entreprise\",\"Taux max 60%\",\n(IF(D12=\"Moyenne entreprise\",\"Taux max 50%\",\n(IF(D12=\"Grande entreprise\",\"Taux max 40%\",\n(IF(D12=\"Établissement étranger\",\"Etablissement non éligible à l'aide\"))))))))),\nIF(Q11=\"OR\",\"Taux max 100%\",\n(IF(D12=\"Petite entreprise\",\"Taux max 45%\",\n(IF(D12=\"Moyenne entreprise\",\"Taux max 35%\",\n(IF(D12=\"Grande entreprise\",\"Taux max 25%\",\n(IF(D12=\"Établissement étranger\",\"Etablissement non éligible à l'aide\"))))))))))","v":false}]
[{"$f":"ListesDeroulantes!A68","v":"Sigle du partenaire "},null,null,null,null,null,null,null,null,null,null,null,null,null,null,null,"OR/Entreprise"]
[null,null,null,null,null,null,null,null,null,null,null,null,null,null,null,null,{"$f":"IF(OR(D12=Q12,D12=Q13,D12=Q14,D12=Q15,D12=Q16,D12=Q17,D12=Q18,D12=Q19,D12=Q20),\"OR\",\"Entreprise\")","v":"Entreprise"}]
[{"$f":"ListesDeroulantes!A72","v":"Forme juridique"},null,null,null,null,null,null,null,null,null,null,null,null,null,{"$f":"IF(OR(D11=ListesDeroulantes!B77,D11=ListesDeroulantes!C77),IF(COUNTIF(ListesDeroulantes!B79:C83,D12)>0,ListesDeroulantes!A193,\"\"),\"\")&IF(OR(D11=ListesDeroulantes!B76,D11=ListesDeroulantes!C76),IF(COUNTIF(ListesDeroulantes!B84:C86,D12)>0,ListesDeroulantes!A193,\"\"),\"\")","v":""},null,"EPSCP"]
[null,null,null,null,null,null,null,null,null,null,null,null,null,null,null,null,"EPST"]
[null,null,null,null,null,null,null,null,null,null,null,null,null,null,null,null,"EPLE"]
[{"$f":"ListesDeroulantes!A84","v":"N° de SIRET"},null,null,{"$f":"ListesDeroulantes!A85","v":"Saisir un n°SIRET de 14digits"},null,null,null,null,null,null,null,null,null,null,null,null,"EPA"]
[null,null,null,null,null,null,null,null,null,null,null,null,null,null,null,null,"EPIC"]
[{"$f":"ListesDeroulantes!A86","v":"Assujetti à la TVA "},null,null,null,null,null,null,null,null,null,null,null,null,null,null,null,"Fondation de recherche"]
[null,null,null,null,null,null,null,null,null,null,null,null,null,null,null,null,"Association à but non lucratif"]
[null,{"$f":"ListesDeroulantes!A89","v":"Personne habilitée à représenter juridiquement l'établissement partenaire (pour signature du contrat attributif d'aide ou de reversement)"},null,null,null,null,null,null,null,null,null,null,null,null,null,null,"Autre établissement public à but non lucratif"]
[null,null,null,null,null,null,null,null,null,null,null,null,null,null,null,null,"Autre établissement privé à but non lucratif"]
[{"$f":"ListesDeroulantes!A90","v":"Genre"},null,null,null,null,null,null,null,null,null,null,null,null,null,null,null,"Petite entreprise"]
[{"$f":"ListesDeroulantes!A61","v":"Prénom"},null,null,null,null,null,null,null,null,null,null,null,null,null,null,null,"Moyenne entreprise"]
[{"$f":"ListesDeroulantes!A62","v":"Nom"},null,null,null,null,null,null,null,null,null,null,null,null,null,null,null,"Grande entreprise"]
[{"$f":"ListesDeroulantes!A63","v":"Qualité"},null,null,null,null,null,null,null,null,null,null,null,null,null,null,null,"Établissement étranger"]
[]
[null,{"$f":"ListesDeroulantes!A93","v":"Demande financière détaillée du projet (montant HT en €, incluant la TVA non récupérable le cas échéant)"}]
[null,{"$f":"ListesDeroulantes!A94","v":"Equipements ou amortissement d'équipements de R&D"}]
[]
[null,null,null,null,{"$f":"ListesDeroulantes!A95","v":"Seuil d’immobilisation propre à l'établissement"},null,null,null,{"$f":"ListesDeroulantes!A96","v":"Le coût d'achat est égal ou supérieur au seuil d’immobilisation."}]
[]
[null,null,null,null,{"$f":"ListesDeroulantes!A$97","v":"Descriptif"},null,{"$f":"ListesDeroulantes!A$98","v":"WP concerné"},{"$f":"ListesDeroulantes!A$99","v":"Sous-WP"},{"$f":"ListesDeroulantes!A$101","v":"Coût d'achat\n(en €)"},{"$f":"ListesDeroulantes!A102","v":"Pourcentage d'utilisation (en %)"},{"$f":"ListesDeroulantes!A$103","v":"Coût total\n(en €)"},{"$f":"ListesDeroulantes!A$104","v":"Assiette de l'aide (en €) "}]
[]
[]
[null,{"$f":"B33+1","v":1},null,null,null,null,null,null,null,null,{"$f":"IF(J34<>0,I34*J34/100,I34)","v":0},null,null,null,{"$f":"IF(AND(ISNUMBER(L34),ISNUMBER(K34)),IF(L34>K34,ListesDeroulantes!A$195,\"\"),IF(AND(ISNUMBER(L34),NOT(ISNUMBER(K34))),ListesDeroulantes!A$195,\"\"))","v":""}]
[null,{"$f":"B34+1","v":2},null,null,null,null,null,null,null,null,{"$f":"IF(J35<>0,I35*J35/100,I35)","v":0},null,null,null,{"$f":"IF(AND(ISNUMBER(L35),ISNUMBER(K35)),IF(L35>K35,ListesDeroulantes!A$195,\"\"),IF(AND(ISNUMBER(L35),NOT(ISNUMBER(K35))),ListesDeroulantes!A$195,\"\"))","v":""}]
[null,{"$f":"B35+1","v":3},null,null,null,null,null,null,null,null,0,null,null,null,{"$f":"IF(AND(ISNUMBER(L36),ISNUMBER(K36)),IF(L36>K36,ListesDeroulantes!A$195,\"\"),IF(AND(ISNUMBER(L36),NOT(ISNUMBER(K36))),ListesDeroulantes!A$195,\"\"))","v":""}]
[null,null,null,null,"Total",null,null,null,null,null,{"$f":"IF(SUM(K34:K36)<>0,SUM(K34:K36),\"- €\")","v":"- €"},{"$f":"IF(SUM(L34:L36)<>0,SUM(L34:L36),\"- €\")","v":"- €"}]
[null,{"$f":"ListesDeroulantes!A105","v":"Personnels sans financement"}]
[]
[null,null,null,{"$f":"ListesDeroulantes!A$110","v":"Catégorie de personnel"},{"$f":"ListesDeroulantes!A$97","v":"Descriptif"},null,{"$f":"ListesDeroulantes!A$98","v":"WP concerné"},{"$f":"ListesDeroulantes!A$99","v":"Sous-WP"},{"$f":"ListesDeroulantes!A$118","v":"Coût mensuel (en €)"},{"$f":"ListesDeroulantes!A$119","v":"Personne. Mois"},{"$f":"ListesDeroulantes!A$103","v":"Coût total\n(en €)"}]
[]
[]
[null,{"$f":"B42+1","v":1},null,null,null,null,null,null,null,null,{"$f":"IF(I43*J43<>0,I43*J43,\"\")","v":""}]
[null,{"$f":"B43+1","v":2},null,null,null,null,null,null,null,null,{"$f":"IF(I44*J44<>0,I44*J44,\"\")","v":""}]
[null,{"$f":"B44+1","v":3},null,null,null,null,null,null,null,null,{"$f":"IF(I45*J45<>0,I45*J45,\"\")","v":""}]
[null,null,null,null,"Total",null,null,null,null,{"$f":"SUM(J43:J45)","v":0},{"$f":"SUM(K43:K45)","v":0}]
[null,{"$f":"ListesDeroulantes!A120","v":"Personnels avec financement en contrat à durée déterminée"}]
[]
[null,null,null,{"$f":"ListesDeroulantes!A$110","v":"Catégorie de personnel"},{"$f":"ListesDeroulantes!A$97","v":"Descriptif"},null,{"$f":"ListesDeroulantes!A$98","v":"WP concerné"},{"$f":"ListesDeroulantes!A$99","v":"Sous-WP"},{"$f":"ListesDeroulantes!A$118","v":"Coût mensuel (en €)"},{"$f":"ListesDeroulantes!A$119","v":"Personne. Mois"},{"$f":"ListesDeroulantes!A$103","v":"Coût total\n(en €)"},{"$f":"ListesDeroulantes!A$104","v":"Assiette de l'aide (en €) "}]
[]
[]
[null,{"$f":"B51+1","v":1},null,null,null,null,null,null,null,null,{"$f":"IF(I52*J52<>0,I52*J52,\"\")","v":""},null,null,null,{"$f":"IF(AND(ISNUMBER(L52),ISNUMBER(K52)),IF(L52>K52,ListesDeroulantes!A$195,\"\"),IF(AND(ISNUMBER(L52),NOT(ISNUMBER(K52))),ListesDeroulantes!A$195,\"\"))","v":""}]
[null,{"$f":"B52+1","v":2},null,null,null,null,null,null,null,null,{"$f":"IF(I53*J53<>0,I53*J53,\"\")","v":""},null,null,null,{"$f":"IF(AND(ISNUMBER(L53),ISNUMBER(K53)),IF(L53>K53,ListesDeroulantes!A$195,\"\"),IF(AND(ISNUMBER(L53),NOT(ISNUMBER(K53))),ListesDeroulantes!A$195,\"\"))","v":""}]
[null,{"$f":"B53+1","v":3},null,null,null,null,null,null,null,null,{"$f":"IF(I54*J54<>0,I54*J54,\"\")","v":""},null,null,null,{"$f":"IF(AND(ISNUMBER(L54),ISNUMBER(K54)),IF(L54>K54,ListesDeroulantes!A$195,\"\"),IF(AND(ISNUMBER(L54),NOT(ISNUMBER(K54))),ListesDeroulantes!A$195,\"\"))","v":""}]
[null,null,null,null,"Total",null,null,null,null,{"$f":"IF(SUM(J52:J54)<>0,SUM(J52:J54),\"-\")","v":"-"},{"$f":"IF(SUM(K52:K54)<>0,SUM(K52:K54),\"- €\")","v":"- €"},{"$f":"IF(SUM(L52:L54)<>0,SUM(L52:L54),\"- €\")","v":"- €"}]
[null,{"$f":"ListesDeroulantes!A127","v":"Personnels avec financement en contrat à durée indéterminée"}]
[]
[null,null,null,{"$f":"ListesDeroulantes!A$110","v":"Catégorie de personnel"},{"$f":"ListesDeroulantes!A$97","v":"Descriptif"},null,{"$f":"ListesDeroulantes!A$98","v":"WP concerné"},{"$f":"ListesDeroulantes!A$99","v":"Sous-WP"},{"$f":"ListesDeroulantes!A$118","v":"Coût mensuel (en €)"},{"$f":"ListesDeroulantes!A$119","v":"Personne. Mois"},{"$f":"ListesDeroulantes!A$103","v":"Coût total\n(en €)"},{"$f":"ListesDeroulantes!A$104","v":"Assiette de l'aide (en €) "}]
[]
[]
[null,{"$f":"B60+1","v":1},null,null,null,null,null,null,null,null,{"$f":"IF(I61*J61<>0,I61*J61,\"\")","v":""},null,null,null,{"$f":"IF(AND(ISNUMBER(L61),ISNUMBER(K61)),IF(L61>K61,ListesDeroulantes!A$195,\"\"),IF(AND(ISNUMBER(L61),NOT(ISNUMBER(K61))),ListesDeroulantes!A$195,\"\"))","v":""}]
[null,{"$f":"B61+1","v":2},null,null,null,null,null,null,null,null,{"$f":"IF(I62*J62<>0,I62*J62,\"\")","v":""},null,null,null,{"$f":"IF(AND(ISNUMBER(L62),ISNUMBER(K62)),IF(L62>K62,ListesDeroulantes!A$195,\"\"),IF(AND(ISNUMBER(L62),NOT(ISNUMBER(K62))),ListesDeroulantes!A$195,\"\"))","v":""}]
[null,{"$f":"B62+1","v":3},null,null,null,null,null,null,null,null,{"$f":"IF(I63*J63<>0,I63*J63,\"\")","v":""},null,null,null,{"$f":"IF(AND(ISNUMBER(L63),ISNUMBER(K63)),IF(L63>K63,ListesDeroulantes!A$195,\"\"),IF(AND(ISNUMBER(L63),NOT(ISNUMBER(K63))),ListesDeroulantes!A$195,\"\"))","v":""}]
[null,null,null,null,"Total",null,null,null,null,{"$f":"IF(SUM(J61:J63)<>0,SUM(J61:J63),\"-\")","v":"-"},{"$f":"IF(SUM(K61:K63)<>0,SUM(K61:K63),\"- €\")","v":"- €"},{"$f":"IF(SUM(L61:L63)<>0,SUM(L61:L63),\"- €\")","v":"- €"}]
[null,{"$f":"ListesDeroulantes!A128","v":"Heures complémentaires d’enseignement et modulation de service (établissements d'enseignement et formation, organismes de recherche)"}]
[]
[null,null,null,null,{"$f":"ListesDeroulantes!A$97","v":"Descriptif"},null,{"$f":"ListesDeroulantes!A$98","v":"WP concerné"},{"$f":"ListesDeroulantes!A$99","v":"Sous-WP"},null,null,{"$f":"ListesDeroulantes!A$103","v":"Coût total\n(en €)"},{"$f":"ListesDeroulantes!A$104","v":"Assiette de l'aide (en €) "}]
[]
[]
[null,{"$f":"B69+1","v":1},null,null,null,null,null,null,null,null,null,null,null,null,{"$f":"IF(AND(ISNUMBER(L70),ISNUMBER(K70)),IF(L70>K70,ListesDeroulantes!A$195,\"\"),IF(AND(ISNUMBER(L70),NOT(ISNUMBER(K70))),ListesDeroulantes!A$195,\"\"))","v":""}]
[null,{"$f":"B70+1","v":2},null,null,null,null,null,null,null,null,null,null,null,null,{"$f":"IF(AND(ISNUMBER(L71),ISNUMBER(K71)),IF(L71>K71,ListesDeroulantes!A$195,\"\"),IF(AND(ISNUMBER(L71),NOT(ISNUMBER(K71))),ListesDeroulantes!A$195,\"\"))","v":""}]
[null,{"$f":"B71+1","v":3},null,null,null,null,null,null,null,null,null,null,null,null,{"$f":"IF(AND(ISNUMBER(L72),ISNUMBER(K72)),IF(L72>K72,ListesDeroulantes!A$195,\"\"),IF(AND(ISNUMBER(L72),NOT(ISNUMBER(K72))),ListesDeroulantes!A$195,\"\"))","v":""}]
[null,null,null,null,"Total",null,null,null,null,null,{"$f":"IF(SUM(K70:K72)<>0,SUM(K70:K72),\"- €\")","v":"- €"},{"$f":"IF(SUM(L70:L72)<>0,SUM(L70:L72),\"- €\")","v":"- €"}]
[null,{"$f":"ListesDeroulantes!A129","v":"Reconnaissance au titre des activités prévues au référentiel horaire (établissements d'enseignement et formation, organismes de recherche)"}]
[]
[null,null,null,null,{"$f":"ListesDeroulantes!A$97","v":"Descriptif"},null,{"$f":"ListesDeroulantes!A$98","v":"WP concerné"},{"$f":"ListesDeroulantes!A$99","v":"Sous-WP"},null,null,{"$f":"ListesDeroulantes!A$103","v":"Coût total\n(en €)"},{"$f":"ListesDeroulantes!A$104","v":"Assiette de l'aide (en €) "}]
[]
[]
[null,{"$f":"B78+1","v":1},null,null,null,null,null,null,null,null,null,null,null,null,{"$f":"IF(AND(ISNUMBER(L79),ISNUMBER(K79)),IF(L79>K79,ListesDeroulantes!A$195,\"\"),IF(AND(ISNUMBER(L79),NOT(ISNUMBER(K79))),ListesDeroulantes!A$195,\"\"))","v":""}]
[null,{"$f":"B79+1","v":2},null,null,null,null,null,null,null,null,null,null,null,null,{"$f":"IF(AND(ISNUMBER(L80),ISNUMBER(K80)),IF(L80>K80,ListesDeroulantes!A$195,\"\"),IF(AND(ISNUMBER(L80),NOT(ISNUMBER(K80))),ListesDeroulantes!A$195,\"\"))","v":""}]
[null,{"$f":"B80+1","v":3},null,null,null,null,null,null,null,null,null,null,null,null,{"$f":"IF(AND(ISNUMBER(L81),ISNUMBER(K81)),IF(L81>K81,ListesDeroulantes!A$195,\"\"),IF(AND(ISNUMBER(L81),NOT(ISNUMBER(K81))),ListesDeroulantes!A$195,\"\"))","v":""}]
[null,null,null,null,"Total",null,null,null,null,null,{"$f":"IF(SUM(K79:K81)<>0,SUM(K79:K81),\"- €\")","v":"- €"},{"$f":"IF(SUM(L79:L81)<>0,SUM(L79:L81),\"- €\")","v":"- €"}]
[null,{"$f":"ListesDeroulantes!A130","v":"Prestations de service externes"}]
[]
[null,null,null,null,{"$f":"ListesDeroulantes!A$97","v":"Descriptif"},null,{"$f":"ListesDeroulantes!A$98","v":"WP concerné"},{"$f":"ListesDeroulantes!A$99","v":"Sous-WP"},null,null,{"$f":"ListesDeroulantes!A$103","v":"Coût total\n(en €)"},{"$f":"ListesDeroulantes!A$104","v":"Assiette de l'aide (en €) "}]
[]
[]
[null,{"$f":"B87+1","v":1},null,null,null,null,null,null,null,null,null,null,null,null,{"$f":"IF(AND(ISNUMBER(L88),ISNUMBER(K88)),IF(L88>K88,ListesDeroulantes!A$195,\"\"),IF(AND(ISNUMBER(L88),NOT(ISNUMBER(K88))),ListesDeroulantes!A$195,\"\"))","v":""}]
[null,{"$f":"B88+1","v":2},null,null,null,null,null,null,null,null,null,null,null,null,{"$f":"IF(AND(ISNUMBER(L89),ISNUMBER(K89)),IF(L89>K89,ListesDeroulantes!A$195,\"\"),IF(AND(ISNUMBER(L89),NOT(ISNUMBER(K89))),ListesDeroulantes!A$195,\"\"))","v":""}]
[null,{"$f":"B89+1","v":3},null,null,null,null,null,null,null,null,null,null,null,null,{"$f":"IF(AND(ISNUMBER(L90),ISNUMBER(K90)),IF(L90>K90,ListesDeroulantes!A$195,\"\"),IF(AND(ISNUMBER(L90),NOT(ISNUMBER(K90))),ListesDeroulantes!A$195,\"\"))","v":""}]
[null,null,null,null,"Total",null,null,null,null,null,{"$f":"IF(SUM(K88:K90)<>0,SUM(K88:K90),\"- €\")","v":"- €"},{"$f":"IF(SUM(L88:L90)<>0,SUM(L88:L90),\"- €\")","v":"- €"}]
[null,{"$f":"ListesDeroulantes!A131","v":"Missions"}]
[]
[null,null,null,null,{"$f":"ListesDeroulantes!A$97","v":"Descriptif"},null,{"$f":"ListesDeroulantes!A$98","v":"WP concerné"},{"$f":"ListesDeroulantes!A$99","v":"Sous-WP"},null,null,{"$f":"ListesDeroulantes!A$103","v":"Coût total\n(en €)"},{"$f":"ListesDeroulantes!A$104","v":"Assiette de l'aide (en €) "}]
[]
[]
[null,{"$f":"B96+1","v":1},null,null,null,null,null,null,null,null,null,null,null,null,{"$f":"IF(AND(ISNUMBER(L97),ISNUMBER(K97)),IF(L97>K97,ListesDeroulantes!A$195,\"\"),IF(AND(ISNUMBER(L97),NOT(ISNUMBER(K97))),ListesDeroulantes!A$195,\"\"))","v":""}]
[null,{"$f":"B97+1","v":2},null,null,null,null,null,null,null,null,null,null,null,null,{"$f":"IF(AND(ISNUMBER(L98),ISNUMBER(K98)),IF(L98>K98,ListesDeroulantes!A$195,\"\"),IF(AND(ISNUMBER(L98),NOT(ISNUMBER(K98))),ListesDeroulantes!A$195,\"\"))","v":""}]
[null,{"$f":"B98+1","v":3},null,null,null,null,null,null,null,null,null,null,null,null,{"$f":"IF(AND(ISNUMBER(L99),ISNUMBER(K99)),IF(L99>K99,ListesDeroulantes!A$195,\"\"),IF(AND(ISNUMBER(L99),NOT(ISNUMBER(K99))),ListesDeroulantes!A$195,\"\"))","v":""}]
[null,null,null,null,"Total",null,null,null,null,null,{"$f":"IF(SUM(K97:K99)<>0,SUM(K97:K99),\"- €\")","v":"- €"},{"$f":"IF(SUM(L97:L99)<>0,SUM(L97:L99),\"- €\")","v":"- €"}]
[null,{"$f":"ListesDeroulantes!A132","v":"Autres dépenses externes (consommables, petits matériels …)"}]
[]
[null,null,null,null,{"$f":"ListesDeroulantes!A$97","v":"Descriptif"},null,{"$f":"ListesDeroulantes!A$98","v":"WP concerné"},{"$f":"ListesDeroulantes!A$99","v":"Sous-WP"},null,null,{"$f":"ListesDeroulantes!A$103","v":"Coût total\n(en €)"},{"$f":"ListesDeroulantes!A$104","v":"Assiette de l'aide (en €) "}]
[]
[]
[null,{"$f":"B105+1","v":1},null,null,null,null,null,null,null,null,null,null,null,null,{"$f":"IF(AND(ISNUMBER(L106),ISNUMBER(K106)),IF(L106>K106,ListesDeroulantes!A$195,\"\"),IF(AND(ISNUMBER(L106),NOT(ISNUMBER(K106))),ListesDeroulantes!A$195,\"\"))","v":""}]
[null,{"$f":"B106+1","v":2},null,null,null,null,null,null,null,null,null,null,null,null,{"$f":"IF(AND(ISNUMBER(L107),ISNUMBER(K107)),IF(L107>K107,ListesDeroulantes!A$195,\"\"),IF(AND(ISNUMBER(L107),NOT(ISNUMBER(K107))),ListesDeroulantes!A$195,\"\"))","v":""}]
[null,{"$f":"B107+1","v":3},null,null,null,null,null,null,null,null,null,null,null,null,{"$f":"IF(AND(ISNUMBER(L108),ISNUMBER(K108)),IF(L108>K108,ListesDeroulantes!A$195,\"\"),IF(AND(ISNUMBER(L108),NOT(ISNUMBER(K108))),ListesDeroulantes!A$195,\"\"))","v":""}]
[null,null,null,null,"Total",null,null,null,null,null,{"$f":"IF(SUM(K106:K108)<>0,SUM(K106:K108),\"- €\")","v":"- €"},{"$f":"IF(SUM(L106:L108)<>0,SUM(L106:L108),\"- €\")","v":"- €"}]
[]
[]
[null,null,null,null,null,null,null,null,{"$f":"ListesDeroulantes!A138","v":"Taux (en %)"},null,{"$f":"ListesDeroulantes!A103","v":"Coût total\n(en €)"},{"$f":"ListesDeroulantes!A104","v":"Assiette de l'aide (en €) "}]
[]
[]
[null,null,null,null,{"$f":"ListesDeroulantes!A141","v":"Frais généraux (max. 20% des coûts entrant dans l'assiette de l'aide)"},null,null,null,null,null,{"$f":"L115","v":0},{"$f":"(SUM(L37,L46,L55,L64,L73,L82,L91,L100,L109))*I115/100","v":0}]
[]
[]
[null,null,null,null,{"$f":"ListesDeroulantes!A140","v":"Taux d'environnement (compris entre 0 et 100 % ; uniquement pour les organismes publics)"},null,null,null,null,null,{"$f":"(SUM(K46,K55,K64))*I118/100","v":0}]
[]
[]
[null,null,null,null,{"$f":"ListesDeroulantes!A144","v":"Coût complet du projet (hors frais d'environnement, en €)"},null,null,null,{"$f":"SUM(K115,K109,K100,K91,K82,K73,K64,K55,K46,K37)","v":0}]
[]
[null,null,null,null,{"$f":"ListesDeroulantes!A146","v":"Total éligible pour le calcul de l'aide : Total assiette de l'aide (en €)"},null,null,null,null,null,{"$f":"IF(SUM(L37,L55,L64,L73,L82,L91,L100,L109,L115)<>0,SUM(L37,L55,L64,L73,L82,L91,L100,L109,L115),\"- €\")","v":"- €"}]
[]
[null,null,{"$f":"IF(I125=FALSE,\"Erreur : le type de partenaire (cellule D12) n'est pas reinsegné\",\"\")","v":"Erreur : le type de partenaire (cellule D12) n'est pas reinsegné"},null,{"$f":"ListesDeroulantes!A148","v":"Taux d'aide demandé (%)"},null,null,null,{"$f":"Q9","v":false},null,null,null,null,null,{"$f":"IF(ISNUMBER(K125),\"\",ListesDeroulantes!A197)","v":"Erreur : le taux n'est pas renseigné."}]
[]
[null,null,null,null,{"$f":"ListesDeroulantes!A152","v":"Aide demandée (en €)"},null,null,null,null,null,{"$f":"IF(AND(ISNUMBER(K123),ISNUMBER(K125)),K123*K125/100,\"- €\")","v":"- €"}]
[]
[]
[null,null,null,null,{"$f":"ListesDeroulantes!A145","v":"Coût complet du projet comprenant les frais d'environnement (en €)"},null,null,null,{"$f":"(SUM(K118,K115,K109,K100,K91,K82,K73,K64,K55,K46,K37))","v":0}]
[]
[]
[null,{"$f":"ListesDeroulantes!A163","v":"Autres soutiens financiers (sollicités ou obtenus par le partenaire pour le projet)"}]
[]
[]
[null,{"$f":"ListesDeroulantes!A164","v":"Identification des financeurs"},null,null,{"$f":"ListesDeroulantes!A165","v":"Nature et objet du financement et, le cas échéant, WP(s) et tâche(s) concernés"},{"$f":"ListesDeroulantes!A166","v":"Type de financement (public/privé)"},{"$f":"ListesDeroulantes!A169","v":"Montant sollicité"},null,null,{"$f":"ListesDeroulantes!A170","v":"Montant obtenu"},null,{"$f":"ListesDeroulantes!A171","v":"Date effective ou prévue du financement"}]
[]
[]
[]
[]
[]
[]
[]
[null,null,null,null,"Sous-total autres financements publics",null,{"$f":"SUMIF(F141:F143,\"Public\",G141:I143)","v":0},null,null,{"$f":"SUMIF(F141:F143,\"Public\",J141:K143)","v":0}]
[null,null,null,null,"Sous-total autres financements privés",null,{"$f":"SUMIF(F141:F143,\"Privé\",G141:I143)","v":0},null,null,{"$f":"SUMIF(F141:F143,\"Privé\",J141:K143)","v":0}]
[null,null,null,null,"Total",null,{"$f":"IF(SUM(G144:I145)<>0,SUM(G144:I145),\"- €\")","v":"- €"},null,null,{"$f":"IF(SUM(J144:K145)<>0,SUM(J144:K145),\"- €\")","v":"- €"}]
[]
[null,{"$f":"ListesDeroulantes!A172","v":"Publication d'informations relatives au projet"}]
[]
[null,{"$f":"ListesDeroulantes!A173","v":"Si le projet est retenu pour financement, l'opérateur se réserve la possibilité de rendre publiques les informations suivantes : nom du responsable du projet, dénominations des partenaires qu'ils soient des entreprises ou qu'ils appartiennent à un organisme de recherche. L'opérateur ne rendra pas publiques les informations sur les personnes ou les partenaires qui en auront fait le demande."}]
[]
[]
[]
[]
[null,{"$f":"ListesDeroulantes!A174","v":"En cas de refus de publication remplacer ci-dessous la mention \"Oui\" par \"Non\" : "}]
[]
[]
[null,{"$f":"ListesDeroulantes!A179","v":"Dénomination du partenaire (si \"Non\", celle-ci sera remplacée par la mention générique \"Entreprise\" ou \"Organisme de recherche\") : "},null,null,null,null,null,null,null,{"$f":"ListesDeroulantes!A$175","v":"Oui"}]
[]
[null,{"$f":"ListesDeroulantes!A180","v":"Nota : en déposant un projet, les partenaires ont accepté que l'opérateur publie l'acronyme, le titre, le résumé, l'aide accordée au projet, la date de début de projet et la durée."}]
[]
[null,{"$f":"ListesDeroulantes!A181","v":"Commentaires (le cas échéant)"}]
[]
[]
[]
[]
[]
[]
[null,{"$f":"ListesDeroulantes!A182","v":"Les informations personnelles transmises dans ces documents sont obligatoires et seront conservées en fichiers par l'opérateur pour assurer la conduite opérationnelle de l'évaluation et l'administration des dossiers.\nConformément à la loi n° 78-17 du 6 janvier 1978 modifiée, relative à l'Informatique, aux Fichiers et aux Libertés, les personnes concernées disposent d'un droit d'accès et de rectification des données personnelles les concernant. Les personnes concernées peuvent exercer ce droit en s'adressant à l'opérateur (voir coordonnées dans le texte de l’appel à projets)."}]
[]
[]
[]
["Lettre d’engagement"]
[]
["Le présent engagement est à compléter, signer, viser par la personne habilitée à engager l’Etablissement."]
[]
["LIEN DU SITE DE DEPOT"]
["https://france2030.agencerecherche.fr/CMA/accueil.php?"]
[]
["Ayant le pouvoir d'engager juridiquement l'établissement ci-dessus, je déclare :"]
["▪ avoir pris connaissance du dossier complet de dépôt (document de description du projet, y compris son annexe, et document administratif et financier) tel que déposé sur le site de l’ANR et du règlement relatif aux modalités d'attribution des aides au titre de l’AMI- CMA ;"]
["▪ m'engager à négocier et signer un accord de consortium (ou équivalent) et mettre en œuvre tous les moyens nécessaires pour finaliser ce document dans les conditions et délais prévus par le règlement relatif aux modalités d'attribution des aides précité ;"]
["▪ m'engager à mettre en œuvre tous les moyens nécessaires à la réalisation du projet tels que décrits dans le dossier de dépôt, dans les conditions prévues par le règlement relatif aux modalités d'attribution des aides précité ;"]
["▪ m'engager à respecter les engagements financiers tels que détaillés dans le document administratif et financier du document déposé ;"]
["▪ m’engager à mettre en œuvre les recrutements sur contrat des personnels nécessaires à la réalisation de la proposition déposée et cela en conformité avec tous les lois et règlements en vigueur applicables ; à mettre à disposition des personnels engagés dans la réalisation du projet les surfaces de travail nécessaires à l’accomplissement de leurs missions pendant la durée du projet ;"]
["▪ souscrire aux obligations qui découlent du financement du projet par l’ANR, notamment à des fins d'évaluation globale de l'action ;"]
["▪ que le projet ne cause pas un préjudice important du point de vue de l’environnement (application du principe DNSH – Do No Significant Harm ou « absence de préjudice important ») au sens de l’article 17 du règlement européen sur la taxonomie ;"]
[{"$f":"IF(Q11=\"Entreprise\", \"▪ m’engager à ne pas avoir initié de travaux liés au projet déposé.\", \"\")","v":"▪ m’engager à ne pas avoir initié de travaux liés au projet déposé."}]
[]
[null,null,null,null,null,{"$f":"ListesDeroulantes!A185","v":"Personne habilitée à engager l'établissement partenaire (EP)"}]
[]
[null,null,null,null,null,{"$f":"ListesDeroulantes!A61","v":"Prénom"},null,null,null,{"$f":"ListesDeroulantes!A62","v":"Nom"}]
[null,null,null,null,null,{"$f":"IF(D22<>\"\",D22,\"\")","v":""},null,null,null,{"$f":"IF(D23<>\"\",D23,\"\")","v":""}]
[null,null,null,null,null,{"$f":"ListesDeroulantes!A63","v":"Qualité"}]
[null,null,null,null,null,{"$f":"IF(D24<>\"\",D24,\"\")","v":""}]
[]
[null,null,null,null,null,"Signature & Cachet"]

{"sheet":"ListesDeroulantes","index":9,"n_rows":205,"n_cols":2,"rows_kept":205,"cut":false,"hidden":true,"merged":[]}
["Onglet Volet général","WP"]
["AMI - CMA","WP 1"]
["Réservé à l'organisme gestionnaire du programme","WP 2"]
["N° de partenaire","WP 3"]
["Acronyme","WP 4"]
["Nb de partenaires","WP 5"]
["Document administratif et financier","WP 6"]
["Volet général","WP 7"]
["Fiche d'identité du projet","WP 8"]
["Acronyme du projet","WP 9"]
["Titre du projet","WP 10"]
["Catégorie d’entité/Catégorie du bénéficiaire ",".1"]
["Enseignement supérieur",".2"]
["Enseignement secondaire",".3"]
["OPCO",".4"]
["CMQ",".5"]
["Entreprise",".6"]
["Région",".7"]
["Syndicat professionnel",".8"]
["Association",".9"]
["Autre",".10"]
["Durée du projet (en mois) \n- max 60 mois"]
["Date de démarrage souhaitée"]
["Le projet prévoit une large diffusion des résultats et/ou une collaboration effective (au sens du RGEC) :"]
["Oui"]
["Non"]
["Récapitulatif des demandes financières des partenaires"]
["Etablissement partenaire"]
[{"$f":"\"Coût complet\"&CHAR(10)&\"(comprenant les frais d'environnement, en €)\"","v":"Coût complet\n(comprenant les frais d'environnement, en €)"}]
[{"$f":"\"Coût complet\"&CHAR(10)&\"(hors frais d'environnement, en €)\"","v":"Coût complet\n(hors frais d'environnement, en €)"}]
["Assiette aide demandée frais généraux / Assiette aide demandée total hors frais généraux (max 20% sur l'ensemble du projet)"]
["Montant reconnaissance (limite annuelle de 50k€, sauf dérogation)"]
["Montant reconnaissance par an"]
["Ratio Aide demandée / Coût complet du projet (hors frais d'environnement)"]
["Ratio Aide demandée / Coût complet comprenant frais environnement"]
[{"$f":"\"Assiette de l'aide, par catégorie de dépense\"&CHAR(10)&\"(en €)\"","v":"Assiette de l'aide, par catégorie de dépense\n(en €)"}]
[{"$f":"\"Apports hors frais d'environnement\"&CHAR(10)&\"(en €)\"","v":"Apports hors frais d'environnement\n(en €)"}]
["Apports au-delà du taux d'aide max (€)"]
["Personnel hors financement demandé (personne.mois)"]
["Apport\nAutre personnel  (personne.mois)"]
["Budget total\nPersonnel hors financement demandé (€)"]
["Apport\nAutre personnel  (€)"]
["Personnel financé CDD & CDI (personne.mois)"]
["Budget total\nPersonnel AVEC financement demandé (€)"]
["Heures complémentaires d’enseignement et modulation de service"]
["Reconnaissance au titre des activités prévues au référentiel horaire"]
["Apport Personnel\nCDD & CDI (€)"]
[{"$f":"\"Autre financements publics\"&CHAR(10)&\"(en €)\"","v":"Autre financements publics\n(en €)"}]
[{"$f":"\"Autre financements privés\"&CHAR(10)&\"(en €)\"","v":"Autre financements privés\n(en €)"}]
["Budget total\nEquipements ou amortissement d'équipements de R&D"]
["Totaux"]
["Coût complet du projet\n(hors frais d'environnement, en €)"]
["Coût complet du projet comprenant les frais d'environnement (en €)"]
["Aide totale demandée (en €)"]
["Sigle de l'établissement partenaire"]
["Nom complet de l'établissement partenaire"]
["NOTA : Toutes les champs de cet onglet \"Volet général\" doivent être renseignés.\nIls seront utilisés par les membres du jury au cours du processus de sélection."]
["Remarque : toutes les informations figurant ci-dessus ont vocation à être publiées si le projet est financé.\nEn déposant un dossier, les partenaires ont accepté la publication de toutes ces informations."]
["Responsable du projet"]
["Personne habilitée à engager l'établissement Chef de File"]
["Prénom"]
["Nom"]
["Qualité"]
["Fiche partenaire n°"]
[" : Identification et budget"]
["Identification de l'établissement partenaire"]
["Nom complet du partenaire"]
["Sigle du partenaire "]
["Catégorie de partenaire"]
["Organisme de recherche"]
["Entreprise"]
["Forme juridique"]
["EPST : Établissement public à caractère scientifique et technologique"]
["EPIC : Établissement public à caractère industriel et commercial"]
["Établissement de santé"]
["Fondation de recherche (FR)"]
["Université"]
["Autre public"]
[{"$f":"\"Micro PME\"&CHAR(10)&\"(≤ 9 employés)\"","v":"Micro PME\n(≤ 9 employés)"}]
[{"$f":"\"Petite PME\"&CHAR(10)&\"(10 ≤ employés ≤ 50)\"","v":"Petite PME\n(10 ≤ employés ≤ 50)"}]
[{"$f":"\"Moyenne PME\"&CHAR(10)&\"(51 < employés ≤ 250)\"","v":"Moyenne PME\n(51 < employés ≤ 250)"}]
["Entreprise autre que PME"]
["Autre privé"]
["N° de SIRET"]
["Saisir un n°SIRET de 14digits"]
["Assujetti à la TVA "]
["Oui"]
["Non"]
["Personne habilitée à représenter juridiquement l'établissement partenaire (pour signature du contrat attributif d'aide ou de reversement)"]
["Genre"]
["Mme"]
["M."]
["Demande financière détaillée du projet (montant HT en €, incluant la TVA non récupérable le cas échéant)"]
["Equipements ou amortissement d'équipements de R&D"]
["Seuil d’immobilisation propre à l'établissement"]
["Le coût d'achat est égal ou supérieur au seuil d’immobilisation."]
["Descriptif"]
["WP concerné"]
["Sous-WP"]
["Année de dépense"]
[{"$f":"\"Coût d'achat\"&CHAR(10)&\"(en €)\"","v":"Coût d'achat\n(en €)"}]
["Pourcentage d'utilisation (en %)"]
[{"$f":"\"Coût total\"&CHAR(10)&\"(en €)\"","v":"Coût total\n(en €)"}]
["Assiette de l'aide (en €) "]
["Personnels sans financement"]
["OR/ES/\nMixte"]
["OR"]
["ES"]
["Mixte"]
["Catégorie de personnel"]
["Professeur"]
["Maitre de conférence"]
["Chercheur (DR/CR, ...)"]
["Ingénieur (IR/IE, IRH, IEH, ...)"]
["Technicien/Assistant ingénieur (TEC, AI, TC, …)"]
["Autre"]
["Descriptif et commentaires éventuels"]
["Coût mensuel (en €)"]
["Personne. Mois"]
["Personnels avec financement en contrat à durée déterminée"]
["Doctorant"]
["Doctorant CIFRE"]
["Chercheur / Post doctorant"]
["Ingénieur (IR/IE, IRH, IEH, ...)"]
["Technicien (TEC, AI, TC, …)"]
["Autre"]
["Personnels avec financement en contrat à durée indéterminée"]
["Heures complémentaires d’enseignement et modulation de service (établissements d'enseignement et formation, organismes de recherche)"]
["Reconnaissance au titre des activités prévues au référentiel horaire (établissements d'enseignement et formation, organismes de recherche)"]
["Prestations de service externes"]
["Missions"]
["Autres dépenses externes (consommables, petits matériels …)"]
["Autres dépenses justifiées par une procédure de facturation interne"]
["Coût unitaire (en €)"]
["Nombre"]
["Veuillez choisir la base de calcul pour l'assiette de l'aide au préalable."]
["Descriptif"]
["Taux (en %)"]
["Frais de gestion et d'environnement (uniquement pour les organismes publics)"]
["Taux d'environnement (compris entre 0 et 100 % ; uniquement pour les organismes publics)"]
["Frais généraux (max. 20% des coûts entrant dans l'assiette de l'aide)"]
["Frais de structure"]
["Frais généraux"]
["Coût complet du projet (hors frais d'environnement, en €)"]
["Coût complet du projet comprenant les frais d'environnement (en €)"]
["Total éligible pour le calcul de l'aide : Total assiette de l'aide (en €)"]
["Total assiette de l'aide (en €)"]
["Taux d'aide demandé (%)"]
["Total aide demandée (€)"]
["Veuillez vous référer au règlement financier pour le maximum autorisé."]
["Taux max de"]
["Aide demandée (en €)"]
["WP 1"]
["WP 2"]
["WP 3"]
["WP 4"]
["WP 5"]
["WP 6"]
["WP 7"]
["WP 8"]
["WP 9"]
["WP 10"]
["Autres soutiens financiers (sollicités ou obtenus par le partenaire pour le projet)"]
["Identification des financeurs"]
["Nature et objet du financement et, le cas échéant, WP(s) et tâche(s) concernés"]
["Type de financement (public/privé)"]
["Public"]
["Privé"]
["Montant sollicité"]
["Montant obtenu"]
["Date effective ou prévue du financement"]
["Publication d'informations relatives au projet"]
["Si le projet est retenu pour financement, l'opérateur se réserve la possibilité de rendre publiques les informations suivantes : nom du responsable du projet, dénominations des partenaires qu'ils soient des entreprises ou qu'ils appartiennent à un organisme de recherche. L'opérateur ne rendra pas publiques les informations sur les personnes ou les partenaires qui en auront fait le demande."]
["En cas de refus de publication remplacer ci-dessous la mention \"Oui\" par \"Non\" : "]
["Oui"]
["Non"]
["Nom et prénom du responsable du projet :"]
[]
["Dénomination du partenaire (si \"Non\", celle-ci sera remplacée par la mention générique \"Entreprise\" ou \"Organisme de recherche\") : "]
["Nota : en déposant un projet, les partenaires ont accepté que l'opérateur publie l'acronyme, le titre, le résumé, l'aide accordée au projet, la date de début de projet et la durée."]
["Commentaires (le cas échéant)"]
["Les informations personnelles transmises dans ces documents sont obligatoires et seront conservées en fichiers par l'opérateur pour assurer la conduite opérationnelle de l'évaluation et l'administration des dossiers.\nConformément à la loi n° 78-17 du 6 janvier 1978 modifiée, relative à l'Informatique, aux Fichiers et aux Libertés, les personnes concernées disposent d'un droit d'accès et de rectification des données personnelles les concernant. Les personnes concernées peuvent exercer ce droit en s'adressant à l'opérateur (voir coordonnées dans le texte de l’appel à projets)."]
["Engagement de l'établissement partenaire (les signatures sont à apposer obligatoirement sur le document papier) "]
["Correspondant scientifique et technique"]
["Personne habilitée à engager l'établissement partenaire (EP)"]
[]
["Erreur :\nles données concernant le projet ne sont pas toutes renseignées."]
[" dans l'onglet échéancier finnancier prévisionnel"]
["erreur"]
["Erreur : les données concernant l'établissement partenaire ne sont pas toutes renseignées."]
["Erreur : veuillez choisir au préalable la méthode de calcul de l'assiette de l'aide (coût marginal ou coûts complets)."]
["Erreur : le mode de calcul des coûts ne correspond pas à la forme juridique choisie."]
["Erreur : la forme juridique ne correspond pas à la catégorie de partenaire choisie."]
["Erreur : cette rubrique ne concerne que les organismes de recherche, merci de la laisser vide."]
["Erreur : le montant de l'assiette de l'aide demandé ne peut être supérieur au coût total."]
["Erreur : le taux choisi est supérieur au maximum autorisé."]
["Erreur : le taux n'est pas renseigné."]
["Erreur de selection du mode de calcul du coût, merci de vérifier ci-dessus, la catégorie de partenaire renseignée."]
["Erreur : la catégorie de recherche R&D n'est pas renseignée. Merci de revenir au volet général pour le completer pour poursuivre."]
["Erreur : la méthode de calcul de l'assiette de l'aide (coût marginal ou coûts complets) n'est pas renseignée. Merci de remonter en haut de cet onglet pour faire ce choix au préalable."]
["Erreur : les données concernant le responsable scientifique et technique ne sont pas toutes renseignées."]
["Erreur : les données concernant le correspondant scientifique et technique ne sont pas toutes renseignées."]
["Erreur : les données concernant la personne habilitée à engager le partenaire ne sont pas toutes renseignées."]
["Erreur : le total des besoins du partenaire doit être égal au montant l'aide qu'il demande (cf. onglet "]
["Recommandations : Une fois le document finalisé et imprimé, vérifier la présence de l'ensemble des signatures et cachets demandés avant de déposer la copie scannée en ligne."]

{"sheet":"Synthèse budget","index":10,"n_rows":25,"n_cols":7,"rows_kept":25,"cut":false,"hidden":true,"merged":[[23,1,23,6],[24,1,24,6],[2,1,2,6],[3,1,3,3],[3,4,3,6],[5,1,5,3],[5,4,5,6],[14,1,14,3],[14,4,14,6]]}
[null,"TABLEAU DE SYNTHESE DU BUDGET DU PROJET SUR TOUTE SA DUREE  (Maximum 60 mois)"]
[]
[null,{"$f":" \"NOM DU PROJET [\"&Volet_general!D12&\"] - DEPENSES ELIGIBLES\"","v":"NOM DU PROJET [] - DEPENSES ELIGIBLES"}]
[null,"Emplois - Dépenses éligibles",null,null,"Ressources"]
[null,"Postes","Montant","Taux","Postes","Montant","Taux"]
[null,"Charges directes & indirectes",null,null,"Apports en numéraire"]
["Equipement =>","Dépenses d'équipement",{"$f":"Volet_general!U39","v":"- €"},{"$f":"C7/C$14","v":{"$error":"#VALUE!"}},"Subvention AMI CMA",{"$f":"IF(ISNUMBER(Volet_general!G39),Volet_general!G39,0)","v":0},{"$f":"F7/F$21","v":{"$error":"#DIV/0!"}}]
["Personnel CDD/CDI + heure complementaires + modulation&reconaissance =>","Dépenses de personnel",{"$f":"SUM(Volet_general!X39,Volet_general!AA39,Volet_general!AB39)","v":0},{"$f":"C8/C$14","v":{"$error":"#DIV/0!"}},"Autres subventions publiques",{"$f":"IF(ISNUMBER(Volet_general!AE39),Volet_general!AE39,0)","v":0},{"$f":"F8/F$21","v":{"$error":"#DIV/0!"}}]
["Missions + consommables + facturation interne =>","Dépenses de fonctionnement",{"$f":"SUM(Volet_general!AC39,Volet_general!AD39)","v":0},{"$error":"#DIV/0!"}]
[null,"Frais généraux",{"$f":"Volet_general!S39","v":"- €"},{"$error":"#VALUE!"},"Financements privés",{"$f":"IF(ISNUMBER(Volet_general!AF39),Volet_general!AF39,0)","v":0},{"$f":"F10/F$21","v":{"$error":"#DIV/0!"}}]
[]
[]
[]
[null,"Sous-total",{"$f":"SUM(C7:C10)","v":0},null,"Sous-total",{"$f":"SUM(F7,F8,F10)","v":0},{"$f":"F14/F$21","v":{"$error":"#DIV/0!"}}]
[null,null,null,null,"Valorisations en nature (1)"]
[null,null,null,null,"Apports matériels",null,{"$f":"F16/F$21","v":{"$error":"#DIV/0!"}}]
["Personnel statutaire =>","Personnel statutaire",{"$f":"Volet_general!Z39","v":"- €"},null,"Apports immatériels",null,{"$error":"#DIV/0!"}]
[null,null,null,null,"Apports en personnel non statutaire",{"$f":"IF(ISNUMBER(SUM(Volet_general!X39+Volet_general!AA39+Volet_general!AB39)),SUM(Volet_general!X39+Volet_general!AA39+Volet_general!AB39),0)","v":0},{"$error":"#DIV/0!"}]
[null,null,null,null,"Apports en personnel statutaire",{"$f":"IF(ISNUMBER(Volet_general!Z39),Volet_general!Z39,0)","v":0},{"$error":"#DIV/0!"}]
[null,null,null,null,"Sous-total",{"$f":"SUM(F16:F19)","v":0},{"$f":"F20/F$21","v":{"$error":"#DIV/0!"}}]
[null,"TOTAL COUT PROJET",{"$f":"C14+C17","v":{"$error":"#VALUE!"}},null,"TOTAL RESSOURCES COUT PROJET",{"$f":"F20+F14","v":0}]
[]
[]
[null,"(1) Les apports en nature correspondent à tout bien matériel ou immatériel pour lequel il n'y a pas d'échange numéraire (par exemple, une mise à disposition à titre gracieux de personnel, de matériel… de la part d'un partenaire) et qui fait l'objet d'une évaluation financière par le biais d'une convention ou d'une certification comptable."]
[null,"(2) Frais généraux : ces frais ont un caractère forfaitaire et sont plafonnés à 20 % des dépenses directes soumises aux aides d'Etat"]